Workbook

Sheet IP1718 (hidden)
H3: England average | I3: Isle of Wight NHS Trust | J3: Barts Health NHS Trust | K3: London North West Healthcare NHS Trust | L3: Royal Surrey County Hospital NHS Foundation Trust | M3: Weston Area Health NHS Trust | N3: Yeovil District Hospital NHS Foundation Trust | O3: University Hospitals Bristol NHS Foundation Trust | P3: Torbay and South Devon NHS Foundation Trust | Q3: Bradford Teaching Hospitals NHS Foundation Trust | R3: Southend University Hospital NHS Foundation Trust | S3: Royal Free London NHS Foundation Trust | T3: Royal National Orthopaedic Hospital NHS Trust | U3: North Middlesex University Hospital NHS Trust | V3: The Hillingdon Hospitals NHS Foundation Trust | W3: Kingston Hospital NHS Foundation Trust | X3: Taunton and Somerset NHS Foundation Trust | Y3: Dorset County Hospital NHS Foundation Trust | Z3: Walsall Healthcare NHS Trust | AA3: Wirral University Teaching Hospital NHS Foundation Trust | AB3: St Helens and Knowsley Teaching Hospitals NHS Trust | AC3: Liverpool Heart and Chest Hospital NHS Foundation Trust | AD3: Mid Cheshire Hospitals NHS Foundation Trust | AE3: The Christie NHS Foundation Trust | AF3: Northern Devon Healthcare NHS Trust | AG3: Bedford Hospital NHS Trust | AH3: Luton and Dunstable University Hospital NHS Foundation Trust | AI3: York Teaching Hospital NHS Foundation Trust | AJ3: Harrogate and District NHS Foundation Trust | AK3: Airedale NHS Foundation Trust | AL3: The Queen Elizabeth Hospital, King's Lynn, NHS Foundation Trust | AM3: Royal United Hospitals Bath NHS Foundation Trust | AN3: Poole Hospital NHS Foundation Trust | AO3: Milton Keynes University Hospital NHS Foundation Trust | AP3: Basildon and Thurrock University Hospitals NHS Foundation Trust | AQ3: Colchester Hospital University NHS Foundation Trust | AR3: Frimley Health NHS Foundation Trust | AS3: The Royal Bournemouth and Christchurch Hospitals NHS Foundation Trust | AT3: South Tyneside NHS Foundation Trust | AU3: Royal Cornwall Hospitals NHS Trust | AV3: Aintree University Hospital NHS Foundation Trust | AW3: The Clatterbridge Cancer Centre NHS Foundation Trust | AX3: Liverpool Women's NHS Foundation Trust | AY3: The Walton Centre NHS Foundation Trust | AZ3: Barking, Havering and Redbridge University Hospitals NHS Trust | BA3: Barnsley Hospital NHS Foundation Trust | BB3: The Rotherham NHS Foundation Trust | BC3: Chesterfield Royal Hospital NHS Foundation Trust | BD3: Royal Papworth Hospital NHS Foundation Trust | BE3: Peterborough and Stamford Hospitals NHS Foundation Trust | BF3: James Paget University Hospitals NHS Foundation Trust | BG3: Ipswich Hospital NHS Trust | BH3: West Suffolk NHS Foundation Trust | BI3: Cambridge University Hospitals NHS Foundation Trust | BJ3: Royal Devon and Exeter NHS Foundation Trust | BK3: University Hospital Southampton NHS Foundation Trust | BL3: Sheffield Teaching Hospitals NHS Foundation Trust | BM3: Portsmouth Hospitals NHS Trust | BN3: Royal Berkshire NHS Foundation Trust | BO3: Guy's and St Thomas' NHS Foundation Trust | BP3: Lewisham and Greenwich NHS Trust | BQ3: Croydon Health Services NHS Trust | BR3: St George's University Hospitals NHS Foundation Trust | BS3: South Warwickshire NHS Foundation Trust | BT3: University Hospitals of North Midlands NHS Trust | BU3: Burton Hospitals NHS Foundation Trust | BV3: Northern Lincolnshire and Goole NHS Foundation Trust | BW3: East Cheshire NHS Trust | BX3: Countess of Chester Hospital NHS Foundation Trust | BY3: King's College Hospital NHS Foundation Trust | BZ3: Sherwood Forest Hospitals NHS Foundation Trust | CA3: Plymouth Hospitals NHS Trust | CB3: University Hospitals Coventry and Warwickshire NHS Trust | CC3: Whittington Health NHS Trust | CD3: The Robert Jones and Agnes Hunt Orthopaedic Hospital NHS Foundation Trust | CE3: The Royal Wolverhampton NHS Trust | CF3: City Hospitals Sunderland NHS Foundation Trust | CG3: Wye Valley NHS Trust | CH3: George Eliot Hospital NHS Trust | CI3: Norfolk and Norwich University Hospitals NHS Foundation Trust | CJ3: University Hospital of South Manchester NHS Foundation Trust | CK3: Salford Royal NHS Foundation Trust | CL3: Bolton NHS Foundation Trust | CM3: Tameside and Glossop Integrated Care NHS Foundation Trust | CN3: Great Western Hospitals NHS Foundation Trust | CO3: Hampshire Hospitals NHS Foundation Trust | CP3: Dartford and Gravesham NHS Trust | CQ3: The Dudley Group NHS Foundation Trust | CR3: North Cumbria University Hospitals NHS Trust | CS3: Kettering General Hospital NHS Foundation Trust | CT3: Northampton General Hospital NHS Trust | CU3: Salisbury NHS Foundation Trust | CV3: Doncaster and Bassetlaw Teaching Hospitals NHS Foundation Trust | CW3: Medway NHS Foundation Trust | CX3: Queen Victoria Hospital NHS Foundation Trust | CY3: The Royal Marsden NHS Foundation Trust | CZ3: Birmingham Women's and Children's NHS Foundation Trust | DA3: Royal Liverpool and Broadgreen University Hospitals NHS Trust | DB3: Mid Essex Hospital Services NHS Trust | DC3: Chelsea and Westminster Hospital NHS Foundation Trust | DD3: The Princess Alexandra Hospital NHS Trust | DE3: Homerton University Hospital NHS Foundation Trust | DF3: Heart of England NHS Foundation Trust | DG3: Gateshead Health NHS Foundation Trust | DH3: Leeds Teaching Hospitals NHS Trust | DI3: Wrightington, Wigan and Leigh NHS Foundation Trust | DJ3: The Royal Orthopaedic Hospital NHS Foundation Trust | DK3: University Hospitals Birmingham NHS Foundation Trust | DL3: University College London Hospitals NHS Foundation Trust | DM3: Royal Brompton & Harefield NHS Foundation Trust | DN3: The Newcastle Upon Tyne Hospitals NHS Foundation Trust | DO3: Gloucestershire Hospitals NHS Foundation Trust | DP3: Northumbria Healthcare NHS Foundation Trust | DQ3: Derby Teaching Hospitals NHS Foundation Trust | DR3: Oxford University Hospitals NHS Foundation Trust | DS3: Ashford and St Peter's Hospitals NHS Foundation Trust | DT3: Surrey and Sussex Healthcare NHS Trust | DU3: South Tees Hospitals NHS Foundation Trust | DV3: University Hospitals of Morecambe Bay NHS Foundation Trust | DW3: North Bristol NHS Trust | DX3: Epsom and St Helier University Hospitals NHS Trust | DY3: East Kent Hospitals University NHS Foundation Trust | DZ3: North Tees and Hartlepool NHS Foundation Trust | EA3: Southport and Ormskirk Hospital NHS Trust | EB3: Central Manchester University Hospitals NHS Foundation Trust | EC3: Pennine Acute Hospitals NHS Trust | ED3: Hull and East Yorkshire Hospitals NHS Trust | EE3: United Lincolnshire Hospitals NHS Trust | EF3: University Hospitals of Leicester NHS Trust | EG3: Maidstone and Tunbridge Wells NHS Trust | EH3: West Hertfordshire Hospitals NHS Trust | EI3: East and North Hertfordshire NHS Trust | EJ3: Stockport NHS Foundation Trust | EK3: Worcestershire Acute Hospitals NHS Trust | EL3: Warrington and Halton Hospitals NHS Foundation Trust | EM3: Calderdale and Huddersfield NHS Foundation Trust | EN3: Nottingham University Hospitals NHS Trust | EO3: East Sussex Healthcare NHS Trust | EP3: Mid Yorkshire Hospitals NHS Trust | EQ3: Brighton and Sussex University Hospitals NHS Trust | ER3: Sandwell and West Birmingham Hospitals NHS Trust | ES3: Blackpool Teaching Hospitals NHS Foundation Trust | ET3: Lancashire Teaching Hospitals NHS Foundation Trust | EU3: County Durham and Darlington NHS Foundation Trust | EV3: Buckinghamshire Healthcare NHS Trust | EW3: East Lancashire Hospitals NHS Trust | EX3: Shrewsbury and Telford Hospital NHS Trust | EY3: Imperial College Healthcare NHS Trust | EZ3: Western Sussex Hospitals NHS Foundation Trust
B4: Qnumber | D4: question | E4: 80th percentile | F4: Min | G4: Max | H4: ENG | I4: R1F | J4: R1H | K4: R1K | L4: RA2 | M4: RA3 | N4: RA4 | O4: RA7 | P4: RA9 | Q4: RAE | R4: RAJ | S4: RAL | T4: RAN | U4: RAP | V4: RAS | W4: RAX | X4: RBA | Y4: RBD | Z4: RBK | AA4: RBL | AB4: RBN | AC4: RBQ | AD4: RBT | AE4: RBV | AF4: RBZ | AG4: RC1 | AH4: RC9 | AI4: RCB | AJ4: RCD | AK4: RCF | AL4: RCX | AM4: RD1 | AN4: RD3 | AO4: RD8 | AP4: RDD | AQ4: RDE | AR4: RDU | AS4: RDZ | AT4: RE9 | AU4: REF | AV4: REM | AW4: REN | AX4: REP | AY4: RET | AZ4: RF4 | BA4: RFF | BB4: RFR | BC4: RFS | BD4: RGM | BE4: RGN | BF4: RGP | BG4: RGQ | BH4: RGR | BI4: RGT | BJ4: RH8 | BK4: RHM | BL4: RHQ | BM4: RHU | BN4: RHW | BO4: RJ1 | BP4: RJ2 | BQ4: RJ6 | BR4: RJ7 | BS4: RJC | BT4: RJE | BU4: RJF | BV4: RJL | BW4: RJN | BX4: RJR | BY4: RJZ | BZ4: RK5 | CA4: RK9 | CB4: RKB | CC4: RKE | CD4: RL1 | CE4: RL4 | CF4: RLN | CG4: RLQ | CH4: RLT | CI4: RM1 | CJ4: RM2 | CK4: RM3 | CL4: RMC | CM4: RMP | CN4: RN3 | CO4: RN5 | CP4: RN7 | CQ4: RNA | CR4: RNL | CS4: RNQ | CT4: RNS | CU4: RNZ | CV4: RP5 | CW4: RPA | CX4: RPC | CY4: RPY | CZ4: RQ3 | DA4: RQ6 | DB4: RQ8 | DC4: RQM | DD4: RQW | DE4: RQX | DF4: RR1 | DG4: RR7 | DH4: RR8 | DI4: RRF | DJ4: RRJ | DK4: RRK | DL4: RRV | DM4: RT3 | DN4: RTD | DO4: RTE | DP4: RTF | DQ4: RTG | DR4: RTH | DS4: RTK | DT4: RTP | DU4: RTR | DV4: RTX | DW4: RVJ | DX4: RVR | DY4: RVV | DZ4: RVW | EA4: RVY | EB4: RW3 | EC4: RW6 | ED4: RWA | EE4: RWD | EF4: RWE | EG4: RWF | EH4: RWG | EI4: RWH | EJ4: RWJ | EK4: RWP | EL4: RWW | EM4: RWY | EN4: RX1 | EO4: RXC | EP4: RXF | EQ4: RXH | ER4: RXK | ES4: RXL | ET4: RXN | EU4: RXP | EV4: RXQ | EW4: RXR | EX4: RXW | EY4: RYJ | EZ4: RYR
A5: aw1 | B5: q7 | C5: aw | D5: Question 7: Was your admission date changed by the hospital? | E5: =PERCENTILE(I5:EZ5,0.8) -> 93.8245924 | F5: =MIN(I5:EZ5) -> 81.376831 | G5: =MAX(I5:EZ5) -> 99.02456 | H5: =AVERAGE(I5:FA5) -> 91.50907884 | I5: 90.263346 | J5: 83.91771 | K5: 86.286404 | L5: 93.435798 | M5: 90.016537 | N5: 94.962067 | O5: 87.049152 | P5: 92.559856 | Q5: 95.485194 | R5: 94.30122 | S5: 91.285956 | T5: 89.56596 | U5: 93.771753 | V5: 89.58482 | W5: 93.49588 | X5: 94.164896 | Y5: 92.449108 | Z5: 91.207639 | AA5: 91.126469 | AB5: 93.832432 | AC5: 93.288964 | AD5: 91.306141 | AE5: 96.199018 | AF5: 88.380441 | AG5: 90.340742 | AH5: 91.642319 | AI5: 93.126083 | AJ5: 95.969152 | AK5: 93.76531 | AL5: 90.25237 | AM5: 91.171557 | AN5: 94.836408 | AO5: 90.238806 | AP5: 92.825582 | AQ5: 89.518541 | AR5: 93.310274 | AS5: 92.969568 | AT5: 89.740969 | AU5: 88.575753 | AV5: 91.453226 | AW5: 99.02456 | AX5: 95.212792 | AY5: 93.709997 | AZ5: 91.063258 | BA5: 92.401955 | BB5: 89.558798 | BC5: 93.096711 | BD5: 95.494274 | BE5: 92.310811 | BF5: 95.158271 | BG5: 94.135297 | BH5: 87.819259 | BI5: 87.834144 | BJ5: 93.259483 | BK5: 90.374167 | BL5: 92.68923 | BM5: 90.918836 | BN5: 94.186271 | BO5: 91.601082 | BP5: 85.421819 | BQ5: 93.090504 | BR5: 91.382733 | BS5: 94.146954 | BT5: 88.643517 | BU5: 91.378853 | BV5: 90.988673 | BW5: 94.047342 | BX5: 87.361804 | BY5: 87.003052 | BZ5: 91.557794 | CA5: 87.752932 | CB5: 88.697613 | CC5: 93.478003 | CD5: 91.192996 | CE5: 95.062307 | CF5: 94.569868 | CG5: 92.792961 | CH5: 94.922126 | CI5: 91.86005 | CJ5: 90.782467 | CK5: 87.922394 | CL5: 87.456246 | CM5: 87.308513 | CN5: 93.241629 | CO5: 95.086187 | CP5: 91.132972 | CQ5: 91.628191 | CR5: 94.222455 | CS5: 90.696991 | CT5: 87.187711 | CU5: 92.122609 | CV5: 92.750789 | CW5: 93.569863 | CX5: 94.647679 | CY5: 95.15059 | CZ5: 93.225945 | DA5: 92.004104 | DB5: 89.865104 | DC5: 89.247255 | DD5: 81.376831 | DE5: 94.449708 | DF5: 89.279344 | DG5: 93.526276 | DH5: 90.709503 | DI5: 89.149741 | DJ5: 91.189495 | DK5: 93.725324 | DL5: 91.33829 | DM5: 94.386501 | DN5: 95.43142 | DO5: 90.620005 | DP5: 92.150558 | DQ5: 95.593837 | DR5: 88.92344 | DS5: 88.948514 | DT5: 84.405435 | DU5: 93.272761 | DV5: 92.948909 | DW5: 94.253781 | DX5: 90.830384 | DY5: 94.56281 | DZ5: 92.561048 | EA5: 89.033236 | EB5: 89.883559 | EC5: 86.816693 | ED5: 91.574603 | EE5: 89.662592 | EF5: 91.73606 | EG5: 90.909795 | EH5: 91.037767 | EI5: 88.605152 | EJ5: 90.958142 | EK5: 91.979696 | EL5: 88.855751 | EM5: 93.396554 | EN5: 93.892411 | EO5: 91.249083 | EP5: 92.526492 | EQ5: 91.183589 | ER5: 93.4522 | ES5: 88.09878 | ET5: 88.051556 | EU5: 87.930275 | EV5: 93.812833 | EW5: 92.486748 | EX5: 92.024232 | EY5: 89.282776 | EZ5: 89.144966
A6: aw2 | B6: q6 | C6: aw | D6: Question 6: How do you feel about the length of time you were on the waiting list before your admission to hospital? | E6: =PERCENTILE(I6:EZ6,0.8) -> 86.276702 | F6: =MIN(I6:EZ6) -> 63.126571 | G6: =MAX(I6:EZ6) -> 96.761404 | H6: =AVERAGE(I6:FA6) -> 81.8742225 | I6: 77.192904 | J6: 79.463971 | K6: 78.098839 | L6: 88.188951 | M6: 74.016723 | N6: 85.141665 | O6: 82.365829 | P6: 77.53809 | Q6: 80.93168 | R6: 76.3609 | S6: 83.860163 | T6: 77.758466 | U6: 78.538687 | V6: 76.460673 | W6: 82.138851 | X6: 81.973595 | Y6: 80.163762 | Z6: 78.141972 | AA6: 82.619399 | AB6: 84.727602 | AC6: 86.046115 | AD6: 86.563008 | AE6: 92.838981 | AF6: 69.730508 | AG6: 87.4774 | AH6: 86.424118 | AI6: 85.753997 | AJ6: 78.746903 | AK6: 88.440187 | AL6: 77.919976 | AM6: 78.727139 | AN6: 89.661968 | AO6: 73.703087 | AP6: 78.11142 | AQ6: 76.013371 | AR6: 83.021813 | AS6: 78.640405 | AT6: 83.601149 | AU6: 75.250676 | AV6: 83.979118 | AW6: 96.761404 | AX6: 88.19734 | AY6: 84.600711 | AZ6: 82.232969 | BA6: 81.554756 | BB6: 83.262104 | BC6: 91.652651 | BD6: 89.6468 | BE6: 89.281789 | BF6: 63.126571 | BG6: 79.54696 | BH6: 78.892167 | BI6: 86.555184 | BJ6: 79.478214 | BK6: 82.484763 | BL6: 84.93198 | BM6: 83.7462 | BN6: 91.530953 | BO6: 84.690119 | BP6: 78.817808 | BQ6: 76.693844 | BR6: 81.567227 | BS6: 89.632288 | BT6: 81.02783 | BU6: 86.016513 | BV6: 77.921184 | BW6: 81.888428 | BX6: 79.445993 | BY6: 82.06737 | BZ6: 81.786495 | CA6: 78.127254 | CB6: 75.585857 | CC6: 83.847881 | CD6: 86.90882 | CE6: 83.968402 | CF6: 89.844203 | CG6: 73.899107 | CH6: 81.292495 | CI6: 79.020237 | CJ6: 84.466061 | CK6: 78.366923 | CL6: 81.308793 | CM6: 78.038394 | CN6: 84.816456 | CO6: 88.187748 | CP6: 83.577567 | CQ6: 83.111485 | CR6: 88.105179 | CS6: 76.56942 | CT6: 79.086052 | CU6: 74.882545 | CV6: 86.055578 | CW6: 77.726056 | CX6: 91.983561 | CY6: 94.653155 | CZ6: 88.895052 | DA6: 87.536116 | DB6: 78.307511 | DC6: 77.151078 | DD6: 75.996291 | DE6: 81.485537 | DF6: 78.905822 | DG6: 90.27321 | DH6: 84.883508 | DI6: 80.124225 | DJ6: 81.811544 | DK6: 87.132556 | DL6: 86.436669 | DM6: 87.703553 | DN6: 84.394993 | DO6: 81.528485 | DP6: 91.542883 | DQ6: 87.565192 | DR6: 84.445493 | DS6: 78.977383 | DT6: 71.513561 | DU6: 88.440273 | DV6: 81.839315 | DW6: 82.977252 | DX6: 83.638938 | DY6: 78.880078 | DZ6: 82.41671 | EA6: 79.677492 | EB6: 83.55961 | EC6: 78.661059 | ED6: 81.072838 | EE6: 85.350418 | EF6: 82.030774 | EG6: 71.496505 | EH6: 79.236313 | EI6: 76.912289 | EJ6: 80.973073 | EK6: 77.413281 | EL6: 79.929226 | EM6: 84.497209 | EN6: 83.849172 | EO6: 75.681392 | EP6: 78.162202 | EQ6: 78.326879 | ER6: 73.676532 | ES6: 81.27851 | ET6: 79.599747 | EU6: 78.946071 | EV6: 72.452164 | EW6: 81.528035 | EX6: 83.81003 | EY6: 75.691692 | EZ6: 79.967284
A7: aw3 | B7: q9 | C7: aw | D7: Question 9: From the time you arrived at the hospital, did you feel that you had to wait a long time to get to a bed on a ward? | E7: 82.119273 | F7: 57.988544 | G7: 96.594252 | H7: =AVERAGE(I7:FA7) -> 76.97890548 | I7: 74.043632 | J7: 67.215994 | K7: 69.798194 | L7: 85.112087 | M7: 79.969277 | N7: 80.39119 | O7: 85.679435 | P7: 80.43972 | Q7: 70.360507 | R7: 78.676168 | S7: 69.903458 | T7: 96.594252 | U7: 62.984185 | V7: 66.623235 | W7: 75.963072 | X7: 85.469759 | Y7: 86.95667 | Z7: 62.0428 | AA7: 70.473158 | AB7: 70.371332 | AC7: 91.88327 | AD7: 75.221489 | AE7: 89.890088 | AF7: 79.243624 | AG7: 72.230822 | AH7: 71.076707 | AI7: 74.411282 | AJ7: 84.871648 | AK7: 82.705726 | AL7: 77.482194 | AM7: 82.213103 | AN7: 83.789756 | AO7: 72.698757 | AP7: 77.345569 | AQ7: 71.797949 | AR7: 78.49176 | AS7: 86.234789 | AT7: 81.978528 | AU7: 72.935531 | AV7: 67.569864 | AW7: 96.522747 | AX7: 84.585196 | AY7: 89.215849 | AZ7: 68.48379 | BA7: 73.71299 | BB7: 74.978087 | BC7: 78.109586 | BD7: 95.887752 | BE7: 78.652175 | BF7: 83.283377 | BG7: 75.658683 | BH7: 80.533287 | BI7: 78.653778 | BJ7: 86.167038 | BK7: 84.92023 | BL7: 80.407338 | BM7: 74.812474 | BN7: 80.541417 | BO7: 79.453949 | BP7: 70.072542 | BQ7: 68.916455 | BR7: 77.76411 | BS7: 78.961377 | BT7: 76.554768 | BU7: 76.060124 | BV7: 66.659645 | BW7: 79.473291 | BX7: 78.40364 | BY7: 74.882262 | BZ7: 80.215008 | CA7: 74.10992 | CB7: 64.711353 | CC7: 74.773607 | CD7: 91.662948 | CE7: 81.437919 | CF7: 82.642112 | CG7: 73.325904 | CH7: 77.641027 | CI7: 82.295301 | CJ7: 79.698632 | CK7: 79.273994 | CL7: 75.716369 | CM7: 70.280058 | CN7: 72.851448 | CO7: 80.916399 | CP7: 71.349077 | CQ7: 67.419219 | CR7: 81.42854 | CS7: 77.044841 | CT7: 74.239822 | CU7: 83.639507 | CV7: 78.197673 | CW7: 71.574975 | CX7: 91.041868 | CY7: 91.095328 | CZ7: 87.480323 | DA7: 68.946124 | DB7: 78.098613 | DC7: 76.853421 | DD7: 57.988544 | DE7: 79.885192 | DF7: 67.822797 | DG7: 77.581607 | DH7: 69.837311 | DI7: 75.411304 | DJ7: 87.347964 | DK7: 75.716327 | DL7: 75.02202 | DM7: 90.215793 | DN7: 87.202114 | DO7: 77.346908 | DP7: 78.070606 | DQ7: 81.64219 | DR7: 79.229201 | DS7: 80.536994 | DT7: 74.390582 | DU7: 86.597661 | DV7: 78.224939 | DW7: 78.227311 | DX7: 71.998796 | DY7: 67.881964 | DZ7: 80.949919 | EA7: 69.438542 | EB7: 77.063101 | EC7: 63.672959 | ED7: 76.808607 | EE7: 74.570175 | EF7: 78.468482 | EG7: 72.658522 | EH7: 68.171131 | EI7: 73.385762 | EJ7: 74.242192 | EK7: 59.409601 | EL7: 70.586233 | EM7: 75.169627 | EN7: 74.451579 | EO7: 77.41239 | EP7: 64.78705 | EQ7: 75.989532 | ER7: 73.008309 | ES7: 69.266545 | ET7: 72.374387 | EU7: 81.667067 | EV7: 73.944075 | EW7: 66.815706 | EX7: 68.961232 | EY7: 74.251395 | EZ7: 81.745898
A8: aw | B8: aw | C8: aw | D8: aw | E8: 86.7691038 | F8: 71.787222 | G8: 97.436237 | H8: =AVERAGE(I8:FA8) -> 83.45406901 | I8: 80.499961 | J8: 76.865892 | K8: 78.061146 | L8: 88.912279 | M8: 81.334179 | N8: 86.831641 | O8: 85.031472 | P8: 83.512555 | Q8: 82.259127 | R8: 83.112763 | S8: 81.683192 | T8: 87.972893 | U8: 78.431542 | V8: 77.556243 | W8: 83.865935 | X8: 87.20275 | Y8: 86.52318 | Z8: 77.130804 | AA8: 81.406342 | AB8: 82.977122 | AC8: 90.406116 | AD8: 84.363546 | AE8: 92.976029 | AF8: 79.118191 | AG8: 83.349655 | AH8: 83.047715 | AI8: 84.430454 | AJ8: 86.529234 | AK8: 88.303741 | AL8: 81.884847 | AM8: 84.037266 | AN8: 89.429378 | AO8: 78.880217 | AP8: 82.760857 | AQ8: 79.109954 | AR8: 84.941282 | AS8: 85.948254 | AT8: 85.106882 | AU8: 78.920654 | AV8: 81.000736 | AW8: 97.436237 | AX8: 89.331776 | AY8: 89.175519 | AZ8: 80.593339 | BA8: 82.556567 | BB8: 82.599663 | BC8: 87.619649 | BD8: 93.676275 | BE8: 86.748258 | BF8: 80.52274 | BG8: 83.113647 | BH8: 82.414904 | BI8: 84.347702 | BJ8: 86.301578 | BK8: 85.926387 | BL8: 86.009516 | BM8: 83.15917 | BN8: 88.75288 | BO8: 85.248383 | BP8: 78.104056 | BQ8: 79.566934 | BR8: 83.571357 | BS8: 87.580206 | BT8: 82.075372 | BU8: 84.485163 | BV8: 78.523167 | BW8: 85.136354 | BX8: 81.737146 | BY8: 81.317561 | BZ8: 84.519766 | CA8: 79.996702 | CB8: 76.331608 | CC8: 84.033164 | CD8: 89.921588 | CE8: 86.822876 | CF8: 89.018728 | CG8: 80.005991 | CH8: 84.618549 | CI8: 84.391863 | CJ8: 84.982387 | CK8: 81.854437 | CL8: 81.493803 | CM8: 78.542322 | CN8: 83.636511 | CO8: 88.063445 | CP8: 82.019872 | CQ8: 80.719632 | CR8: 87.918725 | CS8: 81.437084 | CT8: 80.171195 | CU8: 83.548221 | CV8: 85.668013 | CW8: 80.956965 | CX8: 92.557703 | CY8: 93.633024 | CZ8: 89.867107 | DA8: 82.828781 | DB8: 82.09041 | DC8: 81.083918 | DD8: 71.787222 | DE8: 85.273479 | DF8: 78.669321 | DG8: 87.127031 | DH8: 81.810107 | DI8: 81.561757 | DJ8: 86.783001 | DK8: 85.524736 | DL8: 84.26566 | DM8: 90.768616 | DN8: 89.009509 | DO8: 83.165133 | DP8: 87.254682 | DQ8: 88.267073 | DR8: 84.199378 | DS8: 82.820964 | DT8: 76.769859 | DU8: 89.436899 | DV8: 84.337721 | DW8: 85.152781 | DX8: 82.156039 | DY8: 80.441618 | DZ8: 85.309226 | EA8: 79.38309 | EB8: 83.50209 | EC8: 76.38357 | ED8: 83.152016 | EE8: 83.194395 | EF8: 84.078439 | EG8: 78.354941 | EH8: 79.481737 | EI8: 79.634401 | EJ8: 82.057802 | EK8: 76.267526 | EL8: 79.790403 | EM8: 84.354463 | EN8: 84.064387 | EO8: 81.447622 | EP8: 78.491915 | EQ8: 81.833333 | ER8: 80.04568 | ES8: 79.547945 | ET8: 80.008563 | EU8: 82.847805 | EV8: 80.069691 | EW8: 80.27683 | EX8: 81.598498 | EY8: 79.741955 | EZ8: 83.619383
A9: shqcc1 | B9: q33 | C9: shqcc | D9: Question 33: Sometimes, a member of staff will say one thing and another will say something quite different. Did this happen to you? | E9: 83.8925716 | F9: 72.893096 | G9: 89.788411 | H9: =AVERAGE(I9:FA9) -> 81.514549 | I9: 81.022927 | J9: 75.453742 | K9: 78.674522 | L9: 83.060023 | M9: 81.098311 | N9: 83.250627 | O9: 85.565988 | P9: 83.419932 | Q9: 78.633992 | R9: 81.599257 | S9: 79.835117 | T9: 81.306694 | U9: 74.201309 | V9: 78.548187 | W9: 84.432139 | X9: 83.724769 | Y9: 82.972177 | Z9: 75.023776 | AA9: 80.683569 | AB9: 83.081033 | AC9: 89.309439 | AD9: 82.182753 | AE9: 86.731717 | AF9: 83.92172 | AG9: 79.761817 | AH9: 79.358583 | AI9: 81.716387 | AJ9: 83.16917 | AK9: 80.418426 | AL9: 77.514363 | AM9: 85.559471 | AN9: 85.791283 | AO9: 78.799472 | AP9: 79.79272 | AQ9: 80.084179 | AR9: 81.212393 | AS9: 82.721824 | AT9: 85.560032 | AU9: 82.278726 | AV9: 80.06828 | AW9: 89.788411 | AX9: 86.524688 | AY9: 84.137989 | AZ9: 78.837372 | BA9: 78.536157 | BB9: 81.453461 | BC9: 80.526517 | BD9: 89.285038 | BE9: 75.918985 | BF9: 80.157452 | BG9: 79.38629 | BH9: 83.890825 | BI9: 82.216715 | BJ9: 83.417175 | BK9: 80.859467 | BL9: 83.650674 | BM9: 78.812995 | BN9: 84.38612 | BO9: 79.744719 | BP9: 75.953652 | BQ9: 77.910474 | BR9: 81.805485 | BS9: 83.354267 | BT9: 80.817479 | BU9: 84.189989 | BV9: 80.034051 | BW9: 84.5302 | BX9: 81.237144 | BY9: 80.290995 | BZ9: 83.143503 | CA9: 77.850416 | CB9: 78.397064 | CC9: 80.187554 | CD9: 86.510442 | CE9: 80.202745 | CF9: 82.874176 | CG9: 79.640194 | CH9: 82.169973 | CI9: 80.468714 | CJ9: 83.422977 | CK9: 82.92668 | CL9: 85.128706 | CM9: 80.570489 | CN9: 81.078832 | CO9: 83.727204 | CP9: 81.164342 | CQ9: 78.271337 | CR9: 85.493464 | CS9: 81.818109 | CT9: 80.254182 | CU9: 82.861437 | CV9: 78.926307 | CW9: 80.525956 | CX9: 89.581735 | CY9: 88.243197 | CZ9: 80.44844 | DA9: 80.276631 | DB9: 80.106999 | DC9: 79.577131 | DD9: 77.697678 | DE9: 81.994969 | DF9: 79.642619 | DG9: 85.855336 | DH9: 78.836974 | DI9: 84.195235 | DJ9: 83.014923 | DK9: 74.290332 | DL9: 80.535129 | DM9: 87.357025 | DN9: 85.075442 | DO9: 82.577657 | DP9: 84.909537 | DQ9: 83.893736 | DR9: 84.002699 | DS9: 82.971011 | DT9: 76.844223 | DU9: 85.729726 | DV9: 82.852597 | DW9: 81.965722 | DX9: 81.41185 | DY9: 81.502384 | DZ9: 81.95422 | EA9: 81.515302 | EB9: 79.206733 | EC9: 79.75729 | ED9: 81.822619 | EE9: 80.834482 | EF9: 79.981324 | EG9: 82.490235 | EH9: 79.348328 | EI9: 80.074355 | EJ9: 82.082707 | EK9: 79.814121 | EL9: 84.218145 | EM9: 83.129024 | EN9: 80.390869 | EO9: 80.316726 | EP9: 75.873719 | EQ9: 80.718193 | ER9: 72.893096 | ES9: 77.346068 | ET9: 78.540585 | EU9: 81.171351 | EV9: 82.311952 | EW9: 75.236884 | EX9: 81.701585 | EY9: 79.703635 | EZ9: 85.518332
A10: shqcc2 | B10: q50 | C10: shqcc | D10: Question 50: On the day you left hospital, was your discharge delayed for any reason? + Question 51: What was the main reason for the delay? | E10: 68.4720176 | F10: 49.868765 | G10: 87.007642 | H10: 63.78469503 | I10: 60.583274 | J10: 52.660633 | K10: 58.912534 | L10: 61.702118 | M10: 62.960192 | N10: 60.869259 | O10: 64.991254 | P10: 68.725534 | Q10: 58.752429 | R10: 62.216725 | S10: 58.383962 | T10: 69.181258 | U10: 57.051667 | V10: 60.600683 | W10: 65.185242 | X10: 77.211225 | Y10: 70.941004 | Z10: 61.240002 | AA10: 66.340088 | AB10: 67.070426 | AC10: 67.200551 | AD10: 49.868765 | AE10: 60.059316 | AF10: 67.819609 | AG10: 56.193301 | AH10: 55.771051 | AI10: 67.669593 | AJ10: 66.021684 | AK10: 63.825875 | AL10: 52.129487 | AM10: 67.216023 | AN10: 65.132044 | AO10: 59.137212 | AP10: 60.912471 | AQ10: 62.755616 | AR10: 63.486702 | AS10: 69.630645 | AT10: 63.964545 | AU10: 62.860169 | AV10: 63.501805 | AW10: 69.338917 | AX10: 73.401371 | AY10: 63.924437 | AZ10: 58.795255 | BA10: 65.003772 | BB10: 56.322 | BC10: 72.245656 | BD10: 70.692514 | BE10: 66.40135 | BF10: 59.539925 | BG10: 60.34014 | BH10: 65.054562 | BI10: 61.547951 | BJ10: 74.62449 | BK10: 60.043671 | BL10: 61.282244 | BM10: 61.02707 | BN10: 57.191853 | BO10: 60.388449 | BP10: 62.177774 | BQ10: 58.896851 | BR10: 63.510029 | BS10: 61.426267 | BT10: 61.852676 | BU10: 68.750052 | BV10: 65.126911 | BW10: 57.318851 | BX10: 66.442876 | BY10: 59.672569 | BZ10: 65.641828 | CA10: 56.819372 | CB10: 62.972262 | CC10: 63.931924 | CD10: 87.007642 | CE10: 59.520281 | CF10: 76.80367 | CG10: 56.67693 | CH10: 58.48541 | CI10: 70.015132 | CJ10: 66.73839 | CK10: 65.174766 | CL10: 60.47515 | CM10: 65.083015 | CN10: 60.490619 | CO10: 66.718441 | CP10: 62.685589 | CQ10: 61.279961 | CR10: 75.538878 | CS10: 69.153912 | CT10: 59.14188 | CU10: 67.535303 | CV10: 69.227112 | CW10: 54.774384 | CX10: 79.89858 | CY10: 70.608735 | CZ10: 76.261848 | DA10: 63.269926 | DB10: 62.682285 | DC10: 62.502709 | DD10: 58.373321 | DE10: 64.916506 | DF10: 52.41531 | DG10: 69.15177 | DH10: 61.521946 | DI10: 64.820225 | DJ10: 68.776153 | DK10: 62.52426 | DL10: 58.456982 | DM10: 65.326059 | DN10: 70.816268 | DO10: 68.060387 | DP10: 74.877797 | DQ10: 65.810596 | DR10: 64.155827 | DS10: 60.922917 | DT10: 69.026354 | DU10: 69.084907 | DV10: 68.152652 | DW10: 60.399242 | DX10: 61.322642 | DY10: 65.650027 | DZ10: 72.490386 | EA10: 62.269193 | EB10: 54.726459 | EC10: 61.443182 | ED10: 64.628936 | EE10: 63.0359 | EF10: 50.891045 | EG10: 65.428235 | EH10: 53.789986 | EI10: 56.346256 | EJ10: 72.044448 | EK10: 61.255212 | EL10: 60.02991 | EM10: 66.932034 | EN10: 58.553186 | EO10: 68.684928 | EP10: 55.97795 | EQ10: 63.616291 | ER10: 58.827954 | ES10: 64.796498 | ET10: 57.896271 | EU10: 74.647832 | EV10: 61.241046 | EW10: 59.16185 | EX10: 67.942376 | EY10: 65.221308 | EZ10: 63.501655
A11: shqcc3 | B11: q61 | C11: shqcc | D11: Question 61: Did a member of staff tell you about any danger signals you should watch for after you went home? | E11: 57.38140432 | F11: 43.03861785 | G11: 83.35156863 | H11: 54.88166473 | I11: No data | J11: 43.03861785 | K11: 51.76464079 | L11: 55.75534381 | M11: 51.85461113 | N11: 57.35788995 | O11: 56.17667376 | P11: 57.20666034 | Q11: 49.544414 | R11: 51.70571659 | S11: 49.10928694 | T11: No data | U11: 44.70723939 | V11: 43.61723507 | W11: 52.30896872 | X11: 58.51217633 | Y11: 56.90356645 | Z11: 48.83899819 | AA11: No data | AB11: No data | AC11: 68.81961412 | AD11: 51.51742419 | AE11: 71.96293611 | AF11: 59.98174257 | AG11: 49.10858545 | AH11: No data | AI11: 54.04857414 | AJ11: 57.88624306 | AK11: 55.48959452 | AL11: 49.92395951 | AM11: 56.78376133 | AN11: No data | AO11: 51.98140876 | AP11: No data | AQ11: 53.96191584 | AR11: 56.22752073 | AS11: 60.1609414 | AT11: 60.05235978 | AU11: 55.35406919 | AV11: 57.2670349 | AW11: 83.35156863 | AX11: 75.63664222 | AY11: 54.90202275 | AZ11: 48.40960759 | BA11: 55.32095908 | BB11: 52.45135617 | BC11: 54.95133257 | BD11: No data | BE11: No data | BF11: No data | BG11: 52.19405698 | BH11: 55.18443654 | BI11: No data | BJ11: No data | BK11: 57.59942406 | BL11: 56.12152427 | BM11: 52.27407246 | BN11: 56.96042196 | BO11: 56.51925275 | BP11: 45.55998936 | BQ11: 49.49756484 | BR11: 50.81671869 | BS11: No data | BT11: 54.51836316 | BU11: 51.78167825 | BV11: 49.49500757 | BW11: No data | BX11: 48.70845273 | BY11: 48.00672675 | BZ11: No data | CA11: No data | CB11: No data | CC11: 55.57890805 | CD11: 68.70390582 | CE11: 56.01459286 | CF11: 57.64887464 | CG11: 54.74007821 | CH11: 57.38140432 | CI11: No data | CJ11: 51.85024234 | CK11: 55.87256258 | CL11: No data | CM11: 44.91588566 | CN11: 50.2878639 | CO11: 62.66363127 | CP11: 52.37762088 | CQ11: No data | CR11: 56.66998465 | CS11: 50.03518387 | CT11: 52.20980557 | CU11: 56.09357197 | CV11: 53.73927206 | CW11: 51.33583196 | CX11: 79.63792679 | CY11: 76.58007392 | CZ11: 72.80774816 | DA11: 57.25423841 | DB11: No data | DC11: 54.24952574 | DD11: 44.38822604 | DE11: 53.80268895 | DF11: 46.65129876 | DG11: 62.10869173 | DH11: 53.39509999 | DI11: 49.53562344 | DJ11: 75.57545119 | DK11: 59.60450405 | DL11: 56.1050826 | DM11: 62.8593762 | DN11: 61.21998736 | DO11: 47.95067611 | DP11: 62.29407225 | DQ11: No data | DR11: 59.03800965 | DS11: 52.45604864 | DT11: 52.31568205 | DU11: 54.91212053 | DV11: 56.24060008 | DW11: 52.63376853 | DX11: 48.64750581 | DY11: No data | DZ11: 54.11097691 | EA11: 50.80120834 | EB11: No data | EC11: 47.29802474 | ED11: 53.8775252 | EE11: No data | EF11: 48.09629726 | EG11: 52.82341267 | EH11: 45.64994107 | EI11: 50.87010315 | EJ11: 50.13863598 | EK11: 50.2369868 | EL11: No data | EM11: 53.57479192 | EN11: 56.93371233 | EO11: 50.78853884 | EP11: 45.28963705 | EQ11: 54.62856031 | ER11: No data | ES11: 49.24338967 | ET11: 52.61161751 | EU11: 55.52074831 | EV11: 49.02335026 | EW11: 55.40922869 | EX11: 49.97425715 | EY11: 56.5744816 | EZ11: 57.63185432
A12: shqcc | B12: shqcc | C12: shqcc | D12: shqcc | E12: 69.78404218 | F12: 57.05099744 | G12: 83.0394139 | H12: 66.789611 | I12: No data | J12: 57.05099744 | K12: 63.11723216 | L12: 66.83916167 | M12: 65.30437147 | N12: 67.15925879 | O12: 68.91130502 | P12: 69.78404218 | Q12: 62.31027839 | R12: 65.17389945 | S12: 62.44278862 | T12: No data | U12: 58.65340511 | V12: 60.92203483 | W12: 67.30878303 | X12: 73.14939015 | Y12: 70.27224902 | Z12: 61.70092537 | AA12: No data | AB12: No data | AC12: 75.10986801 | AD12: 61.18964738 | AE12: 72.91798962 | AF12: 70.5743573 | AG12: 61.68790115 | AH12: No data | AI12: 67.81151777 | AJ12: 69.02569926 | AK12: 66.57796516 | AL12: 59.85593657 | AM12: 69.85308496 | AN12: No data | AO12: 63.30603104 | AP12: No data | AQ12: 65.60057016 | AR12: 66.97553861 | AS12: 70.83780353 | AT12: 69.85897886 | AU12: 66.83098805 | AV12: 66.94570646 | AW12: 80.82629886 | AX12: 78.52090043 | AY12: 67.65481637 | AZ12: 62.01407811 | BA12: 66.28696238 | BB12: 63.40893915 | BC12: 69.24116837 | BD12: No data | BE12: No data | BF12: No data | BG12: 63.97349591 | BH12: 68.04327425 | BI12: No data | BJ12: No data | BK12: 66.16752071 | BL12: 67.01814757 | BM12: 64.03804603 | BN12: 66.17946497 | BO12: 65.55080691 | BP12: 61.2304719 | BQ12: 62.10162987 | BR12: 65.37741088 | BS12: No data | BT12: 65.72950625 | BU12: 68.24057306 | BV12: 64.8853232 | BW12: No data | BX12: 65.4628243 | BY12: 62.65676359 | BZ12: No data | CA12: No data | CB12: No data | CC12: 66.56612881 | CD12: 80.7406633 | CE12: 65.24587295 | CF12: 72.44224034 | CG12: 63.68573393 | CH12: 66.01226249 | CI12: No data | CJ12: 67.33720297 | CK12: 67.99133608 | CL12: No data | CM12: 63.52312994 | CN12: 63.95243817 | CO12: 71.03642549 | CP12: 65.40918379 | CQ12: No data | CR12: 72.56744212 | CS12: 67.00240182 | CT12: 63.86862231 | CU12: 68.83010403 | CV12: 67.29756356 | CW12: 62.21205713 | CX12: 83.0394139 | CY12: 78.47733531 | CZ12: 76.50601218 | DA12: 66.93359859 | DB12: No data | DC12: 65.44312167 | DD12: 60.153075 | DE12: 66.90472121 | DF12: 59.56974247 | DG12: 72.37193258 | DH12: 64.58467358 | DI12: 66.18369437 | DJ12: 75.78884241 | DK12: 65.47303196 | DL12: 65.03239817 | DM12: 71.84748661 | DN12: 72.37056588 | DO12: 66.19624035 | DP12: 74.02713548 | DQ12: No data | DR12: 69.0655119 | DS12: 65.44999202 | DT12: 66.06208629 | DU12: 69.90891786 | DV12: 69.08194951 | DW12: 64.99957731 | DX12: 63.79399922 | DY12: No data | DZ12: 69.5185274 | EA12: 64.86190124 | EB12: No data | EC12: 62.83283212 | ED12: 66.77635996 | EE12: No data | EF12: 59.65622218 | EG12: 66.91396072 | EH12: 59.59608479 | EI12: 62.43023834 | EJ12: 68.08859689 | EK12: 63.76877307 | EL12: No data | EM12: 67.87861668 | EN12: 65.29258934 | EO12: 66.59673094 | EP12: 59.04710185 | EQ12: 66.32101488 | ER12: No data | ES12: 63.79531862 | ET12: 63.0161579 | EU12: 70.44664362 | EV12: 64.1921163 | EW12: 63.26932076 | EX12: 66.53940605 | EY12: 67.16647481 | EZ12: 68.88394734
A13: bimc1 | B13: q34 | C13: bimc | D13: Question 34: Were you involved as much as you wanted to be in decisions made about your care and treatment? | E13: 76.843625 | F13: 65.590465 | G13: 85.352182 | H13: 73.96508108 | I13: 72.111061 | J13: 66.659351 | K13: 70.028788 | L13: 75.895603 | M13: 70.350932 | N13: 76.987811 | O13: 77.515319 | P13: 76.361219 | Q13: 68.406904 | R13: 72.970879 | S13: 72.577192 | T13: 81.81246 | U13: 67.935979 | V13: 68.544814 | W13: 69.339982 | X13: 79.087041 | Y13: 76.0698 | Z13: 68.262611 | AA13: 75.483085 | AB13: 75.048493 | AC13: 82.540004 | AD13: 70.780347 | AE13: 85.352182 | AF13: 77.850799 | AG13: 71.802133 | AH13: 70.558106 | AI13: 75.728702 | AJ13: 75.460075 | AK13: 74.894033 | AL13: 73.173299 | AM13: 77.832439 | AN13: 77.465368 | AO13: 67.5671 | AP13: 71.042224 | AQ13: 72.416467 | AR13: 73.732178 | AS13: 75.922651 | AT13: 77.152857 | AU13: 73.985409 | AV13: 71.989727 | AW13: 83.96375 | AX13: 76.854561 | AY13: 77.569218 | AZ13: 70.045944 | BA13: 70.181558 | BB13: 73.340716 | BC13: 73.901382 | BD13: 83.511168 | BE13: 73.365783 | BF13: 72.260186 | BG13: 72.982564 | BH13: 76.320801 | BI13: 77.129384 | BJ13: 76.361533 | BK13: 75.383685 | BL13: 76.991176 | BM13: 70.794189 | BN13: 75.984542 | BO13: 74.705372 | BP13: 71.325876 | BQ13: 69.978303 | BR13: 72.752805 | BS13: 73.870702 | BT13: 75.188781 | BU13: 72.647449 | BV13: 72.909803 | BW13: 77.982539 | BX13: 73.800139 | BY13: 72.509008 | BZ13: 73.373439 | CA13: 72.729101 | CB13: 70.038777 | CC13: 72.854441 | CD13: 83.723422 | CE13: 70.306755 | CF13: 75.492354 | CG13: 73.071187 | CH13: 71.970856 | CI13: 75.350898 | CJ13: 76.331293 | CK13: 77.573131 | CL13: 74.717943 | CM13: 71.22872 | CN13: 74.720759 | CO13: 78.110736 | CP13: 71.265136 | CQ13: 70.943301 | CR13: 74.771673 | CS13: 72.682865 | CT13: 70.054086 | CU13: 74.982622 | CV13: 71.410611 | CW13: 71.695028 | CX13: 81.677149 | CY13: 83.984745 | CZ13: 82.471536 | DA13: 75.249167 | DB13: 73.018004 | DC13: 70.050279 | DD13: 67.259099 | DE13: 73.803391 | DF13: 69.601455 | DG13: 74.911119 | DH13: 74.490049 | DI13: 72.534592 | DJ13: 84.290126 | DK13: 74.174406 | DL13: 76.499264 | DM13: 78.705431 | DN13: 81.274523 | DO13: 71.936298 | DP13: 77.546039 | DQ13: 76.827221 | DR13: 77.802225 | DS13: 72.253512 | DT13: 71.029002 | DU13: 77.526457 | DV13: 76.910447 | DW13: 75.743709 | DX13: 70.580605 | DY13: 73.164555 | DZ13: 71.319877 | EA13: 70.933577 | EB13: 72.963552 | EC13: 69.739927 | ED13: 73.732737 | EE13: 75.512926 | EF13: 71.647039 | EG13: 71.209495 | EH13: 69.381397 | EI13: 69.151175 | EJ13: 71.046617 | EK13: 71.424971 | EL13: 74.513494 | EM13: 74.871348 | EN13: 71.558681 | EO13: 71.679848 | EP13: 69.784402 | EQ13: 71.751392 | ER13: 65.590465 | ES13: 67.18 | ET13: 70.829826 | EU13: 74.717572 | EV13: 71.36764 | EW13: 72.311299 | EX13: 73.751142 | EY13: 74.374972 | EZ13: 76.464749
A14: bimc2 | B14: q57 | C14: bimc | D14: Question 57: Did a member of staff explain the purpose of the medications you were to take at home in a way you could understand? | E14: 85.4372642 | F14: 76.229755 | G14: 95.78528 | H14: 83.26735694 | I14: 79.733555 | J14: 79.197557 | K14: 81.441362 | L14: 86.591359 | M14: 80.822309 | N14: 82.382737 | O14: 81.303725 | P14: 83.904092 | Q14: 79.549732 | R14: 82.942785 | S14: 81.837917 | T14: 87.739714 | U14: 81.007773 | V14: 81.561086 | W14: 81.631616 | X14: 84.391773 | Y14: 82.952316 | Z14: 78.068139 | AA14: 85.41686 | AB14: 85.450867 | AC14: 88.058853 | AD14: 82.716267 | AE14: 91.474865 | AF14: 85.028523 | AG14: 80.599309 | AH14: 80.938476 | AI14: 85.099908 | AJ14: 83.802416 | AK14: 83.284868 | AL14: 80.171207 | AM14: 83.917685 | AN14: 85.220189 | AO14: 78.963767 | AP14: 81.935444 | AQ14: 86.579747 | AR14: 82.508252 | AS14: 86.98626 | AT14: 86.350646 | AU14: 86.858896 | AV14: 78.987927 | AW14: 93.227985 | AX14: 94.785575 | AY14: 87.286209 | AZ14: 77.488682 | BA14: 83.112739 | BB14: 80.318091 | BC14: 84.999269 | BD14: 87.633689 | BE14: 83.474492 | BF14: 79.830495 | BG14: 86.44333 | BH14: 84.575171 | BI14: 84.647586 | BJ14: 87.505078 | BK14: 81.660303 | BL14: 85.393909 | BM14: 81.489146 | BN14: 84.372687 | BO14: 84.768138 | BP14: 81.737289 | BQ14: 79.284264 | BR14: 80.581175 | BS14: 84.035269 | BT14: 80.893769 | BU14: 81.880837 | BV14: 83.792234 | BW14: 85.904336 | BX14: 82.92967 | BY14: 83.078731 | BZ14: 85.022112 | CA14: 79.633115 | CB14: 79.001749 | CC14: 88.239748 | CD14: 91.717969 | CE14: 83.205132 | CF14: 84.628885 | CG14: 85.680706 | CH14: 82.067954 | CI14: 84.08954 | CJ14: 79.024718 | CK14: 84.551976 | CL14: 85.395053 | CM14: 78.304643 | CN14: 78.965427 | CO14: 85.741841 | CP14: 80.770427 | CQ14: 79.087734 | CR14: 82.474269 | CS14: 80.75188 | CT14: 79.795185 | CU14: 83.573173 | CV14: 79.642705 | CW14: 79.458836 | CX14: 95.78528 | CY14: 94.698849 | CZ14: 93.602818 | DA14: 82.782465 | DB14: 81.190735 | DC14: 81.904206 | DD14: 76.522488 | DE14: 82.817714 | DF14: 81.19557 | DG14: 86.872901 | DH14: 83.17237 | DI14: 77.977221 | DJ14: 90.143771 | DK14: 83.862684 | DL14: 84.42242 | DM14: 86.667643 | DN14: 87.606216 | DO14: 80.287068 | DP14: 84.704654 | DQ14: 87.140439 | DR14: 87.379399 | DS14: 81.27348 | DT14: 82.150493 | DU14: 84.790298 | DV14: 84.678158 | DW14: 84.858064 | DX14: 84.02246 | DY14: 80.923813 | DZ14: 83.188667 | EA14: 83.1184 | EB14: 87.647265 | EC14: 79.176412 | ED14: 82.644154 | EE14: 81.801399 | EF14: 80.680418 | EG14: 82.573045 | EH14: 78.265724 | EI14: 80.961441 | EJ14: 79.218998 | EK14: 83.660752 | EL14: 82.761523 | EM14: 82.383257 | EN14: 81.72022 | EO14: 80.797433 | EP14: 80.199152 | EQ14: 82.752415 | ER14: 80.344597 | ES14: 76.229755 | ET14: 82.981589 | EU14: 82.660856 | EV14: 79.792858 | EW14: 83.091295 | EX14: 80.095459 | EY14: 83.350726 | EZ14: 82.671636
A15: bimc3 | B15: q58 | C15: bimc | D15: Question 58: Did a member of staff tell you about medication side effects to watch for when you went home? | E15: 51.1524258 | F15: 36.913883 | G15: 76.374551 | H15: 48.52025105 | I15: 45.258434 | J15: 42.735656 | K15: 49.564309 | L15: 47.330603 | M15: 41.782506 | N15: 48.841181 | O15: 47.301379 | P15: 50.675158 | Q15: 42.844102 | R15: 47.160429 | S15: 46.184449 | T15: 57.511501 | U15: 44.459662 | V15: 43.582772 | W15: 46.916687 | X15: 48.790874 | Y15: 46.293761 | Z15: 39.564117 | AA15: 48.988821 | AB15: 49.727716 | AC15: 56.95207 | AD15: 44.871576 | AE15: 68.089641 | AF15: 51.61814 | AG15: 44.524017 | AH15: 43.796512 | AI15: 48.753334 | AJ15: 47.115264 | AK15: 54.266599 | AL15: 45.03885 | AM15: 48.024612 | AN15: 53.402469 | AO15: 42.083602 | AP15: 47.30587 | AQ15: 48.244747 | AR15: 48.484495 | AS15: 54.665953 | AT15: 55.67166 | AU15: 47.000867 | AV15: 49.849718 | AW15: 76.374551 | AX15: 74.721687 | AY15: 50.859579 | AZ15: 38.460166 | BA15: 45.529697 | BB15: 46.685247 | BC15: 48.385615 | BD15: 57.574268 | BE15: 42.002731 | BF15: 39.044425 | BG15: 47.327694 | BH15: 44.07187 | BI15: 45.499686 | BJ15: 52.82218 | BK15: 48.885319 | BL15: 49.551162 | BM15: 44.939539 | BN15: 51.227105 | BO15: 55.736446 | BP15: 44.798963 | BQ15: 40.90076 | BR15: 46.069337 | BS15: 51.514221 | BT15: 43.350895 | BU15: 47.490394 | BV15: 43.829027 | BW15: 52.037225 | BX15: 44.560489 | BY15: 49.292093 | BZ15: 49.172713 | CA15: 41.151747 | CB15: 42.22899 | CC15: 56.964146 | CD15: 67.441676 | CE15: 48.000039 | CF15: 51.604796 | CG15: 50.342664 | CH15: 46.367153 | CI15: 45.92593 | CJ15: 43.914938 | CK15: 49.156407 | CL15: 49.804073 | CM15: 36.913883 | CN15: 48.237685 | CO15: 49.377878 | CP15: 44.315384 | CQ15: 42.545614 | CR15: 49.4174 | CS15: 44.977361 | CT15: 43.67908 | CU15: 47.950211 | CV15: 43.408834 | CW15: 43.159494 | CX15: 75.903019 | CY15: 75.824963 | CZ15: 64.641084 | DA15: 48.998758 | DB15: 42.867929 | DC15: 47.96634 | DD15: 41.962399 | DE15: 53.434855 | DF15: 41.304595 | DG15: 55.155648 | DH15: 50.397369 | DI15: 45.287974 | DJ15: 69.186765 | DK15: 49.428869 | DL15: 50.731458 | DM15: 49.597563 | DN15: 58.44154 | DO15: 45.931876 | DP15: 59.128332 | DQ15: 48.139067 | DR15: 54.9306 | DS15: 44.144396 | DT15: 42.72869 | DU15: 50.068234 | DV15: 47.855588 | DW15: 49.963826 | DX15: 42.917081 | DY15: 43.91769 | DZ15: 52.71428 | EA15: 42.470542 | EB15: 47.178129 | EC15: 39.684959 | ED15: 46.957512 | EE15: 45.935077 | EF15: 45.255241 | EG15: 47.21144 | EH15: 42.836502 | EI15: 43.759659 | EJ15: 44.921602 | EK15: 45.507975 | EL15: 48.93311 | EM15: 47.216583 | EN15: 46.307668 | EO15: 42.202303 | EP15: 39.821712 | EQ15: 46.230004 | ER15: 42.544601 | ES15: 40.987942 | ET15: 45.02232 | EU15: 51.040407 | EV15: 39.403314 | EW15: 50.729595 | EX15: 45.607038 | EY15: 54.560418 | EZ15: 50.226135
A16: bimc | B16: bimc | C16: bimc | D16: bimc | E16: 70.7348346 | F16: 61.465899 | G16: 84.836186 | H16: 68.58422972 | I16: 65.701017 | J16: 62.864188 | K16: 67.011486 | L16: 69.939188 | M16: 64.318583 | N16: 69.40391 | O16: 68.706808 | P16: 70.31349 | Q16: 63.600246 | R16: 67.691364 | S16: 66.866519 | T16: 75.687892 | U16: 64.467805 | V16: 64.56289 | W16: 65.962762 | X16: 70.756563 | Y16: 68.438626 | Z16: 61.964956 | AA16: 69.962922 | AB16: 70.075692 | AC16: 75.850309 | AD16: 66.12273 | AE16: 81.638896 | AF16: 71.499154 | AG16: 65.64182 | AH16: 65.097698 | AI16: 69.860648 | AJ16: 68.792585 | AK16: 70.815167 | AL16: 66.127785 | AM16: 69.924912 | AN16: 72.029342 | AO16: 62.87149 | AP16: 66.761179 | AQ16: 69.08032 | AR16: 68.241642 | AS16: 72.524954 | AT16: 73.058388 | AU16: 69.281724 | AV16: 66.942457 | AW16: 84.522095 | AX16: 82.120608 | AY16: 71.905002 | AZ16: 61.998264 | BA16: 66.274665 | BB16: 66.781351 | BC16: 69.095422 | BD16: 76.239708 | BE16: 66.281002 | BF16: 63.711702 | BG16: 68.917863 | BH16: 68.322614 | BI16: 69.092219 | BJ16: 72.229597 | BK16: 68.643102 | BL16: 70.645416 | BM16: 65.740958 | BN16: 70.528111 | BO16: 71.736652 | BP16: 65.954043 | BQ16: 63.387776 | BR16: 66.467772 | BS16: 69.806731 | BT16: 66.477815 | BU16: 67.33956 | BV16: 66.843688 | BW16: 71.9747 | BX16: 67.096766 | BY16: 68.293277 | BZ16: 69.189421 | CA16: 64.504654 | CB16: 63.756505 | CC16: 72.686112 | CD16: 80.961023 | CE16: 67.170642 | CF16: 70.575345 | CG16: 69.698186 | CH16: 66.801988 | CI16: 68.455456 | CJ16: 66.42365 | CK16: 70.427171 | CL16: 69.972356 | CM16: 62.149082 | CN16: 67.307957 | CO16: 71.076818 | CP16: 65.450316 | CQ16: 64.192216 | CR16: 68.887781 | CS16: 66.137369 | CT16: 64.50945 | CU16: 68.835335 | CV16: 64.820717 | CW16: 64.77112 | CX16: 84.455149 | CY16: 84.836186 | CZ16: 80.238479 | DA16: 69.01013 | DB16: 65.692223 | DC16: 66.640275 | DD16: 61.914662 | DE16: 70.018653 | DF16: 64.033874 | DG16: 72.313223 | DH16: 69.353263 | DI16: 65.266596 | DJ16: 81.206887 | DK16: 69.155319 | DL16: 70.551048 | DM16: 71.656879 | DN16: 75.774093 | DO16: 66.051747 | DP16: 73.793009 | DQ16: 70.702242 | DR16: 73.370741 | DS16: 65.890463 | DT16: 65.302728 | DU16: 70.794996 | DV16: 69.814731 | DW16: 70.188533 | DX16: 65.840049 | DY16: 66.00202 | DZ16: 69.074275 | EA16: 65.507506 | EB16: 69.262982 | EC16: 62.867099 | ED16: 67.778134 | EE16: 67.749801 | EF16: 65.860899 | EG16: 66.997994 | EH16: 63.494541 | EI16: 64.624092 | EJ16: 65.062406 | EK16: 66.864566 | EL16: 68.736042 | EM16: 68.157063 | EN16: 66.528857 | EO16: 64.893194 | EP16: 63.268422 | EQ16: 66.91127 | ER16: 62.826554 | ES16: 61.465899 | ET16: 66.277912 | EU16: 69.472945 | EV16: 63.521271 | EW16: 68.71073 | EX16: 66.484546 | EY16: 70.762038 | EZ16: 69.787507
A17: br1 | B17: q23 | C17: br | D17: Question 23: When you had important questions to ask the doctor, did you get answers that you could understand? | E17: 85.318245 | F17: 75.808652 | G17: 92.405741 | H17: 82.70520165 | I17: 80.070845 | J17: 78.671298 | K17: 79.26681 | L17: 86.159136 | M17: 82.889663 | N17: 85.005372 | O17: 86.920005 | P17: 85.574806 | Q17: 78.234544 | R17: 79.774873 | S17: 85.367457 | T17: 88.302072 | U17: 78.132858 | V17: 81.126244 | W17: 79.063854 | X17: 87.14552 | Y17: 84.170506 | Z17: 76.796456 | AA17: 83.353852 | AB17: 82.650263 | AC17: 90.395995 | AD17: 82.818803 | AE17: 89.342197 | AF17: 84.23553 | AG17: 82.472379 | AH17: 81.006198 | AI17: 84.649081 | AJ17: 82.181038 | AK17: 80.059021 | AL17: 80.53407 | AM17: 84.276808 | AN17: 86.544754 | AO17: 76.705219 | AP17: 79.98593 | AQ17: 81.269625 | AR17: 83.721034 | AS17: 83.569874 | AT17: 86.419599 | AU17: 83.251436 | AV17: 82.16124 | AW17: 91.004056 | AX17: 89.218876 | AY17: 85.109532 | AZ17: 79.959134 | BA17: 79.031414 | BB17: 79.24247 | BC17: 81.794968 | BD17: 89.805438 | BE17: 76.915528 | BF17: 79.837591 | BG17: 83.453645 | BH17: 82.041096 | BI17: 84.932559 | BJ17: 84.652977 | BK17: 83.433647 | BL17: 86.20269 | BM17: 79.885556 | BN17: 85.161487 | BO17: 82.569124 | BP17: 81.493557 | BQ17: 78.606433 | BR17: 83.821157 | BS17: 85.97899 | BT17: 84.662973 | BU17: 82.938006 | BV17: 80.132973 | BW17: 85.431918 | BX17: 80.775642 | BY17: 81.005139 | BZ17: 82.864092 | CA17: 82.249914 | CB17: 81.022714 | CC17: 83.687572 | CD17: 92.089693 | CE17: 82.098798 | CF17: 87.533205 | CG17: 81.993806 | CH17: 81.406243 | CI17: 84.784313 | CJ17: 86.010849 | CK17: 85.183965 | CL17: 84.117877 | CM17: 77.710158 | CN17: 81.048643 | CO17: 85.762457 | CP17: 79.378867 | CQ17: 80.514266 | CR17: 84.5216 | CS17: 76.992048 | CT17: 80.367225 | CU17: 82.391883 | CV17: 79.596782 | CW17: 79.550958 | CX17: 90.285114 | CY17: 92.405741 | CZ17: 86.071382 | DA17: 84.50536 | DB17: 82.375744 | DC17: 80.462997 | DD17: 75.961887 | DE17: 79.4493 | DF17: 77.343425 | DG17: 83.850684 | DH17: 83.575619 | DI17: 83.272212 | DJ17: 91.384373 | DK17: 79.90637 | DL17: 83.319005 | DM17: 88.431031 | DN17: 88.09651 | DO17: 80.908355 | DP17: 86.863682 | DQ17: 85.244427 | DR17: 85.682674 | DS17: 80.652668 | DT17: 82.205322 | DU17: 86.388882 | DV17: 85.549268 | DW17: 83.593983 | DX17: 79.856177 | DY17: 83.642029 | DZ17: 81.833686 | EA17: 81.560315 | EB17: 81.008481 | EC17: 75.808652 | ED17: 82.853503 | EE17: 82.186828 | EF17: 82.247776 | EG17: 81.350688 | EH17: 82.178261 | EI17: 80.40017 | EJ17: 80.076271 | EK17: 79.622732 | EL17: 82.746285 | EM17: 83.965067 | EN17: 81.445834 | EO17: 79.303256 | EP17: 79.800719 | EQ17: 80.510009 | ER17: 75.932876 | ES17: 77.352165 | ET17: 78.968969 | EU17: 82.3619 | EV17: 79.879494 | EW17: 80.767777 | EX17: 81.525285 | EY17: 82.78702 | EZ17: 84.358835
A18: br2 | B18: q25 | C18: br | D18: Question 25: Did doctors talk in front of you as if you weren't there? | E18: 88.996867 | F18: 78.913839 | G18: 95.740784 | H18: 86.7601133 | I18: 86.962169 | J18: 79.280681 | K18: 79.404888 | L18: 88.330616 | M18: 86.870549 | N18: 86.643407 | O18: 89.950536 | P18: 89.904355 | Q18: 83.616194 | R18: 86.705431 | S18: 86.321801 | T18: 89.733398 | U18: 78.913839 | V18: 79.630544 | W18: 86.135317 | X18: 89.229398 | Y18: 88.530204 | Z18: 81.901146 | AA18: 90.468687 | AB18: 89.600584 | AC18: 90.609711 | AD18: 86.229813 | AE18: 94.199338 | AF18: 85.400998 | AG18: 83.120387 | AH18: 85.639908 | AI18: 88.780743 | AJ18: 91.046948 | AK18: 86.525217 | AL18: 86.096277 | AM18: 90.063173 | AN18: 89.667385 | AO18: 82.625802 | AP18: 83.800497 | AQ18: 88.40877 | AR18: 84.121539 | AS18: 86.942841 | AT18: 87.901723 | AU18: 87.869428 | AV18: 86.293222 | AW18: 95.740784 | AX18: 93.658323 | AY18: 90.36762 | AZ18: 83.311176 | BA18: 84.034564 | BB18: 80.593805 | BC18: 87.596932 | BD18: 90.301996 | BE18: 86.107858 | BF18: 84.170241 | BG18: 85.643001 | BH18: 88.632434 | BI18: 89.765735 | BJ18: 87.10562 | BK18: 87.755511 | BL18: 87.687267 | BM18: 86.442957 | BN18: 87.302494 | BO18: 83.311577 | BP18: 83.482558 | BQ18: 80.280497 | BR18: 88.177333 | BS18: 89.389591 | BT18: 87.967877 | BU18: 87.875217 | BV18: 84.818054 | BW18: 90.228555 | BX18: 87.603599 | BY18: 81.903828 | BZ18: 89.878269 | CA18: 87.19469 | CB18: 83.932472 | CC18: 85.177398 | CD18: 94.001189 | CE18: 86.963221 | CF18: 88.902643 | CG18: 87.184587 | CH18: 84.337134 | CI18: 89.154523 | CJ18: 89.055575 | CK18: 86.829694 | CL18: 88.859619 | CM18: 83.616853 | CN18: 86.609576 | CO18: 89.554046 | CP18: 85.132837 | CQ18: 84.215808 | CR18: 88.740983 | CS18: 81.745715 | CT18: 87.537916 | CU18: 86.733943 | CV18: 87.853661 | CW18: 86.886094 | CX18: 88.804232 | CY18: 93.679059 | CZ18: 92.608358 | DA18: 86.689444 | DB18: 87.404242 | DC18: 82.236738 | DD18: 82.473641 | DE18: 85.592789 | DF18: 82.57578 | DG18: 89.895898 | DH18: 88.596306 | DI18: 86.759256 | DJ18: 92.05711 | DK18: 87.224855 | DL18: 86.408531 | DM18: 88.80854 | DN18: 90.554406 | DO18: 88.402226 | DP18: 88.908805 | DQ18: 90.612814 | DR18: 87.730989 | DS18: 84.655637 | DT18: 86.652765 | DU18: 87.342425 | DV18: 86.846675 | DW18: 88.331238 | DX18: 86.468365 | DY18: 86.810081 | DZ18: 87.000684 | EA18: 87.89364 | EB18: 87.144364 | EC18: 84.972427 | ED18: 84.98541 | EE18: 87.159723 | EF18: 84.288999 | EG18: 87.924225 | EH18: 84.02782 | EI18: 86.930937 | EJ18: 87.770083 | EK18: 81.36777 | EL18: 89.939874 | EM18: 84.644936 | EN18: 86.438934 | EO18: 86.153636 | EP18: 84.365849 | EQ18: 84.821677 | ER18: 82.769148 | ES18: 85.257278 | ET18: 83.175432 | EU18: 86.040503 | EV18: 85.833631 | EW18: 83.724831 | EX18: 84.80863 | EY18: 83.31177 | EZ18: 87.780438
A19: br3 | B19: q26 | C19: br | D19: Question 26: When you had important questions to ask a nurse, did you get answers that you could understand? | E19: 85.728536 | F19: 73.496172 | G19: 93.073254 | H19: 83.56751837 | I19: 82.758172 | J19: 74.036562 | K19: 77.165922 | L19: 85.673976 | M19: 83.440822 | N19: 86.089165 | O19: 85.721063 | P19: 86.261288 | Q19: 75.767049 | R19: 83.616204 | S19: 84.343718 | T19: 84.009555 | U19: 74.289763 | V19: 78.593863 | W19: 81.03384 | X19: 85.119328 | Y19: 85.709059 | Z19: 79.92867 | AA19: 85.483303 | AB19: 84.129328 | AC19: 93.056801 | AD19: 84.335227 | AE19: 89.633856 | AF19: 88.99676 | AG19: 79.920806 | AH19: 83.109914 | AI19: 85.69535 | AJ19: 83.852351 | AK19: 83.905289 | AL19: 81.690509 | AM19: 86.707904 | AN19: 88.083707 | AO19: 78.89645 | AP19: 83.626359 | AQ19: 84.68355 | AR19: 83.783117 | AS19: 86.41069 | AT19: 85.522222 | AU19: 85.070702 | AV19: 84.958541 | AW19: 92.133198 | AX19: 86.345866 | AY19: 84.32527 | AZ19: 78.072857 | BA19: 82.623079 | BB19: 84.556359 | BC19: 84.719124 | BD19: 88.915432 | BE19: 81.15624 | BF19: 85.106363 | BG19: 82.118744 | BH19: 85.733518 | BI19: 82.243753 | BJ19: 86.717798 | BK19: 84.452889 | BL19: 89.028761 | BM19: 80.103221 | BN19: 84.808591 | BO19: 83.428067 | BP19: 77.593629 | BQ19: 73.496172 | BR19: 81.730185 | BS19: 84.301319 | BT19: 84.35344 | BU19: 85.495429 | BV19: 84.739799 | BW19: 86.398148 | BX19: 82.836252 | BY19: 81.08765 | BZ19: 84.145776 | CA19: 80.20639 | CB19: 83.160338 | CC19: 79.661651 | CD19: 90.395326 | CE19: 80.990133 | CF19: 84.588704 | CG19: 82.122147 | CH19: 85.449469 | CI19: 84.671596 | CJ19: 84.457002 | CK19: 83.827329 | CL19: 84.918948 | CM19: 81.6698 | CN19: 83.41286 | CO19: 87.461978 | CP19: 81.4651 | CQ19: 78.941699 | CR19: 86.906953 | CS19: 83.277497 | CT19: 81.553965 | CU19: 84.07709 | CV19: 84.793836 | CW19: 80.252207 | CX19: 89.783772 | CY19: 93.073254 | CZ19: 88.980362 | DA19: 81.971581 | DB19: 83.86863 | DC19: 76.973662 | DD19: 79.926501 | DE19: 80.569675 | DF19: 81.617005 | DG19: 87.108734 | DH19: 77.505553 | DI19: 85.586069 | DJ19: 90.526166 | DK19: 79.778582 | DL19: 80.458522 | DM19: 89.103198 | DN19: 88.541459 | DO19: 81.618675 | DP19: 86.332139 | DQ19: 87.171789 | DR19: 84.016695 | DS19: 82.443117 | DT19: 82.520755 | DU19: 89.248919 | DV19: 85.678824 | DW19: 85.130028 | DX19: 80.822926 | DY19: 87.380806 | DZ19: 82.6229 | EA19: 81.18636 | EB19: 84.058776 | EC19: 79.204576 | ED19: 84.306805 | EE19: 84.862778 | EF19: 83.050035 | EG19: 84.115621 | EH19: 81.336347 | EI19: 81.072958 | EJ19: 82.521265 | EK19: 81.440762 | EL19: 85.110231 | EM19: 84.028384 | EN19: 80.976317 | EO19: 84.031796 | EP19: 78.391776 | EQ19: 83.725567 | ER19: 76.357521 | ES19: 77.187039 | ET19: 80.894332 | EU19: 85.248311 | EV19: 82.956551 | EW19: 80.003123 | EX19: 85.621645 | EY19: 82.718329 | EZ19: 87.085514
A20: br4 | B20: q28 | C20: br | D20: Question 28: Did nurses talk in front of you as if you weren't there? | E20: 91.97971 | F20: 79.761211 | G20: 96.486968 | H20: 89.98698863 | I20: 89.485324 | J20: 79.761211 | K20: 83.238998 | L20: 91.70765 | M20: 90.44051 | N20: 89.510349 | O20: 91.423265 | P20: 92.395578 | Q20: 84.877127 | R20: 90.793398 | S20: 88.479081 | T20: 86.67023 | U20: 80.617423 | V20: 83.254667 | W20: 89.444066 | X20: 90.277625 | Y20: 91.912792 | Z20: 86.80905 | AA20: 91.800491 | AB20: 93.138518 | AC20: 94.128526 | AD20: 90.131873 | AE20: 96.486968 | AF20: 90.737081 | AG20: 86.445341 | AH20: 89.969895 | AI20: 91.280359 | AJ20: 93.232683 | AK20: 90.471606 | AL20: 90.12447 | AM20: 91.384903 | AN20: 92.046854 | AO20: 87.784862 | AP20: 89.089878 | AQ20: 89.907964 | AR20: 87.321928 | AS20: 91.177026 | AT20: 89.509025 | AU20: 92.471571 | AV20: 90.864784 | AW20: 95.408111 | AX20: 93.723578 | AY20: 92.926092 | AZ20: 84.462421 | BA20: 88.111602 | BB20: 88.828466 | BC20: 90.528184 | BD20: 93.274297 | BE20: 89.584781 | BF20: 91.944577 | BG20: 88.87403 | BH20: 92.227232 | BI20: 91.065634 | BJ20: 91.148029 | BK20: 91.025199 | BL20: 92.201509 | BM20: 89.723675 | BN20: 90.91686 | BO20: 88.156567 | BP20: 82.884187 | BQ20: 83.727387 | BR20: 86.994504 | BS20: 92.348455 | BT20: 88.662673 | BU20: 92.003132 | BV20: 89.467887 | BW20: 93.082789 | BX20: 91.823806 | BY20: 86.799097 | BZ20: 90.846 | CA20: 88.446066 | CB20: 88.968642 | CC20: 87.76955 | CD20: 96.450281 | CE20: 88.212469 | CF20: 88.392747 | CG20: 88.204512 | CH20: 90.833292 | CI20: 92.294247 | CJ20: 91.855059 | CK20: 90.815983 | CL20: 91.372334 | CM20: 89.674614 | CN20: 90.0505 | CO20: 94.072343 | CP20: 88.77996 | CQ20: 88.487677 | CR20: 93.648649 | CS20: 89.308754 | CT20: 89.749033 | CU20: 91.206025 | CV20: 89.045475 | CW20: 86.802969 | CX20: 95.283038 | CY20: 93.657881 | CZ20: 91.689648 | DA20: 87.922215 | DB20: 91.147998 | DC20: 84.361539 | DD20: 85.99232 | DE20: 85.943548 | DF20: 86.615921 | DG20: 91.379144 | DH20: 88.284544 | DI20: 91.704526 | DJ20: 91.294702 | DK20: 92.353002 | DL20: 88.830566 | DM20: 92.569029 | DN20: 93.155897 | DO20: 89.16075 | DP20: 91.404761 | DQ20: 92.614514 | DR20: 91.487896 | DS20: 91.367725 | DT20: 89.008509 | DU20: 92.539261 | DV20: 90.002499 | DW20: 91.168069 | DX20: 89.88771 | DY20: 92.15513 | DZ20: 90.289524 | EA20: 90.275705 | EB20: 91.585292 | EC20: 90.568494 | ED20: 90.322251 | EE20: 91.153817 | EF20: 87.589056 | EG20: 91.19263 | EH20: 89.056737 | EI20: 91.793287 | EJ20: 91.095438 | EK20: 88.905303 | EL20: 92.48334 | EM20: 90.754811 | EN20: 88.293807 | EO20: 91.312002 | EP20: 88.238678 | EQ20: 90.381167 | ER20: 86.759588 | ES20: 89.23139 | ET20: 87.41425 | EU20: 88.926347 | EV20: 90.568384 | EW20: 88.655983 | EX20: 90.226378 | EY20: 86.773981 | EZ20: 93.427443
A21: br | B21: br | C21: br | D21: br | E21: 87.8174058 | F21: 77.937438 | G21: 93.571537 | H21: 85.75495548 | I21: 84.819127 | J21: 77.937438 | K21: 79.769154 | L21: 87.967845 | M21: 85.910386 | N21: 86.812073 | O21: 88.503717 | P21: 88.534007 | Q21: 80.623728 | R21: 85.222477 | S21: 86.128014 | T21: 87.178814 | U21: 77.988471 | V21: 80.65133 | W21: 83.919269 | X21: 87.942968 | Y21: 87.58064 | Z21: 81.35883 | AA21: 87.776583 | AB21: 87.379673 | AC21: 92.047759 | AD21: 85.878929 | AE21: 92.41559 | AF21: 87.342592 | AG21: 82.989728 | AH21: 84.931479 | AI21: 87.601384 | AJ21: 87.578255 | AK21: 85.240283 | AL21: 84.611331 | AM21: 88.108197 | AN21: 89.085675 | AO21: 81.503083 | AP21: 84.125666 | AQ21: 86.067477 | AR21: 84.736905 | AS21: 87.025108 | AT21: 87.338142 | AU21: 87.165784 | AV21: 86.069447 | AW21: 93.571537 | AX21: 90.736661 | AY21: 88.182129 | AZ21: 81.451397 | BA21: 83.450165 | BB21: 83.305275 | BC21: 86.159802 | BD21: 90.574291 | BE21: 83.441102 | BF21: 85.264693 | BG21: 85.022355 | BH21: 87.15857 | BI21: 87.00192 | BJ21: 87.406106 | BK21: 86.666811 | BL21: 88.780057 | BM21: 84.038852 | BN21: 87.047358 | BO21: 84.366334 | BP21: 81.363483 | BQ21: 79.027622 | BR21: 85.180795 | BS21: 88.004588 | BT21: 86.411741 | BU21: 87.077946 | BV21: 84.789678 | BW21: 88.785352 | BX21: 85.759825 | BY21: 82.698928 | BZ21: 86.933534 | CA21: 84.524265 | CB21: 84.271042 | CC21: 84.074043 | CD21: 93.234122 | CE21: 84.566155 | CF21: 87.354325 | CG21: 84.876263 | CH21: 85.506534 | CI21: 87.726169 | CJ21: 87.844621 | CK21: 86.664243 | CL21: 87.317194 | CM21: 83.167856 | CN21: 85.280395 | CO21: 89.212706 | CP21: 83.689191 | CQ21: 83.039862 | CR21: 88.454546 | CS21: 82.831004 | CT21: 84.802035 | CU21: 86.102235 | CV21: 85.322438 | CW21: 83.373057 | CX21: 91.039039 | CY21: 93.203984 | CZ21: 89.837438 | DA21: 85.27215 | DB21: 86.199154 | DC21: 81.008734 | DD21: 81.088587 | DE21: 82.888828 | DF21: 82.038033 | DG21: 88.058615 | DH21: 84.490506 | DI21: 86.830516 | DJ21: 91.315588 | DK21: 84.815702 | DL21: 84.754156 | DM21: 89.727949 | DN21: 90.087068 | DO21: 85.022502 | DP21: 88.377346 | DQ21: 88.910886 | DR21: 87.229564 | DS21: 84.779787 | DT21: 85.096838 | DU21: 88.879872 | DV21: 87.019317 | DW21: 87.05583 | DX21: 84.258794 | DY21: 87.497012 | DZ21: 85.436699 | EA21: 85.229005 | EB21: 85.949228 | EC21: 82.638537 | ED21: 85.616992 | EE21: 86.340787 | EF21: 84.293966 | EG21: 86.145791 | EH21: 84.149791 | EI21: 85.049338 | EJ21: 85.365764 | EK21: 82.834142 | EL21: 87.569932 | EM21: 85.8483 | EN21: 84.288723 | EO21: 85.200172 | EP21: 82.699256 | EQ21: 84.859605 | ER21: 80.454783 | ES21: 82.256968 | ET21: 82.613245 | EU21: 85.644266 | EV21: 84.809515 | EW21: 83.287928 | EX21: 85.545484 | EY21: 83.897775 | EZ21: 88.163058
A22: ccfp1 | B22: q14 | C22: ccfp | D22: Question 14: Were you ever bothered by noise at night from other patients? | E22: 66.043631 | F22: 47.826882 | G22: 84.392131 | H22: 62.41241455 | I22: 62.64773 | J22: 56.835279 | K22: 64.423151 | L22: 59.121157 | M22: 53.509579 | N22: 55.872174 | O22: 71.516883 | P22: 60.645929 | Q22: 54.999161 | R22: 59.999244 | S22: 60.818459 | T22: 68.681143 | U22: 60.134185 | V22: 58.374988 | W22: 59.92517 | X22: 69.27188 | Y22: 65.486803 | Z22: 62.840929 | AA22: 62.535446 | AB22: 72.638674 | AC22: 83.339215 | AD22: 58.759021 | AE22: 72.789946 | AF22: 62.824525 | AG22: 58.413097 | AH22: 61.950751 | AI22: 59.037553 | AJ22: 56.63636 | AK22: 62.621135 | AL22: 48.538905 | AM22: 66.554185 | AN22: 64.927939 | AO22: 52.323865 | AP22: 58.679045 | AQ22: 64.275195 | AR22: 55.975274 | AS22: 59.327754 | AT22: 54.376221 | AU22: 59.395802 | AV22: 64.252985 | AW22: 82.448204 | AX22: 82.089266 | AY22: 63.575163 | AZ22: 57.463567 | BA22: 60.372636 | BB22: 55.640851 | BC22: 59.110577 | BD22: 80.264852 | BE22: 65.432902 | BF22: 58.660026 | BG22: 59.307705 | BH22: 54.564325 | BI22: 63.209506 | BJ22: 62.934517 | BK22: 56.459676 | BL22: 65.18172 | BM22: 60.795452 | BN22: 58.046458 | BO22: 61.848505 | BP22: 60.998933 | BQ22: 56.648125 | BR22: 60.895405 | BS22: 61.02623 | BT22: 66.820206 | BU22: 63.933341 | BV22: 59.930473 | BW22: 55.336598 | BX22: 59.043156 | BY22: 61.347793 | BZ22: 76.137098 | CA22: 52.10835 | CB22: 59.461706 | CC22: 66.135089 | CD22: 84.392131 | CE22: 64.82077 | CF22: 70.363902 | CG22: 62.025164 | CH22: 61.80907 | CI22: 58.218935 | CJ22: 64.737369 | CK22: 61.537875 | CL22: 59.176802 | CM22: 63.271439 | CN22: 58.965354 | CO22: 64.678434 | CP22: 56.441436 | CQ22: 59.27693 | CR22: 68.679229 | CS22: 62.712023 | CT22: 47.826882 | CU22: 54.804647 | CV22: 66.506072 | CW22: 57.94146 | CX22: 84.176554 | CY22: 76.373014 | CZ22: 68.42682 | DA22: 57.650555 | DB22: 63.932269 | DC22: 61.97319 | DD22: 59.729818 | DE22: 57.442784 | DF22: 59.101166 | DG22: 78.406889 | DH22: 58.336204 | DI22: 64.487115 | DJ22: 80.292658 | DK22: 62.763292 | DL22: 62.585905 | DM22: 70.731657 | DN22: 69.613005 | DO22: 55.989981 | DP22: 78.114649 | DQ22: 70.861059 | DR22: 61.967086 | DS22: 55.787443 | DT22: 49.343228 | DU22: 65.341076 | DV22: 66.137539 | DW22: 72.887433 | DX22: 59.655465 | DY22: 52.621379 | DZ22: 60.636105 | EA22: 57.932187 | EB22: 61.364637 | EC22: 61.484191 | ED22: 59.514557 | EE22: 62.598002 | EF22: 60.175562 | EG22: 68.69312 | EH22: 55.850941 | EI22: 66.891945 | EJ22: 59.250351 | EK22: 57.712366 | EL22: 60.90935 | EM22: 61.236258 | EN22: 59.072038 | EO22: 55.943479 | EP22: 63.300529 | EQ22: 60.517982 | ER22: 57.221819 | ES22: 64.623287 | ET22: 56.381792 | EU22: 65.906444 | EV22: 57.32248 | EW22: 58.359001 | EX22: 60.439561 | EY22: 63.761292 | EZ22: 54.517773
A23: ccfp2 | B23: q15 | C23: ccfp | D23: Question 15: Were you ever bothered by noise at night from hospital staff? | E23: 83.4776634 | F23: 70.880787 | G23: 91.19797 | H23: 80.97305176 | I23: 81.885451 | J23: 77.920878 | K23: 82.835073 | L23: 85.832272 | M23: 80.347112 | N23: 82.016798 | O23: 83.137337 | P23: 81.001139 | Q23: 79.133173 | R23: 77.832238 | S23: 83.396162 | T23: 81.338443 | U23: 78.814443 | V23: 79.057245 | W23: 81.650251 | X23: 81.361231 | Y23: 81.871993 | Z23: 85.503646 | AA23: 81.818565 | AB23: 83.253971 | AC23: 88.906928 | AD23: 80.710994 | AE23: 80.924487 | AF23: 80.396078 | AG23: 76.316602 | AH23: 80.823471 | AI23: 79.374787 | AJ23: 79.059082 | AK23: 79.07487 | AL23: 78.576029 | AM23: 83.420163 | AN23: 80.798002 | AO23: 75.763913 | AP23: 81.005476 | AQ23: 77.313065 | AR23: 78.044329 | AS23: 78.974479 | AT23: 84.252587 | AU23: 77.605476 | AV23: 81.317875 | AW23: 91.050179 | AX23: 90.329524 | AY23: 74.975084 | AZ23: 76.540488 | BA23: 77.907945 | BB23: 79.721434 | BC23: 79.501119 | BD23: 89.19504 | BE23: 79.172265 | BF23: 78.832528 | BG23: 78.300664 | BH23: 77.531544 | BI23: 76.808976 | BJ23: 82.301872 | BK23: 76.76856 | BL23: 83.709707 | BM23: 74.865324 | BN23: 78.395223 | BO23: 78.529898 | BP23: 78.475651 | BQ23: 80.099498 | BR23: 80.652385 | BS23: 81.299797 | BT23: 83.515997 | BU23: 86.949512 | BV23: 79.338749 | BW23: 82.651746 | BX23: 77.096538 | BY23: 77.639 | BZ23: 83.841501 | CA23: 70.880787 | CB23: 73.128076 | CC23: 85.934162 | CD23: 91.170135 | CE23: 82.894981 | CF23: 81.841364 | CG23: 80.051832 | CH23: 85.062992 | CI23: 79.395339 | CJ23: 79.23049 | CK23: 75.973573 | CL23: 82.623772 | CM23: 84.589017 | CN23: 78.57234 | CO23: 83.213529 | CP23: 79.189971 | CQ23: 77.548207 | CR23: 82.201655 | CS23: 83.628137 | CT23: 76.662219 | CU23: 82.637088 | CV23: 78.502872 | CW23: 79.86 | CX23: 91.19797 | CY23: 88.302755 | CZ23: 86.354493 | DA23: 79.083952 | DB23: 84.349163 | DC23: 83.143477 | DD23: 79.282721 | DE23: 82.218318 | DF23: 76.027146 | DG23: 89.51576 | DH23: 78.139676 | DI23: 84.273753 | DJ23: 88.537149 | DK23: 81.03205 | DL23: 77.552991 | DM23: 87.023483 | DN23: 87.56469 | DO23: 77.318971 | DP23: 87.056901 | DQ23: 83.711339 | DR23: 77.054735 | DS23: 81.031434 | DT23: 79.712289 | DU23: 83.070132 | DV23: 80.555019 | DW23: 82.424854 | DX23: 77.888438 | DY23: 76.792849 | DZ23: 79.540407 | EA23: 84.550245 | EB23: 85.962373 | EC23: 80.176368 | ED23: 78.241777 | EE23: 80.684068 | EF23: 76.227179 | EG23: 85.795564 | EH23: 77.931227 | EI23: 79.092727 | EJ23: 81.744159 | EK23: 78.230336 | EL23: 82.365873 | EM23: 80.759215 | EN23: 77.299204 | EO23: 81.002866 | EP23: 79.334981 | EQ23: 79.525328 | ER23: 81.344439 | ES23: 79.600132 | ET23: 77.635194 | EU23: 80.598641 | EV23: 81.459837 | EW23: 79.387556 | EX23: 78.439969 | EY23: 82.612869 | EZ23: 80.796218
A24: ccfp3 | B24: q16 | C24: ccfp | D24: Question 16: In your opinion, how clean was the hospital room or ward that you were in? | E24: 91.926655 | F24: 82.754767 | G24: 97.352922 | H24: 89.76773277 | I24: 91.267105 | J24: 85.188595 | K24: 84.284303 | L24: 88.617216 | M24: 88.397053 | N24: 91.091286 | O24: 92.91494 | P24: 90.592272 | Q24: 86.118245 | R24: 86.630972 | S24: 88.097322 | T24: 91.237391 | U24: 82.754767 | V24: 82.783661 | W24: 86.884605 | X24: 93.433369 | Y24: 92.01267 | Z24: 89.686319 | AA24: 90.296668 | AB24: 95.725821 | AC24: 96.756862 | AD24: 89.31444 | AE24: 95.572283 | AF24: 92.662512 | AG24: 86.122582 | AH24: 86.687711 | AI24: 88.587694 | AJ24: 88.222057 | AK24: 88.313712 | AL24: 88.87206 | AM24: 87.04949 | AN24: 88.843012 | AO24: 84.520612 | AP24: 89.179474 | AQ24: 91.242824 | AR24: 91.487257 | AS24: 90.974648 | AT24: 93.366169 | AU24: 87.780728 | AV24: 90.5948 | AW24: 97.352922 | AX24: 94.866244 | AY24: 94.101403 | AZ24: 87.394464 | BA24: 91.29519 | BB24: 88.556167 | BC24: 91.769311 | BD24: 94.409217 | BE24: 91.35738 | BF24: 92.838572 | BG24: 89.449545 | BH24: 91.338431 | BI24: 90.455513 | BJ24: 92.672158 | BK24: 89.782496 | BL24: 91.933235 | BM24: 89.907571 | BN24: 89.509131 | BO24: 88.043059 | BP24: 85.92475 | BQ24: 85.385301 | BR24: 87.163678 | BS24: 90.237343 | BT24: 90.788922 | BU24: 91.378341 | BV24: 91.255338 | BW24: 91.517209 | BX24: 87.542402 | BY24: 88.515113 | BZ24: 93.084192 | CA24: 88.413081 | CB24: 91.207471 | CC24: 86.592666 | CD24: 96.378761 | CE24: 90.061666 | CF24: 90.918293 | CG24: 87.442516 | CH24: 90.394019 | CI24: 90.0922 | CJ24: 85.748826 | CK24: 90.360048 | CL24: 92.198695 | CM24: 90.019915 | CN24: 86.883239 | CO24: 91.579889 | CP24: 86.369844 | CQ24: 87.287714 | CR24: 89.477334 | CS24: 90.678149 | CT24: 87.144089 | CU24: 88.61079 | CV24: 90.512924 | CW24: 87.521083 | CX24: 93.784254 | CY24: 94.011417 | CZ24: 91.594061 | DA24: 87.928196 | DB24: 91.997893 | DC24: 88.536752 | DD24: 88.382752 | DE24: 86.314965 | DF24: 85.865599 | DG24: 94.275083 | DH24: 89.557376 | DI24: 93.53644 | DJ24: 92.617521 | DK24: 91.237797 | DL24: 90.775431 | DM24: 92.066367 | DN24: 94.117254 | DO24: 83.702928 | DP24: 93.737611 | DQ24: 92.200506 | DR24: 90.962097 | DS24: 88.918794 | DT24: 91.465091 | DU24: 90.827007 | DV24: 90.971888 | DW24: 91.916785 | DX24: 85.61549 | DY24: 86.213832 | DZ24: 86.505069 | EA24: 88.763484 | EB24: 88.108578 | EC24: 89.733687 | ED24: 92.870106 | EE24: 90.38835 | EF24: 87.157479 | EG24: 90.731295 | EH24: 88.721137 | EI24: 86.3457 | EJ24: 89.892122 | EK24: 88.34157 | EL24: 91.257442 | EM24: 91.788855 | EN24: 88.003012 | EO24: 89.724345 | EP24: 89.711557 | EQ24: 86.964197 | ER24: 84.142004 | ES24: 88.724626 | ET24: 87.492527 | EU24: 90.433859 | EV24: 87.773155 | EW24: 88.825395 | EX24: 91.108943 | EY24: 86.145086 | EZ24: 92.956366
A25: ccfp4 | B25: q19 | C25: ccfp | D25: Question 19: How would you rate the hospital food? | E25: 61.5311836 | F25: 46.522176 | G25: 80.157383 | H25: 57.83065442 | I25: 60.458049 | J25: 56.279269 | K25: 53.151588 | L25: 50.334758 | M25: 58.279009 | N25: 63.084828 | O25: 56.116003 | P25: 57.648931 | Q25: 56.807167 | R25: 57.627388 | S25: 53.223566 | T25: 64.510502 | U25: 48.739113 | V25: 53.548221 | W25: 55.92171 | X25: 63.193553 | Y25: 63.978123 | Z25: 58.855019 | AA25: 48.355056 | AB25: 62.688537 | AC25: 71.584215 | AD25: 57.45118 | AE25: 68.175282 | AF25: 59.938737 | AG25: 58.795455 | AH25: 57.053363 | AI25: 61.544442 | AJ25: 67.030339 | AK25: 53.490361 | AL25: 62.581971 | AM25: 57.75147 | AN25: 60.450774 | AO25: 51.039711 | AP25: 56.96987 | AQ25: 51.793641 | AR25: 60.784472 | AS25: 60.389927 | AT25: 58.343444 | AU25: 54.788596 | AV25: 69.078694 | AW25: 70.312704 | AX25: 59.625798 | AY25: 66.289369 | AZ25: 51.817978 | BA25: 49.480781 | BB25: 49.51097 | BC25: 55.717342 | BD25: 71.369254 | BE25: 62.093507 | BF25: 64.874759 | BG25: 53.356548 | BH25: 63.998121 | BI25: 60.035953 | BJ25: 63.498306 | BK25: 54.899181 | BL25: 58.492849 | BM25: 53.572492 | BN25: 62.232992 | BO25: 53.313717 | BP25: 51.086708 | BQ25: 56.609749 | BR25: 54.146852 | BS25: 58.375852 | BT25: 50.516884 | BU25: 56.839655 | BV25: 61.307168 | BW25: 62.595846 | BX25: 62.267706 | BY25: 53.092063 | BZ25: 61.491029 | CA25: 57.79943 | CB25: 52.872096 | CC25: 46.522176 | CD25: 80.157383 | CE25: 56.949711 | CF25: 54.636915 | CG25: 49.20612 | CH25: 61.511296 | CI25: 56.96247 | CJ25: 49.269541 | CK25: 53.833267 | CL25: 61.366886 | CM25: 52.989888 | CN25: 50.955854 | CO25: 63.964228 | CP25: 50.909956 | CQ25: 47.679099 | CR25: 55.795907 | CS25: 61.580385 | CT25: 51.552577 | CU25: 60.44834 | CV25: 61.006599 | CW25: 51.633426 | CX25: 67.42651 | CY25: 75.983727 | CZ25: 56.816164 | DA25: 60.912066 | DB25: 57.236508 | DC25: 53.348435 | DD25: 50.758519 | DE25: 57.544094 | DF25: 57.706985 | DG25: 60.28607 | DH25: 58.073009 | DI25: 61.049331 | DJ25: 68.195985 | DK25: 57.955064 | DL25: 55.747441 | DM25: 60.903521 | DN25: 56.866291 | DO25: 54.290642 | DP25: 64.568826 | DQ25: 59.697963 | DR25: 54.900973 | DS25: 58.700449 | DT25: 54.691378 | DU25: 56.650836 | DV25: 60.474479 | DW25: 58.726097 | DX25: 54.425925 | DY25: 58.994159 | DZ25: 54.9226 | EA25: 59.982324 | EB25: 48.765383 | EC25: 55.473783 | ED25: 62.116057 | EE25: 60.66682 | EF25: 60.434919 | EG25: 55.292746 | EH25: 57.931315 | EI25: 53.238883 | EJ25: 56.303054 | EK25: 56.098989 | EL25: 57.558106 | EM25: 51.075481 | EN25: 56.11244 | EO25: 60.15334 | EP25: 54.228239 | EQ25: 47.173798 | ER25: 56.753754 | ES25: 58.319836 | ET25: 55.76089 | EU25: 60.833047 | EV25: 52.863943 | EW25: 54.920866 | EX25: 57.402674 | EY25: 55.288844 | EZ25: 62.071259
A26: ccfp5 | B26: q40 | C26: ccfp | D26: Question 40: Were you given enough privacy when being examined or treated? | E26: 95.9166942 | F26: 91.316205 | G26: 98.079588 | H26: 94.97647506 | I26: 95.619621 | J26: 93.4287 | K26: 93.637765 | L26: 94.976276 | M26: 96.494 | N26: 95.544205 | O26: 95.977953 | P26: 96.469092 | Q26: 91.316205 | R26: 94.754694 | S26: 95.980762 | T26: 95.590796 | U26: 92.710646 | V26: 92.630939 | W26: 94.757475 | X26: 96.122126 | Y26: 95.08729 | Z26: 93.077956 | AA26: 95.255664 | AB26: 96.228754 | AC26: 97.382536 | AD26: 94.716451 | AE26: 97.55072 | AF26: 95.662932 | AG26: 94.202158 | AH26: 95.277379 | AI26: 94.651334 | AJ26: 95.180097 | AK26: 94.908831 | AL26: 95.842647 | AM26: 96.249001 | AN26: 95.591709 | AO26: 93.979186 | AP26: 95.340935 | AQ26: 95.016627 | AR26: 94.854946 | AS26: 95.823266 | AT26: 96.265159 | AU26: 94.35286 | AV26: 95.444829 | AW26: 97.063747 | AX26: 97.4913 | AY26: 93.268477 | AZ26: 94.494311 | BA26: 94.888268 | BB26: 94.424667 | BC26: 95.271857 | BD26: 98.079588 | BE26: 94.839736 | BF26: 95.490381 | BG26: 94.221749 | BH26: 95.021923 | BI26: 95.224425 | BJ26: 96.757322 | BK26: 94.14338 | BL26: 95.644203 | BM26: 95.82236 | BN26: 95.425572 | BO26: 93.522027 | BP26: 94.720469 | BQ26: 93.175052 | BR26: 94.751479 | BS26: 95.584328 | BT26: 95.218583 | BU26: 95.878288 | BV26: 94.517738 | BW26: 95.568136 | BX26: 95.319496 | BY26: 95.79077 | BZ26: 97.422601 | CA26: 93.62727 | CB26: 93.888357 | CC26: 93.776496 | CD26: 96.030899 | CE26: 94.784185 | CF26: 94.271455 | CG26: 94.412924 | CH26: 96.408335 | CI26: 95.670848 | CJ26: 96.390282 | CK26: 94.483437 | CL26: 97.01669 | CM26: 92.587816 | CN26: 93.630913 | CO26: 95.923247 | CP26: 94.145633 | CQ26: 94.178948 | CR26: 94.732825 | CS26: 95.411493 | CT26: 93.708906 | CU26: 95.816598 | CV26: 94.627031 | CW26: 92.971886 | CX26: 98.077422 | CY26: 97.380866 | CZ26: 96.714217 | DA26: 92.974049 | DB26: 95.959601 | DC26: 93.450632 | DD26: 93.682414 | DE26: 96.237075 | DF26: 92.131924 | DG26: 94.892456 | DH26: 94.148499 | DI26: 94.90253 | DJ26: 96.705334 | DK26: 95.481204 | DL26: 95.34648 | DM26: 97.159489 | DN26: 96.934219 | DO26: 93.3141 | DP26: 96.707024 | DQ26: 95.906865 | DR26: 95.482424 | DS26: 94.140712 | DT26: 94.61576 | DU26: 95.661178 | DV26: 94.830791 | DW26: 95.760911 | DX26: 95.326678 | DY26: 93.508138 | DZ26: 92.501908 | EA26: 94.643233 | EB26: 94.492113 | EC26: 94.569146 | ED26: 94.960563 | EE26: 95.187626 | EF26: 94.8839 | EG26: 95.329886 | EH26: 94.524875 | EI26: 93.96992 | EJ26: 93.65756 | EK26: 93.325833 | EL26: 94.699293 | EM26: 94.768827 | EN26: 95.087501 | EO26: 94.894637 | EP26: 92.925244 | EQ26: 94.340483 | ER26: 93.14319 | ES26: 92.514577 | ET26: 93.320334 | EU26: 95.134617 | EV26: 94.906265 | EW26: 95.356849 | EX26: 95.046982 | EY26: 93.024726 | EZ26: 96.382
A27: ccfp6 | B27: q67 | C27: ccfp | D27: Question 67: Overall, did you feel you were treated with respect and dignity while you were in the hospital? | E27: 92.6394238 | F27: 84.792306 | G27: 96.858654 | H27: 90.79257765 | I27: 89.091839 | J27: 86.282145 | K27: 88.797933 | L27: 91.710446 | M27: 89.880589 | N27: 91.238655 | O27: 94.582581 | P27: 93.895405 | Q27: 86.654536 | R27: 90.871268 | S27: 90.099839 | T27: 93.751351 | U27: 85.074472 | V27: 88.515392 | W27: 90.962337 | X27: 93.253851 | Y27: 93.082605 | Z27: 87.191006 | AA27: 90.259624 | AB27: 91.114962 | AC27: 96.766301 | AD27: 89.865542 | AE27: 94.852766 | AF27: 93.233927 | AG27: 88.077561 | AH27: 89.682953 | AI27: 90.655293 | AJ27: 91.165401 | AK27: 89.907457 | AL27: 89.765927 | AM27: 93.90483 | AN27: 91.88609 | AO27: 88.239715 | AP27: 89.842969 | AQ27: 90.863095 | AR27: 91.931634 | AS27: 92.302642 | AT27: 93.241507 | AU27: 90.415363 | AV27: 89.142604 | AW27: 96.354598 | AX27: 92.046335 | AY27: 93.578643 | AZ27: 89.601996 | BA27: 88.122592 | BB27: 88.341749 | BC27: 91.026388 | BD27: 95.338328 | BE27: 90.671241 | BF27: 90.635048 | BG27: 90.01091 | BH27: 91.714818 | BI27: 93.285379 | BJ27: 92.897761 | BK27: 91.287194 | BL27: 93.446746 | BM27: 90.050945 | BN27: 91.419398 | BO27: 88.121193 | BP27: 88.810556 | BQ27: 85.148712 | BR27: 90.289974 | BS27: 92.590759 | BT27: 91.375531 | BU27: 92.582613 | BV27: 87.958236 | BW27: 93.261459 | BX27: 91.187043 | BY27: 89.827199 | BZ27: 92.106471 | CA27: 87.89036 | CB27: 89.443703 | CC27: 87.645474 | CD27: 95.319571 | CE27: 90.386282 | CF27: 90.591654 | CG27: 89.578159 | CH27: 91.953726 | CI27: 91.834848 | CJ27: 90.764273 | CK27: 90.03422 | CL27: 92.577237 | CM27: 89.201091 | CN27: 89.876557 | CO27: 94.208744 | CP27: 89.978598 | CQ27: 88.143842 | CR27: 92.911481 | CS27: 88.900511 | CT27: 89.806153 | CU27: 91.243507 | CV27: 91.109887 | CW27: 89.034273 | CX27: 96.16151 | CY27: 96.858654 | CZ27: 93.00506 | DA27: 91.328309 | DB27: 91.142419 | DC27: 88.762305 | DD27: 87.406977 | DE27: 86.802602 | DF27: 88.070763 | DG27: 92.279594 | DH27: 88.656423 | DI27: 91.497694 | DJ27: 94.646513 | DK27: 91.701604 | DL27: 92.572586 | DM27: 96.25255 | DN27: 94.29255 | DO27: 89.585637 | DP27: 92.468072 | DQ27: 93.202441 | DR27: 92.103343 | DS27: 90.857641 | DT27: 91.016522 | DU27: 93.906203 | DV27: 92.70824 | DW27: 92.452954 | DX27: 88.233226 | DY27: 90.867595 | DZ27: 88.252306 | EA27: 88.391256 | EB27: 91.540659 | EC27: 87.635663 | ED27: 90.925346 | EE27: 89.876194 | EF27: 89.845248 | EG27: 89.933921 | EH27: 89.070656 | EI27: 92.060486 | EJ27: 88.111606 | EK27: 88.863528 | EL27: 90.902339 | EM27: 91.368559 | EN27: 90.735438 | EO27: 89.983879 | EP27: 88.36241 | EQ27: 92.254052 | ER27: 86.223122 | ES27: 84.792306 | ET27: 87.956992 | EU27: 90.705187 | EV27: 89.442804 | EW27: 88.942166 | EX27: 90.949597 | EY27: 91.085539 | EZ27: 92.671867
A28: ccfp7 | B28: q42 | C28: ccfp | D28: Question 42: Do you think the hospital staff did everything they could to help control your pain? | E28: 85.821451 | F28: 74.480663 | G28: 92.370846 | H28: 83.21424293 | I28: 82.148808 | J28: 76.168721 | K28: 81.854142 | L28: 85.030702 | M28: 82.92303 | N28: 85.161353 | O28: 86.156742 | P28: 87.360666 | Q28: 75.881426 | R28: 82.033615 | S28: 85.728732 | T28: 85.139941 | U28: 81.321661 | V28: 78.235201 | W28: 78.481245 | X28: 88.914553 | Y28: 83.167434 | Z28: 79.464973 | AA28: 83.939101 | AB28: 83.482884 | AC28: 90.698656 | AD28: 82.794928 | AE28: 90.687813 | AF28: 86.066109 | AG28: 80.335461 | AH28: 82.864916 | AI28: 85.94932 | AJ28: 79.968563 | AK28: 80.168592 | AL28: 79.326775 | AM28: 84.947338 | AN28: 82.706821 | AO28: 79.675524 | AP28: 83.010798 | AQ28: 83.61466 | AR28: 84.327911 | AS28: 86.13812 | AT28: 85.843225 | AU28: 82.499873 | AV28: 81.952908 | AW28: 89.760464 | AX28: 86.236511 | AY28: 83.275866 | AZ28: 81.150018 | BA28: 79.007731 | BB28: 83.254405 | BC28: 84.49311 | BD28: 88.94676 | BE28: 80.772833 | BF28: 83.292906 | BG28: 80.642981 | BH28: 83.430501 | BI28: 82.414447 | BJ28: 87.08717 | BK28: 85.252747 | BL28: 87.005539 | BM28: 81.405567 | BN28: 84.86642 | BO28: 80.351528 | BP28: 81.005573 | BQ28: 78.434422 | BR28: 82.818794 | BS28: 85.78879 | BT28: 85.670059 | BU28: 83.969233 | BV28: 78.452739 | BW28: 88.592135 | BX28: 81.53151 | BY28: 84.520269 | BZ28: 86.681297 | CA28: 79.215706 | CB28: 82.904668 | CC28: 80.455574 | CD28: 91.480149 | CE28: 83.518435 | CF28: 81.430748 | CG28: 83.321005 | CH28: 87.317591 | CI28: 84.7928 | CJ28: 83.994689 | CK28: 85.475163 | CL28: 84.987111 | CM28: 78.875594 | CN28: 80.067465 | CO28: 87.582469 | CP28: 80.541139 | CQ28: 77.218021 | CR28: 83.249206 | CS28: 83.866321 | CT28: 83.174212 | CU28: 84.515643 | CV28: 81.798343 | CW28: 82.453959 | CX28: 92.215701 | CY28: 92.370846 | CZ28: 87.076347 | DA28: 81.530474 | DB28: 84.957931 | DC28: 82.094044 | DD28: 80.140763 | DE28: 79.999723 | DF28: 75.532065 | DG28: 81.315403 | DH28: 80.178534 | DI28: 83.056919 | DJ28: 87.657159 | DK28: 80.451457 | DL28: 82.102864 | DM28: 85.940497 | DN28: 85.970318 | DO28: 84.034055 | DP28: 85.644161 | DQ28: 86.028185 | DR28: 83.760867 | DS28: 83.959519 | DT28: 82.925032 | DU28: 87.117127 | DV28: 84.817752 | DW28: 86.14656 | DX28: 81.802109 | DY28: 82.171253 | DZ28: 83.519457 | EA28: 79.764783 | EB28: 86.329674 | EC28: 78.678063 | ED28: 83.874372 | EE28: 86.626391 | EF28: 79.082287 | EG28: 84.055409 | EH28: 84.478976 | EI28: 83.709771 | EJ28: 77.352138 | EK28: 83.909858 | EL28: 82.93189 | EM28: 80.798187 | EN28: 84.373832 | EO28: 83.512264 | EP28: 81.000264 | EQ28: 84.357213 | ER28: 75.965813 | ES28: 74.480663 | ET28: 80.109806 | EU28: 84.202221 | EV28: 85.059078 | EW28: 75.90154 | EX28: 83.144995 | EY28: 83.201914 | EZ28: 85.767853
A29: ccfp | B29: ccfp | C29: ccfp | D29: ccfp | E29: 83.171308 | F29: 76.679162 | G29: 91.191316 | H29: 81.37906936 | I29: 81.808669 | J29: 77.454251 | K29: 79.225807 | L29: 80.524352 | M29: 80.483671 | N29: 82.510802 | O29: 83.845888 | P29: 82.798317 | Q29: 77.307291 | R29: 80.138946 | S29: 80.872922 | T29: 84.206629 | U29: 76.679162 | V29: 77.404922 | W29: 79.632514 | X29: 85.039001 | Y29: 83.501253 | Z29: 80.407927 | AA29: 80.047186 | AB29: 84.531213 | AC29: 89.885274 | AD29: 80.646258 | AE29: 87.28268 | AF29: 83.195753 | AG29: 79.149678 | AH29: 80.492239 | AI29: 81.765709 | AJ29: 81.56903 | AK29: 79.606159 | AL29: 79.991141 | AM29: 82.481551 | AN29: 82.056896 | AO29: 76.916439 | AP29: 80.697718 | AQ29: 80.554163 | AR29: 81.73267 | AS29: 82.463287 | AT29: 82.728985 | AU29: 79.72301 | AV29: 83.166544 | AW29: 89.598938 | AX29: 86.079264 | AY29: 83.298147 | AZ29: 78.576799 | BA29: 78.655809 | BB29: 78.628184 | BC29: 81.263976 | BD29: 88.812182 | BE29: 82.006214 | BF29: 82.646324 | BG29: 79.414319 | BH29: 81.925288 | BI29: 81.90416 | BJ29: 84.255152 | BK29: 80.329853 | BL29: 83.494714 | BM29: 79.764887 | BN29: 81.945726 | BO29: 78.923454 | BP29: 78.547558 | BQ29: 77.854508 | BR29: 79.990779 | BS29: 82.290014 | BT29: 81.456347 | BU29: 82.681593 | BV29: 80.520972 | BW29: 83.421493 | BX29: 80.986334 | BY29: 80.206468 | BZ29: 85.129148 | CA29: 78.073403 | CB29: 79.435198 | CC29: 78.504502 | CD29: 91.191316 | CE29: 81.593026 | CF29: 81.325283 | CG29: 79.166537 | CH29: 83.5035 | CI29: 81.360051 | CJ29: 79.691924 | CK29: 80.49031 | CL29: 83.174484 | CM29: 79.600755 | CN29: 78.363812 | CO29: 84.534093 | CP29: 78.293479 | CQ29: 77.153365 | CR29: 81.934532 | CS29: 82.267823 | CT29: 77.938415 | CU29: 81.559291 | CV29: 81.926543 | CW29: 78.75256 | CX29: 89.225443 | CY29: 89.823899 | CZ29: 83.766084 | DA29: 80.506725 | DB29: 82.572512 | DC29: 79.79175 | DD29: 78.312949 | DE29: 79.454835 | DF29: 77.811916 | DG29: 84.501655 | DH29: 79.80863 | DI29: 83.070558 | DJ29: 87.372902 | DK29: 81.454133 | DL29: 81.102375 | DM29: 85.199999 | DN29: 84.46158 | DO29: 78.596973 | DP29: 85.951912 | DQ29: 84.053693 | DR29: 81.120102 | DS29: 80.831092 | DT29: 79.87359 | DU29: 83.061326 | DV29: 82.858238 | DW29: 83.776575 | DX29: 79.02923 | DY29: 79.410348 | DZ29: 79.298266 | EA29: 80.464383 | EB29: 80.483319 | EC29: 79.48677 | ED29: 82.270769 | EE29: 82.397736 | EF29: 79.934201 | EG29: 82.097933 | EH29: 80.269674 | EI29: 80.386183 | EJ29: 79.302289 | EK29: 79.751855 | EL29: 81.49778 | EM29: 80.132941 | EN29: 80.416307 | EO29: 81.123606 | EP29: 79.590912 | EQ29: 79.185233 | ER29: 77.585169 | ES29: 78.49062 | ET29: 78.608174 | EU29: 82.426912 | EV29: 79.906067 | EW29: 78.803349 | EX29: 81.182159 | EY29: 80.322198 | EZ29: 82.917723
A30: Overall | B30: Overall | C30: Overall | D30: Overall | E30: 78.99705942 | F30: 70.43455329 | G30: =MAX(I30:EZ30) -> 89.19102127 | H30: =AVERAGE(H8,H12,H16,H21,H29) -> 77.19238691 | I30: No data | J30: 70.43455329 | K30: 73.43696516 | L30: 78.83656498 | M30: 75.47023808 | N30: 78.54353691 | O30: 78.99983806 | P30: 78.98848216 | Q30: 73.22013408 | R30: 76.26788984 | S30: 75.59868722 | T30: No data | U30: 71.24407684 | V30: 72.2194839 | W30: 76.13785248 | X30: 80.81813423 | Y30: 79.26318969 | Z30: 72.51268839 | AA30: No data | AB30: No data | AC30: 84.65986506 | AD30: 75.64022206 | AE30: 85.44623693 | AF30: 78.34600962 | AG30: 74.5637563 | AH30: No data | AI30: 78.29394244 | AJ30: 78.69896069 | AK30: 78.10866309 | AL30: 74.49420824 | AM30: 78.88100218 | AN30: No data | AO30: 72.69545194 | AP30: No data | AQ30: 76.0824969 | AR30: 77.32560759 | AS30: 79.75988126 | AT30: 79.61827499 | AU30: 76.38443198 | AV30: 76.8249781 | AW30: 89.19102127 | AX30: 85.35784176 | AY30: 80.04312253 | AZ30: 72.92677545 | BA30: 75.4448335 | BB30: 74.94468238 | BC30: 78.67600353 | BD30: No data | BE30: No data | BF30: No data | BG30: 76.08833592 | BH30: 77.57293009 | BI30: No data | BJ30: No data | BK30: 77.54673473 | BL30: 79.18957008 | BM30: 75.34838257 | BN30: 78.89070805 | BO30: 77.16512611 | BP30: 73.03992233 | BQ30: 72.38769406 | BR30: 76.11762266 | BS30: No data | BT30: 76.43015618 | BU30: 77.96496712 | BV30: 75.1125657 | BW30: No data | BX30: 76.2085789 | BY30: 75.03459976 | BZ30: No data | CA30: No data | CB30: No data | CC30: 77.17278979 | CD30: 87.20974235 | CE30: 77.07971436 | CF30: 80.14318414 | CG30: 75.48654211 | CH30: 77.28856668 | CI30: No data | CJ30: 77.25595682 | CK30: 77.48549941 | CL30: No data | CM30: 73.39662913 | CN30: 75.70822262 | CO30: 80.78469749 | CP30: 74.97240821 | CQ30: No data | CR30: 79.95260529 | CS30: 75.93513628 | CT30: 74.25794335 | CU30: 77.77503719 | CV30: 77.00705485 | CW30: 74.01315155 | CX30: 88.06334967 | CY30: 87.99488556 | CZ30: 84.04302392 | DA30: 76.91027686 | DB30: No data | DC30: 74.79355976 | DD30: 70.65129898 | DE30: 76.90810327 | DF30: 72.42457708 | DG30: 80.87449128 | DH30: 76.00943583 | DI30: 76.58262416 | DJ30: 84.49344418 | DK30: 77.28458444 | DL30: 77.14112722 | DM30: 81.84018601 | DN30: 82.34056331 | DO30: 75.80651904 | DP30: 81.88081691 | DQ30: No data | DR30: 78.99705942 | DS30: 75.95445943 | DT30: 74.6210204 | DU30: 80.41640205 | DV30: 78.62239133 | DW30: 78.23465925 | DX30: 75.01562237 | DY30: No data | DZ30: 77.72739854 | EA30: 75.08917705 | EB30: No data | EC30: 72.8417618 | ED30: 77.11885421 | EE30: No data | EF30: 74.76474541 | EG30: 76.10212381 | EH30: 73.39836549 | EI30: 74.42485043 | EJ30: 75.97537165 | EK30: 73.89737235 | EL30: No data | EM30: 77.27427661 | EN30: 76.11817277 | EO30: 75.85226521 | EP30: 72.61952111 | EQ30: 75.82209136 | ER30: No data | ES30: 73.11135013 | ET30: 74.10481042 | EU30: 78.16771414 | EV30: 74.49973191 | EW30: 74.86963155 | EX30: 76.2700189 | EY30: 76.37808823 | EZ30: 78.67432353

Sheet IP1819 (hidden)
H3: England average | I3: Manchester University NHS Foundation Trust | J3: Isle of Wight NHS Trust | K3: Barts Health NHS Trust | L3: London North West University Healthcare NHS Trust | M3: Royal Surrey County Hospital NHS Foundation Trust | N3: Weston Area Health NHS Trust | O3: Yeovil District Hospital NHS Foundation Trust | P3: University Hospitals Bristol NHS Foundation Trust | Q3: Torbay and South Devon NHS Foundation Trust | R3: Bradford Teaching Hospitals NHS Foundation Trust | S3: Southend University Hospital NHS Foundation Trust | T3: Royal Free London NHS Foundation Trust | U3: Royal National Orthopaedic Hospital NHS Trust | V3: North Middlesex University Hospital NHS Trust | W3: The Hillingdon Hospitals NHS Foundation Trust | X3: Kingston Hospital NHS Foundation Trust | Y3: Taunton and Somerset NHS Foundation Trust | Z3: Dorset County Hospital NHS Foundation Trust | AA3: Walsall Healthcare NHS Trust | AB3: Wirral University Teaching Hospital NHS Foundation Trust | AC3: St Helens and Knowsley Teaching Hospitals NHS Trust | AD3: Liverpool Heart and Chest Hospital NHS Foundation Trust | AE3: Mid Cheshire Hospitals NHS Foundation Trust | AF3: The Christie NHS Foundation Trust | AG3: Northern Devon Healthcare NHS Trust | AH3: Bedford Hospital NHS Trust | AI3: Luton and Dunstable University Hospital NHS Foundation Trust | AJ3: York Teaching Hospital NHS Foundation Trust | AK3: Harrogate and District NHS Foundation Trust | AL3: Airedale NHS Foundation Trust | AM3: The Queen Elizabeth Hospital, King's Lynn, NHS Foundation Trust | AN3: Royal United Hospitals Bath NHS Foundation Trust | AO3: Poole Hospital NHS Foundation Trust | AP3: Milton Keynes University Hospital NHS Foundation Trust | AQ3: Basildon and Thurrock University Hospitals NHS Foundation Trust | AR3: East Suffolk and North Essex NHS Foundation Trust | AS3: Frimley Health NHS Foundation Trust | AT3: The Royal Bournemouth and Christchurch Hospitals NHS Foundation Trust | AU3: South Tyneside NHS Foundation Trust | AV3: Royal Cornwall Hospitals NHS Trust | AW3: Aintree University Hospital NHS Foundation Trust | AX3: The Clatterbridge Cancer Centre NHS Foundation Trust | AY3: Liverpool Women's NHS Foundation Trust | AZ3: Barking, Havering and Redbridge University Hospitals NHS Trust | BA3: Barnsley Hospital NHS Foundation Trust | BB3: The Rotherham NHS Foundation Trust | BC3: Chesterfield Royal Hospital NHS Foundation Trust | BD3: Royal Papworth Hospital NHS Foundation Trust | BE3: North West Anglia NHS Foundation Trust | BF3: James Paget University Hospitals NHS Foundation Trust | BG3: West Suffolk NHS Foundation Trust | BH3: Cambridge University Hospitals NHS Foundation Trust | BI3: Royal Devon and Exeter NHS Foundation Trust | BJ3: University Hospital Southampton NHS Foundation Trust | BK3: Sheffield Teaching Hospitals NHS Foundation Trust | BL3: Portsmouth Hospitals NHS Trust | BM3: Royal Berkshire NHS Foundation Trust | BN3: Guy's and St Thomas' NHS Foundation Trust | BO3: Lewisham and Greenwich NHS Trust | BP3: Croydon Health Services NHS Trust | BQ3: St George's University Hospitals NHS Foundation Trust | BR3: South Warwickshire NHS Foundation Trust | BS3: University Hospitals of North Midlands NHS Trust | BT3: Burton Hospitals NHS Foundation Trust | BU3: Northern Lincolnshire and Goole NHS Foundation Trust | BV3: East Cheshire NHS Trust | BW3: Countess of Chester Hospital NHS Foundation Trust | BX3: King's College Hospital NHS Foundation Trust | BY3: Sherwood Forest Hospitals NHS Foundation Trust | BZ3: University Hospitals Plymouth NHS Trust | CA3: University Hospitals Coventry and Warwickshire NHS Trust | CB3: Whittington Health NHS Trust | CC3: The Robert Jones and Agnes Hunt Orthopaedic Hospital NHS Foundation Trust | CD3: The Royal Wolverhampton NHS Trust | CE3: City Hospitals Sunderland NHS Foundation Trust | CF3: Wye Valley NHS Trust | CG3: George Eliot Hospital NHS Trust | CH3: Norfolk and Norwich University Hospitals NHS Foundation Trust | CI3: Salford Royal NHS Foundation Trust | CJ3: Bolton NHS Foundation Trust | CK3: Tameside and Glossop Integrated Care NHS Foundation Trust | CL3: Great Western Hospitals NHS Foundation Trust | CM3: Hampshire Hospitals NHS Foundation Trust | CN3: Dartford and Gravesham NHS Trust | CO3: The Dudley Group NHS Foundation Trust | CP3: North Cumbria University Hospitals NHS Trust | CQ3: Kettering General Hospital NHS Foundation Trust | CR3: Northampton General Hospital NHS Trust | CS3: Salisbury NHS Foundation Trust | CT3: Doncaster and Bassetlaw Teaching Hospitals NHS Foundation Trust | CU3: Medway NHS Foundation Trust | CV3: Queen Victoria Hospital NHS Foundation Trust | CW3: The Royal Marsden NHS Foundation Trust | CX3: Birmingham Women's and Children's NHS Foundation Trust | CY3: Royal Liverpool and Broadgreen University Hospitals NHS Trust | CZ3: Mid Essex Hospital Services NHS Trust | DA3: Chelsea and Westminster Hospital NHS Foundation Trust | DB3: The Princess Alexandra Hospital NHS Trust | DC3: Homerton University Hospital NHS Foundation Trust | DD3: Gateshead Health NHS Foundation Trust | DE3: Leeds Teaching Hospitals NHS Trust | DF3: Wrightington, Wigan and Leigh NHS Foundation Trust | DG3: The Royal Orthopaedic Hospital NHS Foundation Trust | DH3: University Hospitals Birmingham NHS Foundation Trust | DI3: University College London Hospitals NHS Foundation Trust | DJ3: Royal Brompton & Harefield NHS Foundation Trust | DK3: The Newcastle Upon Tyne Hospitals NHS Foundation Trust | DL3: Gloucestershire Hospitals NHS Foundation Trust | DM3: Northumbria Healthcare NHS Foundation Trust | DN3: Derby Teaching Hospitals NHS Foundation Trust | DO3: Oxford University Hospitals NHS Foundation Trust | DP3: Ashford and St Peter's Hospitals NHS Foundation Trust | DQ3: Surrey and Sussex Healthcare NHS Trust | DR3: South Tees Hospitals NHS Foundation Trust | DS3: University Hospitals of Morecambe Bay NHS Foundation Trust | DT3: North Bristol NHS Trust | DU3: Epsom and St Helier University Hospitals NHS Trust | DV3: East Kent Hospitals University NHS Foundation Trust | DW3: North Tees and Hartlepool NHS Foundation Trust | DX3: Southport and Ormskirk Hospital NHS Trust | DY3: Pennine Acute Hospitals NHS Trust | DZ3: Hull and East Yorkshire Hospitals NHS Trust | EA3: United Lincolnshire Hospitals NHS Trust | EB3: University Hospitals of Leicester NHS Trust | EC3: Maidstone and Tunbridge Wells NHS Trust | ED3: West Hertfordshire Hospitals NHS Trust | EE3: East and North Hertfordshire NHS Trust | EF3: Stockport NHS Foundation Trust | EG3: Worcestershire Acute Hospitals NHS Trust | EH3: Warrington and Halton Hospitals NHS Foundation Trust | EI3: Calderdale and Huddersfield NHS Foundation Trust | EJ3: Nottingham University Hospitals NHS Trust | EK3: East Sussex Healthcare NHS Trust | EL3: Mid Yorkshire Hospitals NHS Trust | EM3: Brighton and Sussex University Hospitals NHS Trust | EN3: Sandwell and West Birmingham Hospitals NHS Trust | EO3: Blackpool Teaching Hospitals NHS Foundation Trust | EP3: Lancashire Teaching Hospitals NHS Foundation Trust | EQ3: County Durham and Darlington NHS Foundation Trust | ER3: Buckinghamshire Healthcare NHS Trust | ES3: East Lancashire Hospitals NHS Trust | ET3: Shrewsbury and Telford Hospital NHS Trust | EU3: Imperial College Healthcare NHS Trust | EV3: Western Sussex Hospitals NHS Foundation Trust
B4: Qnumber | D4: question | E4: 80th percentile | F4: Min | G4: Max | H4: ENG | I4: R0A | J4: R1F | K4: R1H | L4: R1K | M4: RA2 | N4: RA3 | O4: RA4 | P4: RA7 | Q4: RA9 | R4: RAE | S4: RAJ | T4: RAL | U4: RAN | V4: RAP | W4: RAS | X4: RAX | Y4: RBA | Z4: RBD | AA4: RBK | AB4: RBL | AC4: RBN | AD4: RBQ | AE4: RBT | AF4: RBV | AG4: RBZ | AH4: RC1 | AI4: RC9 | AJ4: RCB | AK4: RCD | AL4: RCF | AM4: RCX | AN4: RD1 | AO4: RD3 | AP4: RD8 | AQ4: RDD | AR4: RDE | AS4: RDU | AT4: RDZ | AU4: RE9 | AV4: REF | AW4: REM | AX4: REN | AY4: REP | AZ4: RF4 | BA4: RFF | BB4: RFR | BC4: RFS | BD4: RGM | BE4: RGN | BF4: RGP | BG4: RGR | BH4: RGT | BI4: RH8 | BJ4: RHM | BK4: RHQ | BL4: RHU | BM4: RHW | BN4: RJ1 | BO4: RJ2 | BP4: RJ6 | BQ4: RJ7 | BR4: RJC | BS4: RJE | BT4: RJF | BU4: RJL | BV4: RJN | BW4: RJR | BX4: RJZ | BY4: RK5 | BZ4: RK9 | CA4: RKB | CB4: RKE | CC4: RL1 | CD4: RL4 | CE4: RLN | CF4: RLQ | CG4: RLT | CH4: RM1 | CI4: RM3 | CJ4: RMC | CK4: RMP | CL4: RN3 | CM4: RN5 | CN4: RN7 | CO4: RNA | CP4: RNL | CQ4: RNQ | CR4: RNS | CS4: RNZ | CT4: RP5 | CU4: RPA | CV4: RPC | CW4: RPY | CX4: RQ3 | CY4: RQ6 | CZ4: RQ8 | DA4: RQM | DB4: RQW | DC4: RQX | DD4: RR7 | DE4: RR8 | DF4: RRF | DG4: RRJ | DH4: RRK | DI4: RRV | DJ4: RT3 | DK4: RTD | DL4: RTE | DM4: RTF | DN4: RTG | DO4: RTH | DP4: RTK | DQ4: RTP | DR4: RTR | DS4: RTX | DT4: RVJ | DU4: RVR | DV4: RVV | DW4: RVW | DX4: RVY | DY4: RW6 | DZ4: RWA | EA4: RWD | EB4: RWE | EC4: RWF | ED4: RWG | EE4: RWH | EF4: RWJ | EG4: RWP | EH4: RWW | EI4: RWY | EJ4: RX1 | EK4: RXC | EL4: RXF | EM4: RXH | EN4: RXK | EO4: RXL | EP4: RXN | EQ4: RXP | ER4: RXQ | ES4: RXR | ET4: RXW | EU4: RYJ | EV4: RYR
A5: aw1 | B5: q7 | C5: aw | D5: Question 7: Was your admission date changed by the hospital? | E5: =PERCENTILE(I5:EV5,0.8) -> 93.19555663 | F5: =MIN(I5:EV5) -> 83.1666651 | G5: =MAX(I5:EV5) -> 98.93283235 | H5: =AVERAGE(I5:EV5) -> 91.25564513 | I5: 92.06848661 | J5: 86.94368219 | K5: 91.49315332 | L5: 87.42431934 | M5: 94.17599249 | N5: 90.63312927 | O5: 87.27466107 | P5: 89.830756 | Q5: 93.75477035 | R5: 89.34990768 | S5: 91.3594659 | T5: 91.96895916 | U5: 90.90612659 | V5: 83.1666651 | W5: 91.81221374 | X5: 91.09409957 | Y5: 93.08959428 | Z5: 92.51707122 | AA5: 94.17967518 | AB5: 90.97557377 | AC5: 92.39565847 | AD5: 92.49039902 | AE5: 88.33844682 | AF5: 96.67088426 | AG5: 91.73696428 | AH5: 91.57784353 | AI5: 90.65726903 | AJ5: 92.02432331 | AK5: 92.78851966 | AL5: 91.94231252 | AM5: 87.64688983 | AN5: 90.31668032 | AO5: 92.95638706 | AP5: 93.35763127 | AQ5: 89.80737337 | AR5: 90.99981385 | AS5: 94.13279549 | AT5: 92.75184587 | AU5: 93.87157224 | AV5: 93.71448364 | AW5: 92.75201802 | AX5: 98.93283235 | AY5: 94.36860833 | AZ5: 88.82808617 | BA5: 93.35048953 | BB5: 93.02943024 | BC5: 88.78181603 | BD5: 93.24036733 | BE5: 91.04282193 | BF5: 93.15442637 | BG5: 93.2229768 | BH5: 91.18118327 | BI5: 93.86593174 | BJ5: 91.89025537 | BK5: 92.08346985 | BL5: 91.31492647 | BM5: 92.05739636 | BN5: 92.77263982 | BO5: 90.99453075 | BP5: 92.91305046 | BQ5: 89.57927983 | BR5: 91.14344961 | BS5: 89.33985333 | BT5: 93.33664673 | BU5: 89.20667329 | BV5: 91.74098533 | BW5: 85.46164897 | BX5: 85.32668881 | BY5: 91.28189895 | BZ5: 83.38889378 | CA5: 93.06463426 | CB5: 87.38535241 | CC5: 92.59413523 | CD5: 93.48387974 | CE5: No data | CF5: 90.93370844 | CG5: 92.70456967 | CH5: 92.17176148 | CI5: 92.78701507 | CJ5: 87.28993171 | CK5: 89.65912473 | CL5: 92.75472275 | CM5: 93.59346586 | CN5: 91.09931036 | CO5: 95.33350206 | CP5: 89.03104673 | CQ5: 94.96858008 | CR5: 87.97247369 | CS5: 92.52641645 | CT5: 94.28226837 | CU5: 91.17779595 | CV5: 93.86742482 | CW5: 94.98763602 | CX5: 92.50193549 | CY5: 91.93077818 | CZ5: 84.92166064 | DA5: 86.81347102 | DB5: 93.63592222 | DC5: 88.08656217 | DD5: 90.50932037 | DE5: 92.65651675 | DF5: 92.18770592 | DG5: 92.60145291 | DH5: 87.81919725 | DI5: 93.69729268 | DJ5: 93.36761079 | DK5: 93.78050579 | DL5: 94.25663525 | DM5: 92.85897216 | DN5: 94.12406963 | DO5: 88.02708443 | DP5: 91.41913598 | DQ5: 92.55589895 | DR5: 91.53622906 | DS5: 91.25250491 | DT5: 87.94712097 | DU5: 88.44878299 | DV5: 91.60581638 | DW5: 92.43008211 | DX5: 91.81554393 | DY5: 90.28262787 | DZ5: 90.23205342 | EA5: 89.94297918 | EB5: 90.32783578 | EC5: 91.49779393 | ED5: 88.66690721 | EE5: 90.64197789 | EF5: 92.36465274 | EG5: 90.54518144 | EH5: 89.92721768 | EI5: 91.44179565 | EJ5: 91.19194299 | EK5: 92.01816976 | EL5: 93.88253368 | EM5: 91.65037245 | EN5: 90.125142 | EO5: 90.12396449 | EP5: 88.55163027 | EQ5: 87.78752711 | ER5: 93.01713991 | ES5: 90.81002042 | ET5: 91.27267562 | EU5: 85.04851862 | EV5: 87.97035548
A6: aw2 | B6: q6 | C6: aw | D6: Question 6: How do you feel about the length of time you were on the waiting list before your admission to hospital? | E6: 85.02624026 | F6: 61.44226718 | G6: 96.97448499 | H6: =AVERAGE(I6:EV6) -> 80.13325728 | I6: 83.22499269 | J6: 67.27087923 | K6: 82.28297483 | L6: 77.17232168 | M6: 88.53583708 | N6: 67.3738397 | O6: 78.45375332 | P6: 84.42978916 | Q6: 73.48170199 | R6: 72.36790026 | S6: 72.59731896 | T6: 79.5392039 | U6: 81.26025006 | V6: 76.48085557 | W6: 80.92481523 | X6: 72.6555945 | Y6: 81.69985212 | Z6: 80.4829325 | AA6: 84.36051699 | AB6: 70.53375068 | AC6: 83.73435115 | AD6: 90.219065 | AE6: 79.50817416 | AF6: 93.9055536 | AG6: 76.59735045 | AH6: 77.10482889 | AI6: 73.59105407 | AJ6: 81.86177485 | AK6: 82.76535333 | AL6: 87.5206748 | AM6: 70.56116771 | AN6: 80.56986634 | AO6: 81.06578481 | AP6: 72.63710143 | AQ6: 76.26075155 | AR6: 80.13572969 | AS6: 81.19428808 | AT6: 86.20256247 | AU6: 82.66753376 | AV6: 71.06563952 | AW6: 89.43424031 | AX6: 96.97448499 | AY6: 88.32459017 | AZ6: 77.58520038 | BA6: 82.08451227 | BB6: 83.93043772 | BC6: 79.70709815 | BD6: 88.20674189 | BE6: 82.767504 | BF6: 61.44226718 | BG6: 87.33216261 | BH6: 87.07738718 | BI6: 77.71350156 | BJ6: 84.82889936 | BK6: 88.77310681 | BL6: 82.8386523 | BM6: 82.53221891 | BN6: 83.99463526 | BO6: 70.54661491 | BP6: 79.55650526 | BQ6: 85.03469538 | BR6: 86.0249282 | BS6: 86.7586291 | BT6: 83.61973278 | BU6: 71.64287269 | BV6: 68.46757852 | BW6: 72.58199933 | BX6: 74.29278965 | BY6: 84.6795196 | BZ6: 71.87368675 | CA6: 76.0331079 | CB6: 82.00965058 | CC6: 87.26933418 | CD6: 83.2384229 | CE6: No data | CF6: 72.03301733 | CG6: 62.10625172 | CH6: 80.86390333 | CI6: 82.87045927 | CJ6: 77.71385586 | CK6: 75.1612009 | CL6: 81.19091695 | CM6: 85.01355759 | CN6: 72.24461026 | CO6: 86.12812197 | CP6: 79.9907176 | CQ6: 77.01675155 | CR6: 82.76910486 | CS6: 82.53325276 | CT6: 81.65789182 | CU6: 83.79324079 | CV6: 88.70063287 | CW6: 94.39900477 | CX6: 78.10530343 | CY6: 81.65753906 | CZ6: 79.2701558 | DA6: 77.69436079 | DB6: 79.00999238 | DC6: 76.90202753 | DD6: 90.98281858 | DE6: 79.88891603 | DF6: 87.86865555 | DG6: 85.09815516 | DH6: 76.75400181 | DI6: 87.91245448 | DJ6: 87.340462 | DK6: 84.42405065 | DL6: 81.82951573 | DM6: 90.10922465 | DN6: 85.05142165 | DO6: 83.82208153 | DP6: 74.93966845 | DQ6: 85.53747924 | DR6: 85.66614352 | DS6: 81.23160853 | DT6: 76.43468703 | DU6: 83.84524326 | DV6: 73.56670768 | DW6: 84.79996053 | DX6: 69.18432142 | DY6: 73.00790525 | DZ6: 76.88045379 | EA6: 77.57477142 | EB6: 80.62434917 | EC6: 71.34622295 | ED6: 69.67584947 | EE6: 83.78237807 | EF6: 82.85893787 | EG6: 75.71968022 | EH6: 80.52209832 | EI6: 83.09195035 | EJ6: 82.44718555 | EK6: 83.25756014 | EL6: 80.0941155 | EM6: 87.3483044 | EN6: 72.3236035 | EO6: 76.06879406 | EP6: 77.29006455 | EQ6: 79.69855552 | ER6: 66.71041896 | ES6: 83.74354739 | ET6: 76.48707498 | EU6: 75.41599768 | EV6: 74.49712874
A7: aw3 | B7: q9 | C7: aw | D7: Question 9: From the time you arrived at the hospital, did you feel that you had to wait a long time to get to a bed on a ward? | E7: 80.553017 | F7: 59.13576574 | G7: 95.19977979 | H7: 75.39337085 | I7: 71.14960339 | J7: 64.36110495 | K7: 68.62327007 | L7: 68.56681285 | M7: 83.08468784 | N7: 80.95185079 | O7: 82.73012289 | P7: 80.8898328 | Q7: 79.18875526 | R7: 60.75447625 | S7: 77.61324973 | T7: 67.66459376 | U7: 92.45582105 | V7: 59.13576574 | W7: 66.35854559 | X7: 73.07924008 | Y7: 83.35776612 | Z7: 79.0459002 | AA7: 65.93568144 | AB7: 72.35732782 | AC7: 64.88225846 | AD7: 91.68788212 | AE7: 70.33117321 | AF7: 88.16302099 | AG7: 78.4757162 | AH7: 66.37956663 | AI7: 69.38969636 | AJ7: 77.37470573 | AK7: 82.04968912 | AL7: 79.64328467 | AM7: 74.98481159 | AN7: 77.92403035 | AO7: 83.70500567 | AP7: 69.31620486 | AQ7: 79.90433216 | AR7: 77.9765216 | AS7: 75.86121806 | AT7: 89.69398553 | AU7: 76.9951833 | AV7: 72.43462278 | AW7: 71.53030737 | AX7: 89.20243862 | AY7: 81.54832004 | AZ7: 68.4265233 | BA7: 75.84812061 | BB7: 72.58095328 | BC7: 76.24934424 | BD7: 95.19977979 | BE7: 78.42328657 | BF7: 81.66554606 | BG7: 77.17333403 | BH7: 79.17263155 | BI7: 81.96149403 | BJ7: 79.27462714 | BK7: 76.76415933 | BL7: 78.43039518 | BM7: 80.57555728 | BN7: 80.75239283 | BO7: 67.63309117 | BP7: 62.01617435 | BQ7: 74.09562532 | BR7: 75.21384603 | BS7: 76.80930295 | BT7: 77.81780913 | BU7: 71.90487004 | BV7: 79.4462551 | BW7: 71.19986131 | BX7: 74.27992394 | BY7: 80.90866527 | BZ7: 70.2864836 | CA7: 71.28668924 | CB7: 76.53841483 | CC7: 90.76906721 | CD7: 79.18463099 | CE7: 74.83431193 | CF7: 69.12587683 | CG7: 77.00338625 | CH7: 76.8191088 | CI7: 76.68604978 | CJ7: 75.81764584 | CK7: 69.28307603 | CL7: 68.92374638 | CM7: 78.76909431 | CN7: 73.46410906 | CO7: 65.57317603 | CP7: 74.81117392 | CQ7: 75.31474677 | CR7: 75.8664612 | CS7: 81.49410083 | CT7: 74.16700607 | CU7: 61.16905925 | CV7: 91.53196429 | CW7: 89.40300511 | CX7: 81.82236896 | CY7: 71.13022996 | CZ7: 75.03891511 | DA7: 77.56213264 | DB7: 67.74139113 | DC7: 76.70238619 | DD7: 74.0157909 | DE7: 65.98184841 | DF7: 73.91650085 | DG7: 85.73574878 | DH7: 71.93669673 | DI7: 74.40374816 | DJ7: 91.84418422 | DK7: 80.53799015 | DL7: 76.53284385 | DM7: 79.78375332 | DN7: 76.94204212 | DO7: 79.54312023 | DP7: 70.68667821 | DQ7: 78.0367277 | DR7: 83.84691153 | DS7: 77.33553646 | DT7: 82.30273351 | DU7: 73.26361062 | DV7: 67.89756145 | DW7: 76.17121447 | DX7: 64.13958024 | DY7: 67.6562166 | DZ7: 79.2174763 | EA7: 66.21674773 | EB7: 75.57051558 | EC7: 75.52621815 | ED7: 70.94442561 | EE7: 69.39932347 | EF7: 71.74158439 | EG7: 64.16401666 | EH7: 67.54840454 | EI7: 75.83877858 | EJ7: 75.04816186 | EK7: 77.75244688 | EL7: 65.67253007 | EM7: 76.14442727 | EN7: 72.69124033 | EO7: 62.85135803 | EP7: 71.55614982 | EQ7: 74.40942054 | ER7: 73.19252008 | ES7: 67.05424413 | ET7: 67.17944892 | EU7: 72.93383985 | EV7: 82.77932234
A8: aw | B8: aw | C8: aw | D8: aw | E8: 85.35863939 | F8: 72.85855546 | G8: 95.03658532 | H8: 82.26206092 | I8: 82.14769423 | J8: 72.85855546 | K8: 80.79979941 | L8: 77.72115129 | M8: 88.59883914 | N8: 79.65293992 | O8: 82.81951243 | P8: 85.05012599 | Q8: 82.14174253 | R8: 74.15742806 | S8: 80.52334486 | T8: 79.72425227 | U8: 88.20739923 | V8: 72.92776214 | W8: 79.69852485 | X8: 78.94297805 | Y8: 86.04907084 | Z8: 84.01530131 | AA8: 81.49195787 | AB8: 77.95555076 | AC8: 80.3374227 | AD8: 91.46578204 | AE8: 79.39259806 | AF8: 92.91315295 | AG8: 82.27001031 | AH8: 78.35407969 | AI8: 77.87933982 | AJ8: 83.7536013 | AK8: 85.86785404 | AL8: 86.36875733 | AM8: 77.73095638 | AN8: 82.936859 | AO8: 85.90905918 | AP8: 78.43697919 | AQ8: 81.99081903 | AR8: 83.03735505 | AS8: 83.72943388 | AT8: 89.54946462 | AU8: 84.51142977 | AV8: 79.07158198 | AW8: 84.57218857 | AX8: 95.03658532 | AY8: 88.08050618 | AZ8: 78.27993662 | BA8: 83.7610408 | BB8: 83.18027375 | BC8: 81.57941947 | BD8: 92.21562967 | BE8: 84.07787083 | BF8: 78.75407987 | BG8: 85.90949115 | BH8: 85.81040067 | BI8: 84.51364244 | BJ8: 85.33126062 | BK8: 85.87357867 | BL8: 84.19465799 | BM8: 85.05505752 | BN8: 85.8398893 | BO8: 76.39141228 | BP8: 78.16191002 | BQ8: 82.90320018 | BR8: 84.12740794 | BS8: 84.30259513 | BT8: 84.92472955 | BU8: 77.58480534 | BV8: 79.88493965 | BW8: 76.4145032 | BX8: 77.96646747 | BY8: 85.62336128 | BZ8: 75.18302137 | CA8: 80.1281438 | CB8: 81.97780594 | CC8: 90.21084554 | CD8: 85.30231121 | CE8: No data | CF8: 77.36420087 | CG8: 77.27140255 | CH8: 83.28492454 | CI8: 84.11450804 | CJ8: 80.27381114 | CK8: 78.03446722 | CL8: 80.95646203 | CM8: 85.79203926 | CN8: 78.93600989 | CO8: 82.34493335 | CP8: 81.27764608 | CQ8: 82.43335947 | CR8: 82.20267992 | CS8: 85.51792334 | CT8: 83.36905542 | CU8: 78.71336533 | CV8: 91.36667399 | CW8: 92.92988197 | CX8: 84.14320263 | CY8: 81.57284907 | CZ8: 79.74357718 | DA8: 80.68998815 | DB8: 80.12910191 | DC8: 80.56365863 | DD8: 85.16930995 | DE8: 79.50909373 | DF8: 84.65762077 | DG8: 87.81178562 | DH8: 78.83663193 | DI8: 85.33783177 | DJ8: 90.85075234 | DK8: 86.24751553 | DL8: 84.20633161 | DM8: 87.58398337 | DN8: 85.37251113 | DO8: 83.79742873 | DP8: 79.01516088 | DQ8: 85.37670196 | DR8: 87.01642804 | DS8: 83.27321664 | DT8: 82.2281805 | DU8: 81.85254563 | DV8: 77.6900285 | DW8: 84.4670857 | DX8: 75.04648186 | DY8: 76.98224991 | DZ8: 82.1099945 | EA8: 77.91149944 | EB8: 82.17423351 | EC8: 79.45674501 | ED8: 76.42906076 | EE8: 81.27455981 | EF8: 82.321725 | EG8: 76.80962611 | EH8: 79.33257351 | EI8: 83.45750819 | EJ8: 82.89576347 | EK8: 84.34272559 | EL8: 79.88305975 | EM8: 85.04770137 | EN8: 78.37999528 | EO8: 76.34803886 | EP8: 79.13261488 | EQ8: 80.63183439 | ER8: 77.64002632 | ES8: 80.53593732 | ET8: 78.31306651 | EU8: 77.79945205 | EV8: 81.74893552
A9: shqcc1 | B9: q33 | C9: shqcc | D9: Question 33: Sometimes, a member of staff will say one thing and another will say something quite different. Did this happen to you? | E9: 82.76945742 | F9: 69.176834 | G9: 92.6173363 | H9: 80.54275772 | I9: 80.54779885 | J9: 75.49785427 | K9: 77.17759899 | L9: 75.5255418 | M9: 82.57079845 | N9: 78.91219236 | O9: 81.62975613 | P9: 83.34016207 | Q9: 82.39126364 | R9: 71.95610167 | S9: 78.29900043 | T9: 78.05000351 | U9: 81.42830593 | V9: 72.73396334 | W9: 78.46434821 | X9: 82.21117628 | Y9: 82.52959732 | Z9: 84.0864665 | AA9: 77.62718368 | AB9: 82.18900668 | AC9: 79.49214185 | AD9: 88.39249986 | AE9: 81.44044878 | AF9: 87.55307182 | AG9: 79.28013405 | AH9: 77.03133003 | AI9: 76.80079453 | AJ9: 80.39848351 | AK9: 81.5509904 | AL9: 78.74182297 | AM9: 79.27392774 | AN9: 83.77740801 | AO9: 82.41500073 | AP9: 76.82740577 | AQ9: 80.9720689 | AR9: 79.22190764 | AS9: 81.41464028 | AT9: 82.77717882 | AU9: 81.8543784 | AV9: 82.57970116 | AW9: 82.2202015 | AX9: 84.3869711 | AY9: 86.69119385 | AZ9: 75.49314932 | BA9: 78.69333691 | BB9: 78.77905946 | BC9: 80.73436145 | BD9: 87.78305498 | BE9: 80.32206288 | BF9: 79.71623727 | BG9: 83.59207226 | BH9: 82.84032285 | BI9: 81.52493772 | BJ9: 80.23769795 | BK9: 79.70688893 | BL9: 78.55379732 | BM9: 82.97046097 | BN9: 80.69668313 | BO9: 79.00471159 | BP9: 77.55550474 | BQ9: 80.58356513 | BR9: 82.48728172 | BS9: 79.15470953 | BT9: 81.60127806 | BU9: 77.41869674 | BV9: 84.22484203 | BW9: 80.72217247 | BX9: 82.27309522 | BY9: 80.87154392 | BZ9: 76.22114494 | CA9: 79.0677442 | CB9: 81.11960692 | CC9: 88.92526132 | CD9: 81.1157267 | CE9: 83.51263125 | CF9: 81.28625683 | CG9: 80.45732551 | CH9: 82.00565104 | CI9: 83.60096445 | CJ9: 83.89679706 | CK9: 78.26536376 | CL9: 79.63202718 | CM9: 81.33299937 | CN9: 79.58505743 | CO9: 77.11295618 | CP9: 82.76430982 | CQ9: 77.32735142 | CR9: 78.51200743 | CS9: 83.50806486 | CT9: 81.65227169 | CU9: 76.16900541 | CV9: 92.6173363 | CW9: 87.98385477 | CX9: 69.176834 | CY9: 83.18288492 | CZ9: 76.02440374 | DA9: 79.34763552 | DB9: 78.03964606 | DC9: 80.53052788 | DD9: 80.74033589 | DE9: 80.86249045 | DF9: 79.04613124 | DG9: 80.66951703 | DH9: 76.66244277 | DI9: 82.86736046 | DJ9: 84.94600252 | DK9: 83.75150365 | DL9: 82.49043268 | DM9: 83.98927642 | DN9: 79.86687123 | DO9: 81.78835113 | DP9: 78.21728469 | DQ9: 81.8152776 | DR9: 83.06247736 | DS9: 82.73748531 | DT9: 78.99853779 | DU9: 82.82890509 | DV9: 80.25324214 | DW9: 79.3818055 | DX9: 81.02486385 | DY9: 76.91274456 | DZ9: 81.297833 | EA9: 77.35772397 | EB9: 77.43687765 | EC9: 79.90294833 | ED9: 78.30985067 | EE9: 78.8540106 | EF9: 82.2946522 | EG9: 77.74693447 | EH9: 79.45836835 | EI9: 81.05474517 | EJ9: 79.56440125 | EK9: 82.45166671 | EL9: 77.37982292 | EM9: 81.96881355 | EN9: 76.25150476 | EO9: 79.69506132 | EP9: 78.25840376 | EQ9: 82.81337408 | ER9: 80.42129656 | ES9: 77.53389121 | ET9: 79.29289766 | EU9: 78.93742489 | EV9: 83.1842751
A10: shqcc2 | B10: q50 | C10: shqcc | D10: Question 50: On the day you left hospital, was your discharge delayed for any reason? + Question 51: What was the main reason for the delay? | E10: 67.53283526 | F10: 50.2969001 | G10: 82.15233551 | H10: 63.62906683 | I10: 59.74741155 | J10: 61.05995678 | K10: 57.23144128 | L10: 57.8786956 | M10: 62.32032073 | N10: 67.50205883 | O10: 64.95831593 | P10: 65.14637159 | Q10: 72.77265836 | R10: 60.26732421 | S10: 63.32981799 | T10: 63.0062845 | U10: 66.17840125 | V10: 55.79880011 | W10: 60.87161365 | X10: 66.75449912 | Y10: 76.692432 | Z10: 67.34123361 | AA10: 56.64736407 | AB10: 65.95008429 | AC10: 66.42058975 | AD10: 61.38328553 | AE10: 51.09877419 | AF10: 60.80685028 | AG10: 66.04375075 | AH10: 59.3133439 | AI10: 55.19812639 | AJ10: 69.56298479 | AK10: 67.57899992 | AL10: 62.35368778 | AM10: 57.81506808 | AN10: 64.91718976 | AO10: 66.29738165 | AP10: 56.49153928 | AQ10: 62.10924446 | AR10: 65.21934316 | AS10: 62.01354227 | AT10: 70.83887177 | AU10: 68.39815404 | AV10: 69.62815542 | AW10: 68.65309444 | AX10: 61.38222061 | AY10: 79.13454601 | AZ10: 55.435898 | BA10: 58.3399775 | BB10: 56.21956602 | BC10: 74.01613562 | BD10: 63.84824805 | BE10: 57.7783874 | BF10: 55.41361451 | BG10: 66.8638432 | BH10: 64.37189245 | BI10: 70.95631207 | BJ10: 52.22478088 | BK10: 56.49718064 | BL10: 55.88112796 | BM10: 60.12440423 | BN10: 63.261546 | BO10: 55.12581791 | BP10: 56.72665474 | BQ10: 57.74182069 | BR10: 57.83290584 | BS10: 60.09875997 | BT10: 66.46139885 | BU10: 66.43412388 | BV10: 64.5919041 | BW10: 64.02430994 | BX10: 62.32140496 | BY10: 64.97135652 | BZ10: 53.59136212 | CA10: 60.35330991 | CB10: 68.35651783 | CC10: 77.20600447 | CD10: 62.9390823 | CE10: 77.16106249 | CF10: 61.49785556 | CG10: 62.56308497 | CH10: 65.61867795 | CI10: 60.44263992 | CJ10: 59.78176318 | CK10: 66.94841141 | CL10: 58.84256166 | CM10: 66.05040658 | CN10: 64.51667304 | CO10: 57.66275276 | CP10: 75.87958823 | CQ10: 66.93763576 | CR10: 63.26314447 | CS10: 69.79953913 | CT10: 66.48960664 | CU10: 52.44906727 | CV10: 82.15233551 | CW10: 66.29423363 | CX10: 73.73078001 | CY10: 66.59322912 | CZ10: 61.16585375 | DA10: 59.6712992 | DB10: 58.81846554 | DC10: 59.4373735 | DD10: 67.43063116 | DE10: 62.24098614 | DF10: 66.71785657 | DG10: 72.61607046 | DH10: 56.33976779 | DI10: 60.0407917 | DJ10: 69.55126724 | DK10: 67.95794862 | DL10: 64.12341846 | DM10: 76.92244772 | DN10: 61.88871965 | DO10: 64.76915785 | DP10: 57.6633186 | DQ10: 66.89217871 | DR10: 70.2278236 | DS10: 66.37591177 | DT10: 58.68795965 | DU10: 68.24089366 | DV10: 61.12113696 | DW10: 67.16438595 | DX10: 63.17808236 | DY10: 60.29664137 | DZ10: 60.7752007 | EA10: 60.88770245 | EB10: 55.7713272 | EC10: 63.99538651 | ED10: 56.87035683 | EE10: 50.2969001 | EF10: 69.18802985 | EG10: 61.55704152 | EH10: 66.21273427 | EI10: 72.14842873 | EJ10: 61.09005188 | EK10: 73.21890554 | EL10: 60.32542928 | EM10: 69.92864228 | EN10: 62.33442752 | EO10: 65.29708937 | EP10: 61.03386263 | EQ10: 71.72634601 | ER10: 54.98482085 | ES10: 63.96979978 | ET10: 64.69436183 | EU10: 60.6227347 | EV10: 67.3171281
A11: shqcc3 | B11: q60 | C11: shqcc | D11: Question 60: Did a member of staff tell you about any danger signals you should watch for after you went home? | E11: 55.95916213 | F11: 39.75831703 | G11: 80.09702796 | H11: 53.09473414 | I11: 50.03370064 | J11: 45.05655926 | K11: 50.13580604 | L11: 45.94654493 | M11: 55.65423216 | N11: 54.35539279 | O11: 50.59717225 | P11: 53.25627882 | Q11: 55.28254625 | R11: 48.64639507 | S11: 42.79175433 | T11: 47.3354062 | U11: 58.14194291 | V11: 39.75831703 | W11: 47.12856175 | X11: 56.06421766 | Y11: 55.67247435 | Z11: 51.08384067 | AA11: 49.19723628 | AB11: 53.43408842 | AC11: 56.76084142 | AD11: 68.48928136 | AE11: 55.92382542 | AF11: 75.95513836 | AG11: 57.79038933 | AH11: 46.01065917 | AI11: 47.66096599 | AJ11: 51.2932267 | AK11: 62.22415336 | AL11: 52.71412013 | AM11: 52.49315562 | AN11: 51.53711932 | AO11: 49.80386286 | AP11: 51.52746734 | AQ11: 54.6951197 | AR11: 54.20668215 | AS11: 54.13327204 | AT11: 60.17251488 | AU11: 54.96109322 | AV11: 54.86216406 | AW11: 48.07357542 | AX11: 74.03329075 | AY11: 68.39532739 | AZ11: 46.61543723 | BA11: 50.61629194 | BB11: 48.65838791 | BC11: 48.17500934 | BD11: 62.31382076 | BE11: 48.63812766 | BF11: 47.95099955 | BG11: 54.21005975 | BH11: 54.98823726 | BI11: 52.51834724 | BJ11: 57.04399284 | BK11: 51.49439102 | BL11: 53.86179944 | BM11: 57.52043532 | BN11: 59.04746208 | BO11: 48.56677471 | BP11: 43.69640536 | BQ11: 54.80764836 | BR11: 54.64695763 | BS11: 51.73591286 | BT11: 49.58575524 | BU11: 46.34042712 | BV11: 51.50410584 | BW11: 52.41373962 | BX11: 50.47919284 | BY11: 54.73609305 | BZ11: 51.57065064 | CA11: 49.36816603 | CB11: 57.12835158 | CC11: 73.755034 | CD11: 54.43495659 | CE11: 55.50098893 | CF11: 54.93613357 | CG11: 50.58793262 | CH11: 52.63380752 | CI11: 53.84895188 | CJ11: 50.3276012 | CK11: 47.16355587 | CL11: 51.16140057 | CM11: 56.62107541 | CN11: 48.6848023 | CO11: 49.10829638 | CP11: 52.33320471 | CQ11: 55.14529303 | CR11: 50.88309674 | CS11: 57.01546213 | CT11: 51.57475994 | CU11: 47.60005205 | CV11: 73.60523662 | CW11: 79.81991772 | CX11: 52.97278399 | CY11: 56.11575288 | CZ11: 47.38986974 | DA11: 54.83913593 | DB11: 47.04780424 | DC11: 53.49278495 | DD11: 56.159864 | DE11: 58.33830801 | DF11: 47.21990683 | DG11: 80.09702796 | DH11: 54.13744848 | DI11: 53.56963434 | DJ11: 60.17439385 | DK11: 59.57373548 | DL11: 51.98419176 | DM11: 57.55035128 | DN11: 54.94507836 | DO11: 55.053077 | DP11: 44.95443766 | DQ11: 46.29466026 | DR11: 52.58722176 | DS11: 48.72056787 | DT11: 54.23331436 | DU11: 53.93790238 | DV11: 54.70985556 | DW11: 46.16394351 | DX11: 45.68770897 | DY11: 42.22879788 | DZ11: 53.58022606 | EA11: 48.36367414 | EB11: 50.37132445 | EC11: 49.84987971 | ED11: 47.75298046 | EE11: 50.22804469 | EF11: 51.49284588 | EG11: 46.97799053 | EH11: 55.82236088 | EI11: 53.10261911 | EJ11: 52.68119047 | EK11: 50.85849967 | EL11: 44.93289306 | EM11: 51.51187743 | EN11: 49.43901065 | EO11: 49.59736891 | EP11: 49.04751426 | EQ11: 60.4092405 | ER11: 49.63747569 | ES11: 49.94622297 | ET11: 48.06881846 | EU11: 45.51367759 | EV11: 56.0121672
A12: shqcc | B12: shqcc | C12: shqcc | D12: shqcc | E12: 68.36779537 | F12: 56.09702683 | G12: 82.79163614 | H12: 65.75551956 | I12: 63.44297035 | J12: 60.53812343 | K12: 61.51494877 | L12: 59.78359411 | M12: 66.84845045 | N12: 66.92321466 | O12: 65.72841477 | P12: 67.24760416 | Q12: 70.14882275 | R12: 60.28994031 | S12: 61.47352425 | T12: 62.7972314 | U12: 68.58288337 | V12: 56.09702683 | W12: 62.1548412 | X12: 68.34329769 | Y12: 71.63150122 | Z12: 67.50384693 | AA12: 61.15726134 | AB12: 67.1910598 | AC12: 67.55785767 | AD12: 72.75502225 | AE12: 62.82101613 | AF12: 74.77168682 | AG12: 67.70475805 | AH12: 60.78511104 | AI12: 59.88662897 | AJ12: 67.08489833 | AK12: 70.45138123 | AL12: 64.60321029 | AM12: 63.19405048 | AN12: 66.7439057 | AO12: 66.17208175 | AP12: 61.6154708 | AQ12: 65.92547769 | AR12: 66.21597765 | AS12: 65.8538182 | AT12: 71.26285515 | AU12: 68.40454189 | AV12: 69.02334021 | AW12: 66.31562378 | AX12: 73.26749415 | AY12: 78.07368908 | AZ12: 59.18149485 | BA12: 62.54986878 | BB12: 61.21900446 | BC12: 67.64183547 | BD12: 71.31504127 | BE12: 62.24619265 | BF12: 61.02695044 | BG12: 68.22199174 | BH12: 67.40015085 | BI12: 68.33319901 | BJ12: 63.16882389 | BK12: 62.56615353 | BL12: 62.7655749 | BM12: 66.87176684 | BN12: 67.66856374 | BO12: 60.8991014 | BP12: 59.32618828 | BQ12: 64.37767806 | BR12: 64.98904839 | BS12: 63.66312745 | BT12: 65.88281072 | BU12: 63.39774925 | BV12: 66.77361733 | BW12: 65.72007401 | BX12: 65.02456434 | BY12: 66.8596645 | BZ12: 60.46105257 | CA12: 62.92974005 | CB12: 68.86815878 | CC12: 79.96209993 | CD12: 66.1632552 | CE12: 72.05822756 | CF12: 65.90674865 | CG12: 64.53611436 | CH12: 66.75271217 | CI12: 65.96418542 | CJ12: 64.66872048 | CK12: 64.12577702 | CL12: 63.21199647 | CM12: 68.00149378 | CN12: 64.26217759 | CO12: 61.29466844 | CP12: 70.32570092 | CQ12: 66.4700934 | CR12: 64.21941622 | CS12: 70.10768871 | CT12: 66.57221276 | CU12: 58.73937491 | CV12: 82.79163614 | CW12: 78.03266871 | CX12: 65.293466 | CY12: 68.63062231 | CZ12: 61.52670907 | DA12: 64.61935688 | DB12: 61.30197195 | DC12: 64.48689544 | DD12: 68.11027702 | DE12: 67.14726153 | DF12: 64.32796488 | DG12: 77.79420515 | DH12: 62.37988635 | DI12: 65.4925955 | DJ12: 71.5572212 | DK12: 70.42772925 | DL12: 66.19934763 | DM12: 72.8206918 | DN12: 65.56688975 | DO12: 67.20352866 | DP12: 60.27834699 | DQ12: 65.00070552 | DR12: 68.62584091 | DS12: 65.94465499 | DT12: 63.9732706 | DU12: 68.33590037 | DV12: 65.36141155 | DW12: 64.23671165 | DX12: 63.29688506 | DY12: 59.81272794 | DZ12: 65.21775325 | EA12: 62.20303352 | EB12: 61.19317643 | EC12: 64.58273819 | ED12: 60.97772932 | EE12: 59.79298513 | EF12: 67.65850931 | EG12: 62.09398884 | EH12: 67.16448783 | EI12: 68.76859767 | EJ12: 64.44521454 | EK12: 68.84302397 | EL12: 60.87938175 | EM12: 67.80311109 | EN12: 62.67498097 | EO12: 64.8631732 | EP12: 62.77992688 | EQ12: 71.64965353 | ER12: 61.6811977 | ES12: 63.81663799 | ET12: 64.01869265 | EU12: 61.69127906 | EV12: 68.8378568
A13: bimc1 | B13: q34 | C13: bimc | D13: Question 34: Were you involved as much as you wanted to be in decisions made about your care and treatment? | E13: 75.33053525 | F13: 62.4487497 | G13: 87.75722963 | H13: 72.816236 | I13: 71.03116052 | J13: 68.75386188 | K13: 69.23370084 | L13: 65.95638557 | M13: 75.66468437 | N13: 70.03807853 | O13: 75.13530023 | P13: 77.72475429 | Q13: 73.20685263 | R13: 64.54117212 | S13: 69.96214937 | T13: 71.24192282 | U13: 82.76208993 | V13: 65.03883602 | W13: 69.96213366 | X13: 72.72688212 | Y13: 76.16831018 | Z13: 73.52631577 | AA13: 68.89985797 | AB13: 71.90187274 | AC13: 74.19674769 | AD13: 80.76296117 | AE13: 74.6352821 | AF13: 86.00798901 | AG13: 75.28230066 | AH13: 68.01928335 | AI13: 66.86377016 | AJ13: 71.76870489 | AK13: 75.23286197 | AL13: 72.64165521 | AM13: 72.79670254 | AN13: 76.85738406 | AO13: 74.04237275 | AP13: 71.56600675 | AQ13: 73.01376151 | AR13: 73.66505657 | AS13: 71.93020375 | AT13: 74.23200447 | AU13: 75.40288713 | AV13: 75.88531135 | AW13: 73.80590299 | AX13: 81.39334109 | AY13: 73.91580106 | AZ13: 67.49566221 | BA13: 71.93939169 | BB13: 70.77707776 | BC13: 73.51151317 | BD13: 80.8203307 | BE13: 73.53528793 | BF13: 72.9225641 | BG13: 72.7797539 | BH13: 77.52288002 | BI13: 75.95732337 | BJ13: 74.311947 | BK13: 74.35361962 | BL13: 71.95741393 | BM13: 72.71441703 | BN13: 78.07161574 | BO13: 67.0128358 | BP13: 62.4487497 | BQ13: 71.28270145 | BR13: 75.84236317 | BS13: 71.23544735 | BT13: 70.93241054 | BU13: 68.02328939 | BV13: 75.84800386 | BW13: 69.86364065 | BX13: 70.91532047 | BY13: 75.46716355 | BZ13: 72.30293784 | CA13: 72.74497159 | CB13: 71.66483809 | CC13: 86.88851301 | CD13: 71.6677394 | CE13: 73.54689129 | CF13: 71.87784451 | CG13: 70.88034335 | CH13: 76.9295307 | CI13: 78.92553357 | CJ13: 71.76416569 | CK13: 67.90357928 | CL13: 73.90854893 | CM13: 75.25554338 | CN13: 71.84453008 | CO13: 68.2785289 | CP13: 75.82620319 | CQ13: 71.57987564 | CR13: 70.0200933 | CS13: 75.23101631 | CT13: 71.23029187 | CU13: 67.75900547 | CV13: 86.21065196 | CW13: 87.75722963 | CX13: 70.98068985 | CY13: 76.01784834 | CZ13: 70.66070604 | DA13: 68.80486085 | DB13: 69.40681673 | DC13: 68.96091971 | DD13: 72.94753561 | DE13: 72.78189376 | DF13: 71.28721686 | DG13: 81.50354396 | DH13: 71.84051494 | DI13: 75.19583732 | DJ13: 79.97836263 | DK13: 77.93427829 | DL13: 69.69961608 | DM13: 75.24394016 | DN13: 74.63127066 | DO13: 74.67450496 | DP13: 69.03360899 | DQ13: 71.98793123 | DR13: 76.02559411 | DS13: 72.78429465 | DT13: 73.01517968 | DU13: 70.11290531 | DV13: 70.8817507 | DW13: 71.41723919 | DX13: 68.60678926 | DY13: 67.23197545 | DZ13: 72.76995586 | EA13: 69.47765107 | EB13: 72.705254 | EC13: 70.92949989 | ED13: 69.81726649 | EE13: 67.98098923 | EF13: 71.63332531 | EG13: 70.25790557 | EH13: 71.58110607 | EI13: 72.73853074 | EJ13: 74.33862296 | EK13: 73.0598039 | EL13: 68.91387498 | EM13: 75.57082938 | EN13: 65.6216175 | EO13: 67.5335659 | EP13: 72.32398952 | EQ13: 74.94147715 | ER13: 72.78958079 | ES13: 70.12739168 | ET13: 67.76553332 | EU13: 68.41453621 | EV13: 73.66230563
A14: bimc2 | B14: q57 | C14: bimc | D14: Question 57: Did a member of staff explain the purpose of the medications you were to take at home in a way you could understand? | E14: 85.02588119 | F14: 76.13174214 | G14: 93.52395937 | H14: 82.40447016 | I14: 81.21503937 | J14: 81.40349471 | K14: 80.43025111 | L14: 79.42730787 | M14: 85.05229804 | N14: 78.46671645 | O14: 82.22159706 | P14: 82.28902216 | Q14: 84.61159163 | R14: 78.71795292 | S14: 76.13174214 | T14: 81.08639379 | U14: 91.14183718 | V14: 79.38412124 | W14: 81.13028331 | X14: 81.18827172 | Y14: 82.78041818 | Z14: 85.17044811 | AA14: 81.73533149 | AB14: 83.36232575 | AC14: 84.50729055 | AD14: 87.11914968 | AE14: 82.47673071 | AF14: 92.43943 | AG14: 83.07718937 | AH14: 79.77024566 | AI14: 79.41835313 | AJ14: 82.7980963 | AK14: 85.87817199 | AL14: 83.83673564 | AM14: 78.97720761 | AN14: 85.05896635 | AO14: 84.81350836 | AP14: 78.09886892 | AQ14: 82.39801478 | AR14: 84.61210259 | AS14: 83.75619855 | AT14: 85.11926131 | AU14: 85.171887 | AV14: 81.34322502 | AW14: 80.14925108 | AX14: 85.00826995 | AY14: 90.3604265 | AZ14: 80.19878158 | BA14: 78.84061387 | BB14: 79.2613154 | BC14: 86.13368796 | BD14: 85.11499324 | BE14: 78.24285397 | BF14: 81.58379766 | BG14: 85.22510125 | BH14: 85.48328879 | BI14: 82.86729311 | BJ14: 82.02119078 | BK14: 84.79946344 | BL14: 81.81167504 | BM14: 84.13826141 | BN14: 85.96561155 | BO14: 76.20389299 | BP14: 79.10879783 | BQ14: 83.36355814 | BR14: 82.31524197 | BS14: 80.65065604 | BT14: 81.93723312 | BU14: 80.96452055 | BV14: 83.40179893 | BW14: 82.98772515 | BX14: 81.71278603 | BY14: 83.38592287 | BZ14: 80.39244311 | CA14: 83.70944886 | CB14: 85.51749364 | CC14: 93.01272923 | CD14: 82.14950205 | CE14: 83.40367021 | CF14: 84.29015988 | CG14: 78.41929794 | CH14: 83.23139806 | CI14: 82.67585487 | CJ14: 81.37546299 | CK14: 76.17198236 | CL14: 80.00907259 | CM14: 83.50702571 | CN14: 81.5708107 | CO14: 80.53936969 | CP14: 81.0037924 | CQ14: 79.52267843 | CR14: 79.72285501 | CS14: 82.20712901 | CT14: 77.451833 | CU14: 76.99353407 | CV14: 93.52395937 | CW14: 93.08906972 | CX14: 86.1063754 | CY14: 81.54463334 | CZ14: 78.81700429 | DA14: 82.35867143 | DB14: 79.21319466 | DC14: 87.02247718 | DD14: 82.83024161 | DE14: 79.03768654 | DF14: 77.74953792 | DG14: 92.61159594 | DH14: 81.98364668 | DI14: 85.5167339 | DJ14: 88.1137541 | DK14: 87.03994472 | DL14: 79.560467 | DM14: 84.70406952 | DN14: 82.89332409 | DO14: 84.00087813 | DP14: 78.15294454 | DQ14: 78.96429586 | DR14: 85.16969333 | DS14: 82.51737918 | DT14: 84.38171879 | DU14: 82.11853393 | DV14: 83.9211784 | DW14: 82.36123006 | DX14: 77.10314355 | DY14: 77.61562174 | DZ14: 82.26446289 | EA14: 76.78292217 | EB14: 79.30889101 | EC14: 80.60764885 | ED14: 82.14876544 | EE14: 79.70459909 | EF14: 78.23610729 | EG14: 83.03139355 | EH14: 81.85369149 | EI14: 78.1995727 | EJ14: 83.57432945 | EK14: 79.68702525 | EL14: 80.30211485 | EM14: 78.88982701 | EN14: 80.14075637 | EO14: 77.4460809 | EP14: 80.60595205 | EQ14: 85.15078806 | ER14: 85.74615598 | ES14: 83.26125905 | ET14: 81.14435576 | EU14: 86.66179289 | EV14: 83.73957374
A15: bimc3 | B15: q58 | C15: bimc | D15: Question 58: Did a member of staff tell you about medication side effects to watch for when you went home? | E15: 49.78576867 | F15: 34.13529374 | G15: 73.98026009 | H15: 46.5456686 | I15: 43.06994402 | J15: 41.16534016 | K15: 43.09730454 | L15: 40.0684788 | M15: 47.16154361 | N15: 41.93100252 | O15: 46.97728909 | P15: 47.43301087 | Q15: 47.73145082 | R15: 42.18108794 | S15: 38.31741395 | T15: 46.34215398 | U15: 56.44343079 | V15: 38.11331838 | W15: 37.9331529 | X15: 49.76618569 | Y15: 43.85851277 | Z15: 47.22688824 | AA15: 43.0116412 | AB15: 44.41173922 | AC15: 45.30673708 | AD15: 58.86510128 | AE15: 46.48115841 | AF15: 68.37883938 | AG15: 46.80624445 | AH15: 40.27690082 | AI15: 38.03665696 | AJ15: 48.23799556 | AK15: 56.75033005 | AL15: 44.82793591 | AM15: 44.47904782 | AN15: 44.96154554 | AO15: 50.30981588 | AP15: 41.04612418 | AQ15: 43.7666617 | AR15: 48.96019534 | AS15: 42.88951112 | AT15: 52.27024359 | AU15: 50.01569271 | AV15: 49.74042559 | AW15: 42.20805332 | AX15: 63.37480482 | AY15: 62.31965355 | AZ15: 41.78455186 | BA15: 42.09603036 | BB15: 40.88883588 | BC15: 46.74737784 | BD15: 49.35716443 | BE15: 44.52994779 | BF15: 43.2916235 | BG15: 50.99641864 | BH15: 50.95621322 | BI15: 45.85205123 | BJ15: 48.76790866 | BK15: 47.04876581 | BL15: 45.66128 | BM15: 48.67903539 | BN15: 54.30759091 | BO15: 41.05385832 | BP15: 41.17554355 | BQ15: 46.77834645 | BR15: 47.88892071 | BS15: 41.67455731 | BT15: 43.53605904 | BU15: 39.77273299 | BV15: 48.11762628 | BW15: 48.80957888 | BX15: 44.5378227 | BY15: 47.30608606 | BZ15: 44.02737906 | CA15: 41.74479193 | CB15: 55.36255068 | CC15: 66.38552747 | CD15: 43.18519835 | CE15: 50.68080947 | CF15: 49.81514313 | CG15: 41.61685577 | CH15: 44.35113577 | CI15: 49.05428195 | CJ15: 40.0249272 | CK15: 34.13529374 | CL15: 43.6586488 | CM15: 47.20908354 | CN15: 41.53466141 | CO15: 37.44445313 | CP15: 49.84156366 | CQ15: 44.30521572 | CR15: 41.49381244 | CS15: 48.92731095 | CT15: 42.87434721 | CU15: 38.52729023 | CV15: 73.98026009 | CW15: 72.8117364 | CX15: 51.33400159 | CY15: 47.58415732 | CZ15: 41.34746524 | DA15: 53.78464326 | DB15: 40.3180426 | DC15: 43.64809505 | DD15: 51.10127576 | DE15: 44.62034925 | DF15: 41.96017007 | DG15: 67.58036155 | DH15: 43.77628132 | DI15: 57.96437808 | DJ15: 51.27108233 | DK15: 54.43376431 | DL15: 45.87036393 | DM15: 52.47515464 | DN15: 48.57454197 | DO15: 50.80253894 | DP15: 39.37416555 | DQ15: 43.27635158 | DR15: 44.60886159 | DS15: 42.2898027 | DT15: 48.10503571 | DU15: 48.98311579 | DV15: 48.83838065 | DW15: 44.34944245 | DX15: 37.55300657 | DY15: 37.2153042 | DZ15: 45.51759436 | EA15: 40.7186765 | EB15: 46.40338145 | EC15: 40.65654535 | ED15: 47.31339176 | EE15: 41.46067673 | EF15: 44.33617226 | EG15: 44.80785894 | EH15: 44.98897287 | EI15: 43.04187936 | EJ15: 46.28780235 | EK15: 42.32460634 | EL15: 42.45011371 | EM15: 43.72215436 | EN15: 40.93600036 | EO15: 42.54264303 | EP15: 46.05303753 | EQ15: 54.47156481 | ER15: 45.08074144 | ES15: 45.18957291 | ET15: 43.82052631 | EU15: 47.70534646 | EV15: 48.54811412
A16: bimc | B16: bimc | C16: bimc | D16: bimc | E16: 69.13305746 | F16: 59.40361846 | G16: 84.57162381 | H16: 67.25545825 | I16: 65.1053813 | J16: 63.77423225 | K16: 64.25375216 | L16: 61.81739075 | M16: 69.29284201 | N16: 63.47859917 | O16: 68.11139546 | P16: 69.14892911 | Q16: 68.51663169 | R16: 61.81340433 | S16: 61.47043515 | T16: 66.2234902 | U16: 76.78245263 | V16: 60.84542522 | W16: 63.00852329 | X16: 67.89377984 | Y16: 67.60241371 | Z16: 68.64121737 | AA16: 64.54894355 | AB16: 66.5586459 | AC16: 68.00359178 | AD16: 75.58240404 | AE16: 67.86439041 | AF16: 82.27541947 | AG16: 68.38857816 | AH16: 62.68880994 | AI16: 61.43959341 | AJ16: 67.60159892 | AK16: 72.62045467 | AL16: 67.10210892 | AM16: 65.41765266 | AN16: 68.95929865 | AO16: 69.721899 | AP16: 63.57033328 | AQ16: 66.39281266 | AR16: 69.07911817 | AS16: 66.19197114 | AT16: 70.54050312 | AU16: 70.19682228 | AV16: 68.98965398 | AW16: 65.3877358 | AX16: 76.59213862 | AY16: 75.53196037 | AZ16: 63.15966522 | BA16: 64.29201197 | BB16: 63.64240968 | BC16: 68.79752632 | BD16: 71.76416279 | BE16: 65.4360299 | BF16: 65.93266175 | BG16: 69.66709126 | BH16: 71.32079401 | BI16: 68.2255559 | BJ16: 68.36701548 | BK16: 68.73394962 | BL16: 66.47678966 | BM16: 68.51057128 | BN16: 72.78160607 | BO16: 61.42352903 | BP16: 60.91103036 | BQ16: 67.14153534 | BR16: 68.68217528 | BS16: 64.52022023 | BT16: 65.46856757 | BU16: 62.92018098 | BV16: 69.12247636 | BW16: 67.22031489 | BX16: 65.7219764 | BY16: 68.71972416 | BZ16: 65.57425334 | CA16: 66.06640413 | CB16: 70.84829414 | CC16: 82.0955899 | CD16: 65.66747993 | CE16: 69.21045699 | CF16: 68.66104918 | CG16: 63.63883235 | CH16: 68.17068818 | CI16: 70.2185568 | CJ16: 64.38818529 | CK16: 59.40361846 | CL16: 65.85875677 | CM16: 68.65721754 | CN16: 64.98333406 | CO16: 62.08745057 | CP16: 68.89051975 | CQ16: 65.13592326 | CR16: 63.74558692 | CS16: 68.78848542 | CT16: 63.85215736 | CU16: 61.09327659 | CV16: 84.57162381 | CW16: 84.55267858 | CX16: 69.47368895 | CY16: 68.382213 | CZ16: 63.60839186 | DA16: 68.31605851 | DB16: 62.97935133 | DC16: 66.54383065 | DD16: 68.95968433 | DE16: 65.47997652 | DF16: 63.66564161 | DG16: 80.56516715 | DH16: 65.86681431 | DI16: 72.89231643 | DJ16: 73.12106635 | DK16: 73.13599578 | DL16: 65.04348234 | DM16: 70.80772144 | DN16: 68.69971224 | DO16: 69.82597401 | DP16: 62.18690636 | DQ16: 64.74285955 | DR16: 68.60138301 | DS16: 65.86382551 | DT16: 68.50064473 | DU16: 67.07151834 | DV16: 67.88043659 | DW16: 66.04263723 | DX16: 61.08764646 | DY16: 60.6876338 | DZ16: 66.85067104 | EA16: 62.32641658 | EB16: 66.13917549 | EC16: 64.06456469 | ED16: 66.42647456 | EE16: 63.04875502 | EF16: 64.73520162 | EG16: 66.03238602 | EH16: 66.14125681 | EI16: 64.65999427 | EJ16: 68.06691826 | EK16: 65.02381183 | EL16: 63.88870118 | EM16: 66.06093691 | EN16: 62.23279141 | EO16: 62.50742994 | EP16: 66.3276597 | EQ16: 71.52127667 | ER16: 67.8721594 | ES16: 66.19274121 | ET16: 64.2434718 | EU16: 67.59389186 | EV16: 68.64999783
A17: br1 | B17: q23 | C17: br | D17: Question 23: When you had important questions to ask the doctor, did you get answers that you could understand? | E17: 84.60044742 | F17: 75.024927 | G17: 94.43089913 | H17: 81.90536995 | I17: 83.43827323 | J17: 78.89142057 | K17: 79.67674903 | L17: 77.48640593 | M17: 84.79550667 | N17: 81.45289873 | O17: 85.49729318 | P17: 85.70821637 | Q17: 85.26954016 | R17: 75.83713514 | S17: 77.64505387 | T17: 81.87720947 | U17: 89.49672919 | V17: 76.74964389 | W17: 81.68620863 | X17: 83.77022744 | Y17: 82.57054519 | Z17: 81.33366757 | AA17: 78.23680448 | AB17: 84.07409092 | AC17: 82.80358313 | AD17: 91.51234213 | AE17: 86.1015903 | AF17: 93.06019251 | AG17: 82.13725277 | AH17: 75.78305048 | AI17: 77.19595833 | AJ17: 80.09143134 | AK17: 84.72200211 | AL17: 81.43699332 | AM17: 81.03812659 | AN17: 84.5369605 | AO17: 82.21821438 | AP17: 79.63261106 | AQ17: 81.81710495 | AR17: 80.95850948 | AS17: 80.47387109 | AT17: 83.07237836 | AU17: 81.12962175 | AV17: 82.00800456 | AW17: 82.56160093 | AX17: 89.80173621 | AY17: 85.10689284 | AZ17: 81.68580697 | BA17: 81.79413156 | BB17: 77.8250081 | BC17: 83.77592833 | BD17: 89.69926371 | BE17: 80.32555209 | BF17: 78.51212403 | BG17: 82.97594909 | BH17: 86.82882706 | BI17: 84.41904255 | BJ17: 84.84622123 | BK17: 83.1264483 | BL17: 79.8610209 | BM17: 84.74909124 | BN17: 85.2642491 | BO17: 75.66567795 | BP17: 75.21754351 | BQ17: 82.40130762 | BR17: 84.40667804 | BS17: 81.17524272 | BT17: 80.33043824 | BU17: 75.5695565 | BV17: 82.71780172 | BW17: 83.15608272 | BX17: 82.23310143 | BY17: 82.96580261 | BZ17: 80.64516648 | CA17: 82.84374476 | CB17: 82.21832207 | CC17: 92.37963691 | CD17: 82.12266621 | CE17: No data | CF17: 80.47100176 | CG17: 76.82099529 | CH17: 87.65322772 | CI17: 83.81060848 | CJ17: 83.28974562 | CK17: 77.01115131 | CL17: 79.93679272 | CM17: 82.77422182 | CN17: 77.81342385 | CO17: 77.84221991 | CP17: 82.90531869 | CQ17: 78.2977444 | CR17: 75.17514052 | CS17: 84.64277204 | CT17: 81.53738102 | CU17: 75.024927 | CV17: 94.43089913 | CW17: 92.40254387 | CX17: 85.91053459 | CY17: 86.97730817 | CZ17: 78.29610386 | DA17: 80.45893311 | DB17: 76.54409038 | DC17: 79.29252115 | DD17: 83.01606779 | DE17: 83.97878962 | DF17: 82.69499356 | DG17: 87.64553681 | DH17: 79.87716703 | DI17: 85.65834118 | DJ17: 88.48130745 | DK17: 85.62587346 | DL17: 83.2312183 | DM17: 83.89219527 | DN17: 82.29977832 | DO17: 84.53098173 | DP17: 81.79794619 | DQ17: 78.5411779 | DR17: 84.88576191 | DS17: 81.27876501 | DT17: 82.81413086 | DU17: 78.61943331 | DV17: 81.47749056 | DW17: 78.64432016 | DX17: 79.40739957 | DY17: 77.84667909 | DZ17: 79.88870701 | EA17: 77.09870824 | EB17: 79.7428528 | EC17: 79.08687862 | ED17: 78.10117626 | EE17: 77.93636958 | EF17: 81.21224885 | EG17: 77.93005824 | EH17: 78.21651285 | EI17: 81.40612407 | EJ17: 81.41097875 | EK17: 81.29916926 | EL17: 79.87892624 | EM17: 80.42215791 | EN17: 77.69171202 | EO17: 79.09699891 | EP17: 79.69031688 | EQ17: 83.79260909 | ER17: 81.14818156 | ES17: 76.95169757 | ET17: 79.35308089 | EU17: 83.79076247 | EV17: 85.32563132
A18: br2 | B18: q25 | C18: br | D18: Question 25: Did doctors talk in front of you as if you weren't there? | E18: 88.68609272 | F18: 77.2988573 | G18: 94.07941073 | H18: 86.05401769 | I18: 84.72701996 | J18: 85.81352971 | K18: 80.07363914 | L18: 78.62106806 | M18: 87.96951334 | N18: 84.59630417 | O18: 89.3550115 | P18: 88.22470997 | Q18: 90.77398033 | R18: 77.2988573 | S18: 86.21830856 | T18: 81.46525456 | U18: 92.0430833 | V18: 78.54831841 | W18: 80.32404491 | X18: 86.37691833 | Y18: 88.31907473 | Z18: 86.66032218 | AA18: 81.51169774 | AB18: 87.80162527 | AC18: 90.91450913 | AD18: 92.06938556 | AE18: 90.19946333 | AF18: 93.00829431 | AG18: 84.65060002 | AH18: 84.27158789 | AI18: 83.10229571 | AJ18: 87.35360859 | AK18: 88.2489372 | AL18: 87.86834614 | AM18: 85.08483007 | AN18: 86.95984784 | AO18: 90.50293088 | AP18: 82.78901024 | AQ18: 82.89245589 | AR18: 84.49913219 | AS18: 82.62155458 | AT18: 87.35506535 | AU18: 84.46774984 | AV18: 88.09371876 | AW18: 85.77077061 | AX18: 93.3490177 | AY18: 94.07941073 | AZ18: 81.90403818 | BA18: 85.39933488 | BB18: 80.20360534 | BC18: 89.45785003 | BD18: 90.8964331 | BE18: 86.70740064 | BF18: 85.38158349 | BG18: 86.15138955 | BH18: 90.86501052 | BI18: 86.67308823 | BJ18: 86.02411583 | BK18: 88.16141591 | BL18: 87.41720887 | BM18: 86.4480526 | BN18: 84.82474981 | BO18: 79.90281844 | BP18: 79.27635798 | BQ18: 83.37797597 | BR18: 89.72501044 | BS18: 84.58181935 | BT18: 84.12056586 | BU18: 82.31300972 | BV18: 88.72764982 | BW18: 87.97578146 | BX18: 83.43078401 | BY18: 88.81841578 | BZ18: 83.33019572 | CA18: 87.05039683 | CB18: 85.12923614 | CC18: 92.10980136 | CD18: 86.3101255 | CE18: 87.98293361 | CF18: 84.89258757 | CG18: 83.13049498 | CH18: 90.35568254 | CI18: 88.67363236 | CJ18: 88.12929779 | CK18: 83.35590553 | CL18: 87.51418355 | CM18: 86.00273924 | CN18: 85.06130681 | CO18: 83.92331096 | CP18: 88.51863292 | CQ18: 83.05409108 | CR18: 84.24641721 | CS18: 89.15425934 | CT18: 87.30186397 | CU18: 83.06450494 | CV18: 93.20841821 | CW18: 93.51852551 | CX18: 80.7767084 | CY18: 89.71542494 | CZ18: 84.63857149 | DA18: 81.03148239 | DB18: 84.88389128 | DC18: 80.31000539 | DD18: 88.9607297 | DE18: 86.34882004 | DF18: 86.75453882 | DG18: 90.49178851 | DH18: 82.43981808 | DI18: 86.72188253 | DJ18: 90.118858 | DK18: 92.01694588 | DL18: 86.40339294 | DM18: 90.63210213 | DN18: 87.01514788 | DO18: 86.99365086 | DP18: 84.27588396 | DQ18: 85.95507412 | DR18: 90.26122688 | DS18: 85.07885972 | DT18: 87.49960488 | DU18: 86.68497875 | DV18: 84.75568724 | DW18: 86.9668746 | DX18: 88.58995308 | DY18: 81.48636544 | DZ18: 83.8992055 | EA18: 85.34130478 | EB18: 84.45121962 | EC18: 87.55134189 | ED18: 81.82125765 | EE18: 81.42252089 | EF18: 88.70478324 | EG18: 83.66185151 | EH18: 87.66274904 | EI18: 87.03486554 | EJ18: 85.83937925 | EK18: 85.66444211 | EL18: 85.95005807 | EM18: 84.81659549 | EN18: 83.03194336 | EO18: 85.76761053 | EP18: 82.80322934 | EQ18: 86.74109878 | ER18: 86.53020282 | ES18: 83.59023052 | ET18: 80.28820734 | EU18: 82.40400576 | EV18: 88.33336231
A19: br3 | B19: q26 | C19: br | D19: Question 26: When you had important questions to ask a nurse, did you get answers that you could understand? | E19: 85.39502493 | F19: 68.97462244 | G19: 94.27002637 | H19: 82.75605208 | I19: 83.24641617 | J19: 80.9870246 | K19: 77.5550328 | L19: 78.16963798 | M19: 84.43285647 | N19: 81.70750507 | O19: 84.34845076 | P19: 87.44735484 | Q19: 85.37655888 | R19: 72.34453829 | S19: 77.38648871 | T19: 81.09296886 | U19: 85.42272401 | V19: 72.57189284 | W19: 77.38806017 | X19: 80.9756124 | Y19: 86.05050505 | Z19: 84.06475287 | AA19: 84.05794768 | AB19: 83.98052448 | AC19: 82.46376746 | AD19: 92.08225519 | AE19: 85.47167177 | AF19: 91.79144999 | AG19: 88.80286348 | AH19: 79.21260126 | AI19: 78.48095236 | AJ19: 80.65033612 | AK19: 83.11120412 | AL19: 83.32186229 | AM19: 81.39558149 | AN19: 84.52600455 | AO19: 84.27249105 | AP19: 80.83200663 | AQ19: 84.59571003 | AR19: 83.32201839 | AS19: 83.97424336 | AT19: 84.51584173 | AU19: 83.33874244 | AV19: 83.67350603 | AW19: 83.23133758 | AX19: 90.82767811 | AY19: 83.19672317 | AZ19: 78.98139295 | BA19: 85.56243608 | BB19: 82.23859514 | BC19: 85.7525894 | BD19: 89.84456289 | BE19: 83.04473232 | BF19: 84.83259843 | BG19: 85.50391154 | BH19: 86.7103051 | BI19: 86.87463636 | BJ19: 83.72265186 | BK19: 82.78467312 | BL19: 78.92693748 | BM19: 85.64423088 | BN19: 84.07405809 | BO19: 75.36289754 | BP19: 68.97462244 | BQ19: 82.60793312 | BR19: 84.72605784 | BS19: 80.86197305 | BT19: 84.88605016 | BU19: 79.11182772 | BV19: 86.5416867 | BW19: 81.33767099 | BX19: 81.10667977 | BY19: 86.41946453 | BZ19: 79.85772193 | CA19: 80.56447615 | CB19: 82.33573521 | CC19: 91.97056767 | CD19: 81.43337253 | CE19: 82.88898784 | CF19: 81.52785851 | CG19: 82.79946702 | CH19: 83.93577404 | CI19: 82.97976023 | CJ19: 83.96528579 | CK19: 79.09084959 | CL19: 80.73565363 | CM19: 84.23727107 | CN19: 82.20884321 | CO19: 78.82271971 | CP19: 85.0749701 | CQ19: 81.50287976 | CR19: 79.55223655 | CS19: 84.79092917 | CT19: 83.71214874 | CU19: 76.69612472 | CV19: 94.27002637 | CW19: 90.43818065 | CX19: 72.97456431 | CY19: 85.5114818 | CZ19: 80.07322975 | DA19: 75.00569145 | DB19: 78.38991591 | DC19: 77.49856537 | DD19: 84.05269621 | DE19: 82.73724551 | DF19: 83.02564414 | DG19: 87.27090948 | DH19: 78.89990238 | DI19: 82.09492538 | DJ19: 90.51136847 | DK19: 86.82974044 | DL19: 83.13793466 | DM19: 84.80318356 | DN19: 84.75883754 | DO19: 84.84225539 | DP19: 81.33082439 | DQ19: 82.08801098 | DR19: 86.42115239 | DS19: 86.41002379 | DT19: 82.55164557 | DU19: 79.14301705 | DV19: 86.71636628 | DW19: 78.57036471 | DX19: 82.24293628 | DY19: 78.77441143 | DZ19: 82.92278509 | EA19: 80.45488188 | EB19: 81.5167783 | EC19: 81.15028859 | ED19: 78.65151406 | EE19: 79.37369524 | EF19: 83.71153422 | EG19: 83.4043247 | EH19: 83.31360985 | EI19: 83.17657055 | EJ19: 82.92554009 | EK19: 85.3745438 | EL19: 82.56632453 | EM19: 83.9525261 | EN19: 77.79138566 | EO19: 80.75639065 | EP19: 81.98434901 | EQ19: 85.88734449 | ER19: 81.48167974 | ES19: 82.52948713 | ET19: 83.09519117 | EU19: 80.73518518 | EV19: 85.92400781
A20: br4 | B20: q28 | C20: br | D20: Question 28: Did nurses talk in front of you as if you weren't there? | E20: 91.41236366 | F20: 78.13232193 | G20: 95.82050359 | H20: 89.38531966 | I20: 89.5001228 | J20: 89.15254533 | K20: 83.03357596 | L20: 79.54689292 | M20: 90.69102497 | N20: 88.17291137 | O20: 89.75427196 | P20: 91.08914 | Q20: 92.63740916 | R20: 83.0812486 | S20: 88.32340937 | T20: 83.5584271 | U20: 88.47476398 | V20: 81.18554251 | W20: 82.07470686 | X20: 90.59860439 | Y20: 91.41068882 | Z20: 90.25282146 | AA20: 87.27600054 | AB20: 90.12739856 | AC20: 90.5568725 | AD20: 94.46695729 | AE20: 90.71516973 | AF20: 94.76669952 | AG20: 89.83152657 | AH20: 89.93955429 | AI20: 88.90742304 | AJ20: 90.02155505 | AK20: 90.88644871 | AL20: 91.11951227 | AM20: 88.25612983 | AN20: 90.74184984 | AO20: 92.27761406 | AP20: 86.36595016 | AQ20: 87.9898227 | AR20: 89.53124017 | AS20: 87.44724384 | AT20: 91.55339482 | AU20: 86.30244216 | AV20: 92.24495031 | AW20: 93.31702126 | AX20: 94.68853145 | AY20: 90.53624408 | AZ20: 85.07032828 | BA20: 87.74372974 | BB20: 87.38419739 | BC20: 90.95465399 | BD20: 93.00133182 | BE20: 90.9940533 | BF20: 89.0234506 | BG20: 91.80308355 | BH20: 93.20358844 | BI20: 90.27067959 | BJ20: 89.07813655 | BK20: 92.29941711 | BL20: 90.22245444 | BM20: 90.53745101 | BN20: 88.55990771 | BO20: 83.96635466 | BP20: 81.09505726 | BQ20: 87.40660184 | BR20: 93.69415511 | BS20: 89.006627 | BT20: 91.8760987 | BU20: 87.86714344 | BV20: 92.97103572 | BW20: 90.43680699 | BX20: 87.03932062 | BY20: 91.19777252 | BZ20: 87.77255341 | CA20: 91.03517863 | CB20: 85.83956112 | CC20: 95.25031661 | CD20: 88.92044756 | CE20: 89.51499827 | CF20: 89.85574967 | CG20: 87.41739871 | CH20: 92.09712079 | CI20: 92.31045642 | CJ20: 89.2187045 | CK20: 89.08412828 | CL20: 89.20816891 | CM20: 91.58234304 | CN20: 90.03525647 | CO20: 89.05236671 | CP20: 91.41487592 | CQ20: 88.49763819 | CR20: 89.65111845 | CS20: 91.55058751 | CT20: 90.14249531 | CU20: 87.89956501 | CV20: 95.41204046 | CW20: 95.82050359 | CX20: 78.13232193 | CY20: 90.69763923 | CZ20: 88.48017291 | DA20: 81.35404993 | DB20: 89.52238984 | DC20: 81.61335219 | DD20: 87.86275297 | DE20: 90.66037913 | DF20: 89.57341786 | DG20: 88.03947019 | DH20: 84.83242305 | DI20: 88.77772892 | DJ20: 93.71516567 | DK20: 92.62730838 | DL20: 89.55405529 | DM20: 91.6645788 | DN20: 90.16522415 | DO20: 90.95578804 | DP20: 89.35940342 | DQ20: 90.35998396 | DR20: 93.29045365 | DS20: 90.68165993 | DT20: 90.65852531 | DU20: 88.54353247 | DV20: 88.74862051 | DW20: 90.01999312 | DX20: 88.82808066 | DY20: 87.1531251 | DZ20: 90.70324526 | EA20: 90.60457375 | EB20: 86.3119734 | EC20: 90.77630235 | ED20: 88.17658055 | EE20: 90.82558344 | EF20: 90.45351737 | EG20: 89.45822324 | EH20: 90.85461269 | EI20: 90.19779882 | EJ20: 88.63484848 | EK20: 90.26758799 | EL20: 88.01003367 | EM20: 91.91245506 | EN20: 84.34238024 | EO20: 90.57633991 | EP20: 88.432186 | EQ20: 90.84766679 | ER20: 90.5170711 | ES20: 88.68840853 | ET20: 88.12489388 | EU20: 87.09499294 | EV20: 92.11048828
A21: br | B21: br | C21: br | D21: br | E21: 87.07636674 | F21: 76.1408953 | G21: 94.33034604 | H21: =AVERAGE(I21:EV21) -> 85.0213585 | I21: 85.22795804 | J21: 83.71113005 | K21: 80.08474923 | L21: 78.45600122 | M21: 86.97222536 | N21: 83.98240483 | O21: 87.23875685 | P21: 88.1173553 | Q21: 88.51437213 | R21: 77.14044483 | S21: 82.39331513 | T21: 81.998465 | U21: 88.85932512 | V21: 77.26384941 | W21: 80.36825514 | X21: 85.43034064 | Y21: 87.08770344 | Z21: 85.57789102 | AA21: 82.77061261 | AB21: 86.49590981 | AC21: 86.68468306 | AD21: 92.53273504 | AE21: 88.12197378 | AF21: 93.15665908 | AG21: 86.35556071 | AH21: 82.30169848 | AI21: 81.92165736 | AJ21: 84.52923277 | AK21: 86.74214804 | AL21: 85.93667851 | AM21: 83.943667 | AN21: 86.69116568 | AO21: 87.31781259 | AP21: 82.40489452 | AQ21: 84.32377339 | AR21: 84.57772506 | AS21: 83.62922822 | AT21: 86.62417007 | AU21: 83.80963905 | AV21: 86.50504491 | AW21: 86.22018259 | AX21: 92.16674087 | AY21: 88.22981771 | AZ21: 81.91039159 | BA21: 85.12490807 | BB21: 81.91285149 | BC21: 87.48525543 | BD21: 90.86039788 | BE21: 85.26793459 | BF21: 84.43743914 | BG21: 86.60858343 | BH21: 89.40193278 | BI21: 87.05936168 | BJ21: 85.91778137 | BK21: 86.59298861 | BL21: 84.10690542 | BM21: 86.84470643 | BN21: 85.68074118 | BO21: 78.72443715 | BP21: 76.1408953 | BQ21: 83.94845464 | BR21: 88.13797536 | BS21: 83.90641553 | BT21: 85.30328824 | BU21: 81.21538434 | BV21: 87.73954349 | BW21: 85.72658554 | BX21: 83.45247146 | BY21: 87.35036386 | BZ21: 82.90140938 | CA21: 85.37344909 | CB21: 83.88071364 | CC21: 92.92758064 | CD21: 84.69665295 | CE21: No data | CF21: 84.18679938 | CG21: 82.542089 | CH21: 88.51045127 | CI21: 86.94361437 | CJ21: 86.15075843 | CK21: 82.13550868 | CL21: 84.3486997 | CM21: 86.14914379 | CN21: 83.77970759 | CO21: 82.41015432 | CP21: 86.97844941 | CQ21: 82.83808836 | CR21: 82.15622818 | CS21: 87.53463702 | CT21: 85.67347226 | CU21: 80.67128042 | CV21: 94.33034604 | CW21: 93.04493841 | CX21: 79.44853231 | CY21: 88.22546353 | CZ21: 82.8720195 | DA21: 79.46253922 | DB21: 82.33507185 | DC21: 79.67861102 | DD21: 85.97306167 | DE21: 85.93130858 | DF21: 85.51214859 | DG21: 88.36192625 | DH21: 81.51232764 | DI21: 85.8132195 | DJ21: 90.7066749 | DK21: 89.27496704 | DL21: 85.5816503 | DM21: 87.74801494 | DN21: 86.05974697 | DO21: 86.830669 | DP21: 84.19101449 | DQ21: 84.23606174 | DR21: 88.71464871 | DS21: 85.86232712 | DT21: 85.88097665 | DU21: 83.2477404 | DV21: 85.42454115 | DW21: 83.55038815 | DX21: 84.7670924 | DY21: 81.31514527 | DZ21: 84.35348571 | EA21: 83.37486716 | EB21: 83.00570603 | EC21: 84.64120286 | ED21: 81.68763213 | EE21: 82.38954229 | EF21: 86.02052092 | EG21: 83.61361442 | EH21: 85.01187111 | EI21: 85.45383974 | EJ21: 84.70268664 | EK21: 85.65143579 | EL21: 84.10133563 | EM21: 85.27593364 | EN21: 80.71435532 | EO21: 84.049335 | EP21: 83.22752031 | EQ21: 86.81717979 | ER21: 84.9192838 | ES21: 82.93995594 | ET21: 82.71534332 | EU21: 83.50623659 | EV21: 87.92337243
A22: ccfp1 | B22: q14 | C22: ccfp | D22: Question 14: Were you ever bothered by noise at night from other patients? | E22: 66.30824968 | F22: 45.80417675 | G22: 84.94090355 | H22: 63.09293985 | I22: 60.67147891 | J22: 63.24696898 | K22: 64.42740542 | L22: 60.17482224 | M22: 63.08592099 | N22: 61.29497594 | O22: 62.21513326 | P22: 70.19965066 | Q22: 62.7234916 | R22: 53.67690079 | S22: 58.07793787 | T22: 56.72203 | U22: 59.33096 | V22: 58.06714721 | W22: 62.54312207 | X22: 61.55328108 | Y22: 68.21862812 | Z22: 59.68811216 | AA22: 63.81281425 | AB22: 63.99642232 | AC22: 69.18573327 | AD22: 83.69333619 | AE22: 59.94532336 | AF22: 73.46689442 | AG22: 65.89403782 | AH22: 55.76069924 | AI22: 63.01968535 | AJ22: 58.95039539 | AK22: 64.79503347 | AL22: 59.47308593 | AM22: 53.20706488 | AN22: 60.80306298 | AO22: 64.59176364 | AP22: 49.9477747 | AQ22: 65.30220531 | AR22: 61.63766839 | AS22: 56.38197573 | AT22: 58.76216312 | AU22: 60.11403408 | AV22: 57.34566767 | AW22: 67.2113147 | AX22: 76.79123873 | AY22: 75.69357885 | AZ22: 58.67010361 | BA22: 62.25894973 | BB22: 59.07987306 | BC22: 61.97427671 | BD22: 77.85258121 | BE22: 64.77726746 | BF22: 64.96770691 | BG22: 58.1752841 | BH22: 61.67468909 | BI22: 57.76895968 | BJ22: 59.81892022 | BK22: 62.35393297 | BL22: 60.49755895 | BM22: 59.86012142 | BN22: 66.5094977 | BO22: 57.16333288 | BP22: 45.80417675 | BQ22: 60.580346 | BR22: 63.72147391 | BS22: 67.55495948 | BT22: 61.81491154 | BU22: 60.09470483 | BV22: 52.6552588 | BW22: 56.08383378 | BX22: 64.45297686 | BY22: 73.59252588 | BZ22: 55.28286646 | CA22: 66.04324362 | CB22: 61.4569475 | CC22: 77.72509545 | CD22: 67.03516734 | CE22: 66.29688219 | CF22: 65.00073655 | CG22: 64.52695733 | CH22: 59.33323137 | CI22: 66.3253009 | CJ22: 63.55116542 | CK22: 62.89728126 | CL22: 58.59470792 | CM22: 64.4215756 | CN22: 57.11567368 | CO22: 63.7792412 | CP22: 68.52382367 | CQ22: 69.32194065 | CR22: 53.51495616 | CS22: 62.45395143 | CT22: 65.67145393 | CU22: 57.82177141 | CV22: 84.94090355 | CW22: 70.85536138 | CX22: 64.89976792 | CY22: 61.96727464 | CZ22: 64.46071981 | DA22: 58.10098733 | DB22: 62.56592281 | DC22: 62.14019062 | DD22: 73.44238514 | DE22: 59.70603918 | DF22: 65.75297578 | DG22: 79.51504075 | DH22: 59.08807871 | DI22: 64.06767931 | DJ22: 73.64803442 | DK22: 66.74457125 | DL22: 56.07394024 | DM22: 76.53093934 | DN22: 68.88067376 | DO22: 65.17345488 | DP22: 52.09952202 | DQ22: 58.54081586 | DR22: 65.72795528 | DS22: 67.94464616 | DT22: 68.22853828 | DU22: 65.50589011 | DV22: 54.73402322 | DW22: 61.90098907 | DX22: 54.34630387 | DY22: 63.57731482 | DZ22: 65.03858608 | EA22: 62.4011837 | EB22: 62.34173748 | EC22: 71.52916513 | ED22: 58.21892959 | EE22: 62.31339705 | EF22: 64.37075746 | EG22: 61.57459017 | EH22: 65.39297658 | EI22: 65.93182259 | EJ22: 60.01229227 | EK22: 62.4785402 | EL22: 71.12370237 | EM22: 61.19940573 | EN22: 63.33111926 | EO22: 59.74078351 | EP22: 59.99509211 | EQ22: 60.77622873 | ER22: 60.80194114 | ES22: 62.13511856 | ET22: 60.6395618 | EU22: 61.44031797 | EV22: 59.28201406
A23: ccfp2 | B23: q15 | C23: ccfp | D23: Question 15: Were you ever bothered by noise at night from hospital staff? | E23: 83.77780098 | F23: 69.12777114 | G23: 92.95728949 | H23: 80.90584201 | I23: 79.74256987 | J23: 79.40994699 | K23: 77.57140024 | L23: 79.11129031 | M23: 86.99061432 | N23: 81.5349828 | O23: 85.17099205 | P23: 83.00443913 | Q23: 80.45567904 | R23: 73.58945271 | S23: 76.02444153 | T23: 81.83235108 | U23: 83.82955725 | V23: 79.78154353 | W23: 82.61739357 | X23: 81.56085507 | Y23: 85.27681085 | Z23: 80.56424316 | AA23: 84.08482299 | AB23: 81.68424544 | AC23: 84.81544617 | AD23: 91.22815093 | AE23: 77.76061177 | AF23: 83.77547583 | AG23: 82.12948287 | AH23: 76.77294308 | AI23: 82.16457311 | AJ23: 76.07420034 | AK23: 84.07845834 | AL23: 80.70493317 | AM23: 78.10763194 | AN23: 80.01688451 | AO23: 80.68588601 | AP23: 76.90339476 | AQ23: 81.71244736 | AR23: 78.39360558 | AS23: 79.90708865 | AT23: 75.62410597 | AU23: 80.78553428 | AV23: 79.83167032 | AW23: 81.84199007 | AX23: 84.74639185 | AY23: 85.67441322 | AZ23: 79.40276765 | BA23: 78.50651024 | BB23: 78.4702573 | BC23: 80.86126486 | BD23: 86.18542867 | BE23: 81.23251308 | BF23: 80.54670757 | BG23: 80.43429743 | BH23: 83.07672488 | BI23: 79.21445078 | BJ23: 78.30322282 | BK23: 78.7099994 | BL23: 78.60849818 | BM23: 84.04697784 | BN23: 86.37704842 | BO23: 78.03013172 | BP23: 75.38657705 | BQ23: 80.50984679 | BR23: 82.12107367 | BS23: 82.94279856 | BT23: 81.53131529 | BU23: 77.67867109 | BV23: 80.74388152 | BW23: 79.98904318 | BX23: 77.18140113 | BY23: 83.18823469 | BZ23: 80.56075392 | CA23: 81.48762794 | CB23: 84.83691163 | CC23: 87.75263367 | CD23: 82.80519653 | CE23: 84.59264501 | CF23: 80.94150662 | CG23: 84.15504784 | CH23: 80.66192107 | CI23: 81.88077878 | CJ23: 76.91335279 | CK23: 80.28333083 | CL23: 78.39737415 | CM23: 85.35200089 | CN23: 81.2381892 | CO23: 80.05041218 | CP23: 84.82421616 | CQ23: 81.91103437 | CR23: 77.94541683 | CS23: 81.64299342 | CT23: 80.15034338 | CU23: 78.78114134 | CV23: 92.95728949 | CW23: 88.07535519 | CX23: 69.12777114 | CY23: 80.41373677 | CZ23: 77.75910544 | DA23: 78.69294863 | DB23: 77.6013096 | DC23: 83.10742615 | DD23: 83.57066602 | DE23: 78.04402346 | DF23: 86.51853093 | DG23: 85.74519396 | DH23: 77.65299722 | DI23: 81.32673432 | DJ23: 86.24234246 | DK23: 86.27479748 | DL23: 74.03091947 | DM23: 84.17187006 | DN23: 82.6085937 | DO23: 80.95735021 | DP23: 78.89857924 | DQ23: 80.09119409 | DR23: 83.20250681 | DS23: 82.95716532 | DT23: 78.90307297 | DU23: 79.07104746 | DV23: 77.21302382 | DW23: 82.61813566 | DX23: 78.91851177 | DY23: 76.87804941 | DZ23: 78.85576943 | EA23: 82.09044156 | EB23: 78.64537616 | EC23: 84.6797125 | ED23: 78.3317109 | EE23: 77.82320697 | EF23: 79.77465357 | EG23: 77.77715003 | EH23: 79.21908681 | EI23: 79.66040159 | EJ23: 75.82747891 | EK23: 80.87600742 | EL23: 78.55076114 | EM23: 81.04505595 | EN23: 81.65670334 | EO23: 79.19957803 | EP23: 79.50697448 | EQ23: 79.39575866 | ER23: 80.86418579 | ES23: 83.78128871 | ET23: 77.02753986 | EU23: 80.23340655 | EV23: 83.97132904
A24: ccfp3 | B24: q16 | C24: ccfp | D24: Question 16: In your opinion, how clean was the hospital room or ward that you were in? | E24: 91.38087858 | F24: 80.47611955 | G24: 96.89975707 | H24: 89.12213827 | I24: 85.46158825 | J24: 88.92887388 | K24: 86.69035512 | L24: 81.90939233 | M24: 89.80069025 | N24: 90.76681639 | O24: 90.35645497 | P24: 93.46987834 | Q24: 89.34408381 | R24: 83.71837946 | S24: 85.44232136 | T24: 86.01174468 | U24: 89.85378432 | V24: 83.51556828 | W24: 82.89287807 | X24: 86.68807081 | Y24: 91.67945786 | Z24: 91.08507206 | AA24: 88.14764815 | AB24: 87.33044609 | AC24: 94.63865648 | AD24: 95.36731958 | AE24: 86.68798984 | AF24: 95.82902257 | AG24: 90.97767201 | AH24: 85.90003399 | AI24: 89.36515704 | AJ24: 88.92074587 | AK24: 89.19333625 | AL24: 88.78441708 | AM24: 88.51532166 | AN24: 86.33974944 | AO24: 87.6658464 | AP24: 84.40374943 | AQ24: 88.37882539 | AR24: 88.27634616 | AS24: 89.16473662 | AT24: 90.53462208 | AU24: 91.42605472 | AV24: 86.91906608 | AW24: 91.69420466 | AX24: 93.61709913 | AY24: 92.29885431 | AZ24: 87.45751606 | BA24: 92.89202092 | BB24: 87.28933991 | BC24: 91.15190226 | BD24: 91.97332894 | BE24: 89.29106452 | BF24: 92.79693629 | BG24: 90.6608199 | BH24: 90.40092159 | BI24: 91.48216562 | BJ24: 86.89768073 | BK24: 91.35076115 | BL24: 89.8151745 | BM24: 89.67184253 | BN24: 89.08727384 | BO24: 85.96171167 | BP24: 80.47611955 | BQ24: 88.04871024 | BR24: 90.06132216 | BS24: 91.01571063 | BT24: 90.32563333 | BU24: 89.17371412 | BV24: 91.75632277 | BW24: 86.14387493 | BX24: 87.67849262 | BY24: 94.33904364 | BZ24: 87.95709798 | CA24: 90.09800837 | CB24: 84.05794205 | CC24: 96.89975707 | CD24: 91.00878054 | CE24: 90.46862202 | CF24: 87.87997278 | CG24: 87.01714682 | CH24: 89.14739996 | CI24: 90.4058524 | CJ24: 90.12360695 | CK24: 88.23579949 | CL24: 86.67659427 | CM24: 88.22156855 | CN24: 88.30519363 | CO24: 86.23092561 | CP24: 88.30310779 | CQ24: 89.3427412 | CR24: 88.85626866 | CS24: 88.17739039 | CT24: 89.65221723 | CU24: 86.59639374 | CV24: 94.50343136 | CW24: 95.53011861 | CX24: 87.30350667 | CY24: 87.12324963 | CZ24: 91.17467337 | DA24: 85.43890427 | DB24: 87.52366437 | DC24: 84.56004101 | DD24: 93.27207624 | DE24: 89.4368391 | DF24: 92.57700378 | DG24: 93.6816729 | DH24: 86.62637688 | DI24: 89.77669309 | DJ24: 94.04666955 | DK24: 93.24534944 | DL24: 83.50106393 | DM24: 94.05114726 | DN24: 91.79088321 | DO24: 87.54261375 | DP24: 87.40732058 | DQ24: 90.0783937 | DR24: 90.58771699 | DS24: 91.20284523 | DT24: 92.24805375 | DU24: 87.07108775 | DV24: 87.05335816 | DW24: 85.85029807 | DX24: 86.35180271 | DY24: 88.40050199 | DZ24: 91.91096937 | EA24: 89.03631236 | EB24: 84.60458385 | EC24: 90.51121012 | ED24: 85.48068591 | EE24: 83.59327137 | EF24: 90.83664308 | EG24: 90.2680343 | EH24: 89.36229484 | EI24: 93.27048249 | EJ24: 86.81792485 | EK24: 90.43997114 | EL24: 89.97666388 | EM24: 88.58738347 | EN24: 85.31201381 | EO24: 90.69349715 | EP24: 90.0202606 | EQ24: 89.42048133 | ER24: 86.79095153 | ES24: 89.61712225 | ET24: 89.19770761 | EU24: 86.84115239 | EV24: 93.18681313
A25: ccfp4 | B25: q19 | C25: ccfp | D25: Question 19: How would you rate the hospital food? | E25: 60.97155243 | F25: 44.18309089 | G25: 79.296671 | H25: 56.95608571 | I25: 47.45223284 | J25: 57.93815595 | K25: 54.44697602 | L25: 50.64982582 | M25: 55.6618365 | N25: 59.10937596 | O25: 64.2370168 | P25: 56.09623276 | Q25: 57.60745082 | R25: 49.21843107 | S25: 55.81421409 | T25: 49.2481316 | U25: 54.13024149 | V25: 48.19617108 | W25: 57.79004688 | X25: 54.04525005 | Y25: 66.46832302 | Z25: 62.12011032 | AA25: 58.21526047 | AB25: 47.86066945 | AC25: 59.77730825 | AD25: 67.73764882 | AE25: 60.14461735 | AF25: 72.16668684 | AG25: 60.07356141 | AH25: 57.82098826 | AI25: 57.24796961 | AJ25: 62.02110086 | AK25: 68.14917176 | AL25: 51.1510763 | AM25: 61.10021928 | AN25: 57.98678229 | AO25: 62.7125201 | AP25: 50.18892724 | AQ25: 53.38819294 | AR25: 58.35440558 | AS25: 58.94150463 | AT25: 60.50874995 | AU25: 51.40051167 | AV25: 52.33733711 | AW25: 67.06950705 | AX25: 61.42337428 | AY25: 61.15243028 | AZ25: 49.12133212 | BA25: 51.83780099 | BB25: 48.9194972 | BC25: 54.36956193 | BD25: 66.18458207 | BE25: 62.56956989 | BF25: 61.5064496 | BG25: 65.13950692 | BH25: 59.61814193 | BI25: 60.90404148 | BJ25: 56.70766839 | BK25: 55.69969174 | BL25: 54.22657147 | BM25: 61.9997846 | BN25: 62.37068552 | BO25: 45.26644328 | BP25: 49.46266176 | BQ25: 51.73846254 | BR25: 56.04500482 | BS25: 49.4115842 | BT25: 53.81315816 | BU25: 56.5749191 | BV25: 61.37681581 | BW25: 60.55922667 | BX25: 53.96098104 | BY25: 60.9679555 | BZ25: 59.58451736 | CA25: 55.68388946 | CB25: 50.99043592 | CC25: 79.296671 | CD25: 59.64673185 | CE25: 55.72779986 | CF25: 50.08670835 | CG25: 58.06588594 | CH25: 54.04162301 | CI25: 54.76240488 | CJ25: 58.7613971 | CK25: 44.18309089 | CL25: 48.39047685 | CM25: 62.59496735 | CN25: 52.42269216 | CO25: 49.60040263 | CP25: 55.24474285 | CQ25: 61.48739759 | CR25: 51.98921673 | CS25: 57.33180365 | CT25: 52.13602837 | CU25: 55.39828997 | CV25: 64.18773342 | CW25: 73.80985492 | CX25: 46.77339836 | CY25: 55.33376955 | CZ25: 56.34994436 | DA25: 51.00415349 | DB25: 50.44757205 | DC25: 54.22977603 | DD25: 59.4172289 | DE25: 56.55667643 | DF25: 61.20287717 | DG25: 66.41180188 | DH25: 54.14551051 | DI25: 54.82736124 | DJ25: 63.73801221 | DK25: 53.04509873 | DL25: 53.42048024 | DM25: 67.71480981 | DN25: 59.24499255 | DO25: 54.24447398 | DP25: 56.84460156 | DQ25: 53.97310788 | DR25: 57.56763872 | DS25: 58.64322969 | DT25: 57.55837035 | DU25: 60.00569296 | DV25: 58.29285624 | DW25: 55.76691651 | DX25: 60.92871745 | DY25: 57.28288739 | DZ25: 57.15921769 | EA25: 60.7387593 | EB25: 58.91624359 | EC25: 53.03655117 | ED25: 54.50344751 | EE25: 51.10694692 | EF25: 54.94235562 | EG25: 54.74134866 | EH25: 55.41550452 | EI25: 57.55583126 | EJ25: 57.37373927 | EK25: 59.15303701 | EL25: 52.88551837 | EM25: 47.78320634 | EN25: 55.6189383 | EO25: 60.97694781 | EP25: 60.94140909 | EQ25: 58.58786159 | ER25: 53.54927708 | ES25: 56.13238084 | ET25: 57.98336256 | EU25: 52.36064564 | EV25: 60.3044498
A26: ccfp5 | B26: q40 | C26: ccfp | D26: Question 40: Were you given enough privacy when being examined or treated? | E26: 95.91469163 | F26: 90.6414565 | G26: 98.70165584 | H26: 94.80969473 | I26: 95.75463686 | J26: 93.77458762 | K26: 94.26385692 | L26: 92.01131989 | M26: 95.99158281 | N26: 95.2362162 | O26: 95.97779406 | P26: 97.25782749 | Q26: 94.7580299 | R26: 90.8144564 | S26: 92.64602144 | T26: 94.03336032 | U26: 95.63684033 | V26: 93.80997814 | W26: 93.29467857 | X26: 95.73577157 | Y26: 94.65766894 | Z26: 94.40970278 | AA26: 95.46972894 | AB26: 94.79608497 | AC26: 97.10914579 | AD26: 97.63708265 | AE26: 94.59871129 | AF26: 97.37490089 | AG26: 95.73149469 | AH26: 93.35331885 | AI26: 95.18914868 | AJ26: 93.8496822 | AK26: 94.87691905 | AL26: 93.74594428 | AM26: 93.90294452 | AN26: 94.61127307 | AO26: 96.23609753 | AP26: 93.93654601 | AQ26: 95.45421531 | AR26: 94.26209312 | AS26: 95.02093634 | AT26: 96.22363746 | AU26: 94.56732141 | AV26: 94.4676636 | AW26: 94.47979776 | AX26: 96.39098834 | AY26: 94.05760245 | AZ26: 94.18779734 | BA26: 94.75300218 | BB26: 93.2015937 | BC26: 94.76740266 | BD26: 97.94102771 | BE26: 94.91866178 | BF26: 96.29001746 | BG26: 95.5987545 | BH26: 96.07987492 | BI26: 94.58684223 | BJ26: 94.1219873 | BK26: 95.78591781 | BL26: 94.51074361 | BM26: 95.24996631 | BN26: 95.05888424 | BO26: 92.9553636 | BP26: 92.03539355 | BQ26: 96.26605716 | BR26: 96.32585702 | BS26: 94.85754035 | BT26: 94.65729864 | BU26: 93.56092948 | BV26: 95.20798313 | BW26: 94.79658814 | BX26: 94.74445918 | BY26: 95.11403542 | BZ26: 94.89671227 | CA26: 92.92310228 | CB26: 94.28263594 | CC26: 96.78179117 | CD26: 95.41446457 | CE26: 95.27067891 | CF26: 93.03725035 | CG26: 93.96981257 | CH26: 96.72736547 | CI26: 94.65926023 | CJ26: 96.06725122 | CK26: 94.37015841 | CL26: 92.9211805 | CM26: 95.1761679 | CN26: 94.92511355 | CO26: 94.60838873 | CP26: 94.89070993 | CQ26: 94.35138092 | CR26: 94.75956744 | CS26: 95.09069734 | CT26: 94.73266434 | CU26: 93.35978543 | CV26: 97.79355128 | CW26: 98.70165584 | CX26: 90.6414565 | CY26: 94.25863205 | CZ26: 95.4705827 | DA26: 92.61566179 | DB26: 94.36754968 | DC26: 93.84904168 | DD26: 97.17262431 | DE26: 95.00216884 | DF26: 95.8137791 | DG26: 95.35045714 | DH26: 93.34636052 | DI26: 93.90365524 | DJ26: 97.08299384 | DK26: 96.04998393 | DL26: 94.2546355 | DM26: 96.18780706 | DN26: 96.43991444 | DO26: 95.09185194 | DP26: 93.71338756 | DQ26: 94.46752809 | DR26: 96.23346187 | DS26: 94.25928017 | DT26: 95.93709652 | DU26: 93.88349232 | DV26: 93.91356457 | DW26: 94.94592927 | DX26: 94.48541243 | DY26: 93.58966408 | DZ26: 95.65807689 | EA26: 94.19832405 | EB26: 96.57338904 | EC26: 95.38483018 | ED26: 93.3379738 | EE26: 93.39138062 | EF26: 95.00426714 | EG26: 94.50488639 | EH26: 94.65575033 | EI26: 95.89975503 | EJ26: 95.711895 | EK26: 95.59018443 | EL26: 93.4775993 | EM26: 92.94008044 | EN26: 93.31940378 | EO26: 92.5785462 | EP26: 94.13801396 | EQ26: 96.00796426 | ER26: 94.33520157 | ES26: 94.43646009 | ET26: 92.8983641 | EU26: 94.9325766 | EV26: 96.60020965
A27: ccfp6 | B27: q67 | C27: ccfp | D27: Question 67: Overall, did you feel you were treated with respect and dignity while you were in the hospital? | E27: 91.90932251 | F27: 81.51446209 | G27: 97.90047521 | H27: 90.20541903 | I27: 91.01741137 | J27: 87.76776623 | K27: 85.40079555 | L27: 85.18623616 | M27: 93.59542582 | N27: 89.61998376 | O27: 91.23957252 | P27: 93.92023789 | Q27: 90.66571045 | R27: 84.21740246 | S27: 87.32027464 | T27: 88.36714886 | U27: 94.5466056 | V27: 83.75223771 | W27: 89.32720706 | X27: 90.36036786 | Y27: 91.58437786 | Z27: 91.71947622 | AA27: 88.52926183 | AB27: 91.14092273 | AC27: 91.24621932 | AD27: 96.84527924 | AE27: 90.05524832 | AF27: 95.93440514 | AG27: 92.00323052 | AH27: 87.3255955 | AI27: 89.29116522 | AJ27: 89.00472129 | AK27: 91.04354246 | AL27: 89.96888886 | AM27: 87.2629314 | AN27: 92.49575254 | AO27: 91.39274244 | AP27: 88.40915838 | AQ27: 91.73766805 | AR27: 91.47740644 | AS27: 91.09698165 | AT27: 92.91944855 | AU27: 90.73686643 | AV27: 88.64467265 | AW27: 90.87772124 | AX27: 95.08936241 | AY27: 89.03078245 | AZ27: 88.38488098 | BA27: 91.2390075 | BB27: 87.48196851 | BC27: 90.7544597 | BD27: 96.06084535 | BE27: 89.81877351 | BF27: 92.24926294 | BG27: 90.82266312 | BH27: 93.18268287 | BI27: 92.23200798 | BJ27: 89.76083968 | BK27: 91.65945175 | BL27: 90.21510095 | BM27: 90.78588217 | BN27: 91.9589672 | BO27: 86.77818922 | BP27: 81.51446209 | BQ27: 89.99845164 | BR27: 91.87622605 | BS27: 88.40995595 | BT27: 91.0623223 | BU27: 87.88904673 | BV27: 92.38401292 | BW27: 88.91460266 | BX27: 90.93049827 | BY27: 92.27449133 | BZ27: 89.3232879 | CA27: 90.01986466 | CB27: 91.48252093 | CC27: 96.6092542 | CD27: 89.46034117 | CE27: 92.4111296 | CF27: 88.32555681 | CG27: 90.49073898 | CH27: 90.94786159 | CI27: 90.25532469 | CJ27: 91.59005203 | CK27: 87.17592487 | CL27: 88.81604604 | CM27: 90.6398283 | CN27: 90.40759872 | CO27: 86.30199319 | CP27: 91.34464632 | CQ27: 88.68667684 | CR27: 87.81179363 | CS27: 91.04262529 | CT27: 88.92234994 | CU27: 86.16188886 | CV27: 96.82632109 | CW27: 97.90047521 | CX27: 82.97707694 | CY27: 92.12510346 | CZ27: 90.15765942 | DA27: 88.90198772 | DB27: 87.1667343 | DC27: 89.71090131 | DD27: 90.85138029 | DE27: 89.51318833 | DF27: 89.89563691 | DG27: 95.07220063 | DH27: 88.38960585 | DI27: 92.88855748 | DJ27: 96.30998963 | DK27: 93.36622512 | DL27: 89.09235668 | DM27: 92.08911972 | DN27: 91.68854563 | DO27: 91.83276708 | DP27: 89.65386964 | DQ27: 89.90808276 | DR27: 92.44499538 | DS27: 90.8553914 | DT27: 91.9895343 | DU27: 87.34672361 | DV27: 90.45612537 | DW27: 88.03256959 | DX27: 89.15273731 | DY27: 85.53457314 | DZ27: 90.51601481 | EA27: 88.66457535 | EB27: 90.32116508 | EC27: 90.46174956 | ED27: 87.60522851 | EE27: 87.87938021 | EF27: 90.13289287 | EG27: 88.04952529 | EH27: 90.08584063 | EI27: 90.16376107 | EJ27: 90.4570216 | EK27: 89.99882685 | EL27: 87.74254621 | EM27: 90.13779512 | EN27: 86.49145188 | EO27: 87.96530273 | EP27: 88.73727347 | EQ27: 91.5488773 | ER27: 90.31698786 | ES27: 90.4468644 | ET27: 87.79421238 | EU27: 89.52906776 | EV27: 92.36897361
A28: ccfp7 | B28: q42 | C28: ccfp | D28: Question 42: Do you think the hospital staff did everything they could to help control your pain? | E28: 84.10137869 | F28: 69.53952108 | G28: 92.90313706 | H28: 81.87569209 | I28: 81.45087614 | J28: 79.49806292 | K28: 78.81881731 | L28: 79.47824966 | M28: 83.69653064 | N28: 83.2554153 | O28: 87.30868174 | P28: 88.12209326 | Q28: 82.65392669 | R28: 75.60550672 | S28: 76.68469809 | T28: 78.89937614 | U28: 83.70135669 | V28: 74.30451254 | W28: 80.59478842 | X28: 79.68104085 | Y28: 83.8187386 | Z28: 81.71818204 | AA28: 81.72680809 | AB28: 81.71856487 | AC28: 81.77712178 | AD28: 90.31870298 | AE28: 82.13998278 | AF28: 91.91844878 | AG28: 85.97352246 | AH28: 75.05806656 | AI28: 82.43562502 | AJ28: 82.24237932 | AK28: 79.90532899 | AL28: 81.34182812 | AM28: 79.70420114 | AN28: 84.25684927 | AO28: 82.64458897 | AP28: 79.87744232 | AQ28: 84.57537376 | AR28: 82.04317217 | AS28: 84.8401698 | AT28: 83.87073209 | AU28: 81.75805453 | AV28: 79.06360669 | AW28: 83.09454582 | AX28: 91.62629059 | AY28: 76.58576593 | AZ28: 79.317753 | BA28: 79.72369594 | BB28: 81.0543609 | BC28: 80.52220058 | BD28: 89.41347966 | BE28: 82.3785573 | BF28: 85.50990642 | BG28: 82.02208476 | BH28: 84.16635374 | BI28: 83.55451069 | BJ28: 81.6015617 | BK28: 83.25355083 | BL28: 78.29409576 | BM28: 83.16330658 | BN28: 83.45338343 | BO28: 78.97363647 | BP28: 69.53952108 | BQ28: 83.04483908 | BR28: 84.66966237 | BS28: 84.80004864 | BT28: 81.81055471 | BU28: 76.20116225 | BV28: 87.11078764 | BW28: 78.82134047 | BX28: 81.72395529 | BY28: 84.12882442 | BZ28: 81.95161444 | CA28: 76.48342423 | CB28: 83.9658345 | CC28: 91.77348909 | CD28: 79.95982232 | CE28: 84.38466201 | CF28: 81.20022273 | CG28: 79.82294195 | CH28: 82.45842922 | CI28: 80.99653483 | CJ28: 83.73209088 | CK28: 79.88792205 | CL28: 82.14138794 | CM28: 83.1859072 | CN28: 81.52505582 | CO28: 79.3231255 | CP28: 78.82883321 | CQ28: 81.87166287 | CR28: 80.05282064 | CS28: 80.8447094 | CT28: 80.67204392 | CU28: 77.93458711 | CV28: 92.55972328 | CW28: 92.90313706 | CX28: 73.6386307 | CY28: 82.3151667 | CZ28: 81.76056584 | DA28: 78.19472219 | DB28: 81.38276973 | DC28: 80.27487942 | DD28: 82.49403973 | DE28: 82.62744984 | DF28: 79.94383468 | DG28: 88.88962908 | DH28: 78.86812829 | DI28: 84.08308154 | DJ28: 91.67457476 | DK28: 84.60842098 | DL28: 80.56752104 | DM28: 80.38109684 | DN28: 85.45252908 | DO28: 85.34812396 | DP28: 82.49558903 | DQ28: 83.05007716 | DR28: 85.89771225 | DS28: 83.19767721 | DT28: 84.79020532 | DU28: 81.06859071 | DV28: 82.85771932 | DW28: 79.31229992 | DX28: 79.21269679 | DY28: 77.23809868 | DZ28: 83.15197669 | EA28: 81.35860951 | EB28: 82.94367709 | EC28: 80.83473467 | ED28: 77.3286297 | EE28: 79.28401404 | EF28: 84.44264642 | EG28: 77.76976272 | EH28: 78.53825379 | EI28: 79.01188011 | EJ28: 82.75154889 | EK28: 82.33259809 | EL28: 78.50333462 | EM28: 81.40127167 | EN28: 80.03416324 | EO28: 76.9642542 | EP28: 79.56117452 | EQ28: 80.94155416 | ER28: 83.34912157 | ES28: 77.84551272 | ET28: 79.48875668 | EU28: 78.45433585 | EV28: 85.68087659
A29: ccfp | B29: ccfp | C29: ccfp | D29: ccfp | E29: 82.43389775 | F29: 72.27058916 | G29: 90.68330451 | H29: 80.82807013 | I29: 78.55729498 | J29: 79.87265076 | K29: 78.43670062 | L29: 76.47968002 | M29: 82.29738895 | N29: 81.56713116 | O29: 83.80209712 | P29: 84.24471911 | Q29: 81.10313117 | R29: 74.53455881 | S29: 77.49311989 | T29: 77.63949202 | U29: 81.57484784 | V29: 75.41713552 | W29: 79.41330947 | X29: 79.6779282 | Y29: 84.15938096 | Z29: 81.86312018 | AA29: 81.00625435 | AB29: 79.28117033 | AC29: 83.59150689 | AD29: 89.22779614 | AE29: 80.41325286 | AF29: 88.64077489 | AG29: 83.12854024 | AH29: 77.62080405 | AI29: 81.02019913 | AJ29: 80.59182123 | AK29: 82.93417407 | AL29: 79.18019403 | AM29: 79.35716107 | AN29: 81.01673006 | AO29: 82.21510338 | AP29: 76.70690135 | AQ29: 81.1736003 | AR29: 80.73817674 | AS29: 81.20147687 | AT29: 81.87505411 | AU29: 80.05643216 | AV29: 78.33683586 | AW29: 83.62373815 | AX29: 86.48598834 | AY29: 82.30157191 | AZ29: 77.91761919 | BA29: 80.13804292 | BB29: 77.7869709 | BC29: 80.49721632 | BD29: 87.26537811 | BE29: 81.99691954 | BF29: 83.51829666 | BG29: 82.25810332 | BH29: 82.63728034 | BI29: 81.8752122 | BJ29: 79.69180155 | BK29: 81.38022324 | BL29: 79.43578581 | BM29: 82.13738864 | BN29: 83.06207788 | BO29: 76.25534609 | BP29: 72.27058916 | BQ29: 79.94026951 | BR29: 81.98322437 | BS29: 80.62395313 | BT29: 80.55701343 | BU29: 78.71440994 | BV29: 82.42258207 | BW29: 79.54534522 | BX29: 79.97592923 | BY29: 84.2024551 | BZ29: 80.27250669 | CA29: 79.82895413 | CB29: 79.65438315 | CC29: 90.68330451 | CD29: 81.73505373 | CE29: 82.28460933 | CF29: 78.91680543 | CG29: 80.61792147 | CH29: 80.55337591 | CI29: 80.86373615 | CJ29: 81.75110955 | CK29: 77.57386696 | CL29: 77.90695444 | CM29: 82.45087126 | CN29: 79.46043089 | CO29: 77.99661039 | CP29: 80.88101 | CQ29: 81.89272449 | CR29: 78.1999756 | CS29: 80.75594975 | CT29: 79.83770041 | CU29: 77.95873358 | CV29: 89.13664283 | CW29: 89.71843332 | CX29: 74.72463978 | CY29: 80.39107118 | CZ29: 81.00388972 | DA29: 77.42539957 | DB29: 78.49531772 | DC29: 79.20807464 | DD29: 83.61897918 | DE29: 80.33522565 | DF29: 82.59481416 | DG29: 87.00597983 | DH29: 78.29108667 | DI29: 81.36275923 | DJ29: 87.13290474 | DK29: 82.8041271 | DL29: 77.64808121 | DM29: 85.1292309 | DN29: 83.39358311 | DO29: 81.18753888 | DP29: 79.26896984 | DQ29: 80.1321991 | DR29: 82.86612604 | DS29: 82.26822157 | DT29: 82.68151098 | DU29: 80.27734269 | DV29: 79.75785786 | DW29: 79.36126262 | DX29: 79.46062909 | DY29: 78.71223456 | DZ29: 81.72390553 | EA29: 81.04039887 | EB29: 80.64210258 | EC29: 81.38891909 | ED29: 77.75521428 | EE29: 77.55388253 | EF29: 81.23858511 | EG29: 79.16823791 | EH29: 80.06061264 | EI29: 81.44963701 | EJ29: 80.17200254 | EK29: 81.53198189 | EL29: 79.57048235 | EM29: 78.66199465 | EN29: 78.87831372 | EO29: 79.77478815 | EP29: 80.52486082 | EQ29: 81.09878872 | ER29: 79.86243385 | ES29: 80.23942399 | ET29: 79.36599236 | EU29: 78.82577342 | EV29: 83.29466572
A30: Overall | B30: Overall | C30: Overall | D30: Overall | E30: =PERCENTILE(I30:EZ30,0.8) -> 78.14423296 | F30: 68.51023982 | G30: 88.43938456 | H30: =AVERAGE(H8,H12,H16,H21,H29) -> 76.22449347 | I30: 74.89625978 | J30: 72.15093839 | K30: 73.01799004 | L30: 70.85156348 | M30: 78.80194918 | N30: 75.12085795 | O30: 77.54003533 | P30: 78.76174673 | Q30: 78.08494005 | R30: 69.58715527 | S30: 72.67074785 | T30: 73.67658618 | U30: 80.80138164 | V30: 68.51023982 | W30: 72.92869079 | X30: 76.05766488 | Y30: 79.30601404 | Z30: 77.52027536 | AA30: 74.19500594 | AB30: 75.49646732 | AC30: 77.23501242 | AD30: 84.3127479 | AE30: 75.72264625 | AF30: 86.35153864 | AG30: 77.56948949 | AH30: 72.35010064 | AI30: 72.42948374 | AJ30: 76.71223051 | AK30: 79.72320241 | AL30: 76.63818982 | AM30: 73.92869752 | AN30: 77.26959182 | AO30: 78.26719118 | AP30: 72.54691583 | AQ30: 75.96129661 | AR30: 76.72967053 | AS30: 76.12118566 | AT30: 79.97040941 | AU30: 77.39577303 | AV30: 76.38529139 | AW30: 77.22389378 | AX30: 84.70978946 | AY30: 82.44350905 | AZ30: 72.08982149 | BA30: 75.17317451 | BB30: 73.54830206 | BC30: 77.20025061 | BD30: 82.68412194 | BE30: 75.8049895 | BF30: 74.73388557 | BG30: 78.53305218 | BH30: 79.31411173 | BI30: 78.00139425 | BJ30: 76.49533658 | BK30: 77.02937873 | BL30: 75.39594276 | BM30: 77.88389814 | BN30: 79.00657563 | BO30: 70.73876519 | BP30: 69.36212262 | BQ30: 75.66222754 | BR30: 77.58396627 | BS30: 75.40326229 | BT30: 76.4272819 | BU30: 72.76650597 | BV30: 77.18863178 | BW30: 74.92536457 | BX30: 74.42828178 | BY30: 78.55111378 | BZ30: 72.87844867 | CA30: 74.86533824 | CB30: 77.04587113 | CC30: 87.17588411 | CD30: 76.7129506 | CE30: No data | CF30: 75.0071207 | CG30: 73.72127195 | CH30: 77.45443041 | CI30: 77.62092016 | CJ30: 75.44651698 | CK30: 72.25464767 | CL30: 74.45657388 | CM30: 78.21015313 | CN30: 74.284332 | CO30: 73.22676342 | CP30: 77.67066523 | CQ30: 75.7540378 | CR30: 74.10477737 | CS30: 78.54093685 | CT30: 75.86091964 | CU30: 71.43520617 | CV30: 88.43938456 | CW30: 87.6557202 | CX30: 74.61670593 | CY30: 77.44044382 | CZ30: 73.75091747 | DA30: 74.10266847 | DB30: 73.04816295 | DC30: 74.09621408 | DD30: 78.36626243 | DE30: 75.6805732 | DF30: 76.15163801 | DG30: 84.3078128 | DH30: 73.37734938 | DI30: 78.17974449 | DJ30: 82.67372391 | DK30: 80.37806694 | DL30: 75.73577862 | DM30: 80.81792849 | DN30: 77.81848864 | DO30: 77.76902786 | DP30: 72.98807971 | DQ30: 75.89770558 | DR30: 79.16488534 | DS30: 76.64244916 | DT30: 76.65291669 | DU30: 76.15700949 | DV30: 75.22285513 | DW30: 75.53161707 | DX30: 72.73174697 | DY30: 71.50199829 | DZ30: 76.05116201 | EA30: 73.37124312 | EB30: 74.63087881 | EC30: 74.82683397 | ED30: 72.65522221 | EE30: 72.81194495 | EF30: 76.39490839 | EG30: 73.54357066 | EH30: 75.54216038 | EI30: 76.75791538 | EJ30: 76.05651709 | EK30: 77.07859581 | EL30: 73.66459213 | EM30: 76.56993553 | EN30: 72.57608734 | EO30: 73.50855303 | EP30: 74.39851652 | EQ30: 78.34374662 | ER30: 74.39502021 | ES30: 74.74493929 | ET30: 73.73131333 | EU30: 73.88332659 | EV30: 78.09096566

Sheet IP1718Adj (hidden)
H3: England average | I3: Isle of Wight NHS Trust | J3: Barts Health NHS Trust | K3: London North West Healthcare NHS Trust | L3: Royal Surrey County Hospital NHS Foundation Trust | M3: Weston Area Health NHS Trust | N3: Yeovil District Hospital NHS Foundation Trust | O3: University Hospitals Bristol NHS Foundation Trust | P3: Torbay and South Devon NHS Foundation Trust | Q3: Bradford Teaching Hospitals NHS Foundation Trust | R3: Southend University Hospital NHS Foundation Trust | S3: Royal Free London NHS Foundation Trust | T3: Royal National Orthopaedic Hospital NHS Trust | U3: North Middlesex University Hospital NHS Trust | V3: The Hillingdon Hospitals NHS Foundation Trust | W3: Kingston Hospital NHS Foundation Trust | X3: Taunton and Somerset NHS Foundation Trust | Y3: Dorset County Hospital NHS Foundation Trust | Z3: Walsall Healthcare NHS Trust | AA3: Wirral University Teaching Hospital NHS Foundation Trust | AB3: St Helens and Knowsley Teaching Hospitals NHS Trust | AC3: Liverpool Heart and Chest Hospital NHS Foundation Trust | AD3: Mid Cheshire Hospitals NHS Foundation Trust | AE3: The Christie NHS Foundation Trust | AF3: Northern Devon Healthcare NHS Trust | AG3: Bedford Hospital NHS Trust | AH3: Luton and Dunstable University Hospital NHS Foundation Trust | AI3: York Teaching Hospital NHS Foundation Trust | AJ3: Harrogate and District NHS Foundation Trust | AK3: Airedale NHS Foundation Trust | AL3: The Queen Elizabeth Hospital, King's Lynn, NHS Foundation Trust | AM3: Royal United Hospitals Bath NHS Foundation Trust | AN3: Poole Hospital NHS Foundation Trust | AO3: Milton Keynes University Hospital NHS Foundation Trust | AP3: Basildon and Thurrock University Hospitals NHS Foundation Trust | AQ3: Colchester Hospital University NHS Foundation Trust | AR3: Frimley Health NHS Foundation Trust | AS3: The Royal Bournemouth and Christchurch Hospitals NHS Foundation Trust | AT3: South Tyneside NHS Foundation Trust | AU3: Royal Cornwall Hospitals NHS Trust | AV3: Aintree University Hospital NHS Foundation Trust | AW3: The Clatterbridge Cancer Centre NHS Foundation Trust | AX3: Liverpool Women's NHS Foundation Trust | AY3: The Walton Centre NHS Foundation Trust | AZ3: Barking, Havering and Redbridge University Hospitals NHS Trust | BA3: Barnsley Hospital NHS Foundation Trust | BB3: The Rotherham NHS Foundation Trust | BC3: Chesterfield Royal Hospital NHS Foundation Trust | BD3: Royal Papworth Hospital NHS Foundation Trust | BE3: Peterborough and Stamford Hospitals NHS Foundation Trust | BF3: James Paget University Hospitals NHS Foundation Trust | BG3: Ipswich Hospital NHS Trust | BH3: West Suffolk NHS Foundation Trust | BI3: Cambridge University Hospitals NHS Foundation Trust | BJ3: Royal Devon and Exeter NHS Foundation Trust | BK3: University Hospital Southampton NHS Foundation Trust | BL3: Sheffield Teaching Hospitals NHS Foundation Trust | BM3: Portsmouth Hospitals NHS Trust | BN3: Royal Berkshire NHS Foundation Trust | BO3: Guy's and St Thomas' NHS Foundation Trust | BP3: Lewisham and Greenwich NHS Trust | BQ3: Croydon Health Services NHS Trust | BR3: St George's University Hospitals NHS Foundation Trust | BS3: South Warwickshire NHS Foundation Trust | BT3: University Hospitals of North Midlands NHS Trust | BU3: Burton Hospitals NHS Foundation Trust | BV3: Northern Lincolnshire and Goole NHS Foundation Trust | BW3: East Cheshire NHS Trust | BX3: Countess of Chester Hospital NHS Foundation Trust | BY3: King's College Hospital NHS Foundation Trust | BZ3: Sherwood Forest Hospitals NHS Foundation Trust | CA3: Plymouth Hospitals NHS Trust | CB3: University Hospitals Coventry and Warwickshire NHS Trust | CC3: Whittington Health NHS Trust | CD3: The Robert Jones and Agnes Hunt Orthopaedic Hospital NHS Foundation Trust | CE3: The Royal Wolverhampton NHS Trust | CF3: City Hospitals Sunderland NHS Foundation Trust | CG3: Wye Valley NHS Trust | CH3: George Eliot Hospital NHS Trust | CI3: Norfolk and Norwich University Hospitals NHS Foundation Trust | CJ3: University Hospital of South Manchester NHS Foundation Trust | CK3: Salford Royal NHS Foundation Trust | CL3: Bolton NHS Foundation Trust | CM3: Tameside and Glossop Integrated Care NHS Foundation Trust | CN3: Great Western Hospitals NHS Foundation Trust | CO3: Hampshire Hospitals NHS Foundation Trust | CP3: Dartford and Gravesham NHS Trust | CQ3: The Dudley Group NHS Foundation Trust | CR3: North Cumbria University Hospitals NHS Trust | CS3: Kettering General Hospital NHS Foundation Trust | CT3: Northampton General Hospital NHS Trust | CU3: Salisbury NHS Foundation Trust | CV3: Doncaster and Bassetlaw Teaching Hospitals NHS Foundation Trust | CW3: Medway NHS Foundation Trust | CX3: Queen Victoria Hospital NHS Foundation Trust | CY3: The Royal Marsden NHS Foundation Trust | CZ3: Birmingham Women's and Children's NHS Foundation Trust | DA3: Royal Liverpool and Broadgreen University Hospitals NHS Trust | DB3: Mid Essex Hospital Services NHS Trust | DC3: Chelsea and Westminster Hospital NHS Foundation Trust | DD3: The Princess Alexandra Hospital NHS Trust | DE3: Homerton University Hospital NHS Foundation Trust | DF3: Heart of England NHS Foundation Trust | DG3: Gateshead Health NHS Foundation Trust | DH3: Leeds Teaching Hospitals NHS Trust | DI3: Wrightington, Wigan and Leigh NHS Foundation Trust | DJ3: The Royal Orthopaedic Hospital NHS Foundation Trust | DK3: University Hospitals Birmingham NHS Foundation Trust | DL3: University College London Hospitals NHS Foundation Trust | DM3: Royal Brompton & Harefield NHS Foundation Trust | DN3: The Newcastle Upon Tyne Hospitals NHS Foundation Trust | DO3: Gloucestershire Hospitals NHS Foundation Trust | DP3: Northumbria Healthcare NHS Foundation Trust | DQ3: Derby Teaching Hospitals NHS Foundation Trust | DR3: Oxford University Hospitals NHS Foundation Trust | DS3: Ashford and St Peter's Hospitals NHS Foundation Trust | DT3: Surrey and Sussex Healthcare NHS Trust | DU3: South Tees Hospitals NHS Foundation Trust | DV3: University Hospitals of Morecambe Bay NHS Foundation Trust | DW3: North Bristol NHS Trust | DX3: Epsom and St Helier University Hospitals NHS Trust | DY3: East Kent Hospitals University NHS Foundation Trust | DZ3: North Tees and Hartlepool NHS Foundation Trust | EA3: Southport and Ormskirk Hospital NHS Trust | EB3: Central Manchester University Hospitals NHS Foundation Trust | EC3: Pennine Acute Hospitals NHS Trust | ED3: Hull and East Yorkshire Hospitals NHS Trust | EE3: United Lincolnshire Hospitals NHS Trust | EF3: University Hospitals of Leicester NHS Trust | EG3: Maidstone and Tunbridge Wells NHS Trust | EH3: West Hertfordshire Hospitals NHS Trust | EI3: East and North Hertfordshire NHS Trust | EJ3: Stockport NHS Foundation Trust | EK3: Worcestershire Acute Hospitals NHS Trust | EL3: Warrington and Halton Hospitals NHS Foundation Trust | EM3: Calderdale and Huddersfield NHS Foundation Trust | EN3: Nottingham University Hospitals NHS Trust | EO3: East Sussex Healthcare NHS Trust | EP3: Mid Yorkshire Hospitals NHS Trust | EQ3: Brighton and Sussex University Hospitals NHS Trust | ER3: Sandwell and West Birmingham Hospitals NHS Trust | ES3: Blackpool Teaching Hospitals NHS Foundation Trust | ET3: Lancashire Teaching Hospitals NHS Foundation Trust | EU3: County Durham and Darlington NHS Foundation Trust | EV3: Buckinghamshire Healthcare NHS Trust | EW3: East Lancashire Hospitals NHS Trust | EX3: Shrewsbury and Telford Hospital NHS Trust | EY3: Imperial College Healthcare NHS Trust | EZ3: Western Sussex Hospitals NHS Foundation Trust
B4: Qnumber | D4: question | E4: 80th percentile | F4: Min | G4: Max | H4: ENG | I4: R1F | J4: R1H | K4: R1K | L4: RA2 | M4: RA3 | N4: RA4 | O4: RA7 | P4: RA9 | Q4: RAE | R4: RAJ | S4: RAL | T4: RAN | U4: RAP | V4: RAS | W4: RAX | X4: RBA | Y4: RBD | Z4: RBK | AA4: RBL | AB4: RBN | AC4: RBQ | AD4: RBT | AE4: RBV | AF4: RBZ | AG4: RC1 | AH4: RC9 | AI4: RCB | AJ4: RCD | AK4: RCF | AL4: RCX | AM4: RD1 | AN4: RD3 | AO4: RD8 | AP4: RDD | AQ4: RDE | AR4: RDU | AS4: RDZ | AT4: RE9 | AU4: REF | AV4: REM | AW4: REN | AX4: REP | AY4: RET | AZ4: RF4 | BA4: RFF | BB4: RFR | BC4: RFS | BD4: RGM | BE4: RGN | BF4: RGP | BG4: RGQ | BH4: RGR | BI4: RGT | BJ4: RH8 | BK4: RHM | BL4: RHQ | BM4: RHU | BN4: RHW | BO4: RJ1 | BP4: RJ2 | BQ4: RJ6 | BR4: RJ7 | BS4: RJC | BT4: RJE | BU4: RJF | BV4: RJL | BW4: RJN | BX4: RJR | BY4: RJZ | BZ4: RK5 | CA4: RK9 | CB4: RKB | CC4: RKE | CD4: RL1 | CE4: RL4 | CF4: RLN | CG4: RLQ | CH4: RLT | CI4: RM1 | CJ4: RM2 | CK4: RM3 | CL4: RMC | CM4: RMP | CN4: RN3 | CO4: RN5 | CP4: RN7 | CQ4: RNA | CR4: RNL | CS4: RNQ | CT4: RNS | CU4: RNZ | CV4: RP5 | CW4: RPA | CX4: RPC | CY4: RPY | CZ4: RQ3 | DA4: RQ6 | DB4: RQ8 | DC4: RQM | DD4: RQW | DE4: RQX | DF4: RR1 | DG4: RR7 | DH4: RR8 | DI4: RRF | DJ4: RRJ | DK4: RRK | DL4: RRV | DM4: RT3 | DN4: RTD | DO4: RTE | DP4: RTF | DQ4: RTG | DR4: RTH | DS4: RTK | DT4: RTP | DU4: RTR | DV4: RTX | DW4: RVJ | DX4: RVR | DY4: RVV | DZ4: RVW | EA4: RVY | EB4: RW3 | EC4: RW6 | ED4: RWA | EE4: RWD | EF4: RWE | EG4: RWF | EH4: RWG | EI4: RWH | EJ4: RWJ | EK4: RWP | EL4: RWW | EM4: RWY | EN4: RX1 | EO4: RXC | EP4: RXF | EQ4: RXH | ER4: RXK | ES4: RXL | ET4: RXN | EU4: RXP | EV4: RXQ | EW4: RXR | EX4: RXW | EY4: RYJ | EZ4: RYR
A5: aw1 | B5: q7 | C5: aw | D5: Question 7: Was your admission date changed by the hospital? | E5: =PERCENTILE(I5:FA5,0.8) -> 93.8245924 | F5: =MIN(I5:FA5) -> 81.376831 | G5: =MAX(I5:FA5) -> 99.02456 | H5: =AVERAGE(I5:FA5) -> 91.50907884 | I5: 90.263346 | J5: 83.91771 | K5: 86.286404 | L5: 93.435798 | M5: 90.016537 | N5: 94.962067 | O5: 87.049152 | P5: 92.559856 | Q5: 95.485194 | R5: 94.30122 | S5: 91.285956 | T5: 89.56596 | U5: 93.771753 | V5: 89.58482 | W5: 93.49588 | X5: 94.164896 | Y5: 92.449108 | Z5: 91.207639 | AA5: 91.126469 | AB5: 93.832432 | AC5: 93.288964 | AD5: 91.306141 | AE5: 96.199018 | AF5: 88.380441 | AG5: 90.340742 | AH5: 91.642319 | AI5: 93.126083 | AJ5: 95.969152 | AK5: 93.76531 | AL5: 90.25237 | AM5: 91.171557 | AN5: 94.836408 | AO5: 90.238806 | AP5: 92.825582 | AQ5: 89.518541 | AR5: 93.310274 | AS5: 92.969568 | AT5: 89.740969 | AU5: 88.575753 | AV5: 91.453226 | AW5: 99.02456 | AX5: 95.212792 | AY5: 93.709997 | AZ5: 91.063258 | BA5: 92.401955 | BB5: 89.558798 | BC5: 93.096711 | BD5: 95.494274 | BE5: 92.310811 | BF5: 95.158271 | BG5: 94.135297 | BH5: 87.819259 | BI5: 87.834144 | BJ5: 93.259483 | BK5: 90.374167 | BL5: 92.68923 | BM5: 90.918836 | BN5: 94.186271 | BO5: 91.601082 | BP5: 85.421819 | BQ5: 93.090504 | BR5: 91.382733 | BS5: 94.146954 | BT5: 88.643517 | BU5: 91.378853 | BV5: 90.988673 | BW5: 94.047342 | BX5: 87.361804 | BY5: 87.003052 | BZ5: 91.557794 | CA5: 87.752932 | CB5: 88.697613 | CC5: 93.478003 | CD5: 91.192996 | CE5: 95.062307 | CF5: 94.569868 | CG5: 92.792961 | CH5: 94.922126 | CI5: 91.86005 | CJ5: 90.782467 | CK5: 87.922394 | CL5: 87.456246 | CM5: 87.308513 | CN5: 93.241629 | CO5: 95.086187 | CP5: 91.132972 | CQ5: 91.628191 | CR5: 94.222455 | CS5: 90.696991 | CT5: 87.187711 | CU5: 92.122609 | CV5: 92.750789 | CW5: 93.569863 | CX5: 94.647679 | CY5: 95.15059 | CZ5: 93.225945 | DA5: 92.004104 | DB5: 89.865104 | DC5: 89.247255 | DD5: 81.376831 | DE5: 94.449708 | DF5: 89.279344 | DG5: 93.526276 | DH5: 90.709503 | DI5: 89.149741 | DJ5: 91.189495 | DK5: 93.725324 | DL5: 91.33829 | DM5: 94.386501 | DN5: 95.43142 | DO5: 90.620005 | DP5: 92.150558 | DQ5: 95.593837 | DR5: 88.92344 | DS5: 88.948514 | DT5: 84.405435 | DU5: 93.272761 | DV5: 92.948909 | DW5: 94.253781 | DX5: 90.830384 | DY5: 94.56281 | DZ5: 92.561048 | EA5: 89.033236 | EB5: 89.883559 | EC5: 86.816693 | ED5: 91.574603 | EE5: 89.662592 | EF5: 91.73606 | EG5: 90.909795 | EH5: 91.037767 | EI5: 88.605152 | EJ5: 90.958142 | EK5: 91.979696 | EL5: 88.855751 | EM5: 93.396554 | EN5: 93.892411 | EO5: 91.249083 | EP5: 92.526492 | EQ5: 91.183589 | ER5: 93.4522 | ES5: 88.09878 | ET5: 88.051556 | EU5: 87.930275 | EV5: 93.812833 | EW5: 92.486748 | EX5: 92.024232 | EY5: 89.282776 | EZ5: 89.144966
A6: aw2 | B6: q6 | C6: aw | D6: Question 6: How do you feel about the length of time you were on the waiting list before your admission to hospital? | E6: 86.276702 | F6: 63.126571 | G6: 96.761404 | H6: 81.8742225 | I6: 77.192904 | J6: 79.463971 | K6: 78.098839 | L6: 88.188951 | M6: 74.016723 | N6: 85.141665 | O6: 82.365829 | P6: 77.53809 | Q6: 80.93168 | R6: 76.3609 | S6: 83.860163 | T6: 77.758466 | U6: 78.538687 | V6: 76.460673 | W6: 82.138851 | X6: 81.973595 | Y6: 80.163762 | Z6: 78.141972 | AA6: 82.619399 | AB6: 84.727602 | AC6: 86.046115 | AD6: 86.563008 | AE6: 92.838981 | AF6: 69.730508 | AG6: 87.4774 | AH6: 86.424118 | AI6: 85.753997 | AJ6: 78.746903 | AK6: 88.440187 | AL6: 77.919976 | AM6: 78.727139 | AN6: 89.661968 | AO6: 73.703087 | AP6: 78.11142 | AQ6: 76.013371 | AR6: 83.021813 | AS6: 78.640405 | AT6: 83.601149 | AU6: 75.250676 | AV6: 83.979118 | AW6: 96.761404 | AX6: 88.19734 | AY6: 84.600711 | AZ6: 82.232969 | BA6: 81.554756 | BB6: 83.262104 | BC6: 91.652651 | BD6: 89.6468 | BE6: 89.281789 | BF6: 63.126571 | BG6: 79.54696 | BH6: 78.892167 | BI6: 86.555184 | BJ6: 79.478214 | BK6: 82.484763 | BL6: 84.93198 | BM6: 83.7462 | BN6: 91.530953 | BO6: 84.690119 | BP6: 78.817808 | BQ6: 76.693844 | BR6: 81.567227 | BS6: 89.632288 | BT6: 81.02783 | BU6: 86.016513 | BV6: 77.921184 | BW6: 81.888428 | BX6: 79.445993 | BY6: 82.06737 | BZ6: 81.786495 | CA6: 78.127254 | CB6: 75.585857 | CC6: 83.847881 | CD6: 86.90882 | CE6: 83.968402 | CF6: 89.844203 | CG6: 73.899107 | CH6: 81.292495 | CI6: 79.020237 | CJ6: 84.466061 | CK6: 78.366923 | CL6: 81.308793 | CM6: 78.038394 | CN6: 84.816456 | CO6: 88.187748 | CP6: 83.577567 | CQ6: 83.111485 | CR6: 88.105179 | CS6: 76.56942 | CT6: 79.086052 | CU6: 74.882545 | CV6: 86.055578 | CW6: 77.726056 | CX6: 91.983561 | CY6: 94.653155 | CZ6: 88.895052 | DA6: 87.536116 | DB6: 78.307511 | DC6: 77.151078 | DD6: 75.996291 | DE6: 81.485537 | DF6: 78.905822 | DG6: 90.27321 | DH6: 84.883508 | DI6: 80.124225 | DJ6: 81.811544 | DK6: 87.132556 | DL6: 86.436669 | DM6: 87.703553 | DN6: 84.394993 | DO6: 81.528485 | DP6: 91.542883 | DQ6: 87.565192 | DR6: 84.445493 | DS6: 78.977383 | DT6: 71.513561 | DU6: 88.440273 | DV6: 81.839315 | DW6: 82.977252 | DX6: 83.638938 | DY6: 78.880078 | DZ6: 82.41671 | EA6: 79.677492 | EB6: 83.55961 | EC6: 78.661059 | ED6: 81.072838 | EE6: 85.350418 | EF6: 82.030774 | EG6: 71.496505 | EH6: 79.236313 | EI6: 76.912289 | EJ6: 80.973073 | EK6: 77.413281 | EL6: 79.929226 | EM6: 84.497209 | EN6: 83.849172 | EO6: 75.681392 | EP6: 78.162202 | EQ6: 78.326879 | ER6: 73.676532 | ES6: 81.27851 | ET6: 79.599747 | EU6: 78.946071 | EV6: 72.452164 | EW6: 81.528035 | EX6: 83.81003 | EY6: 75.691692 | EZ6: 79.967284
A7: aw3 | B7: q9 | C7: aw | D7: Question 9: From the time you arrived at the hospital, did you feel that you had to wait a long time to get to a bed on a ward? | E7: 82.119273 | F7: 57.988544 | G7: 96.594252 | H7: 76.97890548 | I7: 74.043632 | J7: 67.215994 | K7: 69.798194 | L7: 85.112087 | M7: 79.969277 | N7: 80.39119 | O7: 85.679435 | P7: 80.43972 | Q7: 70.360507 | R7: 78.676168 | S7: 69.903458 | T7: 96.594252 | U7: 62.984185 | V7: 66.623235 | W7: 75.963072 | X7: 85.469759 | Y7: 86.95667 | Z7: 62.0428 | AA7: 70.473158 | AB7: 70.371332 | AC7: 91.88327 | AD7: 75.221489 | AE7: 89.890088 | AF7: 79.243624 | AG7: 72.230822 | AH7: 71.076707 | AI7: 74.411282 | AJ7: 84.871648 | AK7: 82.705726 | AL7: 77.482194 | AM7: 82.213103 | AN7: 83.789756 | AO7: 72.698757 | AP7: 77.345569 | AQ7: 71.797949 | AR7: 78.49176 | AS7: 86.234789 | AT7: 81.978528 | AU7: 72.935531 | AV7: 67.569864 | AW7: 96.522747 | AX7: 84.585196 | AY7: 89.215849 | AZ7: 68.48379 | BA7: 73.71299 | BB7: 74.978087 | BC7: 78.109586 | BD7: 95.887752 | BE7: 78.652175 | BF7: 83.283377 | BG7: 75.658683 | BH7: 80.533287 | BI7: 78.653778 | BJ7: 86.167038 | BK7: 84.92023 | BL7: 80.407338 | BM7: 74.812474 | BN7: 80.541417 | BO7: 79.453949 | BP7: 70.072542 | BQ7: 68.916455 | BR7: 77.76411 | BS7: 78.961377 | BT7: 76.554768 | BU7: 76.060124 | BV7: 66.659645 | BW7: 79.473291 | BX7: 78.40364 | BY7: 74.882262 | BZ7: 80.215008 | CA7: 74.10992 | CB7: 64.711353 | CC7: 74.773607 | CD7: 91.662948 | CE7: 81.437919 | CF7: 82.642112 | CG7: 73.325904 | CH7: 77.641027 | CI7: 82.295301 | CJ7: 79.698632 | CK7: 79.273994 | CL7: 75.716369 | CM7: 70.280058 | CN7: 72.851448 | CO7: 80.916399 | CP7: 71.349077 | CQ7: 67.419219 | CR7: 81.42854 | CS7: 77.044841 | CT7: 74.239822 | CU7: 83.639507 | CV7: 78.197673 | CW7: 71.574975 | CX7: 91.041868 | CY7: 91.095328 | CZ7: 87.480323 | DA7: 68.946124 | DB7: 78.098613 | DC7: 76.853421 | DD7: 57.988544 | DE7: 79.885192 | DF7: 67.822797 | DG7: 77.581607 | DH7: 69.837311 | DI7: 75.411304 | DJ7: 87.347964 | DK7: 75.716327 | DL7: 75.02202 | DM7: 90.215793 | DN7: 87.202114 | DO7: 77.346908 | DP7: 78.070606 | DQ7: 81.64219 | DR7: 79.229201 | DS7: 80.536994 | DT7: 74.390582 | DU7: 86.597661 | DV7: 78.224939 | DW7: 78.227311 | DX7: 71.998796 | DY7: 67.881964 | DZ7: 80.949919 | EA7: 69.438542 | EB7: 77.063101 | EC7: 63.672959 | ED7: 76.808607 | EE7: 74.570175 | EF7: 78.468482 | EG7: 72.658522 | EH7: 68.171131 | EI7: 73.385762 | EJ7: 74.242192 | EK7: 59.409601 | EL7: 70.586233 | EM7: 75.169627 | EN7: 74.451579 | EO7: 77.41239 | EP7: 64.78705 | EQ7: 75.989532 | ER7: 73.008309 | ES7: 69.266545 | ET7: 72.374387 | EU7: 81.667067 | EV7: 73.944075 | EW7: 66.815706 | EX7: 68.961232 | EY7: 74.251395 | EZ7: 81.745898
A8: aw | B8: aw | C8: aw | D8: aw | E8: 86.7691038 | F8: 71.787222 | G8: 97.436237 | H8: 83.45406901 | I8: 80.499961 | J8: 76.865892 | K8: 78.061146 | L8: 88.912279 | M8: 81.334179 | N8: 86.831641 | O8: 85.031472 | P8: 83.512555 | Q8: 82.259127 | R8: 83.112763 | S8: 81.683192 | T8: 87.972893 | U8: 78.431542 | V8: 77.556243 | W8: 83.865935 | X8: 87.20275 | Y8: 86.52318 | Z8: 77.130804 | AA8: 81.406342 | AB8: 82.977122 | AC8: 90.406116 | AD8: 84.363546 | AE8: 92.976029 | AF8: 79.118191 | AG8: 83.349655 | AH8: 83.047715 | AI8: 84.430454 | AJ8: 86.529234 | AK8: 88.303741 | AL8: 81.884847 | AM8: 84.037266 | AN8: 89.429378 | AO8: 78.880217 | AP8: 82.760857 | AQ8: 79.109954 | AR8: 84.941282 | AS8: 85.948254 | AT8: 85.106882 | AU8: 78.920654 | AV8: 81.000736 | AW8: 97.436237 | AX8: 89.331776 | AY8: 89.175519 | AZ8: 80.593339 | BA8: 82.556567 | BB8: 82.599663 | BC8: 87.619649 | BD8: 93.676275 | BE8: 86.748258 | BF8: 80.52274 | BG8: 83.113647 | BH8: 82.414904 | BI8: 84.347702 | BJ8: 86.301578 | BK8: 85.926387 | BL8: 86.009516 | BM8: 83.15917 | BN8: 88.75288 | BO8: 85.248383 | BP8: 78.104056 | BQ8: 79.566934 | BR8: 83.571357 | BS8: 87.580206 | BT8: 82.075372 | BU8: 84.485163 | BV8: 78.523167 | BW8: 85.136354 | BX8: 81.737146 | BY8: 81.317561 | BZ8: 84.519766 | CA8: 79.996702 | CB8: 76.331608 | CC8: 84.033164 | CD8: 89.921588 | CE8: 86.822876 | CF8: 89.018728 | CG8: 80.005991 | CH8: 84.618549 | CI8: 84.391863 | CJ8: 84.982387 | CK8: 81.854437 | CL8: 81.493803 | CM8: 78.542322 | CN8: 83.636511 | CO8: 88.063445 | CP8: 82.019872 | CQ8: 80.719632 | CR8: 87.918725 | CS8: 81.437084 | CT8: 80.171195 | CU8: 83.548221 | CV8: 85.668013 | CW8: 80.956965 | CX8: 92.557703 | CY8: 93.633024 | CZ8: 89.867107 | DA8: 82.828781 | DB8: 82.09041 | DC8: 81.083918 | DD8: 71.787222 | DE8: 85.273479 | DF8: 78.669321 | DG8: 87.127031 | DH8: 81.810107 | DI8: 81.561757 | DJ8: 86.783001 | DK8: 85.524736 | DL8: 84.26566 | DM8: 90.768616 | DN8: 89.009509 | DO8: 83.165133 | DP8: 87.254682 | DQ8: 88.267073 | DR8: 84.199378 | DS8: 82.820964 | DT8: 76.769859 | DU8: 89.436899 | DV8: 84.337721 | DW8: 85.152781 | DX8: 82.156039 | DY8: 80.441618 | DZ8: 85.309226 | EA8: 79.38309 | EB8: 83.50209 | EC8: 76.38357 | ED8: 83.152016 | EE8: 83.194395 | EF8: 84.078439 | EG8: 78.354941 | EH8: 79.481737 | EI8: 79.634401 | EJ8: 82.057802 | EK8: 76.267526 | EL8: 79.790403 | EM8: 84.354463 | EN8: 84.064387 | EO8: 81.447622 | EP8: 78.491915 | EQ8: 81.833333 | ER8: 80.04568 | ES8: 79.547945 | ET8: 80.008563 | EU8: 82.847805 | EV8: 80.069691 | EW8: 80.27683 | EX8: 81.598498 | EY8: 79.741955 | EZ8: 83.619383
A9: shqcc1 | B9: q33 | C9: shqcc | D9: Question 33: Sometimes, a member of staff will say one thing and another will say something quite different. Did this happen to you? | E9: 83.8925716 | F9: 72.893096 | G9: 89.788411 | H9: 81.514549 | I9: 81.022927 | J9: 75.453742 | K9: 78.674522 | L9: 83.060023 | M9: 81.098311 | N9: 83.250627 | O9: 85.565988 | P9: 83.419932 | Q9: 78.633992 | R9: 81.599257 | S9: 79.835117 | T9: 81.306694 | U9: 74.201309 | V9: 78.548187 | W9: 84.432139 | X9: 83.724769 | Y9: 82.972177 | Z9: 75.023776 | AA9: 80.683569 | AB9: 83.081033 | AC9: 89.309439 | AD9: 82.182753 | AE9: 86.731717 | AF9: 83.92172 | AG9: 79.761817 | AH9: 79.358583 | AI9: 81.716387 | AJ9: 83.16917 | AK9: 80.418426 | AL9: 77.514363 | AM9: 85.559471 | AN9: 85.791283 | AO9: 78.799472 | AP9: 79.79272 | AQ9: 80.084179 | AR9: 81.212393 | AS9: 82.721824 | AT9: 85.560032 | AU9: 82.278726 | AV9: 80.06828 | AW9: 89.788411 | AX9: 86.524688 | AY9: 84.137989 | AZ9: 78.837372 | BA9: 78.536157 | BB9: 81.453461 | BC9: 80.526517 | BD9: 89.285038 | BE9: 75.918985 | BF9: 80.157452 | BG9: 79.38629 | BH9: 83.890825 | BI9: 82.216715 | BJ9: 83.417175 | BK9: 80.859467 | BL9: 83.650674 | BM9: 78.812995 | BN9: 84.38612 | BO9: 79.744719 | BP9: 75.953652 | BQ9: 77.910474 | BR9: 81.805485 | BS9: 83.354267 | BT9: 80.817479 | BU9: 84.189989 | BV9: 80.034051 | BW9: 84.5302 | BX9: 81.237144 | BY9: 80.290995 | BZ9: 83.143503 | CA9: 77.850416 | CB9: 78.397064 | CC9: 80.187554 | CD9: 86.510442 | CE9: 80.202745 | CF9: 82.874176 | CG9: 79.640194 | CH9: 82.169973 | CI9: 80.468714 | CJ9: 83.422977 | CK9: 82.92668 | CL9: 85.128706 | CM9: 80.570489 | CN9: 81.078832 | CO9: 83.727204 | CP9: 81.164342 | CQ9: 78.271337 | CR9: 85.493464 | CS9: 81.818109 | CT9: 80.254182 | CU9: 82.861437 | CV9: 78.926307 | CW9: 80.525956 | CX9: 89.581735 | CY9: 88.243197 | CZ9: 80.44844 | DA9: 80.276631 | DB9: 80.106999 | DC9: 79.577131 | DD9: 77.697678 | DE9: 81.994969 | DF9: 79.642619 | DG9: 85.855336 | DH9: 78.836974 | DI9: 84.195235 | DJ9: 83.014923 | DK9: 74.290332 | DL9: 80.535129 | DM9: 87.357025 | DN9: 85.075442 | DO9: 82.577657 | DP9: 84.909537 | DQ9: 83.893736 | DR9: 84.002699 | DS9: 82.971011 | DT9: 76.844223 | DU9: 85.729726 | DV9: 82.852597 | DW9: 81.965722 | DX9: 81.41185 | DY9: 81.502384 | DZ9: 81.95422 | EA9: 81.515302 | EB9: 79.206733 | EC9: 79.75729 | ED9: 81.822619 | EE9: 80.834482 | EF9: 79.981324 | EG9: 82.490235 | EH9: 79.348328 | EI9: 80.074355 | EJ9: 82.082707 | EK9: 79.814121 | EL9: 84.218145 | EM9: 83.129024 | EN9: 80.390869 | EO9: 80.316726 | EP9: 75.873719 | EQ9: 80.718193 | ER9: 72.893096 | ES9: 77.346068 | ET9: 78.540585 | EU9: 81.171351 | EV9: 82.311952 | EW9: 75.236884 | EX9: 81.701585 | EY9: 79.703635 | EZ9: 85.518332
A10: shqcc2 | B10: q50 | C10: shqcc | D10: Question 50: On the day you left hospital, was your discharge delayed for any reason? + Question 51: What was the main reason for the delay? | E10: 68.4720176 | F10: 49.868765 | G10: 87.007642 | H10: 63.78469503 | I10: 60.583274 | J10: 52.660633 | K10: 58.912534 | L10: 61.702118 | M10: 62.960192 | N10: 60.869259 | O10: 64.991254 | P10: 68.725534 | Q10: 58.752429 | R10: 62.216725 | S10: 58.383962 | T10: 69.181258 | U10: 57.051667 | V10: 60.600683 | W10: 65.185242 | X10: 77.211225 | Y10: 70.941004 | Z10: 61.240002 | AA10: 66.340088 | AB10: 67.070426 | AC10: 67.200551 | AD10: 49.868765 | AE10: 60.059316 | AF10: 67.819609 | AG10: 56.193301 | AH10: 55.771051 | AI10: 67.669593 | AJ10: 66.021684 | AK10: 63.825875 | AL10: 52.129487 | AM10: 67.216023 | AN10: 65.132044 | AO10: 59.137212 | AP10: 60.912471 | AQ10: 62.755616 | AR10: 63.486702 | AS10: 69.630645 | AT10: 63.964545 | AU10: 62.860169 | AV10: 63.501805 | AW10: 69.338917 | AX10: 73.401371 | AY10: 63.924437 | AZ10: 58.795255 | BA10: 65.003772 | BB10: 56.322 | BC10: 72.245656 | BD10: 70.692514 | BE10: 66.40135 | BF10: 59.539925 | BG10: 60.34014 | BH10: 65.054562 | BI10: 61.547951 | BJ10: 74.62449 | BK10: 60.043671 | BL10: 61.282244 | BM10: 61.02707 | BN10: 57.191853 | BO10: 60.388449 | BP10: 62.177774 | BQ10: 58.896851 | BR10: 63.510029 | BS10: 61.426267 | BT10: 61.852676 | BU10: 68.750052 | BV10: 65.126911 | BW10: 57.318851 | BX10: 66.442876 | BY10: 59.672569 | BZ10: 65.641828 | CA10: 56.819372 | CB10: 62.972262 | CC10: 63.931924 | CD10: 87.007642 | CE10: 59.520281 | CF10: 76.80367 | CG10: 56.67693 | CH10: 58.48541 | CI10: 70.015132 | CJ10: 66.73839 | CK10: 65.174766 | CL10: 60.47515 | CM10: 65.083015 | CN10: 60.490619 | CO10: 66.718441 | CP10: 62.685589 | CQ10: 61.279961 | CR10: 75.538878 | CS10: 69.153912 | CT10: 59.14188 | CU10: 67.535303 | CV10: 69.227112 | CW10: 54.774384 | CX10: 79.89858 | CY10: 70.608735 | CZ10: 76.261848 | DA10: 63.269926 | DB10: 62.682285 | DC10: 62.502709 | DD10: 58.373321 | DE10: 64.916506 | DF10: 52.41531 | DG10: 69.15177 | DH10: 61.521946 | DI10: 64.820225 | DJ10: 68.776153 | DK10: 62.52426 | DL10: 58.456982 | DM10: 65.326059 | DN10: 70.816268 | DO10: 68.060387 | DP10: 74.877797 | DQ10: 65.810596 | DR10: 64.155827 | DS10: 60.922917 | DT10: 69.026354 | DU10: 69.084907 | DV10: 68.152652 | DW10: 60.399242 | DX10: 61.322642 | DY10: 65.650027 | DZ10: 72.490386 | EA10: 62.269193 | EB10: 54.726459 | EC10: 61.443182 | ED10: 64.628936 | EE10: 63.0359 | EF10: 50.891045 | EG10: 65.428235 | EH10: 53.789986 | EI10: 56.346256 | EJ10: 72.044448 | EK10: 61.255212 | EL10: 60.02991 | EM10: 66.932034 | EN10: 58.553186 | EO10: 68.684928 | EP10: 55.97795 | EQ10: 63.616291 | ER10: 58.827954 | ES10: 64.796498 | ET10: 57.896271 | EU10: 74.647832 | EV10: 61.241046 | EW10: 59.16185 | EX10: 67.942376 | EY10: 65.221308 | EZ10: 63.501655
A11: shqcc | B11: shqcc | C11: shqcc | D11: shqcc | E11: 75.4762718 | F11: 64.057187 | G11: 86.759042 | H11: 72.64962197 | I11: 70.8031 | J11: 64.057187 | K11: 68.793528 | L11: 72.381071 | M11: 72.029252 | N11: 72.059943 | O11: 75.278621 | P11: 76.072733 | Q11: 68.693211 | R11: 71.907991 | S11: 69.109539 | T11: 75.243976 | U11: 65.626488 | V11: 69.574435 | W11: 74.80869 | X11: 80.467997 | Y11: 76.95659 | Z11: 68.131889 | AA11: 73.511828 | AB11: 75.075729 | AC11: 78.254995 | AD11: 66.025759 | AE11: 73.395516 | AF11: 75.870665 | AG11: 67.977559 | AH11: 67.564817 | AI11: 74.69299 | AJ11: 74.595427 | AK11: 72.12215 | AL11: 64.821925 | AM11: 76.387747 | AN11: 75.461663 | AO11: 68.968342 | AP11: 70.352595 | AQ11: 71.419897 | AR11: 72.349548 | AS11: 76.176235 | AT11: 74.762288 | AU11: 72.569447 | AV11: 71.785042 | AW11: 79.563664 | AX11: 79.96303 | AY11: 74.031213 | AZ11: 68.816313 | BA11: 71.769964 | BB11: 68.887731 | BC11: 76.386086 | BD11: 79.988776 | BE11: 71.160167 | BF11: 69.848689 | BG11: 69.863215 | BH11: 74.472693 | BI11: 71.882333 | BJ11: 79.020832 | BK11: 70.451569 | BL11: 72.466459 | BM11: 69.920033 | BN11: 70.788986 | BO11: 70.066584 | BP11: 69.065713 | BQ11: 68.403662 | BR11: 72.657757 | BS11: 72.390267 | BT11: 71.335078 | BU11: 76.47002 | BV11: 72.580481 | BW11: 70.924526 | BX11: 73.84001 | BY11: 69.981782 | BZ11: 74.392666 | CA11: 67.334894 | CB11: 70.684663 | CC11: 72.059739 | CD11: 86.759042 | CE11: 69.861513 | CF11: 79.838923 | CG11: 68.158562 | CH11: 70.327692 | CI11: 75.241923 | CJ11: 75.080683 | CK11: 74.050723 | CL11: 72.801928 | CM11: 72.826752 | CN11: 70.784725 | CO11: 75.222823 | CP11: 71.924965 | CQ11: 69.775649 | CR11: 80.516171 | CS11: 75.486011 | CT11: 69.698031 | CU11: 75.19837 | CV11: 74.076709 | CW11: 67.65017 | CX11: 84.740157 | CY11: 79.425966 | CZ11: 78.355144 | DA11: 71.773279 | DB11: 71.394642 | DC11: 71.03992 | DD11: 68.035499 | DE11: 73.455737 | DF11: 66.028964 | DG11: 77.503553 | DH11: 70.17946 | DI11: 74.50773 | DJ11: 75.895538 | DK11: 68.407296 | DL11: 69.496056 | DM11: 76.341542 | DN11: 77.945855 | DO11: 75.319022 | DP11: 79.893667 | DQ11: 74.852166 | DR11: 74.079263 | DS11: 71.946964 | DT11: 72.935288 | DU11: 77.407317 | DV11: 75.502624 | DW11: 71.182482 | DX11: 71.367246 | DY11: 73.576206 | DZ11: 77.222303 | EA11: 71.892248 | EB11: 66.966596 | EC11: 70.600236 | ED11: 73.225777 | EE11: 71.935191 | EF11: 65.436185 | EG11: 73.959235 | EH11: 66.569157 | EI11: 68.210306 | EJ11: 77.063577 | EK11: 70.534666 | EL11: 72.124027 | EM11: 75.030529 | EN11: 69.472028 | EO11: 74.500827 | EP11: 65.925834 | EQ11: 72.167242 | ER11: 65.860525 | ES11: 71.071283 | ET11: 68.218428 | EU11: 77.909591 | EV11: 71.776499 | EW11: 67.199367 | EX11: 74.821981 | EY11: 72.462471 | EZ11: 74.509994
A12: bimc1 | B12: q34 | C12: bimc | D12: Question 34: Were you involved as much as you wanted to be in decisions made about your care and treatment? | E12: 76.843625 | F12: 65.590465 | G12: 85.352182 | H12: 73.96508108 | I12: 72.111061 | J12: 66.659351 | K12: 70.028788 | L12: 75.895603 | M12: 70.350932 | N12: 76.987811 | O12: 77.515319 | P12: 76.361219 | Q12: 68.406904 | R12: 72.970879 | S12: 72.577192 | T12: 81.81246 | U12: 67.935979 | V12: 68.544814 | W12: 69.339982 | X12: 79.087041 | Y12: 76.0698 | Z12: 68.262611 | AA12: 75.483085 | AB12: 75.048493 | AC12: 82.540004 | AD12: 70.780347 | AE12: 85.352182 | AF12: 77.850799 | AG12: 71.802133 | AH12: 70.558106 | AI12: 75.728702 | AJ12: 75.460075 | AK12: 74.894033 | AL12: 73.173299 | AM12: 77.832439 | AN12: 77.465368 | AO12: 67.5671 | AP12: 71.042224 | AQ12: 72.416467 | AR12: 73.732178 | AS12: 75.922651 | AT12: 77.152857 | AU12: 73.985409 | AV12: 71.989727 | AW12: 83.96375 | AX12: 76.854561 | AY12: 77.569218 | AZ12: 70.045944 | BA12: 70.181558 | BB12: 73.340716 | BC12: 73.901382 | BD12: 83.511168 | BE12: 73.365783 | BF12: 72.260186 | BG12: 72.982564 | BH12: 76.320801 | BI12: 77.129384 | BJ12: 76.361533 | BK12: 75.383685 | BL12: 76.991176 | BM12: 70.794189 | BN12: 75.984542 | BO12: 74.705372 | BP12: 71.325876 | BQ12: 69.978303 | BR12: 72.752805 | BS12: 73.870702 | BT12: 75.188781 | BU12: 72.647449 | BV12: 72.909803 | BW12: 77.982539 | BX12: 73.800139 | BY12: 72.509008 | BZ12: 73.373439 | CA12: 72.729101 | CB12: 70.038777 | CC12: 72.854441 | CD12: 83.723422 | CE12: 70.306755 | CF12: 75.492354 | CG12: 73.071187 | CH12: 71.970856 | CI12: 75.350898 | CJ12: 76.331293 | CK12: 77.573131 | CL12: 74.717943 | CM12: 71.22872 | CN12: 74.720759 | CO12: 78.110736 | CP12: 71.265136 | CQ12: 70.943301 | CR12: 74.771673 | CS12: 72.682865 | CT12: 70.054086 | CU12: 74.982622 | CV12: 71.410611 | CW12: 71.695028 | CX12: 81.677149 | CY12: 83.984745 | CZ12: 82.471536 | DA12: 75.249167 | DB12: 73.018004 | DC12: 70.050279 | DD12: 67.259099 | DE12: 73.803391 | DF12: 69.601455 | DG12: 74.911119 | DH12: 74.490049 | DI12: 72.534592 | DJ12: 84.290126 | DK12: 74.174406 | DL12: 76.499264 | DM12: 78.705431 | DN12: 81.274523 | DO12: 71.936298 | DP12: 77.546039 | DQ12: 76.827221 | DR12: 77.802225 | DS12: 72.253512 | DT12: 71.029002 | DU12: 77.526457 | DV12: 76.910447 | DW12: 75.743709 | DX12: 70.580605 | DY12: 73.164555 | DZ12: 71.319877 | EA12: 70.933577 | EB12: 72.963552 | EC12: 69.739927 | ED12: 73.732737 | EE12: 75.512926 | EF12: 71.647039 | EG12: 71.209495 | EH12: 69.381397 | EI12: 69.151175 | EJ12: 71.046617 | EK12: 71.424971 | EL12: 74.513494 | EM12: 74.871348 | EN12: 71.558681 | EO12: 71.679848 | EP12: 69.784402 | EQ12: 71.751392 | ER12: 65.590465 | ES12: 67.18 | ET12: 70.829826 | EU12: 74.717572 | EV12: 71.36764 | EW12: 72.311299 | EX12: 73.751142 | EY12: 74.374972 | EZ12: 76.464749
A13: bimc2 | B13: q57 | C13: bimc | D13: Question 57: Did a member of staff explain the purpose of the medications you were to take at home in a way you could understand? | E13: 85.4372642 | F13: 76.229755 | G13: 95.78528 | H13: 83.26735694 | I13: 79.733555 | J13: 79.197557 | K13: 81.441362 | L13: 86.591359 | M13: 80.822309 | N13: 82.382737 | O13: 81.303725 | P13: 83.904092 | Q13: 79.549732 | R13: 82.942785 | S13: 81.837917 | T13: 87.739714 | U13: 81.007773 | V13: 81.561086 | W13: 81.631616 | X13: 84.391773 | Y13: 82.952316 | Z13: 78.068139 | AA13: 85.41686 | AB13: 85.450867 | AC13: 88.058853 | AD13: 82.716267 | AE13: 91.474865 | AF13: 85.028523 | AG13: 80.599309 | AH13: 80.938476 | AI13: 85.099908 | AJ13: 83.802416 | AK13: 83.284868 | AL13: 80.171207 | AM13: 83.917685 | AN13: 85.220189 | AO13: 78.963767 | AP13: 81.935444 | AQ13: 86.579747 | AR13: 82.508252 | AS13: 86.98626 | AT13: 86.350646 | AU13: 86.858896 | AV13: 78.987927 | AW13: 93.227985 | AX13: 94.785575 | AY13: 87.286209 | AZ13: 77.488682 | BA13: 83.112739 | BB13: 80.318091 | BC13: 84.999269 | BD13: 87.633689 | BE13: 83.474492 | BF13: 79.830495 | BG13: 86.44333 | BH13: 84.575171 | BI13: 84.647586 | BJ13: 87.505078 | BK13: 81.660303 | BL13: 85.393909 | BM13: 81.489146 | BN13: 84.372687 | BO13: 84.768138 | BP13: 81.737289 | BQ13: 79.284264 | BR13: 80.581175 | BS13: 84.035269 | BT13: 80.893769 | BU13: 81.880837 | BV13: 83.792234 | BW13: 85.904336 | BX13: 82.92967 | BY13: 83.078731 | BZ13: 85.022112 | CA13: 79.633115 | CB13: 79.001749 | CC13: 88.239748 | CD13: 91.717969 | CE13: 83.205132 | CF13: 84.628885 | CG13: 85.680706 | CH13: 82.067954 | CI13: 84.08954 | CJ13: 79.024718 | CK13: 84.551976 | CL13: 85.395053 | CM13: 78.304643 | CN13: 78.965427 | CO13: 85.741841 | CP13: 80.770427 | CQ13: 79.087734 | CR13: 82.474269 | CS13: 80.75188 | CT13: 79.795185 | CU13: 83.573173 | CV13: 79.642705 | CW13: 79.458836 | CX13: 95.78528 | CY13: 94.698849 | CZ13: 93.602818 | DA13: 82.782465 | DB13: 81.190735 | DC13: 81.904206 | DD13: 76.522488 | DE13: 82.817714 | DF13: 81.19557 | DG13: 86.872901 | DH13: 83.17237 | DI13: 77.977221 | DJ13: 90.143771 | DK13: 83.862684 | DL13: 84.42242 | DM13: 86.667643 | DN13: 87.606216 | DO13: 80.287068 | DP13: 84.704654 | DQ13: 87.140439 | DR13: 87.379399 | DS13: 81.27348 | DT13: 82.150493 | DU13: 84.790298 | DV13: 84.678158 | DW13: 84.858064 | DX13: 84.02246 | DY13: 80.923813 | DZ13: 83.188667 | EA13: 83.1184 | EB13: 87.647265 | EC13: 79.176412 | ED13: 82.644154 | EE13: 81.801399 | EF13: 80.680418 | EG13: 82.573045 | EH13: 78.265724 | EI13: 80.961441 | EJ13: 79.218998 | EK13: 83.660752 | EL13: 82.761523 | EM13: 82.383257 | EN13: 81.72022 | EO13: 80.797433 | EP13: 80.199152 | EQ13: 82.752415 | ER13: 80.344597 | ES13: 76.229755 | ET13: 82.981589 | EU13: 82.660856 | EV13: 79.792858 | EW13: 83.091295 | EX13: 80.095459 | EY13: 83.350726 | EZ13: 82.671636
A14: bimc3 | B14: q58 | C14: bimc | D14: Question 58: Did a member of staff tell you about medication side effects to watch for when you went home? | E14: 51.1524258 | F14: 36.913883 | G14: 76.374551 | H14: 48.52025105 | I14: 45.258434 | J14: 42.735656 | K14: 49.564309 | L14: 47.330603 | M14: 41.782506 | N14: 48.841181 | O14: 47.301379 | P14: 50.675158 | Q14: 42.844102 | R14: 47.160429 | S14: 46.184449 | T14: 57.511501 | U14: 44.459662 | V14: 43.582772 | W14: 46.916687 | X14: 48.790874 | Y14: 46.293761 | Z14: 39.564117 | AA14: 48.988821 | AB14: 49.727716 | AC14: 56.95207 | AD14: 44.871576 | AE14: 68.089641 | AF14: 51.61814 | AG14: 44.524017 | AH14: 43.796512 | AI14: 48.753334 | AJ14: 47.115264 | AK14: 54.266599 | AL14: 45.03885 | AM14: 48.024612 | AN14: 53.402469 | AO14: 42.083602 | AP14: 47.30587 | AQ14: 48.244747 | AR14: 48.484495 | AS14: 54.665953 | AT14: 55.67166 | AU14: 47.000867 | AV14: 49.849718 | AW14: 76.374551 | AX14: 74.721687 | AY14: 50.859579 | AZ14: 38.460166 | BA14: 45.529697 | BB14: 46.685247 | BC14: 48.385615 | BD14: 57.574268 | BE14: 42.002731 | BF14: 39.044425 | BG14: 47.327694 | BH14: 44.07187 | BI14: 45.499686 | BJ14: 52.82218 | BK14: 48.885319 | BL14: 49.551162 | BM14: 44.939539 | BN14: 51.227105 | BO14: 55.736446 | BP14: 44.798963 | BQ14: 40.90076 | BR14: 46.069337 | BS14: 51.514221 | BT14: 43.350895 | BU14: 47.490394 | BV14: 43.829027 | BW14: 52.037225 | BX14: 44.560489 | BY14: 49.292093 | BZ14: 49.172713 | CA14: 41.151747 | CB14: 42.22899 | CC14: 56.964146 | CD14: 67.441676 | CE14: 48.000039 | CF14: 51.604796 | CG14: 50.342664 | CH14: 46.367153 | CI14: 45.92593 | CJ14: 43.914938 | CK14: 49.156407 | CL14: 49.804073 | CM14: 36.913883 | CN14: 48.237685 | CO14: 49.377878 | CP14: 44.315384 | CQ14: 42.545614 | CR14: 49.4174 | CS14: 44.977361 | CT14: 43.67908 | CU14: 47.950211 | CV14: 43.408834 | CW14: 43.159494 | CX14: 75.903019 | CY14: 75.824963 | CZ14: 64.641084 | DA14: 48.998758 | DB14: 42.867929 | DC14: 47.96634 | DD14: 41.962399 | DE14: 53.434855 | DF14: 41.304595 | DG14: 55.155648 | DH14: 50.397369 | DI14: 45.287974 | DJ14: 69.186765 | DK14: 49.428869 | DL14: 50.731458 | DM14: 49.597563 | DN14: 58.44154 | DO14: 45.931876 | DP14: 59.128332 | DQ14: 48.139067 | DR14: 54.9306 | DS14: 44.144396 | DT14: 42.72869 | DU14: 50.068234 | DV14: 47.855588 | DW14: 49.963826 | DX14: 42.917081 | DY14: 43.91769 | DZ14: 52.71428 | EA14: 42.470542 | EB14: 47.178129 | EC14: 39.684959 | ED14: 46.957512 | EE14: 45.935077 | EF14: 45.255241 | EG14: 47.21144 | EH14: 42.836502 | EI14: 43.759659 | EJ14: 44.921602 | EK14: 45.507975 | EL14: 48.93311 | EM14: 47.216583 | EN14: 46.307668 | EO14: 42.202303 | EP14: 39.821712 | EQ14: 46.230004 | ER14: 42.544601 | ES14: 40.987942 | ET14: 45.02232 | EU14: 51.040407 | EV14: 39.403314 | EW14: 50.729595 | EX14: 45.607038 | EY14: 54.560418 | EZ14: 50.226135
A15: bimc | B15: bimc | C15: bimc | D15: bimc | E15: 70.7348346 | F15: 61.465899 | G15: 84.836186 | H15: 68.58422972 | I15: 65.701017 | J15: 62.864188 | K15: 67.011486 | L15: 69.939188 | M15: 64.318583 | N15: 69.40391 | O15: 68.706808 | P15: 70.31349 | Q15: 63.600246 | R15: 67.691364 | S15: 66.866519 | T15: 75.687892 | U15: 64.467805 | V15: 64.56289 | W15: 65.962762 | X15: 70.756563 | Y15: 68.438626 | Z15: 61.964956 | AA15: 69.962922 | AB15: 70.075692 | AC15: 75.850309 | AD15: 66.12273 | AE15: 81.638896 | AF15: 71.499154 | AG15: 65.64182 | AH15: 65.097698 | AI15: 69.860648 | AJ15: 68.792585 | AK15: 70.815167 | AL15: 66.127785 | AM15: 69.924912 | AN15: 72.029342 | AO15: 62.87149 | AP15: 66.761179 | AQ15: 69.08032 | AR15: 68.241642 | AS15: 72.524954 | AT15: 73.058388 | AU15: 69.281724 | AV15: 66.942457 | AW15: 84.522095 | AX15: 82.120608 | AY15: 71.905002 | AZ15: 61.998264 | BA15: 66.274665 | BB15: 66.781351 | BC15: 69.095422 | BD15: 76.239708 | BE15: 66.281002 | BF15: 63.711702 | BG15: 68.917863 | BH15: 68.322614 | BI15: 69.092219 | BJ15: 72.229597 | BK15: 68.643102 | BL15: 70.645416 | BM15: 65.740958 | BN15: 70.528111 | BO15: 71.736652 | BP15: 65.954043 | BQ15: 63.387776 | BR15: 66.467772 | BS15: 69.806731 | BT15: 66.477815 | BU15: 67.33956 | BV15: 66.843688 | BW15: 71.9747 | BX15: 67.096766 | BY15: 68.293277 | BZ15: 69.189421 | CA15: 64.504654 | CB15: 63.756505 | CC15: 72.686112 | CD15: 80.961023 | CE15: 67.170642 | CF15: 70.575345 | CG15: 69.698186 | CH15: 66.801988 | CI15: 68.455456 | CJ15: 66.42365 | CK15: 70.427171 | CL15: 69.972356 | CM15: 62.149082 | CN15: 67.307957 | CO15: 71.076818 | CP15: 65.450316 | CQ15: 64.192216 | CR15: 68.887781 | CS15: 66.137369 | CT15: 64.50945 | CU15: 68.835335 | CV15: 64.820717 | CW15: 64.77112 | CX15: 84.455149 | CY15: 84.836186 | CZ15: 80.238479 | DA15: 69.01013 | DB15: 65.692223 | DC15: 66.640275 | DD15: 61.914662 | DE15: 70.018653 | DF15: 64.033874 | DG15: 72.313223 | DH15: 69.353263 | DI15: 65.266596 | DJ15: 81.206887 | DK15: 69.155319 | DL15: 70.551048 | DM15: 71.656879 | DN15: 75.774093 | DO15: 66.051747 | DP15: 73.793009 | DQ15: 70.702242 | DR15: 73.370741 | DS15: 65.890463 | DT15: 65.302728 | DU15: 70.794996 | DV15: 69.814731 | DW15: 70.188533 | DX15: 65.840049 | DY15: 66.00202 | DZ15: 69.074275 | EA15: 65.507506 | EB15: 69.262982 | EC15: 62.867099 | ED15: 67.778134 | EE15: 67.749801 | EF15: 65.860899 | EG15: 66.997994 | EH15: 63.494541 | EI15: 64.624092 | EJ15: 65.062406 | EK15: 66.864566 | EL15: 68.736042 | EM15: 68.157063 | EN15: 66.528857 | EO15: 64.893194 | EP15: 63.268422 | EQ15: 66.91127 | ER15: 62.826554 | ES15: 61.465899 | ET15: 66.277912 | EU15: 69.472945 | EV15: 63.521271 | EW15: 68.71073 | EX15: 66.484546 | EY15: 70.762038 | EZ15: 69.787507
A16: br1 | B16: q23 | C16: br | D16: Question 23: When you had important questions to ask the doctor, did you get answers that you could understand? | E16: 85.318245 | F16: 75.808652 | G16: 92.405741 | H16: 82.70520165 | I16: 80.070845 | J16: 78.671298 | K16: 79.26681 | L16: 86.159136 | M16: 82.889663 | N16: 85.005372 | O16: 86.920005 | P16: 85.574806 | Q16: 78.234544 | R16: 79.774873 | S16: 85.367457 | T16: 88.302072 | U16: 78.132858 | V16: 81.126244 | W16: 79.063854 | X16: 87.14552 | Y16: 84.170506 | Z16: 76.796456 | AA16: 83.353852 | AB16: 82.650263 | AC16: 90.395995 | AD16: 82.818803 | AE16: 89.342197 | AF16: 84.23553 | AG16: 82.472379 | AH16: 81.006198 | AI16: 84.649081 | AJ16: 82.181038 | AK16: 80.059021 | AL16: 80.53407 | AM16: 84.276808 | AN16: 86.544754 | AO16: 76.705219 | AP16: 79.98593 | AQ16: 81.269625 | AR16: 83.721034 | AS16: 83.569874 | AT16: 86.419599 | AU16: 83.251436 | AV16: 82.16124 | AW16: 91.004056 | AX16: 89.218876 | AY16: 85.109532 | AZ16: 79.959134 | BA16: 79.031414 | BB16: 79.24247 | BC16: 81.794968 | BD16: 89.805438 | BE16: 76.915528 | BF16: 79.837591 | BG16: 83.453645 | BH16: 82.041096 | BI16: 84.932559 | BJ16: 84.652977 | BK16: 83.433647 | BL16: 86.20269 | BM16: 79.885556 | BN16: 85.161487 | BO16: 82.569124 | BP16: 81.493557 | BQ16: 78.606433 | BR16: 83.821157 | BS16: 85.97899 | BT16: 84.662973 | BU16: 82.938006 | BV16: 80.132973 | BW16: 85.431918 | BX16: 80.775642 | BY16: 81.005139 | BZ16: 82.864092 | CA16: 82.249914 | CB16: 81.022714 | CC16: 83.687572 | CD16: 92.089693 | CE16: 82.098798 | CF16: 87.533205 | CG16: 81.993806 | CH16: 81.406243 | CI16: 84.784313 | CJ16: 86.010849 | CK16: 85.183965 | CL16: 84.117877 | CM16: 77.710158 | CN16: 81.048643 | CO16: 85.762457 | CP16: 79.378867 | CQ16: 80.514266 | CR16: 84.5216 | CS16: 76.992048 | CT16: 80.367225 | CU16: 82.391883 | CV16: 79.596782 | CW16: 79.550958 | CX16: 90.285114 | CY16: 92.405741 | CZ16: 86.071382 | DA16: 84.50536 | DB16: 82.375744 | DC16: 80.462997 | DD16: 75.961887 | DE16: 79.4493 | DF16: 77.343425 | DG16: 83.850684 | DH16: 83.575619 | DI16: 83.272212 | DJ16: 91.384373 | DK16: 79.90637 | DL16: 83.319005 | DM16: 88.431031 | DN16: 88.09651 | DO16: 80.908355 | DP16: 86.863682 | DQ16: 85.244427 | DR16: 85.682674 | DS16: 80.652668 | DT16: 82.205322 | DU16: 86.388882 | DV16: 85.549268 | DW16: 83.593983 | DX16: 79.856177 | DY16: 83.642029 | DZ16: 81.833686 | EA16: 81.560315 | EB16: 81.008481 | EC16: 75.808652 | ED16: 82.853503 | EE16: 82.186828 | EF16: 82.247776 | EG16: 81.350688 | EH16: 82.178261 | EI16: 80.40017 | EJ16: 80.076271 | EK16: 79.622732 | EL16: 82.746285 | EM16: 83.965067 | EN16: 81.445834 | EO16: 79.303256 | EP16: 79.800719 | EQ16: 80.510009 | ER16: 75.932876 | ES16: 77.352165 | ET16: 78.968969 | EU16: 82.3619 | EV16: 79.879494 | EW16: 80.767777 | EX16: 81.525285 | EY16: 82.78702 | EZ16: 84.358835
A17: br2 | B17: q25 | C17: br | D17: Question 25: Did doctors talk in front of you as if you weren't there? | E17: 88.996867 | F17: 78.913839 | G17: 95.740784 | H17: 86.7601133 | I17: 86.962169 | J17: 79.280681 | K17: 79.404888 | L17: 88.330616 | M17: 86.870549 | N17: 86.643407 | O17: 89.950536 | P17: 89.904355 | Q17: 83.616194 | R17: 86.705431 | S17: 86.321801 | T17: 89.733398 | U17: 78.913839 | V17: 79.630544 | W17: 86.135317 | X17: 89.229398 | Y17: 88.530204 | Z17: 81.901146 | AA17: 90.468687 | AB17: 89.600584 | AC17: 90.609711 | AD17: 86.229813 | AE17: 94.199338 | AF17: 85.400998 | AG17: 83.120387 | AH17: 85.639908 | AI17: 88.780743 | AJ17: 91.046948 | AK17: 86.525217 | AL17: 86.096277 | AM17: 90.063173 | AN17: 89.667385 | AO17: 82.625802 | AP17: 83.800497 | AQ17: 88.40877 | AR17: 84.121539 | AS17: 86.942841 | AT17: 87.901723 | AU17: 87.869428 | AV17: 86.293222 | AW17: 95.740784 | AX17: 93.658323 | AY17: 90.36762 | AZ17: 83.311176 | BA17: 84.034564 | BB17: 80.593805 | BC17: 87.596932 | BD17: 90.301996 | BE17: 86.107858 | BF17: 84.170241 | BG17: 85.643001 | BH17: 88.632434 | BI17: 89.765735 | BJ17: 87.10562 | BK17: 87.755511 | BL17: 87.687267 | BM17: 86.442957 | BN17: 87.302494 | BO17: 83.311577 | BP17: 83.482558 | BQ17: 80.280497 | BR17: 88.177333 | BS17: 89.389591 | BT17: 87.967877 | BU17: 87.875217 | BV17: 84.818054 | BW17: 90.228555 | BX17: 87.603599 | BY17: 81.903828 | BZ17: 89.878269 | CA17: 87.19469 | CB17: 83.932472 | CC17: 85.177398 | CD17: 94.001189 | CE17: 86.963221 | CF17: 88.902643 | CG17: 87.184587 | CH17: 84.337134 | CI17: 89.154523 | CJ17: 89.055575 | CK17: 86.829694 | CL17: 88.859619 | CM17: 83.616853 | CN17: 86.609576 | CO17: 89.554046 | CP17: 85.132837 | CQ17: 84.215808 | CR17: 88.740983 | CS17: 81.745715 | CT17: 87.537916 | CU17: 86.733943 | CV17: 87.853661 | CW17: 86.886094 | CX17: 88.804232 | CY17: 93.679059 | CZ17: 92.608358 | DA17: 86.689444 | DB17: 87.404242 | DC17: 82.236738 | DD17: 82.473641 | DE17: 85.592789 | DF17: 82.57578 | DG17: 89.895898 | DH17: 88.596306 | DI17: 86.759256 | DJ17: 92.05711 | DK17: 87.224855 | DL17: 86.408531 | DM17: 88.80854 | DN17: 90.554406 | DO17: 88.402226 | DP17: 88.908805 | DQ17: 90.612814 | DR17: 87.730989 | DS17: 84.655637 | DT17: 86.652765 | DU17: 87.342425 | DV17: 86.846675 | DW17: 88.331238 | DX17: 86.468365 | DY17: 86.810081 | DZ17: 87.000684 | EA17: 87.89364 | EB17: 87.144364 | EC17: 84.972427 | ED17: 84.98541 | EE17: 87.159723 | EF17: 84.288999 | EG17: 87.924225 | EH17: 84.02782 | EI17: 86.930937 | EJ17: 87.770083 | EK17: 81.36777 | EL17: 89.939874 | EM17: 84.644936 | EN17: 86.438934 | EO17: 86.153636 | EP17: 84.365849 | EQ17: 84.821677 | ER17: 82.769148 | ES17: 85.257278 | ET17: 83.175432 | EU17: 86.040503 | EV17: 85.833631 | EW17: 83.724831 | EX17: 84.80863 | EY17: 83.31177 | EZ17: 87.780438
A18: br3 | B18: q26 | C18: br | D18: Question 26: When you had important questions to ask a nurse, did you get answers that you could understand? | E18: 85.728536 | F18: 73.496172 | G18: 93.073254 | H18: 83.56751837 | I18: 82.758172 | J18: 74.036562 | K18: 77.165922 | L18: 85.673976 | M18: 83.440822 | N18: 86.089165 | O18: 85.721063 | P18: 86.261288 | Q18: 75.767049 | R18: 83.616204 | S18: 84.343718 | T18: 84.009555 | U18: 74.289763 | V18: 78.593863 | W18: 81.03384 | X18: 85.119328 | Y18: 85.709059 | Z18: 79.92867 | AA18: 85.483303 | AB18: 84.129328 | AC18: 93.056801 | AD18: 84.335227 | AE18: 89.633856 | AF18: 88.99676 | AG18: 79.920806 | AH18: 83.109914 | AI18: 85.69535 | AJ18: 83.852351 | AK18: 83.905289 | AL18: 81.690509 | AM18: 86.707904 | AN18: 88.083707 | AO18: 78.89645 | AP18: 83.626359 | AQ18: 84.68355 | AR18: 83.783117 | AS18: 86.41069 | AT18: 85.522222 | AU18: 85.070702 | AV18: 84.958541 | AW18: 92.133198 | AX18: 86.345866 | AY18: 84.32527 | AZ18: 78.072857 | BA18: 82.623079 | BB18: 84.556359 | BC18: 84.719124 | BD18: 88.915432 | BE18: 81.15624 | BF18: 85.106363 | BG18: 82.118744 | BH18: 85.733518 | BI18: 82.243753 | BJ18: 86.717798 | BK18: 84.452889 | BL18: 89.028761 | BM18: 80.103221 | BN18: 84.808591 | BO18: 83.428067 | BP18: 77.593629 | BQ18: 73.496172 | BR18: 81.730185 | BS18: 84.301319 | BT18: 84.35344 | BU18: 85.495429 | BV18: 84.739799 | BW18: 86.398148 | BX18: 82.836252 | BY18: 81.08765 | BZ18: 84.145776 | CA18: 80.20639 | CB18: 83.160338 | CC18: 79.661651 | CD18: 90.395326 | CE18: 80.990133 | CF18: 84.588704 | CG18: 82.122147 | CH18: 85.449469 | CI18: 84.671596 | CJ18: 84.457002 | CK18: 83.827329 | CL18: 84.918948 | CM18: 81.6698 | CN18: 83.41286 | CO18: 87.461978 | CP18: 81.4651 | CQ18: 78.941699 | CR18: 86.906953 | CS18: 83.277497 | CT18: 81.553965 | CU18: 84.07709 | CV18: 84.793836 | CW18: 80.252207 | CX18: 89.783772 | CY18: 93.073254 | CZ18: 88.980362 | DA18: 81.971581 | DB18: 83.86863 | DC18: 76.973662 | DD18: 79.926501 | DE18: 80.569675 | DF18: 81.617005 | DG18: 87.108734 | DH18: 77.505553 | DI18: 85.586069 | DJ18: 90.526166 | DK18: 79.778582 | DL18: 80.458522 | DM18: 89.103198 | DN18: 88.541459 | DO18: 81.618675 | DP18: 86.332139 | DQ18: 87.171789 | DR18: 84.016695 | DS18: 82.443117 | DT18: 82.520755 | DU18: 89.248919 | DV18: 85.678824 | DW18: 85.130028 | DX18: 80.822926 | DY18: 87.380806 | DZ18: 82.6229 | EA18: 81.18636 | EB18: 84.058776 | EC18: 79.204576 | ED18: 84.306805 | EE18: 84.862778 | EF18: 83.050035 | EG18: 84.115621 | EH18: 81.336347 | EI18: 81.072958 | EJ18: 82.521265 | EK18: 81.440762 | EL18: 85.110231 | EM18: 84.028384 | EN18: 80.976317 | EO18: 84.031796 | EP18: 78.391776 | EQ18: 83.725567 | ER18: 76.357521 | ES18: 77.187039 | ET18: 80.894332 | EU18: 85.248311 | EV18: 82.956551 | EW18: 80.003123 | EX18: 85.621645 | EY18: 82.718329 | EZ18: 87.085514
A19: br4 | B19: q28 | C19: br | D19: Question 28: Did nurses talk in front of you as if you weren't there? | E19: 91.97971 | F19: 79.761211 | G19: 96.486968 | H19: 89.98698863 | I19: 89.485324 | J19: 79.761211 | K19: 83.238998 | L19: 91.70765 | M19: 90.44051 | N19: 89.510349 | O19: 91.423265 | P19: 92.395578 | Q19: 84.877127 | R19: 90.793398 | S19: 88.479081 | T19: 86.67023 | U19: 80.617423 | V19: 83.254667 | W19: 89.444066 | X19: 90.277625 | Y19: 91.912792 | Z19: 86.80905 | AA19: 91.800491 | AB19: 93.138518 | AC19: 94.128526 | AD19: 90.131873 | AE19: 96.486968 | AF19: 90.737081 | AG19: 86.445341 | AH19: 89.969895 | AI19: 91.280359 | AJ19: 93.232683 | AK19: 90.471606 | AL19: 90.12447 | AM19: 91.384903 | AN19: 92.046854 | AO19: 87.784862 | AP19: 89.089878 | AQ19: 89.907964 | AR19: 87.321928 | AS19: 91.177026 | AT19: 89.509025 | AU19: 92.471571 | AV19: 90.864784 | AW19: 95.408111 | AX19: 93.723578 | AY19: 92.926092 | AZ19: 84.462421 | BA19: 88.111602 | BB19: 88.828466 | BC19: 90.528184 | BD19: 93.274297 | BE19: 89.584781 | BF19: 91.944577 | BG19: 88.87403 | BH19: 92.227232 | BI19: 91.065634 | BJ19: 91.148029 | BK19: 91.025199 | BL19: 92.201509 | BM19: 89.723675 | BN19: 90.91686 | BO19: 88.156567 | BP19: 82.884187 | BQ19: 83.727387 | BR19: 86.994504 | BS19: 92.348455 | BT19: 88.662673 | BU19: 92.003132 | BV19: 89.467887 | BW19: 93.082789 | BX19: 91.823806 | BY19: 86.799097 | BZ19: 90.846 | CA19: 88.446066 | CB19: 88.968642 | CC19: 87.76955 | CD19: 96.450281 | CE19: 88.212469 | CF19: 88.392747 | CG19: 88.204512 | CH19: 90.833292 | CI19: 92.294247 | CJ19: 91.855059 | CK19: 90.815983 | CL19: 91.372334 | CM19: 89.674614 | CN19: 90.0505 | CO19: 94.072343 | CP19: 88.77996 | CQ19: 88.487677 | CR19: 93.648649 | CS19: 89.308754 | CT19: 89.749033 | CU19: 91.206025 | CV19: 89.045475 | CW19: 86.802969 | CX19: 95.283038 | CY19: 93.657881 | CZ19: 91.689648 | DA19: 87.922215 | DB19: 91.147998 | DC19: 84.361539 | DD19: 85.99232 | DE19: 85.943548 | DF19: 86.615921 | DG19: 91.379144 | DH19: 88.284544 | DI19: 91.704526 | DJ19: 91.294702 | DK19: 92.353002 | DL19: 88.830566 | DM19: 92.569029 | DN19: 93.155897 | DO19: 89.16075 | DP19: 91.404761 | DQ19: 92.614514 | DR19: 91.487896 | DS19: 91.367725 | DT19: 89.008509 | DU19: 92.539261 | DV19: 90.002499 | DW19: 91.168069 | DX19: 89.88771 | DY19: 92.15513 | DZ19: 90.289524 | EA19: 90.275705 | EB19: 91.585292 | EC19: 90.568494 | ED19: 90.322251 | EE19: 91.153817 | EF19: 87.589056 | EG19: 91.19263 | EH19: 89.056737 | EI19: 91.793287 | EJ19: 91.095438 | EK19: 88.905303 | EL19: 92.48334 | EM19: 90.754811 | EN19: 88.293807 | EO19: 91.312002 | EP19: 88.238678 | EQ19: 90.381167 | ER19: 86.759588 | ES19: 89.23139 | ET19: 87.41425 | EU19: 88.926347 | EV19: 90.568384 | EW19: 88.655983 | EX19: 90.226378 | EY19: 86.773981 | EZ19: 93.427443
A20: br | B20: br | C20: br | D20: br | E20: 87.8174058 | F20: 77.937438 | G20: 93.571537 | H20: 85.75495548 | I20: 84.819127 | J20: 77.937438 | K20: 79.769154 | L20: 87.967845 | M20: 85.910386 | N20: 86.812073 | O20: 88.503717 | P20: 88.534007 | Q20: 80.623728 | R20: 85.222477 | S20: 86.128014 | T20: 87.178814 | U20: 77.988471 | V20: 80.65133 | W20: 83.919269 | X20: 87.942968 | Y20: 87.58064 | Z20: 81.35883 | AA20: 87.776583 | AB20: 87.379673 | AC20: 92.047759 | AD20: 85.878929 | AE20: 92.41559 | AF20: 87.342592 | AG20: 82.989728 | AH20: 84.931479 | AI20: 87.601384 | AJ20: 87.578255 | AK20: 85.240283 | AL20: 84.611331 | AM20: 88.108197 | AN20: 89.085675 | AO20: 81.503083 | AP20: 84.125666 | AQ20: 86.067477 | AR20: 84.736905 | AS20: 87.025108 | AT20: 87.338142 | AU20: 87.165784 | AV20: 86.069447 | AW20: 93.571537 | AX20: 90.736661 | AY20: 88.182129 | AZ20: 81.451397 | BA20: 83.450165 | BB20: 83.305275 | BC20: 86.159802 | BD20: 90.574291 | BE20: 83.441102 | BF20: 85.264693 | BG20: 85.022355 | BH20: 87.15857 | BI20: 87.00192 | BJ20: 87.406106 | BK20: 86.666811 | BL20: 88.780057 | BM20: 84.038852 | BN20: 87.047358 | BO20: 84.366334 | BP20: 81.363483 | BQ20: 79.027622 | BR20: 85.180795 | BS20: 88.004588 | BT20: 86.411741 | BU20: 87.077946 | BV20: 84.789678 | BW20: 88.785352 | BX20: 85.759825 | BY20: 82.698928 | BZ20: 86.933534 | CA20: 84.524265 | CB20: 84.271042 | CC20: 84.074043 | CD20: 93.234122 | CE20: 84.566155 | CF20: 87.354325 | CG20: 84.876263 | CH20: 85.506534 | CI20: 87.726169 | CJ20: 87.844621 | CK20: 86.664243 | CL20: 87.317194 | CM20: 83.167856 | CN20: 85.280395 | CO20: 89.212706 | CP20: 83.689191 | CQ20: 83.039862 | CR20: 88.454546 | CS20: 82.831004 | CT20: 84.802035 | CU20: 86.102235 | CV20: 85.322438 | CW20: 83.373057 | CX20: 91.039039 | CY20: 93.203984 | CZ20: 89.837438 | DA20: 85.27215 | DB20: 86.199154 | DC20: 81.008734 | DD20: 81.088587 | DE20: 82.888828 | DF20: 82.038033 | DG20: 88.058615 | DH20: 84.490506 | DI20: 86.830516 | DJ20: 91.315588 | DK20: 84.815702 | DL20: 84.754156 | DM20: 89.727949 | DN20: 90.087068 | DO20: 85.022502 | DP20: 88.377346 | DQ20: 88.910886 | DR20: 87.229564 | DS20: 84.779787 | DT20: 85.096838 | DU20: 88.879872 | DV20: 87.019317 | DW20: 87.05583 | DX20: 84.258794 | DY20: 87.497012 | DZ20: 85.436699 | EA20: 85.229005 | EB20: 85.949228 | EC20: 82.638537 | ED20: 85.616992 | EE20: 86.340787 | EF20: 84.293966 | EG20: 86.145791 | EH20: 84.149791 | EI20: 85.049338 | EJ20: 85.365764 | EK20: 82.834142 | EL20: 87.569932 | EM20: 85.8483 | EN20: 84.288723 | EO20: 85.200172 | EP20: 82.699256 | EQ20: 84.859605 | ER20: 80.454783 | ES20: 82.256968 | ET20: 82.613245 | EU20: 85.644266 | EV20: 84.809515 | EW20: 83.287928 | EX20: 85.545484 | EY20: 83.897775 | EZ20: 88.163058
A21: ccfp1 | B21: q14 | C21: ccfp | D21: Question 14: Were you ever bothered by noise at night from other patients? | E21: 66.043631 | F21: 47.826882 | G21: 84.392131 | H21: 62.41241455 | I21: 62.64773 | J21: 56.835279 | K21: 64.423151 | L21: 59.121157 | M21: 53.509579 | N21: 55.872174 | O21: 71.516883 | P21: 60.645929 | Q21: 54.999161 | R21: 59.999244 | S21: 60.818459 | T21: 68.681143 | U21: 60.134185 | V21: 58.374988 | W21: 59.92517 | X21: 69.27188 | Y21: 65.486803 | Z21: 62.840929 | AA21: 62.535446 | AB21: 72.638674 | AC21: 83.339215 | AD21: 58.759021 | AE21: 72.789946 | AF21: 62.824525 | AG21: 58.413097 | AH21: 61.950751 | AI21: 59.037553 | AJ21: 56.63636 | AK21: 62.621135 | AL21: 48.538905 | AM21: 66.554185 | AN21: 64.927939 | AO21: 52.323865 | AP21: 58.679045 | AQ21: 64.275195 | AR21: 55.975274 | AS21: 59.327754 | AT21: 54.376221 | AU21: 59.395802 | AV21: 64.252985 | AW21: 82.448204 | AX21: 82.089266 | AY21: 63.575163 | AZ21: 57.463567 | BA21: 60.372636 | BB21: 55.640851 | BC21: 59.110577 | BD21: 80.264852 | BE21: 65.432902 | BF21: 58.660026 | BG21: 59.307705 | BH21: 54.564325 | BI21: 63.209506 | BJ21: 62.934517 | BK21: 56.459676 | BL21: 65.18172 | BM21: 60.795452 | BN21: 58.046458 | BO21: 61.848505 | BP21: 60.998933 | BQ21: 56.648125 | BR21: 60.895405 | BS21: 61.02623 | BT21: 66.820206 | BU21: 63.933341 | BV21: 59.930473 | BW21: 55.336598 | BX21: 59.043156 | BY21: 61.347793 | BZ21: 76.137098 | CA21: 52.10835 | CB21: 59.461706 | CC21: 66.135089 | CD21: 84.392131 | CE21: 64.82077 | CF21: 70.363902 | CG21: 62.025164 | CH21: 61.80907 | CI21: 58.218935 | CJ21: 64.737369 | CK21: 61.537875 | CL21: 59.176802 | CM21: 63.271439 | CN21: 58.965354 | CO21: 64.678434 | CP21: 56.441436 | CQ21: 59.27693 | CR21: 68.679229 | CS21: 62.712023 | CT21: 47.826882 | CU21: 54.804647 | CV21: 66.506072 | CW21: 57.94146 | CX21: 84.176554 | CY21: 76.373014 | CZ21: 68.42682 | DA21: 57.650555 | DB21: 63.932269 | DC21: 61.97319 | DD21: 59.729818 | DE21: 57.442784 | DF21: 59.101166 | DG21: 78.406889 | DH21: 58.336204 | DI21: 64.487115 | DJ21: 80.292658 | DK21: 62.763292 | DL21: 62.585905 | DM21: 70.731657 | DN21: 69.613005 | DO21: 55.989981 | DP21: 78.114649 | DQ21: 70.861059 | DR21: 61.967086 | DS21: 55.787443 | DT21: 49.343228 | DU21: 65.341076 | DV21: 66.137539 | DW21: 72.887433 | DX21: 59.655465 | DY21: 52.621379 | DZ21: 60.636105 | EA21: 57.932187 | EB21: 61.364637 | EC21: 61.484191 | ED21: 59.514557 | EE21: 62.598002 | EF21: 60.175562 | EG21: 68.69312 | EH21: 55.850941 | EI21: 66.891945 | EJ21: 59.250351 | EK21: 57.712366 | EL21: 60.90935 | EM21: 61.236258 | EN21: 59.072038 | EO21: 55.943479 | EP21: 63.300529 | EQ21: 60.517982 | ER21: 57.221819 | ES21: 64.623287 | ET21: 56.381792 | EU21: 65.906444 | EV21: 57.32248 | EW21: 58.359001 | EX21: 60.439561 | EY21: 63.761292 | EZ21: 54.517773
A22: ccfp2 | B22: q15 | C22: ccfp | D22: Question 15: Were you ever bothered by noise at night from hospital staff? | E22: 83.4776634 | F22: 70.880787 | G22: 91.19797 | H22: 80.97305176 | I22: 81.885451 | J22: 77.920878 | K22: 82.835073 | L22: 85.832272 | M22: 80.347112 | N22: 82.016798 | O22: 83.137337 | P22: 81.001139 | Q22: 79.133173 | R22: 77.832238 | S22: 83.396162 | T22: 81.338443 | U22: 78.814443 | V22: 79.057245 | W22: 81.650251 | X22: 81.361231 | Y22: 81.871993 | Z22: 85.503646 | AA22: 81.818565 | AB22: 83.253971 | AC22: 88.906928 | AD22: 80.710994 | AE22: 80.924487 | AF22: 80.396078 | AG22: 76.316602 | AH22: 80.823471 | AI22: 79.374787 | AJ22: 79.059082 | AK22: 79.07487 | AL22: 78.576029 | AM22: 83.420163 | AN22: 80.798002 | AO22: 75.763913 | AP22: 81.005476 | AQ22: 77.313065 | AR22: 78.044329 | AS22: 78.974479 | AT22: 84.252587 | AU22: 77.605476 | AV22: 81.317875 | AW22: 91.050179 | AX22: 90.329524 | AY22: 74.975084 | AZ22: 76.540488 | BA22: 77.907945 | BB22: 79.721434 | BC22: 79.501119 | BD22: 89.19504 | BE22: 79.172265 | BF22: 78.832528 | BG22: 78.300664 | BH22: 77.531544 | BI22: 76.808976 | BJ22: 82.301872 | BK22: 76.76856 | BL22: 83.709707 | BM22: 74.865324 | BN22: 78.395223 | BO22: 78.529898 | BP22: 78.475651 | BQ22: 80.099498 | BR22: 80.652385 | BS22: 81.299797 | BT22: 83.515997 | BU22: 86.949512 | BV22: 79.338749 | BW22: 82.651746 | BX22: 77.096538 | BY22: 77.639 | BZ22: 83.841501 | CA22: 70.880787 | CB22: 73.128076 | CC22: 85.934162 | CD22: 91.170135 | CE22: 82.894981 | CF22: 81.841364 | CG22: 80.051832 | CH22: 85.062992 | CI22: 79.395339 | CJ22: 79.23049 | CK22: 75.973573 | CL22: 82.623772 | CM22: 84.589017 | CN22: 78.57234 | CO22: 83.213529 | CP22: 79.189971 | CQ22: 77.548207 | CR22: 82.201655 | CS22: 83.628137 | CT22: 76.662219 | CU22: 82.637088 | CV22: 78.502872 | CW22: 79.86 | CX22: 91.19797 | CY22: 88.302755 | CZ22: 86.354493 | DA22: 79.083952 | DB22: 84.349163 | DC22: 83.143477 | DD22: 79.282721 | DE22: 82.218318 | DF22: 76.027146 | DG22: 89.51576 | DH22: 78.139676 | DI22: 84.273753 | DJ22: 88.537149 | DK22: 81.03205 | DL22: 77.552991 | DM22: 87.023483 | DN22: 87.56469 | DO22: 77.318971 | DP22: 87.056901 | DQ22: 83.711339 | DR22: 77.054735 | DS22: 81.031434 | DT22: 79.712289 | DU22: 83.070132 | DV22: 80.555019 | DW22: 82.424854 | DX22: 77.888438 | DY22: 76.792849 | DZ22: 79.540407 | EA22: 84.550245 | EB22: 85.962373 | EC22: 80.176368 | ED22: 78.241777 | EE22: 80.684068 | EF22: 76.227179 | EG22: 85.795564 | EH22: 77.931227 | EI22: 79.092727 | EJ22: 81.744159 | EK22: 78.230336 | EL22: 82.365873 | EM22: 80.759215 | EN22: 77.299204 | EO22: 81.002866 | EP22: 79.334981 | EQ22: 79.525328 | ER22: 81.344439 | ES22: 79.600132 | ET22: 77.635194 | EU22: 80.598641 | EV22: 81.459837 | EW22: 79.387556 | EX22: 78.439969 | EY22: 82.612869 | EZ22: 80.796218
A23: ccfp3 | B23: q16 | C23: ccfp | D23: Question 16: In your opinion, how clean was the hospital room or ward that you were in? | E23: 91.926655 | F23: 82.754767 | G23: 97.352922 | H23: 89.76773277 | I23: 91.267105 | J23: 85.188595 | K23: 84.284303 | L23: 88.617216 | M23: 88.397053 | N23: 91.091286 | O23: 92.91494 | P23: 90.592272 | Q23: 86.118245 | R23: 86.630972 | S23: 88.097322 | T23: 91.237391 | U23: 82.754767 | V23: 82.783661 | W23: 86.884605 | X23: 93.433369 | Y23: 92.01267 | Z23: 89.686319 | AA23: 90.296668 | AB23: 95.725821 | AC23: 96.756862 | AD23: 89.31444 | AE23: 95.572283 | AF23: 92.662512 | AG23: 86.122582 | AH23: 86.687711 | AI23: 88.587694 | AJ23: 88.222057 | AK23: 88.313712 | AL23: 88.87206 | AM23: 87.04949 | AN23: 88.843012 | AO23: 84.520612 | AP23: 89.179474 | AQ23: 91.242824 | AR23: 91.487257 | AS23: 90.974648 | AT23: 93.366169 | AU23: 87.780728 | AV23: 90.5948 | AW23: 97.352922 | AX23: 94.866244 | AY23: 94.101403 | AZ23: 87.394464 | BA23: 91.29519 | BB23: 88.556167 | BC23: 91.769311 | BD23: 94.409217 | BE23: 91.35738 | BF23: 92.838572 | BG23: 89.449545 | BH23: 91.338431 | BI23: 90.455513 | BJ23: 92.672158 | BK23: 89.782496 | BL23: 91.933235 | BM23: 89.907571 | BN23: 89.509131 | BO23: 88.043059 | BP23: 85.92475 | BQ23: 85.385301 | BR23: 87.163678 | BS23: 90.237343 | BT23: 90.788922 | BU23: 91.378341 | BV23: 91.255338 | BW23: 91.517209 | BX23: 87.542402 | BY23: 88.515113 | BZ23: 93.084192 | CA23: 88.413081 | CB23: 91.207471 | CC23: 86.592666 | CD23: 96.378761 | CE23: 90.061666 | CF23: 90.918293 | CG23: 87.442516 | CH23: 90.394019 | CI23: 90.0922 | CJ23: 85.748826 | CK23: 90.360048 | CL23: 92.198695 | CM23: 90.019915 | CN23: 86.883239 | CO23: 91.579889 | CP23: 86.369844 | CQ23: 87.287714 | CR23: 89.477334 | CS23: 90.678149 | CT23: 87.144089 | CU23: 88.61079 | CV23: 90.512924 | CW23: 87.521083 | CX23: 93.784254 | CY23: 94.011417 | CZ23: 91.594061 | DA23: 87.928196 | DB23: 91.997893 | DC23: 88.536752 | DD23: 88.382752 | DE23: 86.314965 | DF23: 85.865599 | DG23: 94.275083 | DH23: 89.557376 | DI23: 93.53644 | DJ23: 92.617521 | DK23: 91.237797 | DL23: 90.775431 | DM23: 92.066367 | DN23: 94.117254 | DO23: 83.702928 | DP23: 93.737611 | DQ23: 92.200506 | DR23: 90.962097 | DS23: 88.918794 | DT23: 91.465091 | DU23: 90.827007 | DV23: 90.971888 | DW23: 91.916785 | DX23: 85.61549 | DY23: 86.213832 | DZ23: 86.505069 | EA23: 88.763484 | EB23: 88.108578 | EC23: 89.733687 | ED23: 92.870106 | EE23: 90.38835 | EF23: 87.157479 | EG23: 90.731295 | EH23: 88.721137 | EI23: 86.3457 | EJ23: 89.892122 | EK23: 88.34157 | EL23: 91.257442 | EM23: 91.788855 | EN23: 88.003012 | EO23: 89.724345 | EP23: 89.711557 | EQ23: 86.964197 | ER23: 84.142004 | ES23: 88.724626 | ET23: 87.492527 | EU23: 90.433859 | EV23: 87.773155 | EW23: 88.825395 | EX23: 91.108943 | EY23: 86.145086 | EZ23: 92.956366
A24: ccfp4 | B24: q19 | C24: ccfp | D24: Question 19: How would you rate the hospital food? | E24: 61.5311836 | F24: 46.522176 | G24: 80.157383 | H24: 57.83065442 | I24: 60.458049 | J24: 56.279269 | K24: 53.151588 | L24: 50.334758 | M24: 58.279009 | N24: 63.084828 | O24: 56.116003 | P24: 57.648931 | Q24: 56.807167 | R24: 57.627388 | S24: 53.223566 | T24: 64.510502 | U24: 48.739113 | V24: 53.548221 | W24: 55.92171 | X24: 63.193553 | Y24: 63.978123 | Z24: 58.855019 | AA24: 48.355056 | AB24: 62.688537 | AC24: 71.584215 | AD24: 57.45118 | AE24: 68.175282 | AF24: 59.938737 | AG24: 58.795455 | AH24: 57.053363 | AI24: 61.544442 | AJ24: 67.030339 | AK24: 53.490361 | AL24: 62.581971 | AM24: 57.75147 | AN24: 60.450774 | AO24: 51.039711 | AP24: 56.96987 | AQ24: 51.793641 | AR24: 60.784472 | AS24: 60.389927 | AT24: 58.343444 | AU24: 54.788596 | AV24: 69.078694 | AW24: 70.312704 | AX24: 59.625798 | AY24: 66.289369 | AZ24: 51.817978 | BA24: 49.480781 | BB24: 49.51097 | BC24: 55.717342 | BD24: 71.369254 | BE24: 62.093507 | BF24: 64.874759 | BG24: 53.356548 | BH24: 63.998121 | BI24: 60.035953 | BJ24: 63.498306 | BK24: 54.899181 | BL24: 58.492849 | BM24: 53.572492 | BN24: 62.232992 | BO24: 53.313717 | BP24: 51.086708 | BQ24: 56.609749 | BR24: 54.146852 | BS24: 58.375852 | BT24: 50.516884 | BU24: 56.839655 | BV24: 61.307168 | BW24: 62.595846 | BX24: 62.267706 | BY24: 53.092063 | BZ24: 61.491029 | CA24: 57.79943 | CB24: 52.872096 | CC24: 46.522176 | CD24: 80.157383 | CE24: 56.949711 | CF24: 54.636915 | CG24: 49.20612 | CH24: 61.511296 | CI24: 56.96247 | CJ24: 49.269541 | CK24: 53.833267 | CL24: 61.366886 | CM24: 52.989888 | CN24: 50.955854 | CO24: 63.964228 | CP24: 50.909956 | CQ24: 47.679099 | CR24: 55.795907 | CS24: 61.580385 | CT24: 51.552577 | CU24: 60.44834 | CV24: 61.006599 | CW24: 51.633426 | CX24: 67.42651 | CY24: 75.983727 | CZ24: 56.816164 | DA24: 60.912066 | DB24: 57.236508 | DC24: 53.348435 | DD24: 50.758519 | DE24: 57.544094 | DF24: 57.706985 | DG24: 60.28607 | DH24: 58.073009 | DI24: 61.049331 | DJ24: 68.195985 | DK24: 57.955064 | DL24: 55.747441 | DM24: 60.903521 | DN24: 56.866291 | DO24: 54.290642 | DP24: 64.568826 | DQ24: 59.697963 | DR24: 54.900973 | DS24: 58.700449 | DT24: 54.691378 | DU24: 56.650836 | DV24: 60.474479 | DW24: 58.726097 | DX24: 54.425925 | DY24: 58.994159 | DZ24: 54.9226 | EA24: 59.982324 | EB24: 48.765383 | EC24: 55.473783 | ED24: 62.116057 | EE24: 60.66682 | EF24: 60.434919 | EG24: 55.292746 | EH24: 57.931315 | EI24: 53.238883 | EJ24: 56.303054 | EK24: 56.098989 | EL24: 57.558106 | EM24: 51.075481 | EN24: 56.11244 | EO24: 60.15334 | EP24: 54.228239 | EQ24: 47.173798 | ER24: 56.753754 | ES24: 58.319836 | ET24: 55.76089 | EU24: 60.833047 | EV24: 52.863943 | EW24: 54.920866 | EX24: 57.402674 | EY24: 55.288844 | EZ24: 62.071259
A25: ccfp5 | B25: q40 | C25: ccfp | D25: Question 40: Were you given enough privacy when being examined or treated? | E25: 95.9166942 | F25: 91.316205 | G25: 98.079588 | H25: 94.97647506 | I25: 95.619621 | J25: 93.4287 | K25: 93.637765 | L25: 94.976276 | M25: 96.494 | N25: 95.544205 | O25: 95.977953 | P25: 96.469092 | Q25: 91.316205 | R25: 94.754694 | S25: 95.980762 | T25: 95.590796 | U25: 92.710646 | V25: 92.630939 | W25: 94.757475 | X25: 96.122126 | Y25: 95.08729 | Z25: 93.077956 | AA25: 95.255664 | AB25: 96.228754 | AC25: 97.382536 | AD25: 94.716451 | AE25: 97.55072 | AF25: 95.662932 | AG25: 94.202158 | AH25: 95.277379 | AI25: 94.651334 | AJ25: 95.180097 | AK25: 94.908831 | AL25: 95.842647 | AM25: 96.249001 | AN25: 95.591709 | AO25: 93.979186 | AP25: 95.340935 | AQ25: 95.016627 | AR25: 94.854946 | AS25: 95.823266 | AT25: 96.265159 | AU25: 94.35286 | AV25: 95.444829 | AW25: 97.063747 | AX25: 97.4913 | AY25: 93.268477 | AZ25: 94.494311 | BA25: 94.888268 | BB25: 94.424667 | BC25: 95.271857 | BD25: 98.079588 | BE25: 94.839736 | BF25: 95.490381 | BG25: 94.221749 | BH25: 95.021923 | BI25: 95.224425 | BJ25: 96.757322 | BK25: 94.14338 | BL25: 95.644203 | BM25: 95.82236 | BN25: 95.425572 | BO25: 93.522027 | BP25: 94.720469 | BQ25: 93.175052 | BR25: 94.751479 | BS25: 95.584328 | BT25: 95.218583 | BU25: 95.878288 | BV25: 94.517738 | BW25: 95.568136 | BX25: 95.319496 | BY25: 95.79077 | BZ25: 97.422601 | CA25: 93.62727 | CB25: 93.888357 | CC25: 93.776496 | CD25: 96.030899 | CE25: 94.784185 | CF25: 94.271455 | CG25: 94.412924 | CH25: 96.408335 | CI25: 95.670848 | CJ25: 96.390282 | CK25: 94.483437 | CL25: 97.01669 | CM25: 92.587816 | CN25: 93.630913 | CO25: 95.923247 | CP25: 94.145633 | CQ25: 94.178948 | CR25: 94.732825 | CS25: 95.411493 | CT25: 93.708906 | CU25: 95.816598 | CV25: 94.627031 | CW25: 92.971886 | CX25: 98.077422 | CY25: 97.380866 | CZ25: 96.714217 | DA25: 92.974049 | DB25: 95.959601 | DC25: 93.450632 | DD25: 93.682414 | DE25: 96.237075 | DF25: 92.131924 | DG25: 94.892456 | DH25: 94.148499 | DI25: 94.90253 | DJ25: 96.705334 | DK25: 95.481204 | DL25: 95.34648 | DM25: 97.159489 | DN25: 96.934219 | DO25: 93.3141 | DP25: 96.707024 | DQ25: 95.906865 | DR25: 95.482424 | DS25: 94.140712 | DT25: 94.61576 | DU25: 95.661178 | DV25: 94.830791 | DW25: 95.760911 | DX25: 95.326678 | DY25: 93.508138 | DZ25: 92.501908 | EA25: 94.643233 | EB25: 94.492113 | EC25: 94.569146 | ED25: 94.960563 | EE25: 95.187626 | EF25: 94.8839 | EG25: 95.329886 | EH25: 94.524875 | EI25: 93.96992 | EJ25: 93.65756 | EK25: 93.325833 | EL25: 94.699293 | EM25: 94.768827 | EN25: 95.087501 | EO25: 94.894637 | EP25: 92.925244 | EQ25: 94.340483 | ER25: 93.14319 | ES25: 92.514577 | ET25: 93.320334 | EU25: 95.134617 | EV25: 94.906265 | EW25: 95.356849 | EX25: 95.046982 | EY25: 93.024726 | EZ25: 96.382
A26: ccfp6 | B26: q67 | C26: ccfp | D26: Question 67: Overall, did you feel you were treated with respect and dignity while you were in the hospital? | E26: 92.6394238 | F26: 84.792306 | G26: 96.858654 | H26: 90.79257765 | I26: 89.091839 | J26: 86.282145 | K26: 88.797933 | L26: 91.710446 | M26: 89.880589 | N26: 91.238655 | O26: 94.582581 | P26: 93.895405 | Q26: 86.654536 | R26: 90.871268 | S26: 90.099839 | T26: 93.751351 | U26: 85.074472 | V26: 88.515392 | W26: 90.962337 | X26: 93.253851 | Y26: 93.082605 | Z26: 87.191006 | AA26: 90.259624 | AB26: 91.114962 | AC26: 96.766301 | AD26: 89.865542 | AE26: 94.852766 | AF26: 93.233927 | AG26: 88.077561 | AH26: 89.682953 | AI26: 90.655293 | AJ26: 91.165401 | AK26: 89.907457 | AL26: 89.765927 | AM26: 93.90483 | AN26: 91.88609 | AO26: 88.239715 | AP26: 89.842969 | AQ26: 90.863095 | AR26: 91.931634 | AS26: 92.302642 | AT26: 93.241507 | AU26: 90.415363 | AV26: 89.142604 | AW26: 96.354598 | AX26: 92.046335 | AY26: 93.578643 | AZ26: 89.601996 | BA26: 88.122592 | BB26: 88.341749 | BC26: 91.026388 | BD26: 95.338328 | BE26: 90.671241 | BF26: 90.635048 | BG26: 90.01091 | BH26: 91.714818 | BI26: 93.285379 | BJ26: 92.897761 | BK26: 91.287194 | BL26: 93.446746 | BM26: 90.050945 | BN26: 91.419398 | BO26: 88.121193 | BP26: 88.810556 | BQ26: 85.148712 | BR26: 90.289974 | BS26: 92.590759 | BT26: 91.375531 | BU26: 92.582613 | BV26: 87.958236 | BW26: 93.261459 | BX26: 91.187043 | BY26: 89.827199 | BZ26: 92.106471 | CA26: 87.89036 | CB26: 89.443703 | CC26: 87.645474 | CD26: 95.319571 | CE26: 90.386282 | CF26: 90.591654 | CG26: 89.578159 | CH26: 91.953726 | CI26: 91.834848 | CJ26: 90.764273 | CK26: 90.03422 | CL26: 92.577237 | CM26: 89.201091 | CN26: 89.876557 | CO26: 94.208744 | CP26: 89.978598 | CQ26: 88.143842 | CR26: 92.911481 | CS26: 88.900511 | CT26: 89.806153 | CU26: 91.243507 | CV26: 91.109887 | CW26: 89.034273 | CX26: 96.16151 | CY26: 96.858654 | CZ26: 93.00506 | DA26: 91.328309 | DB26: 91.142419 | DC26: 88.762305 | DD26: 87.406977 | DE26: 86.802602 | DF26: 88.070763 | DG26: 92.279594 | DH26: 88.656423 | DI26: 91.497694 | DJ26: 94.646513 | DK26: 91.701604 | DL26: 92.572586 | DM26: 96.25255 | DN26: 94.29255 | DO26: 89.585637 | DP26: 92.468072 | DQ26: 93.202441 | DR26: 92.103343 | DS26: 90.857641 | DT26: 91.016522 | DU26: 93.906203 | DV26: 92.70824 | DW26: 92.452954 | DX26: 88.233226 | DY26: 90.867595 | DZ26: 88.252306 | EA26: 88.391256 | EB26: 91.540659 | EC26: 87.635663 | ED26: 90.925346 | EE26: 89.876194 | EF26: 89.845248 | EG26: 89.933921 | EH26: 89.070656 | EI26: 92.060486 | EJ26: 88.111606 | EK26: 88.863528 | EL26: 90.902339 | EM26: 91.368559 | EN26: 90.735438 | EO26: 89.983879 | EP26: 88.36241 | EQ26: 92.254052 | ER26: 86.223122 | ES26: 84.792306 | ET26: 87.956992 | EU26: 90.705187 | EV26: 89.442804 | EW26: 88.942166 | EX26: 90.949597 | EY26: 91.085539 | EZ26: 92.671867
A27: ccfp7 | B27: q42 | C27: ccfp | D27: Question 42: Do you think the hospital staff did everything they could to help control your pain? | E27: 85.821451 | F27: 74.480663 | G27: 92.370846 | H27: 83.21424293 | I27: 82.148808 | J27: 76.168721 | K27: 81.854142 | L27: 85.030702 | M27: 82.92303 | N27: 85.161353 | O27: 86.156742 | P27: 87.360666 | Q27: 75.881426 | R27: 82.033615 | S27: 85.728732 | T27: 85.139941 | U27: 81.321661 | V27: 78.235201 | W27: 78.481245 | X27: 88.914553 | Y27: 83.167434 | Z27: 79.464973 | AA27: 83.939101 | AB27: 83.482884 | AC27: 90.698656 | AD27: 82.794928 | AE27: 90.687813 | AF27: 86.066109 | AG27: 80.335461 | AH27: 82.864916 | AI27: 85.94932 | AJ27: 79.968563 | AK27: 80.168592 | AL27: 79.326775 | AM27: 84.947338 | AN27: 82.706821 | AO27: 79.675524 | AP27: 83.010798 | AQ27: 83.61466 | AR27: 84.327911 | AS27: 86.13812 | AT27: 85.843225 | AU27: 82.499873 | AV27: 81.952908 | AW27: 89.760464 | AX27: 86.236511 | AY27: 83.275866 | AZ27: 81.150018 | BA27: 79.007731 | BB27: 83.254405 | BC27: 84.49311 | BD27: 88.94676 | BE27: 80.772833 | BF27: 83.292906 | BG27: 80.642981 | BH27: 83.430501 | BI27: 82.414447 | BJ27: 87.08717 | BK27: 85.252747 | BL27: 87.005539 | BM27: 81.405567 | BN27: 84.86642 | BO27: 80.351528 | BP27: 81.005573 | BQ27: 78.434422 | BR27: 82.818794 | BS27: 85.78879 | BT27: 85.670059 | BU27: 83.969233 | BV27: 78.452739 | BW27: 88.592135 | BX27: 81.53151 | BY27: 84.520269 | BZ27: 86.681297 | CA27: 79.215706 | CB27: 82.904668 | CC27: 80.455574 | CD27: 91.480149 | CE27: 83.518435 | CF27: 81.430748 | CG27: 83.321005 | CH27: 87.317591 | CI27: 84.7928 | CJ27: 83.994689 | CK27: 85.475163 | CL27: 84.987111 | CM27: 78.875594 | CN27: 80.067465 | CO27: 87.582469 | CP27: 80.541139 | CQ27: 77.218021 | CR27: 83.249206 | CS27: 83.866321 | CT27: 83.174212 | CU27: 84.515643 | CV27: 81.798343 | CW27: 82.453959 | CX27: 92.215701 | CY27: 92.370846 | CZ27: 87.076347 | DA27: 81.530474 | DB27: 84.957931 | DC27: 82.094044 | DD27: 80.140763 | DE27: 79.999723 | DF27: 75.532065 | DG27: 81.315403 | DH27: 80.178534 | DI27: 83.056919 | DJ27: 87.657159 | DK27: 80.451457 | DL27: 82.102864 | DM27: 85.940497 | DN27: 85.970318 | DO27: 84.034055 | DP27: 85.644161 | DQ27: 86.028185 | DR27: 83.760867 | DS27: 83.959519 | DT27: 82.925032 | DU27: 87.117127 | DV27: 84.817752 | DW27: 86.14656 | DX27: 81.802109 | DY27: 82.171253 | DZ27: 83.519457 | EA27: 79.764783 | EB27: 86.329674 | EC27: 78.678063 | ED27: 83.874372 | EE27: 86.626391 | EF27: 79.082287 | EG27: 84.055409 | EH27: 84.478976 | EI27: 83.709771 | EJ27: 77.352138 | EK27: 83.909858 | EL27: 82.93189 | EM27: 80.798187 | EN27: 84.373832 | EO27: 83.512264 | EP27: 81.000264 | EQ27: 84.357213 | ER27: 75.965813 | ES27: 74.480663 | ET27: 80.109806 | EU27: 84.202221 | EV27: 85.059078 | EW27: 75.90154 | EX27: 83.144995 | EY27: 83.201914 | EZ27: 85.767853
A28: ccfp | B28: ccfp | C28: ccfp | D28: ccfp | E28: 83.171308 | F28: 76.679162 | G28: 91.191316 | H28: 81.37906936 | I28: 81.808669 | J28: 77.454251 | K28: 79.225807 | L28: 80.524352 | M28: 80.483671 | N28: 82.510802 | O28: 83.845888 | P28: 82.798317 | Q28: 77.307291 | R28: 80.138946 | S28: 80.872922 | T28: 84.206629 | U28: 76.679162 | V28: 77.404922 | W28: 79.632514 | X28: 85.039001 | Y28: 83.501253 | Z28: 80.407927 | AA28: 80.047186 | AB28: 84.531213 | AC28: 89.885274 | AD28: 80.646258 | AE28: 87.28268 | AF28: 83.195753 | AG28: 79.149678 | AH28: 80.492239 | AI28: 81.765709 | AJ28: 81.56903 | AK28: 79.606159 | AL28: 79.991141 | AM28: 82.481551 | AN28: 82.056896 | AO28: 76.916439 | AP28: 80.697718 | AQ28: 80.554163 | AR28: 81.73267 | AS28: 82.463287 | AT28: 82.728985 | AU28: 79.72301 | AV28: 83.166544 | AW28: 89.598938 | AX28: 86.079264 | AY28: 83.298147 | AZ28: 78.576799 | BA28: 78.655809 | BB28: 78.628184 | BC28: 81.263976 | BD28: 88.812182 | BE28: 82.006214 | BF28: 82.646324 | BG28: 79.414319 | BH28: 81.925288 | BI28: 81.90416 | BJ28: 84.255152 | BK28: 80.329853 | BL28: 83.494714 | BM28: 79.764887 | BN28: 81.945726 | BO28: 78.923454 | BP28: 78.547558 | BQ28: 77.854508 | BR28: 79.990779 | BS28: 82.290014 | BT28: 81.456347 | BU28: 82.681593 | BV28: 80.520972 | BW28: 83.421493 | BX28: 80.986334 | BY28: 80.206468 | BZ28: 85.129148 | CA28: 78.073403 | CB28: 79.435198 | CC28: 78.504502 | CD28: 91.191316 | CE28: 81.593026 | CF28: 81.325283 | CG28: 79.166537 | CH28: 83.5035 | CI28: 81.360051 | CJ28: 79.691924 | CK28: 80.49031 | CL28: 83.174484 | CM28: 79.600755 | CN28: 78.363812 | CO28: 84.534093 | CP28: 78.293479 | CQ28: 77.153365 | CR28: 81.934532 | CS28: 82.267823 | CT28: 77.938415 | CU28: 81.559291 | CV28: 81.926543 | CW28: 78.75256 | CX28: 89.225443 | CY28: 89.823899 | CZ28: 83.766084 | DA28: 80.506725 | DB28: 82.572512 | DC28: 79.79175 | DD28: 78.312949 | DE28: 79.454835 | DF28: 77.811916 | DG28: 84.501655 | DH28: 79.80863 | DI28: 83.070558 | DJ28: 87.372902 | DK28: 81.454133 | DL28: 81.102375 | DM28: 85.199999 | DN28: 84.46158 | DO28: 78.596973 | DP28: 85.951912 | DQ28: 84.053693 | DR28: 81.120102 | DS28: 80.831092 | DT28: 79.87359 | DU28: 83.061326 | DV28: 82.858238 | DW28: 83.776575 | DX28: 79.02923 | DY28: 79.410348 | DZ28: 79.298266 | EA28: 80.464383 | EB28: 80.483319 | EC28: 79.48677 | ED28: 82.270769 | EE28: 82.397736 | EF28: 79.934201 | EG28: 82.097933 | EH28: 80.269674 | EI28: 80.386183 | EJ28: 79.302289 | EK28: 79.751855 | EL28: 81.49778 | EM28: 80.132941 | EN28: 80.416307 | EO28: 81.123606 | EP28: 79.590912 | EQ28: 79.185233 | ER28: 77.585169 | ES28: 78.49062 | ET28: 78.608174 | EU28: 82.426912 | EV28: 79.906067 | EW28: 78.803349 | EX28: 81.182159 | EY28: 80.322198 | EZ28: 82.917723
A29: Overall | B29: Overall | C29: Overall | D29: Overall | E29: 80.222906 | F29: 71.835791 | G29: 88.938494 | H29: 78.3643891 | I29: 76.726375 | J29: 71.835791 | K29: 74.572224 | L29: 79.944947 | M29: 76.815214 | N29: 79.523674 | O29: 80.273301 | P29: 80.24622 | Q29: 74.496721 | R29: 77.614708 | S29: 76.932037 | T29: 82.058041 | U29: 72.638693 | V29: 73.949964 | W29: 77.637834 | X29: 82.281856 | Y29: 80.600058 | Z29: 73.798881 | AA29: 78.540973 | AB29: 80.007886 | AC29: 85.28889 | AD29: 76.607444 | AE29: 85.541742 | AF29: 79.405271 | AG29: 75.821688 | AH29: 76.22679 | AI29: 79.670237 | AJ29: 79.812906 | AK29: 79.2175 | AL29: 75.487406 | AM29: 80.187935 | AN29: 81.612591 | AO29: 73.827914 | AP29: 76.939603 | AQ29: 77.246362 | AR29: 78.400409 | AS29: 80.827567 | AT29: 80.598937 | AU29: 77.532124 | AV29: 77.792845 | AW29: 88.938494 | AX29: 85.646268 | AY29: 81.318402 | AZ29: 74.287223 | BA29: 76.541434 | BB29: 76.040441 | BC29: 80.104987 | BD29: 85.858246 | BE29: 77.927349 | BF29: 76.398829 | BG29: 77.26628 | BH29: 78.858814 | BI29: 78.845667 | BJ29: 81.842653 | BK29: 78.403544 | BL29: 80.279232 | BM29: 76.52478 | BN29: 79.812612 | BO29: 78.068282 | BP29: 74.606971 | BQ29: 73.648101 | BR29: 77.573692 | BS29: 80.014361 | BT29: 77.55127 | BU29: 79.610857 | BV29: 76.651597 | BW29: 80.048485 | BX29: 77.884016 | BY29: 76.499603 | BZ29: 80.032907 | CA29: 74.886784 | CB29: 74.895803 | CC29: 78.271512 | CD29: 88.413418 | CE29: 78.002842 | CF29: 81.622521 | CG29: 76.381108 | CH29: 78.151652 | CI29: 79.435092 | CJ29: 78.804653 | CK29: 78.697377 | CL29: 78.951953 | CM29: 75.257354 | CN29: 77.07468 | CO29: 81.621977 | CP29: 76.275565 | CQ29: 74.976145 | CR29: 81.542351 | CS29: 77.631858 | CT29: 75.423825 | CU29: 79.04869 | CV29: 78.362884 | CW29: 75.100774 | CX29: 88.403498 | CY29: 88.184612 | CZ29: 84.41285 | DA29: 77.878213 | DB29: 77.589788 | DC29: 75.912919 | DD29: 72.227784 | DE29: 78.218307 | DF29: 73.716421 | DG29: 81.900815 | DH29: 77.128393 | DI29: 78.247431 | DJ29: 84.514783 | DK29: 77.871437 | DL29: 78.033859 | DM29: 82.738997 | DN29: 83.455621 | DO29: 77.631075 | DP29: 83.054123 | DQ29: 81.357212 | DR29: 79.99981 | DS29: 77.253854 | DT29: 75.995661 | DU29: 81.916082 | DV29: 79.906526 | DW29: 79.47124 | DX29: 76.530272 | DY29: 77.385441 | DZ29: 79.268154 | EA29: 76.495246 | EB29: 77.232843 | EC29: 74.395243 | ED29: 78.408738 | EE29: 78.323582 | EF29: 75.920738 | EG29: 77.511179 | EH29: 74.79298 | EI29: 75.580864 | EJ29: 77.770368 | EK29: 75.250551 | EL29: 77.943637 | EM29: 78.704659 | EN29: 76.95406 | EO29: 77.433084 | EP29: 73.995268 | EQ29: 76.991337 | ER29: 73.354542 | ES29: 74.566543 | ET29: 75.145264 | EU29: 79.660304 | EV29: 76.016609 | EW29: 75.655641 | EX29: 77.926534 | EY29: 77.437288 | EZ29: 79.799533

Sheet Introduction
B3: Overall Patient Experience Scores - Diagnostic Tool
B4: Version 16.0: Publication 26th November 2019
B20: england.feedback-data@nhs.net

Sheet Interpreting the charts
B2: How to interpret the charts - Trust scores
C5: 0 | D5: 20 | E5: 40 | G5: 60 | H5: 80 | I5: 100
J9: Q31

Sheet Trust scores
D2: Select the following three options:
D6: 1.Organisation type: | E6: 2. Organisation name: | K6: 3. Survey:
C10: Org Type from combo box | D10: Org Code from combo box | E10: Survey from combo box | F10: Survey code | G10: Comparable survey from lookup | H10: Named Ranges for Lookups
C11: 2 | D11: RTQ | E11: CMHS 2019/20 | F11: =VLOOKUP(E11, Survey_Dropdown, 2, 0) -> MH1920 | G11: =VLOOKUP($F$11, SurveyYears_Lookup, 2, 0) -> MH1819Adj | H11: =$F$11&"Scores" -> MH1920Scores | I11: =$G$11&"Scores" -> MH1819AdjScores | K11: =IF(AND(D11="R1F",F11="MH1718"),1,"") -> 
D13: Overall scores - click on 'Questions' to see how the domain score is built up:
E14: Trust Scores | G14: Performance | J14: ="Trust results relative to the national dispersion of scores - "&$E$11 -> Trust results relative to the national dispersion of scores - CMHS 2019/20
D15: Domain | E15: =VLOOKUP($F$11,SurveyYears_Lookup,3,0) -> 2019/20 | F15: =VLOOKUP($F$11,SurveyYears_Lookup,4,0) -> 2018/19 (comparable scores only) | G15: =CONCATENATE("80th percentile for ",E15) -> 80th percentile for 2019/20 | H15: =CONCATENATE("Performance in top 20% for ",E15) -> Performance in top 20% for 2019/20 | J15: Min | K15: Max | L15: 80th - min | M15: max-80th
A16: aw | D16: Access and waiting | E16: =IF(ISERROR(VLOOKUP($A16,INDIRECT($H$11),MATCH($D$11,INDIRECT("'"&$F$11&"'!4:4"),0),FALSE)), "No data", IF(VLOOKUP($A16,INDIRECT($H$11),MATCH($D$11,INDIRECT("'"&$F$11&"'!4:4"),0),FALSE)=0,"No data", VLOOKUP($A16,INDIRECT($H$11),MATCH($D$11,INDIRECT("'"&$F$11&"'!4:4"),0),FALSE))) -> 82.99666605 | F16: =IF($E16="Domain not used", $E16, IF(ISERROR(VLOOKUP($A16,INDIRECT($I$11),MATCH($D$11,INDIRECT("'"&$G$11&"'!4:4"),0),FALSE)), "No data", IF(VLOOKUP($A16,INDIRECT($I$11),MATCH($D$11,INDIRECT("'"&$G$11&"'!4:4"),0),FALSE)=0, "Not comparable", IF('Comparability & Trusts'!$D$5=0, "Not comparable", IF(AND($F$11="OP1112", OR($A16="aw", $A16="overall", $A16="aw1")), VLOOKUP($A16&"a",INDIRECT($I$11),MATCH($D$11,INDIRECT("'"&$G$11&"'!4:4"),0),FALSE), VLOOKUP($A16,INDIRECT($I$11),MATCH($D$11,INDIRECT("'"&$G$11&"'!4:4"),0),FALSE)))))) -> Not comparable | G16: =IFERROR(VLOOKUP($A16,INDIRECT($H$11),MATCH("80th percentile",INDIRECT("'"&$F$11&"'!4:4"),0),FALSE),"No data") -> 84.87265781 | H16: =IF(OR($E16="Domain not used", $E16="No data"), $E16, IF(E16>G16,"Yes","No")) -> No | I16: =IF($E16="No data",NA(),IF($E16="Domain not used",NA(),IF($E16="#NULL!",NA(),$E16))) -> 82.99666605 | J16: =IF($E16="No data",NA(),IF($E16="Domain not used",NA(),IF($E16="#NULL!",NA(),VLOOKUP($A16,INDIRECT($H$11),MATCH("Min",INDIRECT("'"&$F$11&"'!4:4"),0),FALSE)))) -> 74.66867957 | K16: =IF($E16="No data",NA(),IF($E16="Domain not used",NA(),IF($E16="#NULL!",NA(),VLOOKUP($A16,INDIRECT($H$11),MATCH("Max",INDIRECT("'"&$F$11&"'!4:4"),0),FALSE)))) -> 91.67600924 | L16: =G16-J16 -> 10.20397825 | M16: =K16-G16 -> 6.803351423 | N16: 5.5 | O16: AW
A17: shqcc | D17: Safe, high quality, coordinated care | E17: 75.78374318 | F17: =IF($E17="Domain not used", $E17, IF(ISERROR(VLOOKUP($A17,INDIRECT($I$11),MATCH($D$11,INDIRECT("'"&$G$11&"'!4:4"),0),FALSE)), "No data", IF(VLOOKUP($A17,INDIRECT($I$11),MATCH($D$11,INDIRECT("'"&$G$11&"'!4:4"),0),FALSE)=0, "Not comparable", IF('Comparability & Trusts'!$D$5=0, "Not comparable", IF(AND($F$11="OP1112", OR($A17="aw", $A17="overall", $A17="aw1")), VLOOKUP($A17&"a",INDIRECT($I$11),MATCH($D$11,INDIRECT("'"&$G$11&"'!4:4"),0),FALSE), VLOOKUP($A17,INDIRECT($I$11),MATCH($D$11,INDIRECT("'"&$G$11&"'!4:4"),0),FALSE)))))) -> 75.688838 | G17: 72.75365242 | H17: Yes | I17: 75.78374318 | J17: 61.36502139 | K17: 76.0157951 | L17: 11.38863103 | M17: 3.262142674 | N17: 4.5 | O17: SHQCC
A18: bimc | D18: Better information, more choice | E18: 75.24325364 | F18: =IF($E18="Domain not used", $E18, IF(ISERROR(VLOOKUP($A18,INDIRECT($I$11),MATCH($D$11,INDIRECT("'"&$G$11&"'!4:4"),0),FALSE)), "No data", IF(VLOOKUP($A18,INDIRECT($I$11),MATCH($D$11,INDIRECT("'"&$G$11&"'!4:4"),0),FALSE)=0, "Not comparable", IF('Comparability & Trusts'!$D$5=0, "Not comparable", IF(AND($F$11="OP1112", OR($A18="aw", $A18="overall", $A18="aw1")), VLOOKUP($A18&"a",INDIRECT($I$11),MATCH($D$11,INDIRECT("'"&$G$11&"'!4:4"),0),FALSE), VLOOKUP($A18,INDIRECT($I$11),MATCH($D$11,INDIRECT("'"&$G$11&"'!4:4"),0),FALSE)))))) -> 73.415937 | G18: 71.77938576 | H18: Yes | I18: 75.24325364 | J18: 62.38132654 | K18: 75.29165708 | L18: 9.398059223 | M18: 3.512271321 | N18: 3.5 | O18: BIMC
A19: br | D19: Building closer relationships | E19: 80.49349443 | F19: =IF($E19="Domain not used", $E19, IF(ISERROR(VLOOKUP($A19,INDIRECT($I$11),MATCH($D$11,INDIRECT("'"&$G$11&"'!4:4"),0),FALSE)), "No data", IF(VLOOKUP($A19,INDIRECT($I$11),MATCH($D$11,INDIRECT("'"&$G$11&"'!4:4"),0),FALSE)=0, "No data", IF('Comparability & Trusts'!$D$5=0, "Not comparable", IF(AND($F$11="OP1112", OR($A19="aw", $A19="overall", $A19="aw1")), VLOOKUP($A19&"a",INDIRECT($I$11),MATCH($D$11,INDIRECT("'"&$G$11&"'!4:4"),0),FALSE), VLOOKUP($A19,INDIRECT($I$11),MATCH($D$11,INDIRECT("'"&$G$11&"'!4:4"),0),FALSE)))))) -> 81.018169 | G19: 77.49582649 | H19: Yes | I19: 80.49349443 | J19: 65.48231473 | K19: 83.3437145 | L19: 12.01351176 | M19: 5.847888008 | N19: 2.5 | O19: BR
A20: ccfp | D20: Clean, comfortable, friendly place to be | E20: Domain not used | F20: =IF($E20="Domain not used", $E20, IF(ISERROR(VLOOKUP($A20,INDIRECT($I$11),MATCH($D$11,INDIRECT("'"&$G$11&"'!4:4"),0),FALSE)), "No data", IF(VLOOKUP($A20,INDIRECT($I$11),MATCH($D$11,INDIRECT("'"&$G$11&"'!4:4"),0),FALSE)=0, "No data", IF('Comparability & Trusts'!$D$5=0, "Not comparable", IF(AND($F$11="OP1112", OR($A20="aw", $A20="overall", $A20="aw1")), VLOOKUP($A20&"a",INDIRECT($I$11),MATCH($D$11,INDIRECT("'"&$G$11&"'!4:4"),0),FALSE), VLOOKUP($A20,INDIRECT($I$11),MATCH($D$11,INDIRECT("'"&$G$11&"'!4:4"),0),FALSE)))))) -> Domain not used | G20: Domain not used | H20: Domain not used | N20: 1.5 | O20: CCFP
A21: Overall | D21: Overall | E21: 78.62928933 | F21: =IF($E21="Domain not used", $E21, IF(ISERROR(VLOOKUP($A21,INDIRECT($I$11),MATCH($D$11,INDIRECT("'"&$G$11&"'!4:4"),0),FALSE)), "No data", IF(VLOOKUP($A21,INDIRECT($I$11),MATCH($D$11,INDIRECT("'"&$G$11&"'!4:4"),0),FALSE)=0, "Not comparable", IF('Comparability & Trusts'!$D$5=0, "Not comparable", IF(AND($F$11="OP1112", OR($A21="aw", $A21="overall", $A21="aw1")), VLOOKUP($A21&"a",INDIRECT($I$11),MATCH($D$11,INDIRECT("'"&$G$11&"'!4:4"),0),FALSE), VLOOKUP($A21,INDIRECT($I$11),MATCH($D$11,INDIRECT("'"&$G$11&"'!4:4"),0),FALSE)))))) -> Not comparable | G21: 76.07835726 | H21: Yes | I21: 78.62928933 | J21: 68.00184701 | K21: 81.54075432 | L21: 8.076510249 | M21: 5.462397058 | N21: 0.5 | O21: Overall
D24: Domain: Access and waiting
E25: Trust scores | G25: Performance | J25: ="Trust results relative to the national dispersion of scores - "&$E$11 -> Trust results relative to the national dispersion of scores - CMHS 2019/20
D26: Indicator | E26: =VLOOKUP($F$11,SurveyYears_Lookup,3,0) -> 2019/20 | F26: =VLOOKUP($F$11,SurveyYears_Lookup,4,0) -> 2018/19 (comparable scores only) | G26: =CONCATENATE("80th percentile for ",E26) -> 80th percentile for 2019/20 | H26: =CONCATENATE("Performance in top 20% for ",E26) -> Performance in top 20% for 2019/20 | J26: Min | K26: Max | L26: 80th - min | M26: max-80th
A27: aw1 | D27: =IFERROR(VLOOKUP($A27,INDIRECT($H$11),MATCH("question",INDIRECT("'"&$F$11&"'!4:4"),0),FALSE),"") -> Q9: Do you know how to contact this person [the person in charge of organising the respondents care and services] if you have a concern about your care? | E27: =IF(ISERROR(VLOOKUP($A27,INDIRECT($H$11),MATCH($D$11,INDIRECT("'"&$F$11&"'!4:4"),0),FALSE)), "No data", IF(VLOOKUP($A27,INDIRECT($H$11),MATCH($D$11,INDIRECT("'"&$F$11&"'!4:4"),0),FALSE)=0,"No data", VLOOKUP($A27,INDIRECT($H$11),MATCH($D$11,INDIRECT("'"&$F$11&"'!4:4"),0),FALSE))) -> 97.26469462 | F27: =IF($E27="Domain not used", $E27, IF(ISERROR(VLOOKUP($A27,INDIRECT($I$11),MATCH($D$11,INDIRECT("'"&$G$11&"'!4:4"),0),FALSE)), "No data", IF(VLOOKUP($A27,INDIRECT($I$11),MATCH($D$11,INDIRECT("'"&$G$11&"'!4:4"),0),FALSE)=0, "Not comparable", IF('Comparability & Trusts'!$D$5=0, "Not comparable", IF(AND($F$11="OP1112", OR($A27="aw", $A27="overall", $A27="aw1")), VLOOKUP($A27&"a",INDIRECT($I$11),MATCH($D$11,INDIRECT("'"&$G$11&"'!4:4"),0),FALSE), VLOOKUP($A27,INDIRECT($I$11),MATCH($D$11,INDIRECT("'"&$G$11&"'!4:4"),0),FALSE)))))) -> 97.267903 | G27: =IFERROR(VLOOKUP($A27,INDIRECT($H$11),MATCH("80th percentile",INDIRECT("'"&$F$11&"'!4:4"),0),FALSE),"No data") -> 98.15900504 | H27: =IF(OR($E27="Domain not used", $E27="No data"), $E27, IF(E27>G27,"Yes","No")) -> No | I27: =IF($E27="No data",NA(),IF($E27="Domain not used",NA(),IF($E27="#NULL!",NA(),$E27))) -> 97.26469462 | J27: =IF($E27="No data",NA(),IF($E27="Domain not used",NA(),IF($E27="#NULL!",NA(),VLOOKUP($A27,INDIRECT($H$11),MATCH("Min",INDIRECT("'"&$F$11&"'!4:4"),0),FALSE)))) -> 90.23286449 | K27: =IF($E27="No data",NA(),IF($E27="Domain not used",NA(),IF($E27="#NULL!",NA(),VLOOKUP($A27,INDIRECT($H$11),MATCH("Max",INDIRECT("'"&$F$11&"'!4:4"),0),FALSE)))) -> 100 | L27: =G27-J27 -> 7.926140544 | M27: =K27-G27 -> 1.840994965 | N27: 5.4 | O27: =IFERROR(VLOOKUP($A27,INDIRECT($H$11),MATCH("Qnumber",INDIRECT("'"&$F$11&"'!4:4"),0),FALSE),"") -> q9
A28: aw2 | D28: =IFERROR(VLOOKUP($A28,INDIRECT($H$11),MATCH("question",INDIRECT("'"&$F$11&"'!4:4"),0),FALSE),"") -> Q16: Do you know who to contact out of hours within the NHS if you have a crisis? | E28: =IF(ISERROR(VLOOKUP($A28,INDIRECT($H$11),MATCH($D$11,INDIRECT("'"&$F$11&"'!4:4"),0),FALSE)), "No data", IF(VLOOKUP($A28,INDIRECT($H$11),MATCH($D$11,INDIRECT("'"&$F$11&"'!4:4"),0),FALSE)=0,"No data", VLOOKUP($A28,INDIRECT($H$11),MATCH($D$11,INDIRECT("'"&$F$11&"'!4:4"),0),FALSE))) -> 68.72863749 | F28: =IF($E28="Domain not used", $E28, IF(ISERROR(VLOOKUP($A28,INDIRECT($I$11),MATCH($D$11,INDIRECT("'"&$G$11&"'!4:4"),0),FALSE)), "No data", IF(VLOOKUP($A28,INDIRECT($I$11),MATCH($D$11,INDIRECT("'"&$G$11&"'!4:4"),0),FALSE)=0, "Not comparable", IF('Comparability & Trusts'!$D$5=0, "Not comparable", IF(AND($F$11="OP1112", OR($A28="aw", $A28="overall", $A28="aw1")), VLOOKUP($A28&"a",INDIRECT($I$11),MATCH($D$11,INDIRECT("'"&$G$11&"'!4:4"),0),FALSE), VLOOKUP($A28,INDIRECT($I$11),MATCH($D$11,INDIRECT("'"&$G$11&"'!4:4"),0),FALSE)))))) -> Not comparable | G28: =IFERROR(VLOOKUP($A28,INDIRECT($H$11),MATCH("80th percentile",INDIRECT("'"&$F$11&"'!4:4"),0),FALSE),"No data") -> 72.34847915 | H28: =IF(OR($E28="Domain not used", $E28="No data"), $E28, IF(E28>G28,"Yes","No")) -> No | I28: =IF($E28="No data",NA(),IF($E28="Domain not used",NA(),IF($E28="#NULL!",NA(),$E28))) -> 68.72863749 | J28: =IF($E28="No data",NA(),IF($E28="Domain not used",NA(),IF($E28="#NULL!",NA(),VLOOKUP($A28,INDIRECT($H$11),MATCH("Min",INDIRECT("'"&$F$11&"'!4:4"),0),FALSE)))) -> 52.08419233 | K28: =IF($E28="No data",NA(),IF($E28="Domain not used",NA(),IF($E28="#NULL!",NA(),VLOOKUP($A28,INDIRECT($H$11),MATCH("Max",INDIRECT("'"&$F$11&"'!4:4"),0),FALSE)))) -> 86.13347189 | L28: =G28-J28 -> 20.26428682 | M28: =K28-G28 -> 13.78499274 | N28: 4.2 | O28: =IFERROR(VLOOKUP($A28,INDIRECT($H$11),MATCH("Qnumber",INDIRECT("'"&$F$11&"'!4:4"),0),FALSE),"") -> q16
A29: aw3 | D29: =IFERROR(VLOOKUP($A29,INDIRECT($H$11),MATCH("question",INDIRECT("'"&$F$11&"'!4:4"),0),FALSE),"") ->  | E29: =IF(ISERROR(VLOOKUP($A29,INDIRECT($H$11),MATCH($D$11,INDIRECT("'"&$F$11&"'!4:4"),0),FALSE)), "No data", IF(VLOOKUP($A29,INDIRECT($H$11),MATCH($D$11,INDIRECT("'"&$F$11&"'!4:4"),0),FALSE)=0,"No data", VLOOKUP($A29,INDIRECT($H$11),MATCH($D$11,INDIRECT("'"&$F$11&"'!4:4"),0),FALSE))) -> No data | F29: =IF($E29="Domain not used", $E29, IF(ISERROR(VLOOKUP($A29,INDIRECT($I$11),MATCH($D$11,INDIRECT("'"&$G$11&"'!4:4"),0),FALSE)), "No data", IF(VLOOKUP($A29,INDIRECT($I$11),MATCH($D$11,INDIRECT("'"&$G$11&"'!4:4"),0),FALSE)=0, "No data", IF('Comparability & Trusts'!$D$5=0, "Not comparable", IF(AND($F$11="OP1112", OR($A29="aw", $A29="overall", $A29="aw1")), VLOOKUP($A29&"a",INDIRECT($I$11),MATCH($D$11,INDIRECT("'"&$G$11&"'!4:4"),0),FALSE), VLOOKUP($A29,INDIRECT($I$11),MATCH($D$11,INDIRECT("'"&$G$11&"'!4:4"),0),FALSE)))))) -> No data | G29: =IFERROR(VLOOKUP($A29,INDIRECT($H$11),MATCH("80th percentile",INDIRECT("'"&$F$11&"'!4:4"),0),FALSE),"No data") -> No data | H29: =IF(OR($E29="Domain not used", $E29="No data"), $E29, IF(E29>G29,"Yes","No")) -> No data | I29: =IF($E29="No data",NA(),IF($E29="Domain not used",NA(),IF($E29="#NULL!",NA(),$E29))) ->  | J29: =IF($E29="No data",NA(),IF($E29="Domain not used",NA(),IF($E29="#NULL!",NA(),VLOOKUP($A29,INDIRECT($H$11),MATCH("Min",INDIRECT("'"&$F$11&"'!4:4"),0),FALSE)))) ->  | K29: =IF($E29="No data",NA(),IF($E29="Domain not used",NA(),IF($E29="#NULL!",NA(),VLOOKUP($A29,INDIRECT($H$11),MATCH("Max",INDIRECT("'"&$F$11&"'!4:4"),0),FALSE)))) ->  | L29: =G29-J29 ->  | M29: =K29-G29 ->  | N29: 3 | O29: =IFERROR(VLOOKUP($A29,INDIRECT($H$11),MATCH("Qnumber",INDIRECT("'"&$F$11&"'!4:4"),0),FALSE),"") -> 
A30: aw4 | D30: =IFERROR(VLOOKUP($A30,INDIRECT($H$11),MATCH("question",INDIRECT("'"&$F$11&"'!4:4"),0),FALSE),"") ->  | E30: =IF(ISERROR(VLOOKUP($A30,INDIRECT($H$11),MATCH($D$11,INDIRECT("'"&$F$11&"'!4:4"),0),FALSE)), "No data", IF(VLOOKUP($A30,INDIRECT($H$11),MATCH($D$11,INDIRECT("'"&$F$11&"'!4:4"),0),FALSE)=0,"No data", VLOOKUP($A30,INDIRECT($H$11),MATCH($D$11,INDIRECT("'"&$F$11&"'!4:4"),0),FALSE))) -> No data | F30: =IF($E30="Domain not used", $E30, IF(ISERROR(VLOOKUP($A30,INDIRECT($I$11),MATCH($D$11,INDIRECT("'"&$G$11&"'!4:4"),0),FALSE)), "No data", IF(VLOOKUP($A30,INDIRECT($I$11),MATCH($D$11,INDIRECT("'"&$G$11&"'!4:4"),0),FALSE)=0, "No data", IF('Comparability & Trusts'!$D$5=0, "Not comparable", IF(AND($F$11="OP1112", OR($A30="aw", $A30="overall", $A30="aw1")), VLOOKUP($A30&"a",INDIRECT($I$11),MATCH($D$11,INDIRECT("'"&$G$11&"'!4:4"),0),FALSE), VLOOKUP($A30,INDIRECT($I$11),MATCH($D$11,INDIRECT("'"&$G$11&"'!4:4"),0),FALSE)))))) -> No data | G30: =IFERROR(VLOOKUP($A30,INDIRECT($H$11),MATCH("80th percentile",INDIRECT("'"&$F$11&"'!4:4"),0),FALSE),"No data") -> No data | H30: =IF(OR($E30="Domain not used", $E30="No data"), $E30, IF(E30>G30,"Yes","No")) -> No data | I30: =IF($E30="No data",NA(),IF($E30="Domain not used",NA(),IF($E30="#NULL!",NA(),$E30))) ->  | J30: =IF($E30="No data",NA(),IF($E30="Domain not used",NA(),IF($E30="#NULL!",NA(),VLOOKUP($A30,INDIRECT($H$11),MATCH("Min",INDIRECT("'"&$F$11&"'!4:4"),0),FALSE)))) ->  | K30: =IF($E30="No data",NA(),IF($E30="Domain not used",NA(),IF($E30="#NULL!",NA(),VLOOKUP($A30,INDIRECT($H$11),MATCH("Max",INDIRECT("'"&$F$11&"'!4:4"),0),FALSE)))) ->  | L30: =G30-J30 ->  | M30: =K30-G30 ->  | N30: 2.5 | O30: =IFERROR(VLOOKUP($A30,INDIRECT($H$11),MATCH("Qnumber",INDIRECT("'"&$F$11&"'!4:4"),0),FALSE),"") -> 
A31: aw5 | D31: =IFERROR(VLOOKUP($A31,INDIRECT($H$11),MATCH("question",INDIRECT("'"&$F$11&"'!4:4"),0),FALSE),"") ->  | E31: =IF(ISERROR(VLOOKUP($A31,INDIRECT($H$11),MATCH($D$11,INDIRECT("'"&$F$11&"'!4:4"),0),FALSE)), "No data", IF(VLOOKUP($A31,INDIRECT($H$11),MATCH($D$11,INDIRECT("'"&$F$11&"'!4:4"),0),FALSE)=0,"No data", VLOOKUP($A31,INDIRECT($H$11),MATCH($D$11,INDIRECT("'"&$F$11&"'!4:4"),0),FALSE))) -> No data | F31: =IF($E31="Domain not used", $E31, IF(ISERROR(VLOOKUP($A31,INDIRECT($I$11),MATCH($D$11,INDIRECT("'"&$G$11&"'!4:4"),0),FALSE)), "No data", IF(VLOOKUP($A31,INDIRECT($I$11),MATCH($D$11,INDIRECT("'"&$G$11&"'!4:4"),0),FALSE)=0, "No data", IF('Comparability & Trusts'!$D$5=0, "Not comparable", IF(AND($F$11="OP1112", OR($A31="aw", $A31="overall", $A31="aw1")), VLOOKUP($A31&"a",INDIRECT($I$11),MATCH($D$11,INDIRECT("'"&$G$11&"'!4:4"),0),FALSE), VLOOKUP($A31,INDIRECT($I$11),MATCH($D$11,INDIRECT("'"&$G$11&"'!4:4"),0),FALSE)))))) -> No data | G31: =IFERROR(VLOOKUP($A31,INDIRECT($H$11),MATCH("80th percentile",INDIRECT("'"&$F$11&"'!4:4"),0),FALSE),"No data") -> No data | H31: =IF(OR($E31="Domain not used", $E31="No data"), $E31, IF(E31>G31,"Yes","No")) -> No data | I31: =IF($E31="No data",NA(),IF($E31="Domain not used",NA(),IF($E31="#NULL!",NA(),$E31))) ->  | J31: =IF($E31="No data",NA(),IF($E31="Domain not used",NA(),IF($E31="#NULL!",NA(),VLOOKUP($A31,INDIRECT($H$11),MATCH("Min",INDIRECT("'"&$F$11&"'!4:4"),0),FALSE)))) ->  | K31: =IF($E31="No data",NA(),IF($E31="Domain not used",NA(),IF($E31="#NULL!",NA(),VLOOKUP($A31,INDIRECT($H$11),MATCH("Max",INDIRECT("'"&$F$11&"'!4:4"),0),FALSE)))) ->  | L31: =G31-J31 ->  | M31: =K31-G31 ->  | N31: 2 | O31: =IFERROR(VLOOKUP($A31,INDIRECT($H$11),MATCH("Qnumber",INDIRECT("'"&$F$11&"'!4:4"),0),FALSE),"") -> 
D34: Domain: Safe, high quality, coordinated care
E35: Trust scores | G35: Performance | J35: ="Trust results relative to the national dispersion of scores - "&$E$11 -> Trust results relative to the national dispersion of scores - CMHS 2019/20
D36: Indicator | E36: =VLOOKUP($F$11,SurveyYears_Lookup,3,0) -> 2019/20 | F36: =VLOOKUP($F$11,SurveyYears_Lookup,4,0) -> 2018/19 (comparable scores only) | G36: =CONCATENATE("80th percentile for ",E36) -> 80th percentile for 2019/20 | H36: =CONCATENATE("Performance in top 20% for ",E36) -> Performance in top 20% for 2019/20 | J36: Min | K36: Max | L36: 80th - min | M36: max-80th
A37: shqcc1 | D37: =IFERROR(VLOOKUP($A37,INDIRECT($H$11),MATCH("question",INDIRECT("'"&$F$11&"'!4:4"),0),FALSE),"") -> Q24: In the last 12 months, has an NHS mental health worker checked with you about how you are getting on with your medicines? (That is, have your medicines been reviewed?) | E37: =IF(ISERROR(VLOOKUP($A37,INDIRECT($H$11),MATCH($D$11,INDIRECT("'"&$F$11&"'!4:4"),0),FALSE)), "No data", IF(VLOOKUP($A37,INDIRECT($H$11),MATCH($D$11,INDIRECT("'"&$F$11&"'!4:4"),0),FALSE)=0,"No data", VLOOKUP($A37,INDIRECT($H$11),MATCH($D$11,INDIRECT("'"&$F$11&"'!4:4"),0),FALSE))) -> 86.30597278 | F37: =IF($E37="Domain not used", $E37, IF(ISERROR(VLOOKUP($A37,INDIRECT($I$11),MATCH($D$11,INDIRECT("'"&$G$11&"'!4:4"),0),FALSE)), "No data", IF(VLOOKUP($A37,INDIRECT($I$11),MATCH($D$11,INDIRECT("'"&$G$11&"'!4:4"),0),FALSE)=0, "Not comparable", IF('Comparability & Trusts'!$D$5=0, "Not comparable", IF(AND($F$11="OP1112", OR($A37="aw", $A37="overall", $A37="aw1")), VLOOKUP($A37&"a",INDIRECT($I$11),MATCH($D$11,INDIRECT("'"&$G$11&"'!4:4"),0),FALSE), VLOOKUP($A37,INDIRECT($I$11),MATCH($D$11,INDIRECT("'"&$G$11&"'!4:4"),0),FALSE)))))) -> 83.891765 | G37: =IFERROR(VLOOKUP($A37,INDIRECT($H$11),MATCH("80th percentile",INDIRECT("'"&$F$11&"'!4:4"),0),FALSE),"No data") -> 81.86922085 | H37: =IF(OR($E37="Domain not used", $E37="No data"), $E37, IF(E37>G37,"Yes","No")) -> Yes | I37: =IF($E37="No data",NA(),IF($E37="Domain not used",NA(),IF($E37="#NULL!",NA(),$E37))) -> 86.30597278 | J37: =IF($E37="No data",NA(),IF($E37="Domain not used",NA(),IF($E37="#NULL!",NA(),VLOOKUP($A37,INDIRECT($H$11),MATCH("Min",INDIRECT("'"&$F$11&"'!4:4"),0),FALSE)))) -> 68.19688548 | K37: =IF($E37="No data",NA(),IF($E37="Domain not used",NA(),IF($E37="#NULL!",NA(),VLOOKUP($A37,INDIRECT($H$11),MATCH("Max",INDIRECT("'"&$F$11&"'!4:4"),0),FALSE)))) -> 87.19367985 | L37: =G37-J37 -> 13.67233536 | M37: =K37-G37 -> 5.324459006 | N37: 5.4 | O37: =IFERROR(VLOOKUP($A37,INDIRECT($H$11),MATCH("Qnumber",INDIRECT("'"&$F$11&"'!4:4"),0),FALSE),"") -> q24
A38: shqcc2 | D38: =IFERROR(VLOOKUP($A38,INDIRECT($H$11),MATCH("question",INDIRECT("'"&$F$11&"'!4:4"),0),FALSE),"") -> Q10: How well does this person [in charge of organising care & services] organise the care and services you need? | E38: =IF(ISERROR(VLOOKUP($A38,INDIRECT($H$11),MATCH($D$11,INDIRECT("'"&$F$11&"'!4:4"),0),FALSE)), "No data", IF(VLOOKUP($A38,INDIRECT($H$11),MATCH($D$11,INDIRECT("'"&$F$11&"'!4:4"),0),FALSE)=0,"No data", VLOOKUP($A38,INDIRECT($H$11),MATCH($D$11,INDIRECT("'"&$F$11&"'!4:4"),0),FALSE))) -> 85.80256411 | F38: =IF($E38="Domain not used", $E38, IF(ISERROR(VLOOKUP($A38,INDIRECT($I$11),MATCH($D$11,INDIRECT("'"&$G$11&"'!4:4"),0),FALSE)), "No data", IF(VLOOKUP($A38,INDIRECT($I$11),MATCH($D$11,INDIRECT("'"&$G$11&"'!4:4"),0),FALSE)=0, "Not comparable", IF('Comparability & Trusts'!$D$5=0, "Not comparable", IF(AND($F$11="OP1112", OR($A38="aw", $A38="overall", $A38="aw1")), VLOOKUP($A38&"a",INDIRECT($I$11),MATCH($D$11,INDIRECT("'"&$G$11&"'!4:4"),0),FALSE), VLOOKUP($A38,INDIRECT($I$11),MATCH($D$11,INDIRECT("'"&$G$11&"'!4:4"),0),FALSE)))))) -> 85.635921 | G38: =IFERROR(VLOOKUP($A38,INDIRECT($H$11),MATCH("80th percentile",INDIRECT("'"&$F$11&"'!4:4"),0),FALSE),"No data") -> 85.33370984 | H38: =IF(OR($E38="Domain not used", $E38="No data"), $E38, IF(E38>G38,"Yes","No")) -> Yes | I38: =IF($E38="No data",NA(),IF($E38="Domain not used",NA(),IF($E38="#NULL!",NA(),$E38))) -> 85.80256411 | J38: =IF($E38="No data",NA(),IF($E38="Domain not used",NA(),IF($E38="#NULL!",NA(),VLOOKUP($A38,INDIRECT($H$11),MATCH("Min",INDIRECT("'"&$F$11&"'!4:4"),0),FALSE)))) -> 74.30972224 | K38: =IF($E38="No data",NA(),IF($E38="Domain not used",NA(),IF($E38="#NULL!",NA(),VLOOKUP($A38,INDIRECT($H$11),MATCH("Max",INDIRECT("'"&$F$11&"'!4:4"),0),FALSE)))) -> 88.56855459 | L38: =G38-J38 -> 11.02398759 | M38: =K38-G38 -> 3.234844754 | N38: 4.2 | O38: =IFERROR(VLOOKUP($A38,INDIRECT($H$11),MATCH("Qnumber",INDIRECT("'"&$F$11&"'!4:4"),0),FALSE),"") -> q10
A39: shqcc3 | D39: =IFERROR(VLOOKUP($A39,INDIRECT($H$11),MATCH("question",INDIRECT("'"&$F$11&"'!4:4"),0),FALSE),"") -> Q14: In the last 12 months have you had a formal meeting with someone from NHS mental health services to discuss how your care is working? | E39: =IF(ISERROR(VLOOKUP($A39,INDIRECT($H$11),MATCH($D$11,INDIRECT("'"&$F$11&"'!4:4"),0),FALSE)), "No data", IF(VLOOKUP($A39,INDIRECT($H$11),MATCH($D$11,INDIRECT("'"&$F$11&"'!4:4"),0),FALSE)=0,"No data", VLOOKUP($A39,INDIRECT($H$11),MATCH($D$11,INDIRECT("'"&$F$11&"'!4:4"),0),FALSE))) -> 79.11320539 | F39: =IF($E39="Domain not used", $E39, IF(ISERROR(VLOOKUP($A39,INDIRECT($I$11),MATCH($D$11,INDIRECT("'"&$G$11&"'!4:4"),0),FALSE)), "No data", IF(VLOOKUP($A39,INDIRECT($I$11),MATCH($D$11,INDIRECT("'"&$G$11&"'!4:4"),0),FALSE)=0, "Not comparable", IF('Comparability & Trusts'!$D$5=0, "Not comparable", IF(AND($F$11="OP1112", OR($A39="aw", $A39="overall", $A39="aw1")), VLOOKUP($A39&"a",INDIRECT($I$11),MATCH($D$11,INDIRECT("'"&$G$11&"'!4:4"),0),FALSE), VLOOKUP($A39,INDIRECT($I$11),MATCH($D$11,INDIRECT("'"&$G$11&"'!4:4"),0),FALSE)))))) -> 82.237734 | G39: =IFERROR(VLOOKUP($A39,INDIRECT($H$11),MATCH("80th percentile",INDIRECT("'"&$F$11&"'!4:4"),0),FALSE),"No data") -> 75.20438539 | H39: =IF(OR($E39="Domain not used", $E39="No data"), $E39, IF(E39>G39,"Yes","No")) -> Yes | I39: =IF($E39="No data",NA(),IF($E39="Domain not used",NA(),IF($E39="#NULL!",NA(),$E39))) -> 79.11320539 | J39: =IF($E39="No data",NA(),IF($E39="Domain not used",NA(),IF($E39="#NULL!",NA(),VLOOKUP($A39,INDIRECT($H$11),MATCH("Min",INDIRECT("'"&$F$11&"'!4:4"),0),FALSE)))) -> 61.67628164 | K39: =IF($E39="No data",NA(),IF($E39="Domain not used",NA(),IF($E39="#NULL!",NA(),VLOOKUP($A39,INDIRECT($H$11),MATCH("Max",INDIRECT("'"&$F$11&"'!4:4"),0),FALSE)))) -> 82.79177118 | L39: =G39-J39 -> 13.52810375 | M39: =K39-G39 -> 7.587385785 | N39: 3 | O39: =IFERROR(VLOOKUP($A39,INDIRECT($H$11),MATCH("Qnumber",INDIRECT("'"&$F$11&"'!4:4"),0),FALSE),"") -> q14
A40: shqcc4 | D40: =IFERROR(VLOOKUP($A40,INDIRECT($H$11),MATCH("question",INDIRECT("'"&$F$11&"'!4:4"),0),FALSE),"") -> Q29: In the last 12 months, did NHS mental health services give you any help or advice with finding support for physical health needs (this might be an injury, a disability, or a condition such as diabetes, epilepsy, etc)? | E40: =IF(ISERROR(VLOOKUP($A40,INDIRECT($H$11),MATCH($D$11,INDIRECT("'"&$F$11&"'!4:4"),0),FALSE)), "No data", IF(VLOOKUP($A40,INDIRECT($H$11),MATCH($D$11,INDIRECT("'"&$F$11&"'!4:4"),0),FALSE)=0,"No data", VLOOKUP($A40,INDIRECT($H$11),MATCH($D$11,INDIRECT("'"&$F$11&"'!4:4"),0),FALSE))) -> 51.91323043 | F40: =IF($E40="Domain not used", $E40, IF(ISERROR(VLOOKUP($A40,INDIRECT($I$11),MATCH($D$11,INDIRECT("'"&$G$11&"'!4:4"),0),FALSE)), "No data", IF(VLOOKUP($A40,INDIRECT($I$11),MATCH($D$11,INDIRECT("'"&$G$11&"'!4:4"),0),FALSE)=0, "Not comparable", IF('Comparability & Trusts'!$D$5=0, "Not comparable", IF(AND($F$11="OP1112", OR($A40="aw", $A40="overall", $A40="aw1")), VLOOKUP($A40&"a",INDIRECT($I$11),MATCH($D$11,INDIRECT("'"&$G$11&"'!4:4"),0),FALSE), VLOOKUP($A40,INDIRECT($I$11),MATCH($D$11,INDIRECT("'"&$G$11&"'!4:4"),0),FALSE)))))) -> 50.989932 | G40: =IFERROR(VLOOKUP($A40,INDIRECT($H$11),MATCH("80th percentile",INDIRECT("'"&$F$11&"'!4:4"),0),FALSE),"No data") -> 49.22352452 | H40: =IF(OR($E40="Domain not used", $E40="No data"), $E40, IF(E40>G40,"Yes","No")) -> Yes | I40: =IF($E40="No data",NA(),IF($E40="Domain not used",NA(),IF($E40="#NULL!",NA(),$E40))) -> 51.91323043 | J40: =IF($E40="No data",NA(),IF($E40="Domain not used",NA(),IF($E40="#NULL!",NA(),VLOOKUP($A40,INDIRECT($H$11),MATCH("Min",INDIRECT("'"&$F$11&"'!4:4"),0),FALSE)))) -> 34.69569299 | K40: =IF($E40="No data",NA(),IF($E40="Domain not used",NA(),IF($E40="#NULL!",NA(),VLOOKUP($A40,INDIRECT($H$11),MATCH("Max",INDIRECT("'"&$F$11&"'!4:4"),0),FALSE)))) -> 56.60629774 | L40: =G40-J40 -> 14.52783153 | M40: =K40-G40 -> 7.382773217 | N40: 1.8 | O40: =IFERROR(VLOOKUP($A40,INDIRECT($H$11),MATCH("Qnumber",INDIRECT("'"&$F$11&"'!4:4"),0),FALSE),"") -> q29
A41: shqcc5 | D41: =IFERROR(VLOOKUP($A41,INDIRECT($H$11),MATCH("question",INDIRECT("'"&$F$11&"'!4:4"),0),FALSE),"") ->  | E41: =IF(ISERROR(VLOOKUP($A41,INDIRECT($H$11),MATCH($D$11,INDIRECT("'"&$F$11&"'!4:4"),0),FALSE)), "No data", IF(VLOOKUP($A41,INDIRECT($H$11),MATCH($D$11,INDIRECT("'"&$F$11&"'!4:4"),0),FALSE)=0,"No data", VLOOKUP($A41,INDIRECT($H$11),MATCH($D$11,INDIRECT("'"&$F$11&"'!4:4"),0),FALSE))) -> No data | F41: =IF($E41="Domain not used", $E41, IF(ISERROR(VLOOKUP($A41,INDIRECT($I$11),MATCH($D$11,INDIRECT("'"&$G$11&"'!4:4"),0),FALSE)), "No data", IF(VLOOKUP($A41,INDIRECT($I$11),MATCH($D$11,INDIRECT("'"&$G$11&"'!4:4"),0),FALSE)=0, "No data", IF('Comparability & Trusts'!$D$5=0, "Not comparable", IF(AND($F$11="OP1112", OR($A41="aw", $A41="overall", $A41="aw1")), VLOOKUP($A41&"a",INDIRECT($I$11),MATCH($D$11,INDIRECT("'"&$G$11&"'!4:4"),0),FALSE), VLOOKUP($A41,INDIRECT($I$11),MATCH($D$11,INDIRECT("'"&$G$11&"'!4:4"),0),FALSE)))))) -> No data | G41: =IFERROR(VLOOKUP($A41,INDIRECT($H$11),MATCH("80th percentile",INDIRECT("'"&$F$11&"'!4:4"),0),FALSE),"No data") -> No data | H41: =IF(OR($E41="Domain not used", $E41="No data"), $E41, IF(E41>G41,"Yes","No")) -> No data | I41: =IF($E41="No data",NA(),IF($E41="Domain not used",NA(),IF($E41="#NULL!",NA(),$E41))) ->  | J41: =IF($E41="No data",NA(),IF($E41="Domain not used",NA(),IF($E41="#NULL!",NA(),VLOOKUP($A41,INDIRECT($H$11),MATCH("Min",INDIRECT("'"&$F$11&"'!4:4"),0),FALSE)))) ->  | K41: =IF($E41="No data",NA(),IF($E41="Domain not used",NA(),IF($E41="#NULL!",NA(),VLOOKUP($A41,INDIRECT($H$11),MATCH("Max",INDIRECT("'"&$F$11&"'!4:4"),0),FALSE)))) ->  | L41: =G41-J41 ->  | M41: =K41-G41 ->  | N41: 0.6 | O41: =IFERROR(VLOOKUP($A41,INDIRECT($H$11),MATCH("Qnumber",INDIRECT("'"&$F$11&"'!4:4"),0),FALSE),"") -> 
D44: Domain: Better information, more choice
E45: Trust scores | G45: Performance | J45: ="Trust results relative to the national dispersion of scores - "&$E$11 -> Trust results relative to the national dispersion of scores - CMHS 2019/20
D46: Indicator | E46: =VLOOKUP($F$11,SurveyYears_Lookup,3,0) -> 2019/20 | F46: =VLOOKUP($F$11,SurveyYears_Lookup,4,0) -> 2018/19 (comparable scores only) | G46: =CONCATENATE("80th percentile for ",E46) -> 80th percentile for 2019/20 | H46: =CONCATENATE("Performance in top 20% for ",E46) -> Performance in top 20% for 2019/20 | J46: Min | K46: Max | L46: 80th - min | M46: max-80th
A47: bimc1 | D47: =IFERROR(VLOOKUP($A47,INDIRECT($H$11),MATCH("question",INDIRECT("'"&$F$11&"'!4:4"),0),FALSE),"") -> Q19: Were you involved as much as you wanted to be in decisions about which medicines you receive? | E47: =IF(ISERROR(VLOOKUP($A47,INDIRECT($H$11),MATCH($D$11,INDIRECT("'"&$F$11&"'!4:4"),0),FALSE)), "No data", IF(VLOOKUP($A47,INDIRECT($H$11),MATCH($D$11,INDIRECT("'"&$F$11&"'!4:4"),0),FALSE)=0,"No data", VLOOKUP($A47,INDIRECT($H$11),MATCH($D$11,INDIRECT("'"&$F$11&"'!4:4"),0),FALSE))) -> 74.34528068 | F47: =IF($E47="Domain not used", $E47, IF(ISERROR(VLOOKUP($A47,INDIRECT($I$11),MATCH($D$11,INDIRECT("'"&$G$11&"'!4:4"),0),FALSE)), "No data", IF(VLOOKUP($A47,INDIRECT($I$11),MATCH($D$11,INDIRECT("'"&$G$11&"'!4:4"),0),FALSE)=0, "Not comparable", IF('Comparability & Trusts'!$D$5=0, "Not comparable", IF(AND($F$11="OP1112", OR($A47="aw", $A47="overall", $A47="aw1")), VLOOKUP($A47&"a",INDIRECT($I$11),MATCH($D$11,INDIRECT("'"&$G$11&"'!4:4"),0),FALSE), VLOOKUP($A47,INDIRECT($I$11),MATCH($D$11,INDIRECT("'"&$G$11&"'!4:4"),0),FALSE)))))) -> 72.356057 | G47: =IFERROR(VLOOKUP($A47,INDIRECT($H$11),MATCH("80th percentile",INDIRECT("'"&$F$11&"'!4:4"),0),FALSE),"No data") -> 73.37630782 | H47: =IF(OR($E47="Domain not used", $E47="No data"), $E47, IF(E47>G47,"Yes","No")) -> Yes | I47: =IF($E47="No data",NA(),IF($E47="Domain not used",NA(),IF($E47="#NULL!",NA(),$E47))) -> 74.34528068 | J47: =IF($E47="No data",NA(),IF($E47="Domain not used",NA(),IF($E47="#NULL!",NA(),VLOOKUP($A47,INDIRECT($H$11),MATCH("Min",INDIRECT("'"&$F$11&"'!4:4"),0),FALSE)))) -> 62.24697681 | K47: =IF($E47="No data",NA(),IF($E47="Domain not used",NA(),IF($E47="#NULL!",NA(),VLOOKUP($A47,INDIRECT($H$11),MATCH("Max",INDIRECT("'"&$F$11&"'!4:4"),0),FALSE)))) -> 77.46323887 | L47: =G47-J47 -> 11.129331 | M47: =K47-G47 -> 4.086931051 | N47: 5.4 | O47: =IFERROR(VLOOKUP($A47,INDIRECT($H$11),MATCH("Qnumber",INDIRECT("'"&$F$11&"'!4:4"),0),FALSE),"") -> q19
A48: bimc2 | D48: =IFERROR(VLOOKUP($A48,INDIRECT($H$11),MATCH("question",INDIRECT("'"&$F$11&"'!4:4"),0),FALSE),"") -> Q11: Have you agreed with someone from NHS mental health services what care you will receive? | E48: =IF(ISERROR(VLOOKUP($A48,INDIRECT($H$11),MATCH($D$11,INDIRECT("'"&$F$11&"'!4:4"),0),FALSE)), "No data", IF(VLOOKUP($A48,INDIRECT($H$11),MATCH($D$11,INDIRECT("'"&$F$11&"'!4:4"),0),FALSE)=0,"No data", VLOOKUP($A48,INDIRECT($H$11),MATCH($D$11,INDIRECT("'"&$F$11&"'!4:4"),0),FALSE))) -> 67.26080355 | F48: =IF($E48="Domain not used", $E48, IF(ISERROR(VLOOKUP($A48,INDIRECT($I$11),MATCH($D$11,INDIRECT("'"&$G$11&"'!4:4"),0),FALSE)), "No data", IF(VLOOKUP($A48,INDIRECT($I$11),MATCH($D$11,INDIRECT("'"&$G$11&"'!4:4"),0),FALSE)=0, "Not comparable", IF('Comparability & Trusts'!$D$5=0, "Not comparable", IF(AND($F$11="OP1112", OR($A48="aw", $A48="overall", $A48="aw1")), VLOOKUP($A48&"a",INDIRECT($I$11),MATCH($D$11,INDIRECT("'"&$G$11&"'!4:4"),0),FALSE), VLOOKUP($A48,INDIRECT($I$11),MATCH($D$11,INDIRECT("'"&$G$11&"'!4:4"),0),FALSE)))))) -> 65.052424 | G48: =IFERROR(VLOOKUP($A48,INDIRECT($H$11),MATCH("80th percentile",INDIRECT("'"&$F$11&"'!4:4"),0),FALSE),"No data") -> 61.53909176 | H48: =IF(OR($E48="Domain not used", $E48="No data"), $E48, IF(E48>G48,"Yes","No")) -> Yes | I48: =IF($E48="No data",NA(),IF($E48="Domain not used",NA(),IF($E48="#NULL!",NA(),$E48))) -> 67.26080355 | J48: =IF($E48="No data",NA(),IF($E48="Domain not used",NA(),IF($E48="#NULL!",NA(),VLOOKUP($A48,INDIRECT($H$11),MATCH("Min",INDIRECT("'"&$F$11&"'!4:4"),0),FALSE)))) -> 47.30296448 | K48: =IF($E48="No data",NA(),IF($E48="Domain not used",NA(),IF($E48="#NULL!",NA(),VLOOKUP($A48,INDIRECT($H$11),MATCH("Max",INDIRECT("'"&$F$11&"'!4:4"),0),FALSE)))) -> 70.33948805 | L48: =G48-J48 -> 14.23612728 | M48: =K48-G48 -> 8.800396295 | N48: 4.2 | O48: =IFERROR(VLOOKUP($A48,INDIRECT($H$11),MATCH("Qnumber",INDIRECT("'"&$F$11&"'!4:4"),0),FALSE),"") -> q11
A49: bimc3 | D49: =IFERROR(VLOOKUP($A49,INDIRECT($H$11),MATCH("question",INDIRECT("'"&$F$11&"'!4:4"),0),FALSE),"") -> Q13: Does this agreement on what care you will receive take your personal circumstances into account? | E49: =IF(ISERROR(VLOOKUP($A49,INDIRECT($H$11),MATCH($D$11,INDIRECT("'"&$F$11&"'!4:4"),0),FALSE)), "No data", IF(VLOOKUP($A49,INDIRECT($H$11),MATCH($D$11,INDIRECT("'"&$F$11&"'!4:4"),0),FALSE)=0,"No data", VLOOKUP($A49,INDIRECT($H$11),MATCH($D$11,INDIRECT("'"&$F$11&"'!4:4"),0),FALSE))) -> 79.44735047 | F49: =IF($E49="Domain not used", $E49, IF(ISERROR(VLOOKUP($A49,INDIRECT($I$11),MATCH($D$11,INDIRECT("'"&$G$11&"'!4:4"),0),FALSE)), "No data", IF(VLOOKUP($A49,INDIRECT($I$11),MATCH($D$11,INDIRECT("'"&$G$11&"'!4:4"),0),FALSE)=0, "Not comparable", IF('Comparability & Trusts'!$D$5=0, "Not comparable", IF(AND($F$11="OP1112", OR($A49="aw", $A49="overall", $A49="aw1")), VLOOKUP($A49&"a",INDIRECT($I$11),MATCH($D$11,INDIRECT("'"&$G$11&"'!4:4"),0),FALSE), VLOOKUP($A49,INDIRECT($I$11),MATCH($D$11,INDIRECT("'"&$G$11&"'!4:4"),0),FALSE)))))) -> 77.3347 | G49: =IFERROR(VLOOKUP($A49,INDIRECT($H$11),MATCH("80th percentile",INDIRECT("'"&$F$11&"'!4:4"),0),FALSE),"No data") -> 77.57121537 | H49: =IF(OR($E49="Domain not used", $E49="No data"), $E49, IF(E49>G49,"Yes","No")) -> Yes | I49: =IF($E49="No data",NA(),IF($E49="Domain not used",NA(),IF($E49="#NULL!",NA(),$E49))) -> 79.44735047 | J49: =IF($E49="No data",NA(),IF($E49="Domain not used",NA(),IF($E49="#NULL!",NA(),VLOOKUP($A49,INDIRECT($H$11),MATCH("Min",INDIRECT("'"&$F$11&"'!4:4"),0),FALSE)))) -> 67.72268378 | K49: =IF($E49="No data",NA(),IF($E49="Domain not used",NA(),IF($E49="#NULL!",NA(),VLOOKUP($A49,INDIRECT($H$11),MATCH("Max",INDIRECT("'"&$F$11&"'!4:4"),0),FALSE)))) -> 80.01516584 | L49: =G49-J49 -> 9.848531592 | M49: =K49-G49 -> 2.443950469 | N49: 3 | O49: =IFERROR(VLOOKUP($A49,INDIRECT($H$11),MATCH("Qnumber",INDIRECT("'"&$F$11&"'!4:4"),0),FALSE),"") -> q13
A50: bimc4 | D50: =IFERROR(VLOOKUP($A50,INDIRECT($H$11),MATCH("question",INDIRECT("'"&$F$11&"'!4:4"),0),FALSE),"") -> Q12: Were you involved as much as you wanted to be in agreeing what care you will receive? | E50: =IF(ISERROR(VLOOKUP($A50,INDIRECT($H$11),MATCH($D$11,INDIRECT("'"&$F$11&"'!4:4"),0),FALSE)), "No data", IF(VLOOKUP($A50,INDIRECT($H$11),MATCH($D$11,INDIRECT("'"&$F$11&"'!4:4"),0),FALSE)=0,"No data", VLOOKUP($A50,INDIRECT($H$11),MATCH($D$11,INDIRECT("'"&$F$11&"'!4:4"),0),FALSE))) -> 78.30849745 | F50: =IF($E50="Domain not used", $E50, IF(ISERROR(VLOOKUP($A50,INDIRECT($I$11),MATCH($D$11,INDIRECT("'"&$G$11&"'!4:4"),0),FALSE)), "No data", IF(VLOOKUP($A50,INDIRECT($I$11),MATCH($D$11,INDIRECT("'"&$G$11&"'!4:4"),0),FALSE)=0, "Not comparable", IF('Comparability & Trusts'!$D$5=0, "Not comparable", IF(AND($F$11="OP1112", OR($A50="aw", $A50="overall", $A50="aw1")), VLOOKUP($A50&"a",INDIRECT($I$11),MATCH($D$11,INDIRECT("'"&$G$11&"'!4:4"),0),FALSE), VLOOKUP($A50,INDIRECT($I$11),MATCH($D$11,INDIRECT("'"&$G$11&"'!4:4"),0),FALSE)))))) -> 79.333944 | G50: =IFERROR(VLOOKUP($A50,INDIRECT($H$11),MATCH("80th percentile",INDIRECT("'"&$F$11&"'!4:4"),0),FALSE),"No data") -> 75.68309076 | H50: =IF(OR($E50="Domain not used", $E50="No data"), $E50, IF(E50>G50,"Yes","No")) -> Yes | I50: =IF($E50="No data",NA(),IF($E50="Domain not used",NA(),IF($E50="#NULL!",NA(),$E50))) -> 78.30849745 | J50: =IF($E50="No data",NA(),IF($E50="Domain not used",NA(),IF($E50="#NULL!",NA(),VLOOKUP($A50,INDIRECT($H$11),MATCH("Min",INDIRECT("'"&$F$11&"'!4:4"),0),FALSE)))) -> 66.5929259 | K50: =IF($E50="No data",NA(),IF($E50="Domain not used",NA(),IF($E50="#NULL!",NA(),VLOOKUP($A50,INDIRECT($H$11),MATCH("Max",INDIRECT("'"&$F$11&"'!4:4"),0),FALSE)))) -> 80.49778398 | L50: =G50-J50 -> 9.090164856 | M50: =K50-G50 -> 4.814693222 | N50: 1.8 | O50: =IFERROR(VLOOKUP($A50,INDIRECT($H$11),MATCH("Qnumber",INDIRECT("'"&$F$11&"'!4:4"),0),FALSE),"") -> q12
A51: bimc5 | D51: =IFERROR(VLOOKUP($A51,INDIRECT($H$11),MATCH("question",INDIRECT("'"&$F$11&"'!4:4"),0),FALSE),"") -> Q27: Were you involved as much as you wanted to be in deciding what NHS therapies to use? | E51: =IF(ISERROR(VLOOKUP($A51,INDIRECT($H$11),MATCH($D$11,INDIRECT("'"&$F$11&"'!4:4"),0),FALSE)), "No data", IF(VLOOKUP($A51,INDIRECT($H$11),MATCH($D$11,INDIRECT("'"&$F$11&"'!4:4"),0),FALSE)=0,"No data", VLOOKUP($A51,INDIRECT($H$11),MATCH($D$11,INDIRECT("'"&$F$11&"'!4:4"),0),FALSE))) -> 76.85433605 | F51: =IF($E51="Domain not used", $E51, IF(ISERROR(VLOOKUP($A51,INDIRECT($I$11),MATCH($D$11,INDIRECT("'"&$G$11&"'!4:4"),0),FALSE)), "No data", IF(VLOOKUP($A51,INDIRECT($I$11),MATCH($D$11,INDIRECT("'"&$G$11&"'!4:4"),0),FALSE)=0, "Not comparable", IF('Comparability & Trusts'!$D$5=0, "Not comparable", IF(AND($F$11="OP1112", OR($A51="aw", $A51="overall", $A51="aw1")), VLOOKUP($A51&"a",INDIRECT($I$11),MATCH($D$11,INDIRECT("'"&$G$11&"'!4:4"),0),FALSE), VLOOKUP($A51,INDIRECT($I$11),MATCH($D$11,INDIRECT("'"&$G$11&"'!4:4"),0),FALSE)))))) -> 73.002562 | G51: =IFERROR(VLOOKUP($A51,INDIRECT($H$11),MATCH("80th percentile",INDIRECT("'"&$F$11&"'!4:4"),0),FALSE),"No data") -> 74.30076392 | H51: =IF(OR($E51="Domain not used", $E51="No data"), $E51, IF(E51>G51,"Yes","No")) -> Yes | I51: =IF($E51="No data",NA(),IF($E51="Domain not used",NA(),IF($E51="#NULL!",NA(),$E51))) -> 76.85433605 | J51: =IF($E51="No data",NA(),IF($E51="Domain not used",NA(),IF($E51="#NULL!",NA(),VLOOKUP($A51,INDIRECT($H$11),MATCH("Min",INDIRECT("'"&$F$11&"'!4:4"),0),FALSE)))) -> 56.64618112 | K51: =IF($E51="No data",NA(),IF($E51="Domain not used",NA(),IF($E51="#NULL!",NA(),VLOOKUP($A51,INDIRECT($H$11),MATCH("Max",INDIRECT("'"&$F$11&"'!4:4"),0),FALSE)))) -> 76.85433605 | L51: =G51-J51 -> 17.6545828 | M51: =K51-G51 -> 2.553572129 | N51: 0.6 | O51: =IFERROR(VLOOKUP($A51,INDIRECT($H$11),MATCH("Qnumber",INDIRECT("'"&$F$11&"'!4:4"),0),FALSE),"") -> q27
D54: Domain: Building closer relationships
E55: Trust scores | G55: Performance | J55: ="Trust results relative to the national dispersion of scores - "&$E$11 -> Trust results relative to the national dispersion of scores - CMHS 2019/20
D56: Indicator | E56: =VLOOKUP($F$11,SurveyYears_Lookup,3,0) -> 2019/20 | F56: =VLOOKUP($F$11,SurveyYears_Lookup,4,0) -> 2018/19 (comparable scores only) | G56: =CONCATENATE("80th percentile for ",E56) -> 80th percentile for 2019/20 | H56: =CONCATENATE("Performance in top 20% for ",E56) -> Performance in top 20% for 2019/20 | J56: Min | K56: Max | L56: 80th - min | M56: max-80th
A57: br1 | D57: =IFERROR(VLOOKUP($A57,INDIRECT($H$11),MATCH("question",INDIRECT("'"&$F$11&"'!4:4"),0),FALSE),"") -> Q5: Did the person or people you saw understand how your mental health needs affect other areas of your life? | E57: =IF(ISERROR(VLOOKUP($A57,INDIRECT($H$11),MATCH($D$11,INDIRECT("'"&$F$11&"'!4:4"),0),FALSE)), "No data", IF(VLOOKUP($A57,INDIRECT($H$11),MATCH($D$11,INDIRECT("'"&$F$11&"'!4:4"),0),FALSE)=0,"No data", VLOOKUP($A57,INDIRECT($H$11),MATCH($D$11,INDIRECT("'"&$F$11&"'!4:4"),0),FALSE))) -> 76.39821194 | F57: =IF($E57="Domain not used", $E57, IF(ISERROR(VLOOKUP($A57,INDIRECT($I$11),MATCH($D$11,INDIRECT("'"&$G$11&"'!4:4"),0),FALSE)), "No data", IF(VLOOKUP($A57,INDIRECT($I$11),MATCH($D$11,INDIRECT("'"&$G$11&"'!4:4"),0),FALSE)=0, "Not comparable", IF('Comparability & Trusts'!$D$5=0, "Not comparable", IF(AND($F$11="OP1112", OR($A57="aw", $A57="overall", $A57="aw1")), VLOOKUP($A57&"a",INDIRECT($I$11),MATCH($D$11,INDIRECT("'"&$G$11&"'!4:4"),0),FALSE), VLOOKUP($A57,INDIRECT($I$11),MATCH($D$11,INDIRECT("'"&$G$11&"'!4:4"),0),FALSE)))))) -> 73.547487 | G57: =IFERROR(VLOOKUP($A57,INDIRECT($H$11),MATCH("80th percentile",INDIRECT("'"&$F$11&"'!4:4"),0),FALSE),"No data") -> 73.2445865 | H57: =IF(OR($E57="Domain not used", $E57="No data"), $E57, IF(E57>G57,"Yes","No")) -> Yes | I57: =IF($E57="No data",NA(),IF($E57="Domain not used",NA(),IF($E57="#NULL!",NA(),$E57))) -> 76.39821194 | J57: =IF($E57="No data",NA(),IF($E57="Domain not used",NA(),IF($E57="#NULL!",NA(),VLOOKUP($A57,INDIRECT($H$11),MATCH("Min",INDIRECT("'"&$F$11&"'!4:4"),0),FALSE)))) -> 59.682343 | K57: =IF($E57="No data",NA(),IF($E57="Domain not used",NA(),IF($E57="#NULL!",NA(),VLOOKUP($A57,INDIRECT($H$11),MATCH("Max",INDIRECT("'"&$F$11&"'!4:4"),0),FALSE)))) -> 76.56616659 | L57: =G57-J57 -> 13.5622435 | M57: =K57-G57 -> 3.321580099 | N57: 5.4 | O57: =IFERROR(VLOOKUP($A57,INDIRECT($H$11),MATCH("Qnumber",INDIRECT("'"&$F$11&"'!4:4"),0),FALSE),"") -> q5
A58: br2 | D58: =IFERROR(VLOOKUP($A58,INDIRECT($H$11),MATCH("question",INDIRECT("'"&$F$11&"'!4:4"),0),FALSE),"") -> Q36: Overall in the last 12 months, did you feel that you were treated with respect and dignity by NHS mental health services? | E58: =IF(ISERROR(VLOOKUP($A58,INDIRECT($H$11),MATCH($D$11,INDIRECT("'"&$F$11&"'!4:4"),0),FALSE)), "No data", IF(VLOOKUP($A58,INDIRECT($H$11),MATCH($D$11,INDIRECT("'"&$F$11&"'!4:4"),0),FALSE)=0,"No data", VLOOKUP($A58,INDIRECT($H$11),MATCH($D$11,INDIRECT("'"&$F$11&"'!4:4"),0),FALSE))) -> 88.28599882 | F58: =IF($E58="Domain not used", $E58, IF(ISERROR(VLOOKUP($A58,INDIRECT($I$11),MATCH($D$11,INDIRECT("'"&$G$11&"'!4:4"),0),FALSE)), "No data", IF(VLOOKUP($A58,INDIRECT($I$11),MATCH($D$11,INDIRECT("'"&$G$11&"'!4:4"),0),FALSE)=0, "Not comparable", IF('Comparability & Trusts'!$D$5=0, "Not comparable", IF(AND($F$11="OP1112", OR($A58="aw", $A58="overall", $A58="aw1")), VLOOKUP($A58&"a",INDIRECT($I$11),MATCH($D$11,INDIRECT("'"&$G$11&"'!4:4"),0),FALSE), VLOOKUP($A58,INDIRECT($I$11),MATCH($D$11,INDIRECT("'"&$G$11&"'!4:4"),0),FALSE)))))) -> 85.354364 | G58: =IFERROR(VLOOKUP($A58,INDIRECT($H$11),MATCH("80th percentile",INDIRECT("'"&$F$11&"'!4:4"),0),FALSE),"No data") -> 85.83894658 | H58: =IF(OR($E58="Domain not used", $E58="No data"), $E58, IF(E58>G58,"Yes","No")) -> Yes | I58: =IF($E58="No data",NA(),IF($E58="Domain not used",NA(),IF($E58="#NULL!",NA(),$E58))) -> 88.28599882 | J58: =IF($E58="No data",NA(),IF($E58="Domain not used",NA(),IF($E58="#NULL!",NA(),VLOOKUP($A58,INDIRECT($H$11),MATCH("Min",INDIRECT("'"&$F$11&"'!4:4"),0),FALSE)))) -> 77.04907902 | K58: =IF($E58="No data",NA(),IF($E58="Domain not used",NA(),IF($E58="#NULL!",NA(),VLOOKUP($A58,INDIRECT($H$11),MATCH("Max",INDIRECT("'"&$F$11&"'!4:4"),0),FALSE)))) -> 90.07369269 | L58: =G58-J58 -> 8.78986756 | M58: =K58-G58 -> 4.234746112 | N58: 4.2 | O58: =IFERROR(VLOOKUP($A58,INDIRECT($H$11),MATCH("Qnumber",INDIRECT("'"&$F$11&"'!4:4"),0),FALSE),"") -> q36
A59: br3 | D59: =IFERROR(VLOOKUP($A59,INDIRECT($H$11),MATCH("question",INDIRECT("'"&$F$11&"'!4:4"),0),FALSE),"") -> Q4: Were you given enough time to discuss your needs and treatment? | E59: =IF(ISERROR(VLOOKUP($A59,INDIRECT($H$11),MATCH($D$11,INDIRECT("'"&$F$11&"'!4:4"),0),FALSE)), "No data", IF(VLOOKUP($A59,INDIRECT($H$11),MATCH($D$11,INDIRECT("'"&$F$11&"'!4:4"),0),FALSE)=0,"No data", VLOOKUP($A59,INDIRECT($H$11),MATCH($D$11,INDIRECT("'"&$F$11&"'!4:4"),0),FALSE))) -> 77.38843495 | F59: =IF($E59="Domain not used", $E59, IF(ISERROR(VLOOKUP($A59,INDIRECT($I$11),MATCH($D$11,INDIRECT("'"&$G$11&"'!4:4"),0),FALSE)), "No data", IF(VLOOKUP($A59,INDIRECT($I$11),MATCH($D$11,INDIRECT("'"&$G$11&"'!4:4"),0),FALSE)=0, "Not comparable", IF('Comparability & Trusts'!$D$5=0, "Not comparable", IF(AND($F$11="OP1112", OR($A59="aw", $A59="overall", $A59="aw1")), VLOOKUP($A59&"a",INDIRECT($I$11),MATCH($D$11,INDIRECT("'"&$G$11&"'!4:4"),0),FALSE), VLOOKUP($A59,INDIRECT($I$11),MATCH($D$11,INDIRECT("'"&$G$11&"'!4:4"),0),FALSE)))))) -> 80.234969 | G59: =IFERROR(VLOOKUP($A59,INDIRECT($H$11),MATCH("80th percentile",INDIRECT("'"&$F$11&"'!4:4"),0),FALSE),"No data") -> 76.59591682 | H59: =IF(OR($E59="Domain not used", $E59="No data"), $E59, IF(E59>G59,"Yes","No")) -> Yes | I59: =IF($E59="No data",NA(),IF($E59="Domain not used",NA(),IF($E59="#NULL!",NA(),$E59))) -> 77.38843495 | J59: =IF($E59="No data",NA(),IF($E59="Domain not used",NA(),IF($E59="#NULL!",NA(),VLOOKUP($A59,INDIRECT($H$11),MATCH("Min",INDIRECT("'"&$F$11&"'!4:4"),0),FALSE)))) -> 64.09210287 | K59: =IF($E59="No data",NA(),IF($E59="Domain not used",NA(),IF($E59="#NULL!",NA(),VLOOKUP($A59,INDIRECT($H$11),MATCH("Max",INDIRECT("'"&$F$11&"'!4:4"),0),FALSE)))) -> 82.09068445 | L59: =G59-J59 -> 12.50381395 | M59: =K59-G59 -> 5.494767625 | N59: 3 | O59: =IFERROR(VLOOKUP($A59,INDIRECT($H$11),MATCH("Qnumber",INDIRECT("'"&$F$11&"'!4:4"),0),FALSE),"") -> q4
A60: br4 | D60: =IFERROR(VLOOKUP($A60,INDIRECT($H$11),MATCH("question",INDIRECT("'"&$F$11&"'!4:4"),0),FALSE),"") -> Q7: Have you been told who is in charge of organising your care and services? (This person can be anyone providing your care, and may be called a “care coordinator” or “lead professional”.) | E60: =IF(ISERROR(VLOOKUP($A60,INDIRECT($H$11),MATCH($D$11,INDIRECT("'"&$F$11&"'!4:4"),0),FALSE)), "No data", IF(VLOOKUP($A60,INDIRECT($H$11),MATCH($D$11,INDIRECT("'"&$F$11&"'!4:4"),0),FALSE)=0,"No data", VLOOKUP($A60,INDIRECT($H$11),MATCH($D$11,INDIRECT("'"&$F$11&"'!4:4"),0),FALSE))) -> 79.90133201 | F60: =IF($E60="Domain not used", $E60, IF(ISERROR(VLOOKUP($A60,INDIRECT($I$11),MATCH($D$11,INDIRECT("'"&$G$11&"'!4:4"),0),FALSE)), "No data", IF(VLOOKUP($A60,INDIRECT($I$11),MATCH($D$11,INDIRECT("'"&$G$11&"'!4:4"),0),FALSE)=0, "Not comparable", IF('Comparability & Trusts'!$D$5=0, "Not comparable", IF(AND($F$11="OP1112", OR($A60="aw", $A60="overall", $A60="aw1")), VLOOKUP($A60&"a",INDIRECT($I$11),MATCH($D$11,INDIRECT("'"&$G$11&"'!4:4"),0),FALSE), VLOOKUP($A60,INDIRECT($I$11),MATCH($D$11,INDIRECT("'"&$G$11&"'!4:4"),0),FALSE)))))) -> 84.935857 | G60: =IFERROR(VLOOKUP($A60,INDIRECT($H$11),MATCH("80th percentile",INDIRECT("'"&$F$11&"'!4:4"),0),FALSE),"No data") -> 76.76751761 | H60: =IF(OR($E60="Domain not used", $E60="No data"), $E60, IF(E60>G60,"Yes","No")) -> Yes | I60: =IF($E60="No data",NA(),IF($E60="Domain not used",NA(),IF($E60="#NULL!",NA(),$E60))) -> 79.90133201 | J60: =IF($E60="No data",NA(),IF($E60="Domain not used",NA(),IF($E60="#NULL!",NA(),VLOOKUP($A60,INDIRECT($H$11),MATCH("Min",INDIRECT("'"&$F$11&"'!4:4"),0),FALSE)))) -> 58.40912299 | K60: =IF($E60="No data",NA(),IF($E60="Domain not used",NA(),IF($E60="#NULL!",NA(),VLOOKUP($A60,INDIRECT($H$11),MATCH("Max",INDIRECT("'"&$F$11&"'!4:4"),0),FALSE)))) -> 86.34590979 | L60: =G60-J60 -> 18.35839462 | M60: =K60-G60 -> 9.578392176 | N60: 1.8 | O60: =IFERROR(VLOOKUP($A60,INDIRECT($H$11),MATCH("Qnumber",INDIRECT("'"&$F$11&"'!4:4"),0),FALSE),"") -> q7
A61: br5 | D61: =IFERROR(VLOOKUP($A61,INDIRECT($H$11),MATCH("question",INDIRECT("'"&$F$11&"'!4:4"),0),FALSE),"") ->  | E61: =IF(ISERROR(VLOOKUP($A61,INDIRECT($H$11),MATCH($D$11,INDIRECT("'"&$F$11&"'!4:4"),0),FALSE)), "No data", IF(VLOOKUP($A61,INDIRECT($H$11),MATCH($D$11,INDIRECT("'"&$F$11&"'!4:4"),0),FALSE)=0,"No data", VLOOKUP($A61,INDIRECT($H$11),MATCH($D$11,INDIRECT("'"&$F$11&"'!4:4"),0),FALSE))) -> No data | F61: =IF($E61="Domain not used", $E61, IF(ISERROR(VLOOKUP($A61,INDIRECT($I$11),MATCH($D$11,INDIRECT("'"&$G$11&"'!4:4"),0),FALSE)), "No data", IF(VLOOKUP($A61,INDIRECT($I$11),MATCH($D$11,INDIRECT("'"&$G$11&"'!4:4"),0),FALSE)=0, "No data", IF('Comparability & Trusts'!$D$5=0, "Not comparable", IF(AND($F$11="OP1112", OR($A61="aw", $A61="overall", $A61="aw1")), VLOOKUP($A61&"a",INDIRECT($I$11),MATCH($D$11,INDIRECT("'"&$G$11&"'!4:4"),0),FALSE), VLOOKUP($A61,INDIRECT($I$11),MATCH($D$11,INDIRECT("'"&$G$11&"'!4:4"),0),FALSE)))))) -> No data | G61: =IFERROR(VLOOKUP($A61,INDIRECT($H$11),MATCH("80th percentile",INDIRECT("'"&$F$11&"'!4:4"),0),FALSE),"No data") -> No data | H61: =IF(OR($E61="Domain not used", $E61="No data"), $E61, IF(E61>G61,"Yes","No")) -> No data | I61: =IF($E61="No data",NA(),IF($E61="Domain not used",NA(),IF($E61="#NULL!",NA(),$E61))) ->  | J61: =IF($E61="No data",NA(),IF($E61="Domain not used",NA(),IF($E61="#NULL!",NA(),VLOOKUP($A61,INDIRECT($H$11),MATCH("Min",INDIRECT("'"&$F$11&"'!4:4"),0),FALSE)))) ->  | K61: =IF($E61="No data",NA(),IF($E61="Domain not used",NA(),IF($E61="#NULL!",NA(),VLOOKUP($A61,INDIRECT($H$11),MATCH("Max",INDIRECT("'"&$F$11&"'!4:4"),0),FALSE)))) ->  | L61: =G61-J61 ->  | M61: =K61-G61 ->  | N61: 0.6 | O61: =IFERROR(VLOOKUP($A61,INDIRECT($H$11),MATCH("Qnumber",INDIRECT("'"&$F$11&"'!4:4"),0),FALSE),"") -> 
D64: Domain: Clean, comfortable, friendly place to be
E65: Trust scores | G65: Performance | J65: ="Trust results relative to the national dispersion of scores - "&$E$11 -> Trust results relative to the national dispersion of scores - CMHS 2019/20
D66: Indicator | E66: =VLOOKUP($F$11,SurveyYears_Lookup,3,0) -> 2019/20 | F66: =VLOOKUP($F$11,SurveyYears_Lookup,4,0) -> 2018/19 (comparable scores only) | G66: =CONCATENATE("80th percentile for ",E66) -> 80th percentile for 2019/20 | H66: =CONCATENATE("Performance in top 20% for ",E66) -> Performance in top 20% for 2019/20 | J66: Min | K66: Max | L66: 80th - min | M66: max-80th
A67: ccfp1 | D67: =IFERROR(VLOOKUP($A67,INDIRECT($H$11),MATCH("question",INDIRECT("'"&$F$11&"'!4:4"),0),FALSE),"") ->  | E67: =IF(ISERROR(VLOOKUP($A67,INDIRECT($H$11),MATCH($D$11,INDIRECT("'"&$F$11&"'!4:4"),0),FALSE)), "No data", IF(VLOOKUP($A67,INDIRECT($H$11),MATCH($D$11,INDIRECT("'"&$F$11&"'!4:4"),0),FALSE)=0,"No data", VLOOKUP($A67,INDIRECT($H$11),MATCH($D$11,INDIRECT("'"&$F$11&"'!4:4"),0),FALSE))) -> No data | F67: =IF($E67="Domain not used", $E67, IF(ISERROR(VLOOKUP($A67,INDIRECT($I$11),MATCH($D$11,INDIRECT("'"&$G$11&"'!4:4"),0),FALSE)), "No data", IF(VLOOKUP($A67,INDIRECT($I$11),MATCH($D$11,INDIRECT("'"&$G$11&"'!4:4"),0),FALSE)=0, "No data", IF('Comparability & Trusts'!$D$5=0, "Not comparable", IF(AND($F$11="OP1112", OR($A67="aw", $A67="overall", $A67="aw1")), VLOOKUP($A67&"a",INDIRECT($I$11),MATCH($D$11,INDIRECT("'"&$G$11&"'!4:4"),0),FALSE), VLOOKUP($A67,INDIRECT($I$11),MATCH($D$11,INDIRECT("'"&$G$11&"'!4:4"),0),FALSE)))))) -> No data | G67: =IFERROR(VLOOKUP($A67,INDIRECT($H$11),MATCH("80th percentile",INDIRECT("'"&$F$11&"'!4:4"),0),FALSE),"No data") -> No data | H67: =IF(OR($E67="Domain not used", $E67="No data"), $E67, IF(E67>G67,"Yes","No")) -> No data | I67: =IF($E67="No data",NA(),IF($E67="Domain not used",NA(),IF($E67="#NULL!",NA(),$E67))) ->  | J67: =IF($E67="No data",NA(),IF($E67="Domain not used",NA(),IF($E67="#NULL!",NA(),VLOOKUP($A67,INDIRECT($H$11),MATCH("Min",INDIRECT("'"&$F$11&"'!4:4"),0),FALSE)))) ->  | K67: =IF($E67="No data",NA(),IF($E67="Domain not used",NA(),IF($E67="#NULL!",NA(),VLOOKUP($A67,INDIRECT($H$11),MATCH("Max",INDIRECT("'"&$F$11&"'!4:4"),0),FALSE)))) ->  | L67: =G67-J67 ->  | M67: =K67-G67 ->  | N67: 9.3 | O67: =IFERROR(VLOOKUP($A67,INDIRECT($H$11),MATCH("Qnumber",INDIRECT("'"&$F$11&"'!4:4"),0),FALSE),"") -> 
A68: ccfp2 | E68: No data | F68: =IF($E68="Domain not used", $E68, IF(ISERROR(VLOOKUP($A68,INDIRECT($I$11),MATCH($D$11,INDIRECT("'"&$G$11&"'!4:4"),0),FALSE)), "No data", IF(VLOOKUP($A68,INDIRECT($I$11),MATCH($D$11,INDIRECT("'"&$G$11&"'!4:4"),0),FALSE)=0, "No data", IF('Comparability & Trusts'!$D$5=0, "Not comparable", IF(AND($F$11="OP1112", OR($A68="aw", $A68="overall", $A68="aw1")), VLOOKUP($A68&"a",INDIRECT($I$11),MATCH($D$11,INDIRECT("'"&$G$11&"'!4:4"),0),FALSE), VLOOKUP($A68,INDIRECT($I$11),MATCH($D$11,INDIRECT("'"&$G$11&"'!4:4"),0),FALSE)))))) -> No data | G68: No data | H68: No data | N68: 7.9
